Workbook

Sheet Home Page
E4: Financial Feasibility Screening Tool North Carolina Department of Transportation Version 1.0 - December 2019
E7: About this Tool > | G7: The Financial Feasibility Screening Tool is a conceptual, planning-level evaluation model to assess the viability of implementing roadway corridors and/or bridge crossings in North Carolina as toll facilities. The assessment relies on readily available data and numerous assumptions to provide a high-level indication of the potencial leveraging capacity of revenues to finance the project before conducting more detailed and rigorous traffic and revenue studies. The tool is intended to be used solely for planning purposes to provide NCDOT and local agencies an overall magnitude of a project's financial value. The assessment is not adequate to support the financing of a project and does not guarantee any particular outcomes. More detailed analyses are required to support decision making on whether or not to move forward as a toll project.
E8: Getting Started > | G8: For Instructions and Definition of Terms, click | L8: HERE
G9: Note: Save a copy of this tool with a relevant name before entering any data.
E10: Projects Input Page > | G10: This version of the tool is set-up for batch editing. To create batch of projects, click | N10: HERE
E12: Select Type of Toll Project > | G12: Express Lanes
G13: Toll Bridge
G14: Toll Roads
E16: Legend > | G16: User-Supplied Input | H16: 0
G17: Suggested Input | H17: 0
G18: Hyperlink Text

Sheet User Guidelines
A1: << Home Page | F1: Project Information >> | K1: Express Lanes >> | N1: Toll Bridges>> | R1: Toll Roads>>
B3: I. Overview
C4: The North Carolina Toll Project Development Policy (NC Board of Transportation, February 2018), defined and implemented by a framework of steps and actions, expands the consideration of toll financing as an integral and important strategy to deliver critical, time-sensitive transportation solutions. This policy allows Metropolitan Planning Organizations (MPOs), Rural Planning Organizations (RPOs), and the department to evaluate the feasibility of financing urban and rural highway improvements through levying of tolls or managed lanes pricing options. The Financial Feasibility Screening Tool (FFST) provides a high-level indication of the potential use of tolled revenues to finance or off-set toll project costs before conducting more detailed and rigorous traffic and revenue (T&R) studies. The FFST allows users to assess four types of transportation improvements: (1) new alignment highways with full access control; (2) improvement of existing full access control highways by addition of priced managed lanes; (3) conversion of other highways to tolled, full access control highways and (4) high-volume bridges over bodies of water. This document explains the structure and functions of the analytical tool to help users understand the processes and concepts behind the modelling mechanisms. Financial feasibility is one element of the overall Pre-Submittal Assessment (PSA).
B5: II. Acronyms
C6: NCDOT | E6: North Carolina Department of Transportation
C7: GP | E7: General Purpose lanes
C8: AADT | E8: Average Annual Daily Traffic
C9: HOV | E9: High Occupancy Vehicle
C10: ETC | E10: Electronic Toll Collection system
C11: BBM | E11: Bill by Mail toll collection system
C12: T&R | E12: Traffic and Revenue
C13: VOT | E13: Value of Time
B15: III. Basics of the Tool
C16: The FFST relies on user-inputs to provide basic project information. Required inputs and initial assumptions are intended to be readily available to users. The tool, however, provides “reasonable assumptions” as suggested values for certain elements that NCDOT or the user can supersede if better data is available. The FFST provides three (3) separate tabs to evaluate Express Lanes, Toll Bridges, and Toll Roads. For Express Lanes, the T&R model assumes that a baseline general purpose (GP) volume must be saturated before a level of congestion or delay is reached such that any traffic is willing to pay for the express lanes. The model uses the opening year AADT, the proposed number of express lanes, and the existing number of GP lanes to estimate baseline volumes based on capacity constraints. Usage of the express lanes is predicted based on the overall level of traffic demand above the baseline volume in the GP lanes and the available capacity in the express lanes. Traffic projections in the express lanes for early years are adjusted downward based on national experience with similar projects to reflect the time that it takes the driving public to recognize any potential benefits of using the facility. Traffic demand for toll roads and toll bridges is predicted based on (1) toll-free demand, (2) the anticipated share of trucks and passenger cars, and (3) a general toll diversion model. The model uses the opening year AADT to estimate baseline volumes under toll-free conditions. Toll-free demand projections are adjusted to account for the traffic that would divert to other highways to avoid paying a toll. If traffic projections (i.e., AADT) already account for potential diversion, check the appropriate box next to "Opening Year AADT". The financial feasibility module calculates the ability of a toll project to generate revenue over a 40-year period to cover its own costs of operation and to assess its ability to fund all or a portion of the capital costs through a toll financing. Prior to the implementation of tolls and issuance of debt, however, significant additional analyses will be required. The assessment integrates the revenue forecast and the O&M expenditures forecast to determine “net” cash flows available for debt service (CFADS). The use of net toll revenues in the analysis assumes that operation and maintenance costs are paid from toll revenues first and, then, the remaining toll revenues are available for debt service payments. Debt providers require annual debt service coverage ratios (ADSCR) for all project financings and minimums are established based on the perceived level of risk. Since terms and covenants of bonds vary from transaction to transaction, a debt service coverage ratio of 2.0x has been assumed for the purposes of this planning-level tool. Cash flows available after covering for debt service are discounted by 4.5% to determine the amount of debt a project can use for financing (i.e., bond capacity). The 4.5% reflects the current average market rate for bonds sold in the capital markets frequently use for toll projects.
B17: IV. How to Use this Tool
C18: Start by entering required data on the Projects Information worksheet. This version of the tool allows to enter up to 10 projects for each project type. Cells are color-coded to assist in the data entry process. You are only allowed to enter data in the light-yellow cells. After project information has been entered, select the project type of interest to run the model. Use the hyperlink texts to navigate through the model or use the worksheet tabs. Once in the project type worksheets, select from the drop-down list menu the corridor name (or bridge) of interest. The worksheet will populate automatically based on the information provided in the Project Information worksheet. Yellow color-coded cells are already populated with suggested values. Analysts can supersede values in the yellow cells if more precise information is available. Use the Notes section at the bottom of the worksheet to document deviation from the suggested values. You might want to keep notes on the source of inputs, assumptions etc., so that these are available for later reflection and interpretation.
B19: V. What does the Preliminary Financial Feasibility Dial tells me?
C20: The financial feasibility assessment is determined by three conditions levels:
C21: 1. Likely covers O&M and portion of Capital (i.e., presents positive financial flexibility) 2. Likely covers O&M only (i.e., potential financial flexibility) 3. Likely won't cover O&M (i.e., additional funding sources would likely be needed)
C22: Condition levels are divided into three equal parts to indicate how projects perform within each of the financial feasibility condition levels. The position of the dial should be interpreted as a "confidence level" within each of the three financial condition levels. The FFST is meant to be illustrative in nature and intended to provide a scale of possible outcomes rather than a precise estimate. The assessment is not adequate to support the financing of a project and more detailed analyses are required to support decision making on whether or not to move forward as a toll project.
B24: VI. Limitations on this Tool
C25: Modifying the Tool - Sections of this Tool are locked to prevent accidental deletion or changes by the user. All calculations and default values are password protected. NCDOT/NCTA will release updated versions when necessary.
C26: Responsibility - The tool is intended to be used solely for planning purposes to provide NCDOT and local agencies an overall magnitude of a project's financial value. The assessment is not adequate to support the financing of a project and does not guarantee any particular outcomes. NCDOT/NCTA and its consultants are not responsible for costs or damages of any kind, if any, suffered by the user or any other party as a result of decisions made or actions taken based upon this tool.

Sheet Projects Information
B2: << Home Page | G2: << User Guidelines | I2: Express Lanes >> | K2: Toll Bridges>> | N2: Toll Roads>>
W4: =TRANSPOSE(G7:P7) -> 0 | X4: 1
D5: Express Lanes | T5: Model Selection | W5: 0 | X5: 2
G6: 1 | H6: 2 | I6: 3 | J6: 4 | K6: 5 | L6: 6 | M6: 7 | N6: 8 | O6: 9 | P6: 10 | T6: =VLOOKUP('Express Lanes'!$C$9,'Projects Information'!$W$4:$X$13,2,FALSE) -> 1 | W6: 0 | X6: 3
F7: Corridor Name | T7: =CHOOSE($T$6,G7,H7,I7,J7,K7,L7,M7,N7,O7,P7) -> 0 | W7: 0 | X7: 4
E8: Physical Characteristics | W8: 0 | X8: 5
F9: Project Identification Number | T9: =CHOOSE($T$6,G9,H9,I9,J9,K9,L9,M9,N9,O9,P9) -> 0 | W9: 0 | X9: 6
F10: Corridor Length (miles) | T10: =CHOOSE($T$6,G10,H10,I10,J10,K10,L10,M10,N10,O10,P10) -> 0 | W10: 0 | X10: 7
F11: Total No. of proposed General Purpose (GP) lanes (both directions) | T11: 0 | W11: 0 | X11: 8
F12: Total No. of proposed express lanes (both directions) | T12: 0 | W12: 0 | X12: 9
F13: Project Location (Enter county or counties) | T13: 0 | W13: 0 | X13: 10
E14: Traffic Characteristics
F15: Opening Year | T15: =CHOOSE($T$6,G15,H15,I15,J15,K15,L15,M15,N15,O15,P15) -> 0
F16: Opening Year AADT | T16: 0
F17: Design Year | T17: =CHOOSE($T$6,G17,H17,I17,J17,K17,L17,M17,N17,O17,P17) -> 0
F18: Design Year AADT | T18: 0
F19: Truck Percentage | T19: 0
F20: Share of Toll-Exempt Vehicles | T20: 0
F21: Select Peak Period Characteristics | G21: 6 hrs or more (3+ hrs in both AM & PM) | H21: 6 hrs or more (3+ hrs in both AM & PM) | I21: 3 hrs (1.5 hrs AM / 1.5 hrs PM) | J21: 6 hrs or more (3+ hrs in both AM & PM) | K21: 4 hrs (2 hrs AM / 2 hrs PM) | L21: 6 hrs or more (3+ hrs in both AM & PM) | M21: 6 hrs or more (3+ hrs in both AM & PM) | N21: 6 hrs or more (3+ hrs in both AM & PM) | O21: 6 hrs or more (3+ hrs in both AM & PM) | P21: 6 hrs or more (3+ hrs in both AM & PM) | T21: 6 hrs or more (3+ hrs in both AM & PM)
F22: Intermediate Access Point? | G22: Yes | H22: Yes | I22: No | J22: Yes | K22: Yes | L22: Yes | M22: Yes | N22: Yes | O22: Yes | P22: Yes | T22: Yes
F23: Trip Length Percent | G23: Medium - 75% | H23: Medium - 75% | I23: High - 90% | J23: Medium - 75% | K23: Medium - 75% | L23: Medium - 75% | M23: Medium - 75% | N23: Medium - 75% | O23: Medium - 75% | P23: Medium - 75% | T23: Medium - 75%
E24: Costs
F25: Construction Duration (in years) | T25: 0
F26: Roadway Capital Improvement Cost ($) | T26: 0
F27: Indexation Base Year of Capital Improvement Costs | T27: 0
T28: 0
T29: 0
W33: =TRANSPOSE(G36:P36) -> 0 | X33: 1
T34: Model Selection | W34: 0 | X34: 2
D35: Toll Bridges | G35: 1 | H35: 2 | I35: 3 | J35: 4 | K35: 5 | L35: 6 | M35: 7 | N35: 8 | O35: 9 | P35: 10 | T35: =VLOOKUP('Toll Bridges'!$C$9,'Projects Information'!$W$33:$X$42,2,FALSE) -> 1 | W35: 0 | X35: 3
F36: Bridge Name | T36: =CHOOSE($T$35,G36,H36,I36,J36,K36,L36,M36,N36,O36,P36) -> 0 | W36: 0 | X36: 4
F37: Physical Characteristics | W37: 0 | X37: 5
F38: Project Identification Number | T38: =CHOOSE($T$35,G38,H38,I38,J38,K38,L38,M38,N38,O38,P38) -> 0 | W38: 0 | X38: 6
F39: Bridge Length (miles) | T39: =CHOOSE($T$35,G39,H39,I39,J39,K39,L39,M39,N39,O39,P39) -> 0 | W39: 0 | X39: 7
F40: Total No. of proposed lanes (both directions) | T40: =CHOOSE($T$35,G40,H40,I40,J40,K40,L40,M40,N40,O40,P40) -> 0 | W40: 0 | X40: 8
F41: Project Location (Enter county or counties) | T41: =CHOOSE($T$35,G41,H41,I41,J41,K41,L41,M41,N41,O41,P41) -> 0 | W41: 0 | X41: 9
F42: Traffic Characteristics | W42: 0 | X42: 10
F43: Opening Year | T43: =CHOOSE($T$35,G43,H43,I43,J43,K43,L43,M43,N43,O43,P43) -> 0
F44: Opening Year AADT | T44: =CHOOSE($T$35,G44,H44,I44,J44,K44,L44,M44,N44,O44,P44) -> 0
F45: Design Year | T45: =CHOOSE($T$35,G45,H45,I45,J45,K45,L45,M45,N45,O45,P45) -> 0
F46: Design Year AADT | T46: 0
F47: Does Projected Traffic Already Account for Diversion (i.e., Toll Demand)? | G47: Yes | H47: No | I47: No | J47: No | K47: No | L47: No | M47: No | N47: No | O47: No | P47: No | T47: =CHOOSE($T$35,G47,H47,I47,J47,K47,L47,M47,N47,O47,P47) -> Yes
F48: Truck Percentage | T48: 0
F49: Average time savings compared to alternate route (minutes) | T49: 0
F50: Costs
F51: Construction Duration (in years) | T51: =CHOOSE($T$35,G51,H51,I51,J51,K51,L51,M51,N51,O51,P51) -> 0
F52: Bridge Capital Improvement Cost ($) | T52: =CHOOSE($T$35,G52,H52,I52,J52,K52,L52,M52,N52,O52,P52) -> 0
F53: Indexation Base Year of Capital Improvement Costs | T53: =CHOOSE($T$35,G53,H53,I53,J53,K53,L53,M53,N53,O53,P53) -> 0
W56: =TRANSPOSE(G62:P62) -> 0 | X56: 1
W57: 0 | X57: 2
W58: 0 | X58: 3
W59: 0 | X59: 4
D60: Toll Roads | T60: Model Selection | W60: 0 | X60: 5
G61: 1 | H61: 2 | I61: 3 | J61: 4 | K61: 5 | L61: 6 | M61: 7 | N61: 8 | O61: 9 | P61: 10 | T61: =VLOOKUP('Toll Roads'!$C$9,'Projects Information'!$W$56:$X$65,2,FALSE) -> 1 | W61: 0 | X61: 6
F62: Corridor Name> | T62: =CHOOSE($T$61,G62,H62,I62,J62,K62,#REF!,L62,N62,O62,P62) -> 0 | W62: 0 | X62: 7
F63: Physical Characteristics | W63: 0 | X63: 8
F64: Project Identification Number | T64: =CHOOSE($T$61,G64,H64,I64,J64,K64,L64,M64,N64,O64,P64) -> 0 | W64: 0 | X64: 9
F65: Corridor Length (miles) | T65: 0 | W65: 0 | X65: 10
F66: Total No. of proposed lanes (both directions) | T66: 0
F67: Length of roadway on bridge structure (miles) | T67: 0
F68: Project Location (Enter county or counties) | T68: 0
F69: Traffic Characteristics
F70: Opening Year | T70: =CHOOSE($T$61,G70,H70,I70,J70,K70,L70,M70,N70,O70,P70) -> 0
F71: Opening Year AADT | T71: 0
F72: Design Year | T72: =CHOOSE($T$61,G72,H72,I72,J72,K72,L72,M72,N72,O72,P72) -> 0
F73: Design Year AADT | T73: 0
F74: Does Projected Traffic Already Account for Diversion (i.e., Toll Demand)? | G74: No | H74: No | I74: No | J74: No | K74: No | L74: No | M74: No | N74: No | O74: No | P74: No | T74: =CHOOSE($T$61,G74,H74,I74,J74,K74,L74,M74,N74,O74,P74) -> No
F75: Truck Percentage | T75: 0
F76: Average time savings compared to alternate route (minutes) | T76: 0
F77: Intermediate Access Point? | G77: Yes | H77: Yes | I77: Yes | J77: Yes | T77: Yes
F78: Trip Length Percent | G78: Medium - 75% | H78: Medium - 75% | I78: Medium - 75% | J78: Medium - 75% | T78: Medium - 75%
F79: Costs
F80: Construction Duration (in years) | T80: 0
F81: Roadway Capital Improvement Cost ($) | T81: 0
F82: Indexation Base Year of Capital Improvement Costs | T82: 0
T83: 0

Sheet Express Lanes
A1: 1
B2: << Home Page | C2: << User Guide | H2: << Projects Information | I2: Toll Bridges>> | J2: Toll Roads >>
B4: Express Lanes
B6: Project Information | H6: Traffic Characteristics
B8: Project Identification Number | C8: ='Projects Information'!T9 -> 0 | H8: Opening Year | I8: ='Projects Information'!T15 -> 0
B9: Corridor Name | H9: Opening Year AADT | I9: ='Projects Information'!T16 -> 0
B10: Corridor Length (miles) | C10: ='Projects Information'!T10 -> 0 | H10: Design Year | I10: ='Projects Information'!T17 -> 0
B11: Total No. of Proposed General Purpose (GP) lanes (both directions) | C11: ='Projects Information'!T11 -> 0 | H11: Design Year AADT | I11: ='Projects Information'!T18 -> 0
B12: Total No. of proposed express lanes (both directions) | C12: ='Projects Information'!T12 -> 0 | H12: Average Annual Growth Rate (AADT) | I12: =(I11/I9)^(1/(DesignYear_EL-OpeningYear_EL))-1 -> 
B13: Project Location (Enter County or counties) | C13: ='Projects Information'!T13 -> 0 | H13: Truck Percentage | I13: ='Projects Information'!T19 -> 0
H14: Share of Toll-Exempt Vehicles | I14: ='Projects Information'!T20 -> 0
H15: Select Peak Period Characteristics | I15: ='Projects Information'!T21 -> 6 hrs or more (3+ hrs in both AM & PM)
H16: Intermediate Access Point? | I16: ='Projects Information'!T22 -> Yes
H17: Trip Length Percent | I17: ='Projects Information'!T23 -> Medium - 75% | K17: Suggested:
H18: Value of Time ($/hr) | I18: 12.5 | K18: 12.5
B21: Dynamic Toll Pricing | H21: Costs
E22: Suggested: | K22: Suggested:
B23: Minimum Electronic Toll Collection (ETC) Rate | H23: Capital Costs
B25: Minimum Toll Rate ($/mile) | C25: 0.1 | E25: 0.1 | H25: Construction Duration (in years) | I25: ='Projects Information'!T25 -> 0
H26: Roadway Capital Improvement Cost ($) | I26: ='Projects Information'!T26 -> 0
B27: Bill By Mail (BBM) Toll Rate | H27: Indexation Base Year of Capital Improvement Costs | I27: ='Projects Information'!T27 -> 0
B29: Car toll ($/mile) | C29: =C25*(1+BBM_Rate) -> 0.153 | H29: Toll System Implementation Cost ($/lane-mile) | I29: 450000 | K29: ='Assumptions Tab'!$E$38 -> 450000
B30: Annual Toll Rate Increase (%) | C30: 0.01 | E30: 0.01 | H30: Indexation Base Year of Toll System Capital Cost | I30: 2018 | K30: 2018
B31: Indexation Base Year
H32: Operating Costs
B33: Toll Rates Versus Express Lane Demand
H34: Roadway Maintenance ($/lane-mile) | I34: 25000 | K34: 25000
H35: Indexation Base Year Roadway Maintenance Cost | I35: 2018 | K35: 2018
H36: Annual Inflation rate for Costs (%) | I36: 0.025 | K36: 0.025
B48: Notes: | H48: Preliminary Financial Feasibility Assessment
B49: 1.
B50: 2.
B51: 3.
B52: 4.
B53: 5.
B54: 6.
B55: 7.
B56: 8.
B57: 9.
B58: 10.

Sheet Toll Bridges
B2: << Home Page | C2: << User Guide | H2: << Projects Information | I2: << Express Lanes | L2: Toll Roads >>
B4: Toll Bridges
B6: Project Information | H6: Traffic Characteristics | CK6: x | DN6: x | TER6: x
O7: Does Traffic already accounts for diversion? Yes=1, No=0 | SRC7: x
B8: Project Identification Number | C8: ='Projects Information'!T38 -> 0 | H8: Opening Year | I8: ='Projects Information'!T43 -> 0 | O8: =IF('Projects Information'!$T$47="Yes",1,0) -> 1 | Q8: Bridge Length (ft) | R8: =C10*5280 -> 0
B9: Bridge Name | H9: Opening Year AADT | I9: ='Projects Information'!T44 -> 0 | Q9: Bridge Width (ft) | R9: =C11*15 -> 0
B10: Bridge Length (miles) | C10: ='Projects Information'!T39 -> 0 | H10: Design Year | I10: ='Projects Information'!T45 -> 0 | Q10: Bridge Deck Area | R10: =R8*R9 -> 0
B11: Total No. of proposed lanes (both directions) | C11: ='Projects Information'!T40 -> 0 | H11: Design Year AADT | I11: ='Projects Information'!T46 -> 0
B12: Project Location (Enter County or counties) | C12: ='Projects Information'!T41 -> 0 | H12: Average Annual Growth Rate (AADT) | I12: =(I11/I9)^(1/(DesignYear_TB-OpeningYear_TB))-1 -> 
H13: Truck Percentage (%) | I13: ='Projects Information'!T48 -> 0
H14: Average time savings compared to alternate route (minutes) | I14: ='Projects Information'!T49 -> 0 | K14: Suggested:
H15: Value of Time ($/hr) - Car | I15: 12.5 | K15: 12.5
H16: Value of Time ($/hr) - Truck | I16: 50 | K16: 50
B18: Toll Pricing | H18: Costs
B20: Electronic Toll Collection (ETC) Rates | H20: Capital Costs
B22: Car toll ($/trip) | C22: 6 | H22: Construction Duration (in years) | I22: ='Projects Information'!T51 -> 0
B23: Truck toll ($/trip) | C23: 10 | H23: Bridge Capital Improvement Cost ($) | I23: ='Projects Information'!T52 -> 0
H24: Indexation Base Year of Capital Improvement Costs | I24: ='Projects Information'!T53 -> 0
B25: Bill By Mail (BBM) Toll Rates | K25: Suggested:
B26: Car toll ($/trip) | C26: =C22*(1+BBM_Rate) -> 9.18 | H26: Toll System Implementation Cost ($/lane-mile) | I26: 0 | K26: ='Assumptions Tab'!$E$40 -> 250000
B27: Truck toll ($/trip) | C27: =C23*(1+BBM_Rate) -> 15.3 | E27: Suggested: | H27: Indexation Base Year of Toll System Capital Cost | I27: 2018 | K27: 2018
B28: Annual Toll Rate Increase (%) | C28: 0.02 | E28: 0.02
B29: Indexation Base Year | H29: Operating Costs
H30: Roadway Maintenance ($/lane-mile) | I30: 25000 | K30: 25000
H31: Bridge Maintenance/Preservation Cost ($/ft^2) | I31: 0.05 | K31: 0.05
H32: Indexation Base Year of Operating Costs | I32: 2018 | K32: 2018
H33: Annual Inflation rate for Costs (%) | I33: 0.025 | K33: 0.025
B36: Notes: | H36: Preliminary Financial Feasibility Assessment
B37: 1.
B38: 2.
B39: 3.
B40: 4.
B41: 5.
B42: 6.
B43: 7.
B44: 8.
B45: 9.
B46: 10.

Sheet Toll Roads
B2: << Home Page | C2: << User Guide | H2: << Projects Information | I2: << Express Lanes | L2: << Toll Bridges
B4: Toll Roads
B6: Project Information | H6: Traffic Characteristics
X7: Bridge Calculation
B8: Project Identification Number | C8: ='Projects Information'!T64 -> 0 | H8: Opening Year | I8: ='Projects Information'!T70 -> 0 | X8: Bridge Length (ft) | Y8: =C12*5280 -> 0
B9: Corridor Name | H9: Opening Year AADT | I9: ='Projects Information'!T71 -> 0 | Q9: Does Traffic already accounts for diversion? Yes=1, No=0 | X9: Bridge Width (ft) | Y9: =C11*15 -> 0
B10: Corridor Length (miles) | C10: ='Projects Information'!T65 -> 0 | H10: Design Year | I10: ='Projects Information'!T72 -> 0 | Q10: =IF('Projects Information'!T74="Yes",1,0) -> 0 | X10: Bridge Deck Area (ft^2) | Y10: =Y8*Y9 -> 0
B11: Total No. of proposed lanes (both directions) | C11: ='Projects Information'!T66 -> 0 | H11: Design Year AADT | I11: ='Projects Information'!T73 -> 0
B12: Length of roadway on bridge structure (miles) | C12: ='Projects Information'!T67 -> 0 | H12: Average Annual Growth Rate (AADT) | I12: =(I11/I9)^(1/(DesignYear_GT-OpeningYear_GT))-1 -> 
B13: Project Location (Enter County or counties) | C13: ='Projects Information'!T68 -> 0 | H13: Truck Percentage | I13: ='Projects Information'!T75 -> 0
H14: Average time savings compared to alternate route (minutes) | I14: ='Projects Information'!T76 -> 0
H15: Intermediate Access Point? | I15: ='Projects Information'!T77 -> Yes
H16: Trip Length Percent | I16: ='Projects Information'!T78 -> Medium - 75% | K16: Suggested:
H17: Value of Time ($/hr) - Car | I17: 12.5 | K17: 12.5
H18: Value of Time ($/hr) - Truck | I18: 50 | K18: 50
B20: Toll Pricing | H20: Costs
B22: Electronic Toll Collection (ETC) Rates | E22: Suggested: | H22: Capital Costs
B24: Car toll rate ($/mile) | C24: 0.14 | E24: 0.14 | H24: Construction Duration (in years) | I24: ='Projects Information'!T80 -> 0
B25: Truck toll rate ($/mile) | C25: 0.56 | E25: 0.56 | H25: Roadway Capital Improvement Cost ($) | I25: ='Projects Information'!T81 -> 0
B26: Bill By Mail (BBM) Toll Rates | H26: Indexation Base Year of Capital Improvement Costs | I26: ='Projects Information'!T82 -> 0
B27: Car toll rate ($/mile) | C27: =C24*(1+BBM_Rate) -> 0.2142 | K27: Suggested:
B28: Truck toll rate ($/mile) | C28: =C25*(1+BBM_Rate) -> 0.8568 | H28: Toll System Implementation Cost ($/lane-mile) | I28: 422000 | K28: ='Assumptions Tab'!$E$39 -> 422000
B29: Annual rate increase (%) | C29: 0.02 | E29: 0.02 | H29: Indexation Base Year of Toll System Capital Cost | I29: 2018 | K29: 2018
B30: Indexation Base Year
H31: Operating Costs
H32: Roadway Maintenance ($/lane-mile) | I32: 25000 | K32: 25000
H33: Bridge Maintenance ($/ft^2) | I33: 0.05 | K33: 0.05
H34: Indexation Base Year of Operating Costs | I34: 2018 | K34: 2018
H35: Annual Inflation rate for Costs (%) | I35: 0.025 | K35: 0.025
B38: Notes: | H38: Preliminary Financial Feasibility Assessment
B39: 1.
B40: 2.
B41: 3.
B42: 4.
B43: 5.
B44: 6.
B45: 7.
B46: 8.
B47: 9.
B48: 10.

Sheet PV Calculation (hidden)
B2: Financial Assumptions
C4: Present Value Rate (%) | D4: 0.045
C5: Debt Service Coverage Ratio (DSCR) | D5: 2 | E5: >Select from dropdown list
J6: Likely Won't Cover O&M | M6: Likely Covers O&M | P6: Likely Covers O&M + Some Capital
H7: Financial Feasibility Criteria | I7: Description | J7: Level 1 | K7: Level 2 | L7: Level 3 | M7: Level 4 | N7: Level 5 | O7: Level 6 | P7: Level 7 | Q7: Level 8 | R7: Level 9
H8: Operating Margin (%) | I8: Measure of Operating Efficiency. A higher margin is desirable. Example: An operating margin of 20% means that 80% of revenue is used to operate and maintain the toll road. A negative margin means that O&M costs exceed revenues. | J8: (-∞,-15%] | K8: (-15%,-5%] | L8: (-5%,1%] | M8: (1%,6%] | N8: (6%,10%] | O8: (10%,∞] | P8: (10%,∞] | Q8: (10%,∞] | R8: (10%,∞]
H9: Bonding Capacity (%) | I9: Measures the capacity of borrowing debt backed by future toll revenues to fund all or a portion of the capital costs. A higher percentage is desirable. Example: A bonding capacity of 30% means that 30% of capital costs can be supported through a toll financing. | O9: [-∞,2%] | P9: (2%,25%] | Q9: (25%,40%] | R9: (40%,∞)
I10: Dial Score | J10: 4 | K10: 15 | L10: 27 | M10: 39 | N10: 50 | O10: 62 | P10: 72 | Q10: 84 | R10: 95
E11: DSCR | F11: % Reduction
E12: 1 | F12: 1
E13: 1.5 | F13: 0.62
E14: 2 | F14: 0.47
E15: 2.1 | F15: 0.45
E16: 2.25 | F16: 0.42
E17: 2.45 | F17: 0.38
E18: 2.5 | F18: 0.37
E19: 3 | F19: 0.3
C28: EXPRESS LANES | N28: TOLL BRIDGES | Z28: TOLL ROADS
C29: Construction Duration | E29: =Const_Duration_EL -> 0 | N29: Construction Duration | O29: =Const_Duration_TB -> 0 | Z29: Construction Duration | AA29: =Const_Duration_GT -> 0
C30: Capital Improvement Costs | E30: ='Express Lanes'!I26 -> 0 | F30: ="("&'Express Lanes'!I27&" dollars)" -> (0 dollars) | N30: Capital Improvement Costs | O30: ='Toll Bridges'!I23 -> 0 | P30: ="("&'Toll Bridges'!I24&" dollars)" -> (0 dollars) | Z30: Capital Improvement Costs | AA30: ='Toll Roads'!I25 -> 0 | AB30: ="("&'Toll Roads'!I26&" dollars)" -> (0 dollars)
C31: Toll System Implementation Costs | E31: ='Express Lanes'!I29 -> 450000 | F31: ="("&'Express Lanes'!I30&" dollars)" -> (2018 dollars) | N31: Toll System Implementation Costs | O31: ='Toll Bridges'!I26*'Toll Bridges'!C10*'Toll Bridges'!C11 -> 0 | P31: ="("&'Toll Bridges'!I27&" dollars)" -> (2018 dollars) | Z31: Toll System Implementation Costs | AA31: ='Toll Roads'!I28*'Toll Roads'!C10*'Toll Roads'!C11 -> 0 | AB31: ="("&'Toll Roads'!I29&" dollars)" -> (2018 dollars)
C33: Capital Costs | N33: Capital Costs | Z33: Capital Costs
C34: Capital Improvement Costs | E34: =E30*(1+0.03)^(E45-'Express Lanes'!I27) -> 0 | F34: ="("&E45&" dollars)" -> (0 dollars) | N34: Capital Improvement Costs | O34: =O30*(1+0.03)^(Q45-'Toll Bridges'!I24) -> 0 | P34: ="("&Q45&" dollars)" -> (0 dollars) | Z34: Capital Improvement Costs | AA34: =AA30*(1+0.03)^(AB45-'Toll Roads'!I26) -> 0 | AB34: ="("&AB45&" dollars)" -> (0 dollars)
C35: Toll System Implementation Costs | E35: =E31*(1+0.03)^(E45-'Express Lanes'!I30) -> 5.593621279e-21 | F35: ="("&E45&" dollars)" -> (0 dollars) | N35: Toll System Implementation Costs | O35: =O31*(1+0.03)^(Q45-'Toll Bridges'!I27) -> 0 | P35: ="("&Q45&" dollars)" -> (0 dollars) | Z35: Toll System Implementation Costs | AA35: =AA31*(1+0.03)^(AB45-'Toll Roads'!I29) -> 0 | AB35: ="("&AB45&" dollars)" -> (0 dollars)
C36: Total Initial Capital Cost | E36: =E34+E35 -> 5.593621279e-21 | F36: =F35 -> (0 dollars) | N36: Total Initial Capital Cost | O36: =O34+O35 -> 0 | P36: =P35 -> (0 dollars) | Z36: Total Initial Capital Cost | AA36: =SUM(AA34:AA35) -> 0 | AB36: =AB35 -> (0 dollars)
C38: Financial Summary | N38: Financial Summary | Z38: Financial Summary
C39: Par Amount (i.e., likely contribution of Toll Revenues for Capital) | E39: =SUM(J46:J85) ->  | N39: Par Amount (i.e., likely contribution of Toll Revenues for Capital) | O39: =SUM(V46:V85) ->  | Z39: Par Amount (i.e., likely contribution of Toll Revenues for Capital) | AA39: =SUM(AG46:AG85) -> 
C40: Bonding Capacity (%) | E40: =E39/E36 ->  | F40: =Bonding Capacity/Capital Cost | N40: Bonding Capacity (%) | O40: =O39/O36 ->  | P40: =Bonding Capacity/Capital Cost | Z40: Bonding Capacity (%)=Feasibility | AA40: =AA39/AA36 ->  | AB40: =Bonding Capacity/Capital Cost
C41: 40-Year Operating Margin | E41: =IF(F86<0.1,-1,H86/F86) ->  | F41: =Operating Revenue/Gross Revenues | N41: 40-Year Operating Margin | O41: =IF(R86<0.1,-1,T86/R86) ->  | P41: =Operating Revenue/Gross Revenues | Z41: 40-Year Operating Margin | AA41: =IF(AC86<0.1,-1,AE86/AC86) ->  | AB41: =Operating Revenue/Gross Revenues
E44: Year | F44: Gross Revenues | G44: O&M Costs | H44: Operating Revenues | I44: Cash Flows Available for Debt | J44: PV of CFs Available for Debt | Q44: Year | R44: Gross Revenues | S44: O&M Costs | T44: Operating Revenues | U44: Cash Flows Available for Debt | V44: PV of CFs Available for Debt | AB44: Year | AC44: Gross revenues | AD44: O&M Costs | AE44: Operating Revenues | AF44: Cash Flows Available for Debt | AG44: PV of CFs Available for Debt
C45: Construction Start Date >>>> | D45: 0 | E45: =E46-E29 -> 0 | O45: Construction Start Date >>>> | P45: 0 | Q45: =Q46-O29 -> 0 | Z45: Construction Start Date >>>> | AA45: 0 | AB45: =AB46-AA29 -> 0
C46: Opening Year >>>> | D46: 1 | E46: =OpeningYear_EL -> 0 | F46: =HLOOKUP(E46,'EL_Calcs #2'!$C$7:$AP$49,41,FALSE) ->  | G46: =HLOOKUP(E46,'EL_Calcs #2'!$C$7:$AP$49,42,FALSE) ->  | H46: =F46+G46 ->  | I46: =H46*VLOOKUP($D$5,$E$12:$F$19,2,FALSE) ->  | J46: =I46/(1+$D$4)^(E46-$E$45) ->  | O46: Opening Year >>>> | P46: 1 | Q46: =OpeningYear_TB -> 0 | R46: =HLOOKUP(Q46,'Bridge_Calcs #1'!$C$8:$AP$37,28,FALSE) ->  | S46: =HLOOKUP(Q46,'Bridge_Calcs #1'!$C$8:$AP$37,29,FALSE) ->  | T46: =R46+S46 ->  | U46: =T46*VLOOKUP($D$5,$E$12:$F$19,2,FALSE) ->  | V46: =U46/(1+$D$4)^(Q46-$Q$45) ->  | Z46: Opening Year >>>> | AA46: 1 | AB46: =OpeningYear_GT -> 0 | AC46: =HLOOKUP(AB46,'Green_Calcs #1'!$C$11:$AP$47,29,FALSE) ->  | AD46: =HLOOKUP(AB46,'Green_Calcs #1'!$C$11:$AP$47,30,FALSE) ->  | AE46: =AC46+AD46 ->  | AF46: =AE46*VLOOKUP($D$5,$E$12:$F$19,2,FALSE) ->  | AG46: =AF46/(1+$D$4)^(AB46-$AB$45) -> 
D47: 2 | E47: =E46+1 -> 1 | F47: =HLOOKUP(E47,'EL_Calcs #2'!$C$7:$AP$49,41,FALSE) ->  | G47: =HLOOKUP(E47,'EL_Calcs #2'!$C$7:$AP$49,42,FALSE) ->  | H47: =F47+G47 ->  | I47: =H47*VLOOKUP($D$5,$E$12:$F$19,2,FALSE) ->  | P47: 2 | Q47: =Q46+1 -> 1 | R47: =HLOOKUP(Q47,'Bridge_Calcs #1'!$C$8:$AP$37,28,FALSE) ->  | S47: =HLOOKUP(Q47,'Bridge_Calcs #1'!$C$8:$AP$37,29,FALSE) ->  | T47: =R47+S47 ->  | AA47: 2 | AB47: =AB46+1 -> 1 | AC47: =HLOOKUP(AB47,'Green_Calcs #1'!$C$11:$AP$47,29,FALSE) ->  | AD47: =HLOOKUP(AB47,'Green_Calcs #1'!$C$11:$AP$47,30,FALSE) ->  | AE47: =AC47+AD47 -> 
D48: 3 | E48: =E47+1 -> 2 | F48: =HLOOKUP(E48,'EL_Calcs #2'!$C$7:$AP$49,41,FALSE) ->  | G48: =HLOOKUP(E48,'EL_Calcs #2'!$C$7:$AP$49,42,FALSE) ->  | P48: 3 | Q48: =Q47+1 -> 2 | R48: =HLOOKUP(Q48,'Bridge_Calcs #1'!$C$8:$AP$37,28,FALSE) ->  | S48: =HLOOKUP(Q48,'Bridge_Calcs #1'!$C$8:$AP$37,29,FALSE) ->  | AA48: 3 | AB48: =AB47+1 -> 2 | AC48: =HLOOKUP(AB48,'Green_Calcs #1'!$C$11:$AP$47,29,FALSE) ->  | AD48: =HLOOKUP(AB48,'Green_Calcs #1'!$C$11:$AP$47,30,FALSE) -> 
D49: 4 | E49: 3 | F49: =HLOOKUP(E49,'EL_Calcs #2'!$C$7:$AP$49,41,FALSE) ->  | G49: =HLOOKUP(E49,'EL_Calcs #2'!$C$7:$AP$49,42,FALSE) ->  | P49: 4 | Q49: 3 | R49: =HLOOKUP(Q49,'Bridge_Calcs #1'!$C$8:$AP$37,28,FALSE) ->  | S49: =HLOOKUP(Q49,'Bridge_Calcs #1'!$C$8:$AP$37,29,FALSE) ->  | AA49: 4 | AB49: 3 | AC49: =HLOOKUP(AB49,'Green_Calcs #1'!$C$11:$AP$47,29,FALSE) ->  | AD49: =HLOOKUP(AB49,'Green_Calcs #1'!$C$11:$AP$47,30,FALSE) -> 
D50: 5 | E50: 4 | F50: =HLOOKUP(E50,'EL_Calcs #2'!$C$7:$AP$49,41,FALSE) ->  | G50: =HLOOKUP(E50,'EL_Calcs #2'!$C$7:$AP$49,42,FALSE) ->  | P50: 5 | Q50: 4 | R50: =HLOOKUP(Q50,'Bridge_Calcs #1'!$C$8:$AP$37,28,FALSE) ->  | S50: =HLOOKUP(Q50,'Bridge_Calcs #1'!$C$8:$AP$37,29,FALSE) ->  | AA50: 5 | AB50: 4 | AC50: =HLOOKUP(AB50,'Green_Calcs #1'!$C$11:$AP$47,29,FALSE) ->  | AD50: =HLOOKUP(AB50,'Green_Calcs #1'!$C$11:$AP$47,30,FALSE) -> 
D51: 6 | E51: 5 | F51: =HLOOKUP(E51,'EL_Calcs #2'!$C$7:$AP$49,41,FALSE) ->  | G51: =HLOOKUP(E51,'EL_Calcs #2'!$C$7:$AP$49,42,FALSE) ->  | P51: 6 | Q51: 5 | R51: =HLOOKUP(Q51,'Bridge_Calcs #1'!$C$8:$AP$37,28,FALSE) ->  | S51: =HLOOKUP(Q51,'Bridge_Calcs #1'!$C$8:$AP$37,29,FALSE) ->  | AA51: 6 | AB51: 5 | AC51: =HLOOKUP(AB51,'Green_Calcs #1'!$C$11:$AP$47,29,FALSE) ->  | AD51: =HLOOKUP(AB51,'Green_Calcs #1'!$C$11:$AP$47,30,FALSE) -> 
D52: 7 | E52: 6 | F52: =HLOOKUP(E52,'EL_Calcs #2'!$C$7:$AP$49,41,FALSE) ->  | G52: =HLOOKUP(E52,'EL_Calcs #2'!$C$7:$AP$49,42,FALSE) ->  | P52: 7 | Q52: 6 | R52: =HLOOKUP(Q52,'Bridge_Calcs #1'!$C$8:$AP$37,28,FALSE) ->  | S52: =HLOOKUP(Q52,'Bridge_Calcs #1'!$C$8:$AP$37,29,FALSE) ->  | AA52: 7 | AB52: 6 | AC52: =HLOOKUP(AB52,'Green_Calcs #1'!$C$11:$AP$47,29,FALSE) ->  | AD52: =HLOOKUP(AB52,'Green_Calcs #1'!$C$11:$AP$47,30,FALSE) -> 
D53: 8 | E53: 7 | F53: =HLOOKUP(E53,'EL_Calcs #2'!$C$7:$AP$49,41,FALSE) ->  | G53: =HLOOKUP(E53,'EL_Calcs #2'!$C$7:$AP$49,42,FALSE) ->  | P53: 8 | Q53: 7 | R53: =HLOOKUP(Q53,'Bridge_Calcs #1'!$C$8:$AP$37,28,FALSE) ->  | S53: =HLOOKUP(Q53,'Bridge_Calcs #1'!$C$8:$AP$37,29,FALSE) ->  | AA53: 8 | AB53: 7 | AC53: =HLOOKUP(AB53,'Green_Calcs #1'!$C$11:$AP$47,29,FALSE) ->  | AD53: =HLOOKUP(AB53,'Green_Calcs #1'!$C$11:$AP$47,30,FALSE) -> 
D54: 9 | E54: 8 | F54: =HLOOKUP(E54,'EL_Calcs #2'!$C$7:$AP$49,41,FALSE) ->  | G54: =HLOOKUP(E54,'EL_Calcs #2'!$C$7:$AP$49,42,FALSE) ->  | P54: 9 | Q54: 8 | R54: =HLOOKUP(Q54,'Bridge_Calcs #1'!$C$8:$AP$37,28,FALSE) ->  | S54: =HLOOKUP(Q54,'Bridge_Calcs #1'!$C$8:$AP$37,29,FALSE) ->  | AA54: 9 | AB54: 8 | AC54: =HLOOKUP(AB54,'Green_Calcs #1'!$C$11:$AP$47,29,FALSE) ->  | AD54: =HLOOKUP(AB54,'Green_Calcs #1'!$C$11:$AP$47,30,FALSE) -> 
D55: 10 | E55: 9 | F55: =HLOOKUP(E55,'EL_Calcs #2'!$C$7:$AP$49,41,FALSE) ->  | G55: =HLOOKUP(E55,'EL_Calcs #2'!$C$7:$AP$49,42,FALSE) ->  | P55: 10 | Q55: 9 | R55: =HLOOKUP(Q55,'Bridge_Calcs #1'!$C$8:$AP$37,28,FALSE) ->  | S55: =HLOOKUP(Q55,'Bridge_Calcs #1'!$C$8:$AP$37,29,FALSE) ->  | AA55: 10 | AB55: 9 | AC55: =HLOOKUP(AB55,'Green_Calcs #1'!$C$11:$AP$47,29,FALSE) ->  | AD55: =HLOOKUP(AB55,'Green_Calcs #1'!$C$11:$AP$47,30,FALSE) -> 
D56: 11 | E56: 10 | F56: =HLOOKUP(E56,'EL_Calcs #2'!$C$7:$AP$49,41,FALSE) ->  | G56: =HLOOKUP(E56,'EL_Calcs #2'!$C$7:$AP$49,42,FALSE) ->  | P56: 11 | Q56: 10 | R56: =HLOOKUP(Q56,'Bridge_Calcs #1'!$C$8:$AP$37,28,FALSE) ->  | S56: =HLOOKUP(Q56,'Bridge_Calcs #1'!$C$8:$AP$37,29,FALSE) ->  | AA56: 11 | AB56: 10 | AC56: =HLOOKUP(AB56,'Green_Calcs #1'!$C$11:$AP$47,29,FALSE) ->  | AD56: =HLOOKUP(AB56,'Green_Calcs #1'!$C$11:$AP$47,30,FALSE) -> 
D57: 12 | E57: 11 | F57: =HLOOKUP(E57,'EL_Calcs #2'!$C$7:$AP$49,41,FALSE) ->  | G57: =HLOOKUP(E57,'EL_Calcs #2'!$C$7:$AP$49,42,FALSE) ->  | P57: 12 | Q57: 11 | R57: =HLOOKUP(Q57,'Bridge_Calcs #1'!$C$8:$AP$37,28,FALSE) ->  | S57: =HLOOKUP(Q57,'Bridge_Calcs #1'!$C$8:$AP$37,29,FALSE) ->  | AA57: 12 | AB57: 11 | AC57: =HLOOKUP(AB57,'Green_Calcs #1'!$C$11:$AP$47,29,FALSE) ->  | AD57: =HLOOKUP(AB57,'Green_Calcs #1'!$C$11:$AP$47,30,FALSE) -> 
D58: 13 | E58: 12 | F58: =HLOOKUP(E58,'EL_Calcs #2'!$C$7:$AP$49,41,FALSE) ->  | G58: =HLOOKUP(E58,'EL_Calcs #2'!$C$7:$AP$49,42,FALSE) ->  | P58: 13 | Q58: 12 | R58: =HLOOKUP(Q58,'Bridge_Calcs #1'!$C$8:$AP$37,28,FALSE) ->  | S58: =HLOOKUP(Q58,'Bridge_Calcs #1'!$C$8:$AP$37,29,FALSE) ->  | AA58: 13 | AB58: 12 | AC58: =HLOOKUP(AB58,'Green_Calcs #1'!$C$11:$AP$47,29,FALSE) ->  | AD58: =HLOOKUP(AB58,'Green_Calcs #1'!$C$11:$AP$47,30,FALSE) -> 
D59: 14 | E59: 13 | F59: =HLOOKUP(E59,'EL_Calcs #2'!$C$7:$AP$49,41,FALSE) ->  | G59: =HLOOKUP(E59,'EL_Calcs #2'!$C$7:$AP$49,42,FALSE) ->  | P59: 14 | Q59: 13 | R59: =HLOOKUP(Q59,'Bridge_Calcs #1'!$C$8:$AP$37,28,FALSE) ->  | S59: =HLOOKUP(Q59,'Bridge_Calcs #1'!$C$8:$AP$37,29,FALSE) ->  | AA59: 14 | AB59: 13 | AC59: =HLOOKUP(AB59,'Green_Calcs #1'!$C$11:$AP$47,29,FALSE) ->  | AD59: =HLOOKUP(AB59,'Green_Calcs #1'!$C$11:$AP$47,30,FALSE) -> 
D60: 15 | E60: 14 | F60: =HLOOKUP(E60,'EL_Calcs #2'!$C$7:$AP$49,41,FALSE) ->  | G60: =HLOOKUP(E60,'EL_Calcs #2'!$C$7:$AP$49,42,FALSE) ->  | P60: 15 | Q60: 14 | R60: =HLOOKUP(Q60,'Bridge_Calcs #1'!$C$8:$AP$37,28,FALSE) ->  | S60: =HLOOKUP(Q60,'Bridge_Calcs #1'!$C$8:$AP$37,29,FALSE) ->  | AA60: 15 | AB60: 14 | AC60: =HLOOKUP(AB60,'Green_Calcs #1'!$C$11:$AP$47,29,FALSE) ->  | AD60: =HLOOKUP(AB60,'Green_Calcs #1'!$C$11:$AP$47,30,FALSE) -> 
D61: 16 | E61: 15 | F61: =HLOOKUP(E61,'EL_Calcs #2'!$C$7:$AP$49,41,FALSE) ->  | G61: =HLOOKUP(E61,'EL_Calcs #2'!$C$7:$AP$49,42,FALSE) ->  | P61: 16 | Q61: 15 | R61: =HLOOKUP(Q61,'Bridge_Calcs #1'!$C$8:$AP$37,28,FALSE) ->  | S61: =HLOOKUP(Q61,'Bridge_Calcs #1'!$C$8:$AP$37,29,FALSE) ->  | AA61: 16 | AB61: 15 | AC61: =HLOOKUP(AB61,'Green_Calcs #1'!$C$11:$AP$47,29,FALSE) ->  | AD61: =HLOOKUP(AB61,'Green_Calcs #1'!$C$11:$AP$47,30,FALSE) -> 
D62: 17 | E62: 16 | F62: =HLOOKUP(E62,'EL_Calcs #2'!$C$7:$AP$49,41,FALSE) ->  | G62: =HLOOKUP(E62,'EL_Calcs #2'!$C$7:$AP$49,42,FALSE) ->  | P62: 17 | Q62: 16 | R62: =HLOOKUP(Q62,'Bridge_Calcs #1'!$C$8:$AP$37,28,FALSE) ->  | S62: =HLOOKUP(Q62,'Bridge_Calcs #1'!$C$8:$AP$37,29,FALSE) ->  | AA62: 17 | AB62: 16 | AC62: =HLOOKUP(AB62,'Green_Calcs #1'!$C$11:$AP$47,29,FALSE) ->  | AD62: =HLOOKUP(AB62,'Green_Calcs #1'!$C$11:$AP$47,30,FALSE) -> 
D63: 18 | E63: 17 | F63: =HLOOKUP(E63,'EL_Calcs #2'!$C$7:$AP$49,41,FALSE) ->  | G63: =HLOOKUP(E63,'EL_Calcs #2'!$C$7:$AP$49,42,FALSE) ->  | P63: 18 | Q63: 17 | R63: =HLOOKUP(Q63,'Bridge_Calcs #1'!$C$8:$AP$37,28,FALSE) ->  | S63: =HLOOKUP(Q63,'Bridge_Calcs #1'!$C$8:$AP$37,29,FALSE) ->  | AA63: 18 | AB63: 17 | AC63: =HLOOKUP(AB63,'Green_Calcs #1'!$C$11:$AP$47,29,FALSE) ->  | AD63: =HLOOKUP(AB63,'Green_Calcs #1'!$C$11:$AP$47,30,FALSE) -> 
D64: 19 | E64: 18 | F64: =HLOOKUP(E64,'EL_Calcs #2'!$C$7:$AP$49,41,FALSE) ->  | G64: =HLOOKUP(E64,'EL_Calcs #2'!$C$7:$AP$49,42,FALSE) ->  | P64: 19 | Q64: 18 | R64: =HLOOKUP(Q64,'Bridge_Calcs #1'!$C$8:$AP$37,28,FALSE) ->  | S64: =HLOOKUP(Q64,'Bridge_Calcs #1'!$C$8:$AP$37,29,FALSE) ->  | AA64: 19 | AB64: 18 | AC64: =HLOOKUP(AB64,'Green_Calcs #1'!$C$11:$AP$47,29,FALSE) ->  | AD64: =HLOOKUP(AB64,'Green_Calcs #1'!$C$11:$AP$47,30,FALSE) -> 
D65: 20 | E65: 19 | F65: =HLOOKUP(E65,'EL_Calcs #2'!$C$7:$AP$49,41,FALSE) ->  | G65: =HLOOKUP(E65,'EL_Calcs #2'!$C$7:$AP$49,42,FALSE) ->  | P65: 20 | Q65: 19 | R65: =HLOOKUP(Q65,'Bridge_Calcs #1'!$C$8:$AP$37,28,FALSE) ->  | S65: =HLOOKUP(Q65,'Bridge_Calcs #1'!$C$8:$AP$37,29,FALSE) ->  | AA65: 20 | AB65: 19 | AC65: =HLOOKUP(AB65,'Green_Calcs #1'!$C$11:$AP$47,29,FALSE) ->  | AD65: =HLOOKUP(AB65,'Green_Calcs #1'!$C$11:$AP$47,30,FALSE) -> 
D66: 21 | E66: 20 | F66: =HLOOKUP(E66,'EL_Calcs #2'!$C$7:$AP$49,41,FALSE) ->  | G66: =HLOOKUP(E66,'EL_Calcs #2'!$C$7:$AP$49,42,FALSE) ->  | P66: 21 | Q66: 20 | R66: =HLOOKUP(Q66,'Bridge_Calcs #1'!$C$8:$AP$37,28,FALSE) ->  | S66: =HLOOKUP(Q66,'Bridge_Calcs #1'!$C$8:$AP$37,29,FALSE) ->  | AA66: 21 | AB66: 20 | AC66: =HLOOKUP(AB66,'Green_Calcs #1'!$C$11:$AP$47,29,FALSE) ->  | AD66: =HLOOKUP(AB66,'Green_Calcs #1'!$C$11:$AP$47,30,FALSE) -> 
D67: 22 | E67: 21 | F67: =HLOOKUP(E67,'EL_Calcs #2'!$C$7:$AP$49,41,FALSE) ->  | G67: =HLOOKUP(E67,'EL_Calcs #2'!$C$7:$AP$49,42,FALSE) ->  | P67: 22 | Q67: 21 | R67: =HLOOKUP(Q67,'Bridge_Calcs #1'!$C$8:$AP$37,28,FALSE) ->  | S67: =HLOOKUP(Q67,'Bridge_Calcs #1'!$C$8:$AP$37,29,FALSE) ->  | AA67: 22 | AB67: 21 | AC67: =HLOOKUP(AB67,'Green_Calcs #1'!$C$11:$AP$47,29,FALSE) ->  | AD67: =HLOOKUP(AB67,'Green_Calcs #1'!$C$11:$AP$47,30,FALSE) -> 
D68: 23 | E68: 22 | F68: =HLOOKUP(E68,'EL_Calcs #2'!$C$7:$AP$49,41,FALSE) ->  | G68: =HLOOKUP(E68,'EL_Calcs #2'!$C$7:$AP$49,42,FALSE) ->  | P68: 23 | Q68: 22 | R68: =HLOOKUP(Q68,'Bridge_Calcs #1'!$C$8:$AP$37,28,FALSE) ->  | S68: =HLOOKUP(Q68,'Bridge_Calcs #1'!$C$8:$AP$37,29,FALSE) ->  | AA68: 23 | AB68: 22 | AC68: =HLOOKUP(AB68,'Green_Calcs #1'!$C$11:$AP$47,29,FALSE) ->  | AD68: =HLOOKUP(AB68,'Green_Calcs #1'!$C$11:$AP$47,30,FALSE) -> 
D69: 24 | E69: 23 | F69: =HLOOKUP(E69,'EL_Calcs #2'!$C$7:$AP$49,41,FALSE) ->  | G69: =HLOOKUP(E69,'EL_Calcs #2'!$C$7:$AP$49,42,FALSE) ->  | P69: 24 | Q69: 23 | R69: =HLOOKUP(Q69,'Bridge_Calcs #1'!$C$8:$AP$37,28,FALSE) ->  | S69: =HLOOKUP(Q69,'Bridge_Calcs #1'!$C$8:$AP$37,29,FALSE) ->  | AA69: 24 | AB69: 23 | AC69: =HLOOKUP(AB69,'Green_Calcs #1'!$C$11:$AP$47,29,FALSE) ->  | AD69: =HLOOKUP(AB69,'Green_Calcs #1'!$C$11:$AP$47,30,FALSE) -> 
D70: 25 | E70: 24 | F70: =HLOOKUP(E70,'EL_Calcs #2'!$C$7:$AP$49,41,FALSE) ->  | G70: =HLOOKUP(E70,'EL_Calcs #2'!$C$7:$AP$49,42,FALSE) ->  | P70: 25 | Q70: 24 | R70: =HLOOKUP(Q70,'Bridge_Calcs #1'!$C$8:$AP$37,28,FALSE) ->  | S70: =HLOOKUP(Q70,'Bridge_Calcs #1'!$C$8:$AP$37,29,FALSE) ->  | AA70: 25 | AB70: 24 | AC70: =HLOOKUP(AB70,'Green_Calcs #1'!$C$11:$AP$47,29,FALSE) ->  | AD70: =HLOOKUP(AB70,'Green_Calcs #1'!$C$11:$AP$47,30,FALSE) -> 
D71: 26 | E71: 25 | F71: =HLOOKUP(E71,'EL_Calcs #2'!$C$7:$AP$49,41,FALSE) ->  | G71: =HLOOKUP(E71,'EL_Calcs #2'!$C$7:$AP$49,42,FALSE) ->  | P71: 26 | Q71: 25 | R71: =HLOOKUP(Q71,'Bridge_Calcs #1'!$C$8:$AP$37,28,FALSE) ->  | S71: =HLOOKUP(Q71,'Bridge_Calcs #1'!$C$8:$AP$37,29,FALSE) ->  | AA71: 26 | AB71: 25 | AC71: =HLOOKUP(AB71,'Green_Calcs #1'!$C$11:$AP$47,29,FALSE) ->  | AD71: =HLOOKUP(AB71,'Green_Calcs #1'!$C$11:$AP$47,30,FALSE) -> 
D72: 27 | E72: 26 | F72: =HLOOKUP(E72,'EL_Calcs #2'!$C$7:$AP$49,41,FALSE) ->  | G72: =HLOOKUP(E72,'EL_Calcs #2'!$C$7:$AP$49,42,FALSE) ->  | P72: 27 | Q72: 26 | R72: =HLOOKUP(Q72,'Bridge_Calcs #1'!$C$8:$AP$37,28,FALSE) ->  | S72: =HLOOKUP(Q72,'Bridge_Calcs #1'!$C$8:$AP$37,29,FALSE) ->  | AA72: 27 | AB72: 26 | AC72: =HLOOKUP(AB72,'Green_Calcs #1'!$C$11:$AP$47,29,FALSE) ->  | AD72: =HLOOKUP(AB72,'Green_Calcs #1'!$C$11:$AP$47,30,FALSE) -> 
D73: 28 | E73: 27 | F73: =HLOOKUP(E73,'EL_Calcs #2'!$C$7:$AP$49,41,FALSE) ->  | G73: =HLOOKUP(E73,'EL_Calcs #2'!$C$7:$AP$49,42,FALSE) ->  | P73: 28 | Q73: 27 | R73: =HLOOKUP(Q73,'Bridge_Calcs #1'!$C$8:$AP$37,28,FALSE) ->  | S73: =HLOOKUP(Q73,'Bridge_Calcs #1'!$C$8:$AP$37,29,FALSE) ->  | AA73: 28 | AB73: 27 | AC73: =HLOOKUP(AB73,'Green_Calcs #1'!$C$11:$AP$47,29,FALSE) ->  | AD73: =HLOOKUP(AB73,'Green_Calcs #1'!$C$11:$AP$47,30,FALSE) -> 
D74: 29 | E74: 28 | F74: =HLOOKUP(E74,'EL_Calcs #2'!$C$7:$AP$49,41,FALSE) ->  | G74: =HLOOKUP(E74,'EL_Calcs #2'!$C$7:$AP$49,42,FALSE) ->  | P74: 29 | Q74: 28 | R74: =HLOOKUP(Q74,'Bridge_Calcs #1'!$C$8:$AP$37,28,FALSE) ->  | S74: =HLOOKUP(Q74,'Bridge_Calcs #1'!$C$8:$AP$37,29,FALSE) ->  | AA74: 29 | AB74: 28 | AC74: =HLOOKUP(AB74,'Green_Calcs #1'!$C$11:$AP$47,29,FALSE) ->  | AD74: =HLOOKUP(AB74,'Green_Calcs #1'!$C$11:$AP$47,30,FALSE) -> 
D75: 30 | E75: 29 | F75: =HLOOKUP(E75,'EL_Calcs #2'!$C$7:$AP$49,41,FALSE) ->  | G75: =HLOOKUP(E75,'EL_Calcs #2'!$C$7:$AP$49,42,FALSE) ->  | P75: 30 | Q75: 29 | R75: =HLOOKUP(Q75,'Bridge_Calcs #1'!$C$8:$AP$37,28,FALSE) ->  | S75: =HLOOKUP(Q75,'Bridge_Calcs #1'!$C$8:$AP$37,29,FALSE) ->  | AA75: 30 | AB75: 29 | AC75: =HLOOKUP(AB75,'Green_Calcs #1'!$C$11:$AP$47,29,FALSE) ->  | AD75: =HLOOKUP(AB75,'Green_Calcs #1'!$C$11:$AP$47,30,FALSE) -> 
D76: 31 | E76: 30 | F76: =HLOOKUP(E76,'EL_Calcs #2'!$C$7:$AP$49,41,FALSE) ->  | G76: =HLOOKUP(E76,'EL_Calcs #2'!$C$7:$AP$49,42,FALSE) ->  | P76: 31 | Q76: 30 | R76: =HLOOKUP(Q76,'Bridge_Calcs #1'!$C$8:$AP$37,28,FALSE) ->  | S76: =HLOOKUP(Q76,'Bridge_Calcs #1'!$C$8:$AP$37,29,FALSE) ->  | AA76: 31 | AB76: 30 | AC76: =HLOOKUP(AB76,'Green_Calcs #1'!$C$11:$AP$47,29,FALSE) ->  | AD76: =HLOOKUP(AB76,'Green_Calcs #1'!$C$11:$AP$47,30,FALSE) -> 
D77: 32 | E77: 31 | F77: =HLOOKUP(E77,'EL_Calcs #2'!$C$7:$AP$49,41,FALSE) ->  | G77: =HLOOKUP(E77,'EL_Calcs #2'!$C$7:$AP$49,42,FALSE) ->  | P77: 32 | Q77: 31 | R77: =HLOOKUP(Q77,'Bridge_Calcs #1'!$C$8:$AP$37,28,FALSE) ->  | S77: =HLOOKUP(Q77,'Bridge_Calcs #1'!$C$8:$AP$37,29,FALSE) ->  | AA77: 32 | AB77: 31 | AC77: =HLOOKUP(AB77,'Green_Calcs #1'!$C$11:$AP$47,29,FALSE) ->  | AD77: =HLOOKUP(AB77,'Green_Calcs #1'!$C$11:$AP$47,30,FALSE) -> 
D78: 33 | E78: 32 | F78: =HLOOKUP(E78,'EL_Calcs #2'!$C$7:$AP$49,41,FALSE) ->  | G78: =HLOOKUP(E78,'EL_Calcs #2'!$C$7:$AP$49,42,FALSE) ->  | P78: 33 | Q78: 32 | R78: =HLOOKUP(Q78,'Bridge_Calcs #1'!$C$8:$AP$37,28,FALSE) ->  | S78: =HLOOKUP(Q78,'Bridge_Calcs #1'!$C$8:$AP$37,29,FALSE) ->  | AA78: 33 | AB78: 32 | AC78: =HLOOKUP(AB78,'Green_Calcs #1'!$C$11:$AP$47,29,FALSE) ->  | AD78: =HLOOKUP(AB78,'Green_Calcs #1'!$C$11:$AP$47,30,FALSE) -> 
D79: 34 | E79: 33 | F79: =HLOOKUP(E79,'EL_Calcs #2'!$C$7:$AP$49,41,FALSE) ->  | G79: =HLOOKUP(E79,'EL_Calcs #2'!$C$7:$AP$49,42,FALSE) ->  | P79: 34 | Q79: 33 | R79: =HLOOKUP(Q79,'Bridge_Calcs #1'!$C$8:$AP$37,28,FALSE) ->  | S79: =HLOOKUP(Q79,'Bridge_Calcs #1'!$C$8:$AP$37,29,FALSE) ->  | AA79: 34 | AB79: 33 | AC79: =HLOOKUP(AB79,'Green_Calcs #1'!$C$11:$AP$47,29,FALSE) ->  | AD79: =HLOOKUP(AB79,'Green_Calcs #1'!$C$11:$AP$47,30,FALSE) -> 
D80: 35 | E80: 34 | F80: =HLOOKUP(E80,'EL_Calcs #2'!$C$7:$AP$49,41,FALSE) ->  | G80: =HLOOKUP(E80,'EL_Calcs #2'!$C$7:$AP$49,42,FALSE) ->  | P80: 35 | Q80: 34 | R80: =HLOOKUP(Q80,'Bridge_Calcs #1'!$C$8:$AP$37,28,FALSE) ->  | S80: =HLOOKUP(Q80,'Bridge_Calcs #1'!$C$8:$AP$37,29,FALSE) ->  | AA80: 35 | AB80: 34 | AC80: =HLOOKUP(AB80,'Green_Calcs #1'!$C$11:$AP$47,29,FALSE) ->  | AD80: =HLOOKUP(AB80,'Green_Calcs #1'!$C$11:$AP$47,30,FALSE) -> 
D81: 36 | E81: 35 | F81: =HLOOKUP(E81,'EL_Calcs #2'!$C$7:$AP$49,41,FALSE) ->  | G81: =HLOOKUP(E81,'EL_Calcs #2'!$C$7:$AP$49,42,FALSE) ->  | P81: 36 | Q81: 35 | R81: =HLOOKUP(Q81,'Bridge_Calcs #1'!$C$8:$AP$37,28,FALSE) ->  | S81: =HLOOKUP(Q81,'Bridge_Calcs #1'!$C$8:$AP$37,29,FALSE) ->  | AA81: 36 | AB81: 35 | AC81: =HLOOKUP(AB81,'Green_Calcs #1'!$C$11:$AP$47,29,FALSE) ->  | AD81: =HLOOKUP(AB81,'Green_Calcs #1'!$C$11:$AP$47,30,FALSE) -> 
D82: 37 | E82: 36 | F82: =HLOOKUP(E82,'EL_Calcs #2'!$C$7:$AP$49,41,FALSE) ->  | G82: =HLOOKUP(E82,'EL_Calcs #2'!$C$7:$AP$49,42,FALSE) ->  | P82: 37 | Q82: 36 | R82: =HLOOKUP(Q82,'Bridge_Calcs #1'!$C$8:$AP$37,28,FALSE) ->  | S82: =HLOOKUP(Q82,'Bridge_Calcs #1'!$C$8:$AP$37,29,FALSE) ->  | AA82: 37 | AB82: 36 | AC82: =HLOOKUP(AB82,'Green_Calcs #1'!$C$11:$AP$47,29,FALSE) ->  | AD82: =HLOOKUP(AB82,'Green_Calcs #1'!$C$11:$AP$47,30,FALSE) -> 
D83: 38 | E83: 37 | F83: =HLOOKUP(E83,'EL_Calcs #2'!$C$7:$AP$49,41,FALSE) ->  | G83: =HLOOKUP(E83,'EL_Calcs #2'!$C$7:$AP$49,42,FALSE) ->  | P83: 38 | Q83: 37 | R83: =HLOOKUP(Q83,'Bridge_Calcs #1'!$C$8:$AP$37,28,FALSE) ->  | S83: =HLOOKUP(Q83,'Bridge_Calcs #1'!$C$8:$AP$37,29,FALSE) ->  | AA83: 38 | AB83: 37 | AC83: =HLOOKUP(AB83,'Green_Calcs #1'!$C$11:$AP$47,29,FALSE) ->  | AD83: =HLOOKUP(AB83,'Green_Calcs #1'!$C$11:$AP$47,30,FALSE) -> 
D84: 39 | E84: 38 | F84: =HLOOKUP(E84,'EL_Calcs #2'!$C$7:$AP$49,41,FALSE) ->  | G84: =HLOOKUP(E84,'EL_Calcs #2'!$C$7:$AP$49,42,FALSE) ->  | P84: 39 | Q84: 38 | R84: =HLOOKUP(Q84,'Bridge_Calcs #1'!$C$8:$AP$37,28,FALSE) ->  | S84: =HLOOKUP(Q84,'Bridge_Calcs #1'!$C$8:$AP$37,29,FALSE) ->  | AA84: 39 | AB84: 38 | AC84: =HLOOKUP(AB84,'Green_Calcs #1'!$C$11:$AP$47,29,FALSE) ->  | AD84: =HLOOKUP(AB84,'Green_Calcs #1'!$C$11:$AP$47,30,FALSE) -> 
D85: 40 | E85: 39 | F85: =HLOOKUP(E85,'EL_Calcs #2'!$C$7:$AP$49,41,FALSE) ->  | G85: =HLOOKUP(E85,'EL_Calcs #2'!$C$7:$AP$49,42,FALSE) ->  | P85: 40 | Q85: 39 | R85: =HLOOKUP(Q85,'Bridge_Calcs #1'!$C$8:$AP$37,28,FALSE) ->  | S85: =HLOOKUP(Q85,'Bridge_Calcs #1'!$C$8:$AP$37,29,FALSE) ->  | AA85: 40 | AB85: 39 | AC85: =HLOOKUP(AB85,'Green_Calcs #1'!$C$11:$AP$47,29,FALSE) ->  | AD85: =HLOOKUP(AB85,'Green_Calcs #1'!$C$11:$AP$47,30,FALSE) -> 
F86: =SUM(F46:F85) ->  | H86: =SUM(H46:H85) ->  | I86: =SUM(I46:I85) ->  | J86: =SUM(J46:J85) ->  | R86: =SUM(R46:R85) ->  | T86: =SUM(T46:T85) ->  | U86: =SUM(U46:U85) ->  | V86: =SUM(V46:V85) ->  | AC86: =SUM(AC46:AC85) ->  | AE86: =SUM(AE46:AE85) ->  | AF86: =SUM(AF46:AF85) ->  | AG86: =SUM(AG46:AG85) -> 
D91: Donut | E91: Pie | P91: Donut | Q91: Pie | AA91: Donut | AB91: Pie
D92: 55 | E92: =IF(E41<=-0.15,$J$10,IF(AND(E41>-0.15,E41<=-0.05),$K$10,IF(AND(E41>-0.05,E41<=0.01),$L$10,IF(AND(E41>0.01,E41<=0.06),$M$10,IF(AND(E41>0.06,E41<=0.1),$N$10,IF(AND(E41>0.1,E40<=0.02),$O$10,IF(AND(E41>0.1,E40>0.02,E40<=0.25),$P$10,IF(AND(E41>0.1,E40>0.25,E40<=0.4),$Q$10,IF(AND(E41>0.1,E40>0.4),$R$10,$N$10))))))))) ->  | P92: 55 | Q92: =IF(O41<=-0.15,$J$10,IF(AND(O41>-0.15,O41<=-0.05),$K$10,IF(AND(O41>-0.05,O41<=0.01),$L$10,IF(AND(O41>0.01,O41<=0.06),$M$10,IF(AND(O41>0.06,O41<=0.1),$N$10,IF(AND(O41>0.1,O40<=0.02),$O$10,IF(AND(O41>0.1,O40>0.02,O40<=0.25),$P$10,IF(AND(O41>0.1,O40>0.25,O40<=0.4),$Q$10,IF(AND(O41>0.1,O40>0.4),$R$10,$N$10))))))))) ->  | AA92: 55 | AB92: =IF(AA41<=-0.15,$J$10,IF(AND(AA41>-0.15,AA41<=-0.05),$K$10,IF(AND(AA41>-0.05,AA41<=0.01),$L$10,IF(AND(AA41>0.01,AA41<=0.06),$M$10,IF(AND(AA41>0.06,AA40<=0.1),$N$10,IF(AND(AA41>0.1,AA40<=0.02),$O$10,IF(AND(AA41>0.1,AA40>0.02,AA40<=0.25),$P$10,IF(AND(AA41>0.1,AA40>0.25,AA40<=0.4),$Q$10,IF(AND(AA41>0.1,AA40>0.4),$R$10,$N$10))))))))) -> 
D93: 60 | E93: 1 | P93: 60 | Q93: 1 | AA93: 60 | AB93: 1
D94: 55 | E94: =200-E92-E93 ->  | P94: 55 | Q94: =200-Q92-Q93 ->  | AA94: 55 | AB94: =200-AB92-AB93 -> 
D95: =SUM(D92:D94) -> 170 | P95: =SUM(P92:P94) -> 170 | AA95: =SUM(AA92:AA94) -> 170

Sheet Assumptions Tab (hidden)
K2: Supporting Docs
C3: GENERAL ASSUMPTIONS | K3: etc unit costs | P3: image review
K4: NH | L4: 0.102683431 | P4: I-66 ITB | Q4: 0.085
C5: Dropdown list menu | K5: KTA | L5: 0.0893900224
C6: Yes | K6: VDOT | L6: 0.1224946603 | P6: Assume i-toll cost = ETC + image review
C7: No | K7: NYSTA | L7: 0.1366078713
C9: Perceived share of thru trips | K9: violation / video costs
C10: High - 90% | E10: 0.9 | K10: KTA | P10: Cost per Violation
C11: Medium - 75% | E11: 0.75 | K11: per video - OPT | L11: 0.673668578 | P11: I-66 ITB | Q11: 0.9132258224
C12: Low - 50% | E12: 0.5 | K12: per video - PESS | L12: 0.8927893077 | P12: NYSTA
P13: Harriman | Q13: 0.9315611116
C14: Annualization Factor | K14: NH | L14: cost per non-ETC Tx | P14: Yonkers | Q14: 1.053940955
C15: Annualization Factor | E15: 320 | L15: High Freq | M15: Low Freq | P15: TZ | Q15: 1.050889158
K16: Hampton | L16: 0.1831536116 | M16: 0.4864444774
C17: BBM Toll Rate | K17: Bedford | L17: 0.2554567951 | M17: 0.670477125 | P17: New Hampshire
C18: BBM rate above ETC rate | D18: % | E18: 0.53 | F18: Source: Monroe T&R Rate Schedule Info | K18: Dover | L18: 0.1895119066 | M18: 0.4928594979 | Q18: Opt | R18: Pess
K19: Rochester | L19: 0.1278916516 | M19: 0.3305663205 | P19: Bedford Main | Q19: 1.419765699 | R19: 1.534582495
C20: Toll Processing Costs | D20: units
C21: Unit Cost per ETC Tx | E21: 0.15 | P21: Hampton Ramp | Q21: 1.493624625 | R21: 1.673838337
C22: Unit Cost per i-toll Tx | E22: 0.25 | P22: Dover | Q22: 1.452204563 | R22: 1.607870411
C23: Unit Cost per Video Trip | E23: 0.53 | F23: Typically 3.5x ETC
C24: Cost per Non-Tolled Vehicle Tx | E24: 0.01 | F24: SWAG | P24: Rochester | Q24: 1.498514821 | R24: 1.632374667
C25: Base Year Dollars | E25: 2018 | K25: excerpt below is from a report we compiled in review of a cost model developed for the I-85 Express Lanes Extension.
C26: Inflation | D26: % | E26: 0 | F26: rationale: technology becomes more efficient/effective | K26: Roadway Maintenance Costs
C27: Enforcement | D27: units | K27: The Rdwy Maint Cost per LM tab contained the costs which served as the basis for numerous roadway cost calculations. These are summarized in Table 7: | S27: For comparison purposes, a cost model developed for US-281 in Texas was reviewed. This model contained several per-lane costs compiled from other agencies. These high-level estimates included the following:
C28: Annual Cost per Trooper | E28: 125000 | F28: industry standard | S28: Florida’s Turnpike Enterprise –
C29: # Troopers - 24 hour period | E29: 3 | K29: Table 7 – I-85 Roadway O&M Costs per Lane-Mile | S29: Miami-Dad Expressway –
C30: Est. Annual Cost | E30: =E28*E29 -> 375000 | K30: Expense Category | P30: GDOT Enhanced | S30: Orlando-Orange County Expressway Authority –
C31: Base Year | E31: 2018 | K31: Roadway Service Level Cost (Labor, Material) | P31: 16080 | S31: Tampa-Hillsborough Expressway Authority –
C33: Roadway Maintenance Costs | D33: units | K33: Landscape Maintenance (Mowing, Litter) | P33: 1430 | S33: Mid-Bay Bridge Authority –
C34: Cost per Lane-Mile | E34: 25000
C35: Base Year | E35: 2018
K36: Maint Dept. Admin Overhead | P36: 640
C37: Toll System Capital Cost | D37: units | K37: Professional Staff Services | P37: 3630 | S37: Of these five agencies, the average cost per lane-mile is $22,960 per lane-mile. This average value is within 7.5% of I-85’s estimated value of $24,790. Therefore, the estimated cost of $24,790 is reasonable.
C38: Express Lanes | D38: lane-miles | E38: 450000 | K38: GDOT Agency Overhead | P38: 3010
C39: Toll Roads | D39: lane-miles | E39: 422000 | L39: TOTAL per Lane Mile | P39: 24790
C40: Toll Bridges | D40: lane-miles | E40: 250000 | F40: *assume same as toll road | Y40: $ 18,800 per lane-mile
C41: Base Year | E41: 2018 | Y41: $ 29,900 per lane-mile
Y42: $ 24,300 per lane-mile
C43: Tolling Renewal and Replacement (R&R) Costs | D43: units
C44: Toll Roads | D44: lane-miles | E44: 36000
C45: Express Lanes | D45: lane-miles | E45: 45000
C46: Toll Bridges | D46: lane-miles | E46: 20000 | F46: * based on Mid-Currituck Estimates
C47: Base Year | E47: 2018
Y48: $ 29,200 per lane-mile
C49: Toll System Maintenance | Y49: $ 12,600 per lane-mile
C50: Annual Toll System Maintenance ($/lane-mile) | E50: 80000 | F50: average cost based on sample database
C51: Base Year | E51: 2018
C53: Credit Card Fees
C54: Fees as a % of Revenue | E54: 0.02
C55: % of Gross Revenue paid by Credit Card | E55: 0.9
C57: Percent Video Customers Pay
E58: 0.75
C62: ETC/I-toll/Video/Ramp-up
C64: Year | D64: ETC | E64: i-tolls | F64: video | G64: Ramp-Up
C65: ='Express Lanes'!I8 -> 0 | D65: 0.6 | E65: =(1-D65)*0.2 -> 0.08 | F65: =1-SUM(D65:E65) -> 0.32 | G65: 0.6
C66: =C65+1 -> 1 | D66: =IF(D65>=0.8,0.8,D65+0.02) -> 0.62 | E66: =(1-D66)*0.2 -> 0.076 | F66: 0.304 | G66: 0.8
C67: =C66+1 -> 2 | D67: =IF(D66>=0.8,0.8,D66+0.02) -> 0.64 | E67: 0.072 | F67: 0.288 | G67: 0.95
C68: 3 | D68: 0.66 | E68: 0.068 | F68: 0.272 | G68: 1
C69: 4 | D69: 0.68 | E69: 0.064 | F69: 0.256 | G69: 1
C70: 5 | D70: 0.7 | E70: 0.06 | F70: 0.24 | G70: 1
C71: 6 | D71: 0.72 | E71: 0.056 | F71: 0.224 | G71: 1
C72: 7 | D72: 0.74 | E72: 0.052 | F72: 0.208 | G72: 1
C73: 8 | D73: 0.76 | E73: 0.048 | F73: 0.192 | G73: 1
C74: 9 | D74: 0.78 | E74: 0.044 | F74: 0.176 | G74: 1
C75: 10 | D75: 0.8 | E75: 0.04 | F75: 0.16 | G75: 1
C76: 11 | D76: 0.8 | E76: 0.04 | F76: 0.16 | G76: 1
C77: 12 | D77: 0.8 | E77: 0.04 | F77: 0.16 | G77: 1
C78: 13 | D78: 0.8 | E78: 0.04 | F78: 0.16 | G78: 1
C79: 14 | D79: 0.8 | E79: 0.04 | F79: 0.16 | G79: 1
C80: 15 | D80: 0.8 | E80: 0.04 | F80: 0.16 | G80: 1
C81: 16 | D81: 0.8 | E81: 0.04 | F81: 0.16 | G81: 1
C82: 17 | D82: 0.8 | E82: 0.04 | F82: 0.16 | G82: 1
C83: 18 | D83: 0.8 | E83: 0.04 | F83: 0.16 | G83: 1
C84: 19 | D84: 0.8 | E84: 0.04 | F84: 0.16 | G84: 1
C85: 20 | D85: 0.8 | E85: 0.04 | F85: 0.16 | G85: 1
C86: 21 | D86: 0.8 | E86: 0.04 | F86: 0.16 | G86: 1
C87: 22 | D87: 0.8 | E87: 0.04 | F87: 0.16 | G87: 1
C88: 23 | D88: 0.8 | E88: 0.04 | F88: 0.16 | G88: 1
C89: 24 | D89: 0.8 | E89: 0.04 | F89: 0.16 | G89: 1
C90: 25 | D90: 0.8 | E90: 0.04 | F90: 0.16 | G90: 1
C91: 26 | D91: 0.8 | E91: 0.04 | F91: 0.16 | G91: 1
C92: 27 | D92: 0.8 | E92: 0.04 | F92: 0.16 | G92: 1
C93: 28 | D93: 0.8 | E93: 0.04 | F93: 0.16 | G93: 1
C94: 29 | D94: 0.8 | E94: 0.04 | F94: 0.16 | G94: 1
C95: 30 | D95: 0.8 | E95: 0.04 | F95: 0.16 | G95: 1
C96: 31 | D96: 0.8 | E96: 0.04 | F96: 0.16 | G96: 1
C97: 32 | D97: 0.8 | E97: 0.04 | F97: 0.16 | G97: 1
C98: 33 | D98: 0.8 | E98: 0.04 | F98: 0.16 | G98: 1
C99: 34 | D99: 0.8 | E99: 0.04 | F99: 0.16 | G99: 1
C100: 35 | D100: 0.8 | E100: 0.04 | F100: 0.16 | G100: 1
C101: 36 | D101: 0.8 | E101: 0.04 | F101: 0.16 | G101: 1
C102: 37 | D102: 0.8 | E102: 0.04 | F102: 0.16 | G102: 1
C103: 38 | D103: 0.8 | E103: 0.04 | F103: 0.16 | G103: 1
C104: 39 | D104: 0.8 | E104: 0.04 | F104: 0.16 | G104: 1
C105: 40 | D105: 0.8 | E105: 0.04 | F105: 0.16 | G105: 1
C106: 41 | D106: 0.8 | E106: 0.04 | F106: 0.16 | G106: 1
C107: 42 | D107: 0.8 | E107: 0.04 | F107: 0.16 | G107: 1
C108: 43 | D108: 0.8 | E108: 0.04 | F108: 0.16 | G108: 1
C109: 44 | D109: 0.8 | E109: 0.04 | F109: 0.16 | G109: 1
C110: 45 | D110: 0.8 | E110: 0.04 | F110: 0.16 | G110: 1
C111: 46 | D111: 0.8 | E111: 0.04 | F111: 0.16 | G111: 1
C112: 47 | D112: 0.8 | E112: 0.04 | F112: 0.16 | G112: 1
C113: 48 | D113: 0.8 | E113: 0.04 | F113: 0.16 | G113: 1
C114: 49 | D114: 0.8 | E114: 0.04 | F114: 0.16 | G114: 1
C115: 50 | D115: 0.8 | E115: 0.04 | F115: 0.16 | G115: 1
C116: 51 | D116: 0.8 | E116: 0.04 | F116: 0.16 | G116: 1
C117: 52 | D117: 0.8 | E117: 0.04 | F117: 0.16 | G117: 1
C118: 53 | D118: 0.8 | E118: 0.04 | F118: 0.16 | G118: 1
C119: 54 | D119: 0.8 | E119: 0.04 | F119: 0.16 | G119: 1
C120: 55 | D120: 0.8 | E120: 0.04 | F120: 0.16 | G120: 1
C121: 56 | D121: 0.8 | E121: 0.04 | F121: 0.16 | G121: 1
C122: 57 | D122: 0.8 | E122: 0.04 | F122: 0.16 | G122: 1
C123: 58 | D123: 0.8 | E123: 0.04 | F123: 0.16 | G123: 1
C124: 59 | D124: 0.8 | E124: 0.04 | F124: 0.16 | G124: 1
C125: 60 | D125: 0.8 | E125: 0.04 | F125: 0.16 | G125: 1
C131: EXPRESS LANE ASSUMPTIONS | L131: TOLL BRIDGES | S131: TOLL ROADS
C133: Incr. Multiplier if GP @ 95+% Capacity: | D133: 2
C135: Max GP Traffic Expected | D135: 2400 | L135: Toll Share parameters | T135: Toll Share parameters
C136: Max EL Thruput Traffic | D136: 1800 | L136: Trip Purpose> | M136: Passenger Cars | N136: Trucks | T136: Trip Purpose> | U136: Passenger Cars | V136: Trucks
C137: EL Trip Length-% | D137: =IF('Express Lanes'!$I$16="No",1,VLOOKUP('Express Lanes'!$I$17,'Assumptions Tab'!$C$10:$E$12,3,FALSE)) -> 0.75 | L137: Time Coefficient (alpha) | M137: 0.122 | N137: 0.091 | T137: Time Coefficient (alpha) | U137: 0.122 | V137: 0.091
C138: Average miles per trip thru corridor | D138: =D137*'Express Lanes'!$C$10 -> 0 | L138: Cost coefficient (beta) | M138: =+M137*60/M140 -> 0.5856 | N138: =+N137*60/N140 -> 0.1092 | T138: Cost coefficient (beta) | U138: =+U137*60/U140 -> 0.5856 | V138: =+V137*60/V140 -> 0.1092
C139: Estimated # of toll zones per direction | D139: =IF('Express Lanes'!$I$16="No",1,ROUND('Express Lanes'!$C$10/3,0)) -> 0 | L139: Net Constant (toll & ETC bias constant) | M139: -0.014 | N139: 0.38 | T139: Net Constant (toll & ETC bias constant) | U139: -0.014 | V139: 0.38
C140: Tx per Trip: | D140: =(D138/'Express Lanes'!$C$10)*D139 ->  | L140: VOT | M140: ='Toll Bridges'!I15 -> 12.5 | N140: ='Toll Bridges'!I16 -> 50 | T140: VOT | U140: ='Toll Roads'!I17 -> 12.5 | V140: ='Toll Roads'!I18 -> 50
L141: Toll Rates
C142: Base Year Dollar | D142: 2018 | L142: Toll Rate - Auto ($/mile) | M142: ='Toll Bridges'!C22/'Toll Bridges'!$C$10 -> 
L143: Toll Rate - Trucks ($/mile) | M143: ='Toll Bridges'!C23/'Toll Bridges'!$C$10 -> 
C144: EL Volume Redux if No Intermediate Access | D144: 0.1 | L144: Base Year | M144: ='Toll Bridges'!C29 -> 0 | T144: Percent Share of Thru Trips | U144: =VLOOKUP('Toll Roads'!$I$16,$C$10:$E$12,3,FALSE) -> 0.75
L146: Trip Length-% | M146: 1 | T146: EL Trip Length-% | U146: =IF('Toll Roads'!I15="No",1,U144) -> 0.75
L147: Average Length per trip | M147: =M146*'Toll Bridges'!$C$10 -> 0 | T147: Average Length per trip | U147: =U146*'Toll Roads'!C10 -> 0
L148: Zones/Corr: | M148: 1 | T148: Zones/Corr: | U148: =IF('Toll Roads'!I15="No",1,ROUND('Toll Roads'!C10/3,0)) -> 0
L149: Tx per Trip: | M149: =(M147/'Toll Bridges'!C10)*M148 ->  | T149: Tx per Trip: | U149: =(U147/'Toll Roads'!C10)*U148 -> 
C153: Daily Capacity Per lane | L153: ETC/I-toll/Video/Ramp-up | T153: ETC/I-toll/Video/Ramp-up
C154: Baseline ETL Capacity (AADT per lane): | D154: 13860
C155: Max ETL Capacity (AADT per lane): | D155: 15400 | L155: Year | M155: ETC | N155: i-tolls | O155: video | P155: Ramp-Up | T155: Year | U155: ETC | V155: i-tolls | W155: video | X155: Ramp-Up
C156: Baseline GP Capacity (AADT per lane): | D156: 18000 | L156: ='Toll Bridges'!I8 -> 0 | M156: 0.6 | N156: =(1-M156)*0.2 -> 0.08 | O156: =1-SUM(M156:N156) -> 0.32 | P156: 0.6 | T156: ='Toll Roads'!I8 -> 0 | U156: 0.6 | V156: =(1-U156)*0.2 -> 0.08 | W156: =1-SUM(U156:V156) -> 0.32 | X156: 0.6
C157: Max GP Capacity (AADT per lane): | D157: 22000 | L157: =L156+1 -> 1 | M157: =IF(M156>=0.8,0.8,M156+0.02) -> 0.62 | N157: =(1-M157)*0.2 -> 0.076 | O157: 0.304 | P157: 0.8 | T157: =T156+1 -> 1 | U157: =IF(U156>=0.8,0.8,U156+0.02) -> 0.62 | V157: =(1-U157)*0.2 -> 0.076 | W157: 0.304 | X157: 0.8
L158: =L157+1 -> 2 | M158: =IF(M157>=0.8,0.8,M157+0.02) -> 0.64 | N158: 0.072 | O158: 0.288 | P158: 0.95 | T158: =T157+1 -> 2 | U158: =IF(U157>=0.8,0.8,U157+0.02) -> 0.64 | V158: 0.072 | W158: 0.288 | X158: 0.95
C159: Peak Hour Price Multiplier: | D159: 1 | L159: 3 | M159: 0.66 | N159: 0.068 | O159: 0.272 | P159: 1 | T159: 3 | U159: 0.66 | V159: 0.068 | W159: 0.272 | X159: 1
L160: 4 | M160: 0.68 | N160: 0.064 | O160: 0.256 | P160: 1 | T160: 4 | U160: 0.68 | V160: 0.064 | W160: 0.256 | X160: 1
L161: 5 | M161: 0.7 | N161: 0.06 | O161: 0.24 | P161: 1 | T161: 5 | U161: 0.7 | V161: 0.06 | W161: 0.24 | X161: 1
L162: 6 | M162: 0.72 | N162: 0.056 | O162: 0.224 | P162: 1 | T162: 6 | U162: 0.72 | V162: 0.056 | W162: 0.224 | X162: 1
L163: 7 | M163: 0.74 | N163: 0.052 | O163: 0.208 | P163: 1 | T163: 7 | U163: 0.74 | V163: 0.052 | W163: 0.208 | X163: 1
C164: Pk Hour Ops Lookup Table | L164: 8 | M164: 0.76 | N164: 0.048 | O164: 0.192 | P164: 1 | T164: 8 | U164: 0.76 | V164: 0.048 | W164: 0.192 | X164: 1
C165: GP% Cap | D165: EL Share Mult. | L165: 9 | M165: 0.78 | N165: 0.044 | O165: 0.176 | P165: 1 | T165: 9 | U165: 0.78 | V165: 0.044 | W165: 0.176 | X165: 1
C166: 0 | D166: 0.5 | L166: 10 | M166: 0.8 | N166: 0.04 | O166: 0.16 | P166: 1 | T166: 10 | U166: 0.8 | V166: 0.04 | W166: 0.16 | X166: 1
C167: 0.25 | D167: 0.6 | L167: 11 | M167: 0.8 | N167: 0.04 | O167: 0.16 | P167: 1 | T167: 11 | U167: 0.8 | V167: 0.04 | W167: 0.16 | X167: 1
C168: 0.5 | D168: 0.65 | L168: 12 | M168: 0.8 | N168: 0.04 | O168: 0.16 | P168: 1 | T168: 12 | U168: 0.8 | V168: 0.04 | W168: 0.16 | X168: 1
C169: 0.66 | D169: 0.7 | L169: 13 | M169: 0.8 | N169: 0.04 | O169: 0.16 | P169: 1 | T169: 13 | U169: 0.8 | V169: 0.04 | W169: 0.16 | X169: 1
C170: 0.75 | D170: 0.75 | L170: 14 | M170: 0.8 | N170: 0.04 | O170: 0.16 | P170: 1 | T170: 14 | U170: 0.8 | V170: 0.04 | W170: 0.16 | X170: 1
C171: 0.9 | D171: 0.8 | L171: 15 | M171: 0.8 | N171: 0.04 | O171: 0.16 | P171: 1 | T171: 15 | U171: 0.8 | V171: 0.04 | W171: 0.16 | X171: 1
C172: 1 | D172: 0.9 | L172: 16 | M172: 0.8 | N172: 0.04 | O172: 0.16 | P172: 1 | T172: 16 | U172: 0.8 | V172: 0.04 | W172: 0.16 | X172: 1
C173: 1.2 | D173: 0.95 | L173: 17 | M173: 0.8 | N173: 0.04 | O173: 0.16 | P173: 1 | T173: 17 | U173: 0.8 | V173: 0.04 | W173: 0.16 | X173: 1
C174: 2 | D174: 1 | L174: 18 | M174: 0.8 | N174: 0.04 | O174: 0.16 | P174: 1 | T174: 18 | U174: 0.8 | V174: 0.04 | W174: 0.16 | X174: 1
L175: 19 | M175: 0.8 | N175: 0.04 | O175: 0.16 | P175: 1 | T175: 19 | U175: 0.8 | V175: 0.04 | W175: 0.16 | X175: 1
L176: 20 | M176: 0.8 | N176: 0.04 | O176: 0.16 | P176: 1 | T176: 20 | U176: 0.8 | V176: 0.04 | W176: 0.16 | X176: 1
L177: 21 | M177: 0.8 | N177: 0.04 | O177: 0.16 | P177: 1 | T177: 21 | U177: 0.8 | V177: 0.04 | W177: 0.16 | X177: 1
C178: Volume | D178: LOS | E178: Speed | L178: 22 | M178: 0.8 | N178: 0.04 | O178: 0.16 | P178: 1 | T178: 22 | U178: 0.8 | V178: 0.04 | W178: 0.16 | X178: 1
C179: 0 | D179: A | E179: 60 | L179: 23 | M179: 0.8 | N179: 0.04 | O179: 0.16 | P179: 1 | T179: 23 | U179: 0.8 | V179: 0.04 | W179: 0.16 | X179: 1
C180: 660 | D180: B | E180: 60 | L180: 24 | M180: 0.8 | N180: 0.04 | O180: 0.16 | P180: 1 | T180: 24 | U180: 0.8 | V180: 0.04 | W180: 0.16 | X180: 1
C181: 1080 | D181: C | E181: 60 | L181: 25 | M181: 0.8 | N181: 0.04 | O181: 0.16 | P181: 1 | T181: 25 | U181: 0.8 | V181: 0.04 | W181: 0.16 | X181: 1
C182: 1560 | D182: D | E182: 57.6 | L182: 26 | M182: 0.8 | N182: 0.04 | O182: 0.16 | P182: 1 | T182: 26 | U182: 0.8 | V182: 0.04 | W182: 0.16 | X182: 1
C183: 2020 | D183: E | E183: 51.1 | L183: 27 | M183: 0.8 | N183: 0.04 | O183: 0.16 | P183: 1 | T183: 27 | U183: 0.8 | V183: 0.04 | W183: 0.16 | X183: 1
C184: 2300 | D184: F | E184: 40 or below | L184: 28 | M184: 0.8 | N184: 0.04 | O184: 0.16 | P184: 1 | T184: 28 | U184: 0.8 | V184: 0.04 | W184: 0.16 | X184: 1
L185: 29 | M185: 0.8 | N185: 0.04 | O185: 0.16 | P185: 1 | T185: 29 | U185: 0.8 | V185: 0.04 | W185: 0.16 | X185: 1
L186: 30 | M186: 0.8 | N186: 0.04 | O186: 0.16 | P186: 1 | T186: 30 | U186: 0.8 | V186: 0.04 | W186: 0.16 | X186: 1
L187: 31 | M187: 0.8 | N187: 0.04 | O187: 0.16 | P187: 1 | T187: 31 | U187: 0.8 | V187: 0.04 | W187: 0.16 | X187: 1
L188: 32 | M188: 0.8 | N188: 0.04 | O188: 0.16 | P188: 1 | T188: 32 | U188: 0.8 | V188: 0.04 | W188: 0.16 | X188: 1
C189: Length of Peak Hour | D189: Selection | E189: k-factor | F189: Growth | G189: Dir. Dist. | L189: 33 | M189: 0.8 | N189: 0.04 | O189: 0.16 | P189: 1 | T189: 33 | U189: 0.8 | V189: 0.04 | W189: 0.16 | X189: 1
C190: 3 hrs (1.5 hrs AM / 1.5 hrs PM) | D190: 1 | E190: 0.1 | F190: 0 | G190: 0.62 | L190: 34 | M190: 0.8 | N190: 0.04 | O190: 0.16 | P190: 1 | T190: 34 | U190: 0.8 | V190: 0.04 | W190: 0.16 | X190: 1
C191: 4 hrs (2 hrs AM / 2 hrs PM) | D191: 2 | E191: 0.09 | F191: 0 | G191: 0.58 | L191: 35 | M191: 0.8 | N191: 0.04 | O191: 0.16 | P191: 1 | T191: 35 | U191: 0.8 | V191: 0.04 | W191: 0.16 | X191: 1
C192: 6 hrs or more (3+ hrs in both AM & PM) | D192: 3 | E192: 0.08 | F192: 0 | G192: 0.54 | L192: 36 | M192: 0.8 | N192: 0.04 | O192: 0.16 | P192: 1 | T192: 36 | U192: 0.8 | V192: 0.04 | W192: 0.16 | X192: 1
L193: 37 | M193: 0.8 | N193: 0.04 | O193: 0.16 | P193: 1 | T193: 37 | U193: 0.8 | V193: 0.04 | W193: 0.16 | X193: 1
L194: 38 | M194: 0.8 | N194: 0.04 | O194: 0.16 | P194: 1 | T194: 38 | U194: 0.8 | V194: 0.04 | W194: 0.16 | X194: 1
L195: 39 | M195: 0.8 | N195: 0.04 | O195: 0.16 | P195: 1 | T195: 39 | U195: 0.8 | V195: 0.04 | W195: 0.16 | X195: 1
L196: 40 | M196: 0.8 | N196: 0.04 | O196: 0.16 | P196: 1 | T196: 40 | U196: 0.8 | V196: 0.04 | W196: 0.16 | X196: 1
L197: 41 | M197: 0.8 | N197: 0.04 | O197: 0.16 | P197: 1 | T197: 41 | U197: 0.8 | V197: 0.04 | W197: 0.16 | X197: 1
L198: 42 | M198: 0.8 | N198: 0.04 | O198: 0.16 | P198: 1 | T198: 42 | U198: 0.8 | V198: 0.04 | W198: 0.16 | X198: 1
L199: 43 | M199: 0.8 | N199: 0.04 | O199: 0.16 | P199: 1 | T199: 43 | U199: 0.8 | V199: 0.04 | W199: 0.16 | X199: 1
L200: 44 | M200: 0.8 | N200: 0.04 | O200: 0.16 | P200: 1 | T200: 44 | U200: 0.8 | V200: 0.04 | W200: 0.16 | X200: 1
L201: 45 | M201: 0.8 | N201: 0.04 | O201: 0.16 | P201: 1 | T201: 45 | U201: 0.8 | V201: 0.04 | W201: 0.16 | X201: 1
L202: 46 | M202: 0.8 | N202: 0.04 | O202: 0.16 | P202: 1 | T202: 46 | U202: 0.8 | V202: 0.04 | W202: 0.16 | X202: 1
L203: 47 | M203: 0.8 | N203: 0.04 | O203: 0.16 | P203: 1 | T203: 47 | U203: 0.8 | V203: 0.04 | W203: 0.16 | X203: 1
L204: 48 | M204: 0.8 | N204: 0.04 | O204: 0.16 | P204: 1 | T204: 48 | U204: 0.8 | V204: 0.04 | W204: 0.16 | X204: 1
L205: 49 | M205: 0.8 | N205: 0.04 | O205: 0.16 | P205: 1 | T205: 49 | U205: 0.8 | V205: 0.04 | W205: 0.16 | X205: 1
L206: 50 | M206: 0.8 | N206: 0.04 | O206: 0.16 | P206: 1 | T206: 50 | U206: 0.8 | V206: 0.04 | W206: 0.16 | X206: 1
L207: 51 | M207: 0.8 | N207: 0.04 | O207: 0.16 | P207: 1 | T207: 51 | U207: 0.8 | V207: 0.04 | W207: 0.16 | X207: 1
L208: 52 | M208: 0.8 | N208: 0.04 | O208: 0.16 | P208: 1 | T208: 52 | U208: 0.8 | V208: 0.04 | W208: 0.16 | X208: 1
L209: 53 | M209: 0.8 | N209: 0.04 | O209: 0.16 | P209: 1 | T209: 53 | U209: 0.8 | V209: 0.04 | W209: 0.16 | X209: 1
L210: 54 | M210: 0.8 | N210: 0.04 | O210: 0.16 | P210: 1 | T210: 54 | U210: 0.8 | V210: 0.04 | W210: 0.16 | X210: 1
L211: 55 | M211: 0.8 | N211: 0.04 | O211: 0.16 | P211: 1 | T211: 55 | U211: 0.8 | V211: 0.04 | W211: 0.16 | X211: 1
L212: 56 | M212: 0.8 | N212: 0.04 | O212: 0.16 | P212: 1 | T212: 56 | U212: 0.8 | V212: 0.04 | W212: 0.16 | X212: 1
L213: 57 | M213: 0.8 | N213: 0.04 | O213: 0.16 | P213: 1 | T213: 57 | U213: 0.8 | V213: 0.04 | W213: 0.16 | X213: 1
L214: 58 | M214: 0.8 | N214: 0.04 | O214: 0.16 | P214: 1 | T214: 58 | U214: 0.8 | V214: 0.04 | W214: 0.16 | X214: 1
L215: 59 | M215: 0.8 | N215: 0.04 | O215: 0.16 | P215: 1 | T215: 59 | U215: 0.8 | V215: 0.04 | W215: 0.16 | X215: 1
L216: 60 | M216: 0.8 | N216: 0.04 | O216: 0.16 | P216: 1 | T216: 60 | U216: 0.8 | V216: 0.04 | W216: 0.16 | X216: 1

Sheet Version Control
B3: No. | C3: Date | D3: Version | E3: Author | F3: Comments
B4: 1 | C4: 2019-12-16 | D4: 1 | E4: HNTB/NCDOT | F4: Original Version
B5: 2
B6: 3
B7: 4
B8: 5
B9: 6
B10: 7
B11: 8
B12: 9
B13: 10
B14: 11
B15: 12
B16: 13
B17: 14
B18: 15
B19: 16
B20: 17
B21: 18
B22: 19
B23: 20

Sheet EL_Calcs #1 (hidden)
X1: EL | Z1: GP
C2: Toll Rate Calculations | O2: VOT ($/hr) | P2: ='Express Lanes'!I18 -> 12.5
E3: For conditional formatting | O3: VOT ($/min) | P3: =P2/60 -> 0.2083333333
C4: Toll Rate for Analysis | D4: =IF('Express Lanes'!C25<=$P$7,'Express Lanes'!C25,0) ->  | E4: =IF('Express Lanes'!$C$25>P7,1,0) ->  | O4: Dist. | P4: ='Express Lanes'!C10 -> 0
C5: Max. Peak Hr. Toll Cost | D5: =J62*'Express Lanes'!$C$10*VLOOKUP('Express Lanes'!$I$17,'Assumptions Tab'!$C$10:$E$12,3,FALSE) ->  | O5: Time to travel on EL (min) | P5: =P4/55*60 -> 0
O6: Cost of Traveling Time | P6: =P3*P5 -> 0
O7: Max. Toll Rate/mile @ 0% Cap. | P7: =P5*P3/P4 -> 
C8: ="Base Toll Rates"&" - "&'Express Lanes'!C31&"$" -> Base Toll Rates - $ | H8: Detailed Toll Rate Table | O8: Cost of Traveling | P8: =P4*P7 -> 
C9: EL %Capacity | D9: Rec. Rate | H9: %Cap | I9: Daily Rate | J9: Pk Hr Rate
C10: 0 | D10: =D4 ->  | E10: Mutiplier | H10: 0 | I10: =D20 ->  | J10: =I10*(1+'Assumptions Tab'!$D$159) -> 
C11: 0.25 | D11: =$D$10*E11 ->  | E11: 1.5 | H11: =H10+2.5% -> 0.025 | I11: =(H11-H$10)/(H$20-H$10)*(I$20-I$10)+I$10 ->  | J11: =I11*(1+'Assumptions Tab'!$D$159) -> 
C12: 0.5 | D12: =$D$10*E12 ->  | E12: 2.5 | H12: =H11+2.5% -> 0.05 | J12: =I12*(1+'Assumptions Tab'!$D$159) ->  | R12: High | S12: 0.9 | T12: 1
C13: 0.7 | E13: 3 | H13: 0.075 | J13: =I13*(1+'Assumptions Tab'!$D$159) ->  | R13: Median | S13: 0.75 | T13: 2
C14: 0.9 | E14: 4 | H14: 0.1 | J14: =I14*(1+'Assumptions Tab'!$D$159) ->  | R14: Low | S14: 0.5 | T14: 3
C15: 1 | E15: 5 | H15: 0.125 | J15: =I15*(1+'Assumptions Tab'!$D$159) -> 
H16: 0.15 | J16: =I16*(1+'Assumptions Tab'!$D$159) -> 
C17: ="Model Toll Rates"&" - "&'Express Lanes'!I8&"$" -> Model Toll Rates - 0$ | H17: 0.175 | J17: =I17*(1+'Assumptions Tab'!$D$159) -> 
D18: Base Rate per Mile | H18: 0.2 | J18: =I18*(1+'Assumptions Tab'!$D$159) -> 
C19: EL %Capacity | D19: Selected | E19: Recommended | H19: 0.225 | J19: =I19*(1+'Assumptions Tab'!$D$159) -> 
C20: 0 | D20: =E20 ->  | E20: =$E$27*D10*(1+'Express Lanes'!$C$30)^('Express Lanes'!$I$8-'Express Lanes'!$C$31) ->  | H20: 0.25 | I20: =D21 ->  | J20: =I20*(1+'Assumptions Tab'!$D$159) -> 
C21: 0.25 | D21: =E21 ->  | E21: =$E$27*D11*(1+'Express Lanes'!$C$30)^('Express Lanes'!$I$8-'Express Lanes'!$C$31) ->  | H21: 0.275 | I21: =(H21-H$20)/(H$30-H$20)*(I$30-I$20)+I$20 ->  | J21: =I21*(1+'Assumptions Tab'!$D$159) -> 
C22: 0.5 | E22: =$E$27*D12*(1+'Express Lanes'!$C$30)^('Express Lanes'!$I$8-'Express Lanes'!$C$31) ->  | H22: 0.3 | J22: =I22*(1+'Assumptions Tab'!$D$159) -> 
C23: 0.7 | E23: =$E$27*D13*(1+'Express Lanes'!$C$30)^('Express Lanes'!$I$8-'Express Lanes'!$C$31) ->  | H23: 0.325 | J23: =I23*(1+'Assumptions Tab'!$D$159) -> 
C24: 0.9 | E24: =$E$27*D14*(1+'Express Lanes'!$C$30)^('Express Lanes'!$I$8-'Express Lanes'!$C$31) ->  | H24: 0.35 | J24: =I24*(1+'Assumptions Tab'!$D$159) -> 
C25: 1 | E25: =$E$27*D15*(1+'Express Lanes'!$C$30)^('Express Lanes'!$I$8-'Express Lanes'!$C$31) ->  | H25: 0.375 | J25: =I25*(1+'Assumptions Tab'!$D$159) -> 
H26: 0.4 | J26: =I26*(1+'Assumptions Tab'!$D$159) -> 
D27: Regional Multiplier | E27: =IF('[3]Background-Calcs'!J51=1,'EL_Calcs #1'!E28,'EL_Calcs #1'!E29) -> 1 | H27: 0.425 | J27: =I27*(1+'Assumptions Tab'!$D$159) -> 
D28: West Coast / Northeast: | E28: 1 | H28: 0.45 | J28: =I28*(1+'Assumptions Tab'!$D$159) -> 
D29: All Others: | E29: 1 | H29: 0.475 | J29: =I29*(1+'Assumptions Tab'!$D$159) -> 
H30: 0.5 | I30: =D22 ->  | J30: =I30*(1+'Assumptions Tab'!$D$159) -> 
H31: 0.525 | I31: =(H31-H$30)/(H$38-H$30)*(I$38-I$30)+I$30 ->  | J31: =I31*(1+'Assumptions Tab'!$D$159) -> 
H32: 0.55 | J32: =I32*(1+'Assumptions Tab'!$D$159) -> 
H33: 0.575 | J33: =I33*(1+'Assumptions Tab'!$D$159) -> 
H34: 0.6 | J34: =I34*(1+'Assumptions Tab'!$D$159) -> 
H35: 0.625 | J35: =I35*(1+'Assumptions Tab'!$D$159) -> 
H36: 0.65 | J36: =I36*(1+'Assumptions Tab'!$D$159) -> 
H37: 0.675 | J37: =I37*(1+'Assumptions Tab'!$D$159) -> 
H38: 0.7 | I38: =D23 ->  | J38: =I38*(1+'Assumptions Tab'!$D$159) -> 
H39: =H38+2.5% -> 0.725 | I39: =(H39-H$38)/(H$50-H$38)*(I$50-I$38)+I$38 ->  | J39: =I39*(1+'Assumptions Tab'!$D$159) -> 
H40: 0.75 | J40: =I40*(1+'Assumptions Tab'!$D$159) -> 
H41: 0.775 | J41: =I41*(1+'Assumptions Tab'!$D$159) -> 
H42: 0.8 | J42: =I42*(1+'Assumptions Tab'!$D$159) -> 
H43: 0.825 | J43: =I43*(1+'Assumptions Tab'!$D$159) -> 
H44: 0.85 | J44: =I44*(1+'Assumptions Tab'!$D$159) -> 
H45: 0.86 | J45: =I45*(1+'Assumptions Tab'!$D$159) -> 
H46: 0.87 | J46: =I46*(1+'Assumptions Tab'!$D$159) -> 
H47: =H44+2.5% -> 0.875 | J47: =I47*(1+'Assumptions Tab'!$D$159) -> 
H48: 0.88 | J48: =I48*(1+'Assumptions Tab'!$D$159) -> 
H49: 0.89 | J49: =I49*(1+'Assumptions Tab'!$D$159) -> 
H50: =H47+2.5% -> 0.9 | I50: =D24 ->  | J50: =I50*(1+'Assumptions Tab'!$D$159) -> 
H51: 0.91 | I51: =(H51-H$50)/(H$62-H$50)*(I$62-I$50)+I$50 ->  | J51: =I51*(1+'Assumptions Tab'!$D$159) -> 
H52: 0.92 | J52: =I52*(1+'Assumptions Tab'!$D$159) -> 
H53: =H50+2.5% -> 0.925 | J53: =I53*(1+'Assumptions Tab'!$D$159) -> 
H54: 0.93 | J54: =I54*(1+'Assumptions Tab'!$D$159) -> 
H55: 0.94 | J55: =I55*(1+'Assumptions Tab'!$D$159) -> 
H56: =H53+2.5% -> 0.95 | J56: =I56*(1+'Assumptions Tab'!$D$159) -> 
H57: 0.96 | J57: =I57*(1+'Assumptions Tab'!$D$159) -> 
H58: 0.97 | J58: =I58*(1+'Assumptions Tab'!$D$159) -> 
H59: =H56+2.5% -> 0.975 | J59: =I59*(1+'Assumptions Tab'!$D$159) -> 
H60: 0.98 | J60: =I60*(1+'Assumptions Tab'!$D$159) -> 
H61: 0.99 | J61: =I61*(1+'Assumptions Tab'!$D$159) -> 
H62: =H59+2.5% -> 1 | I62: =D25 ->  | J62: =I62*(1+'Assumptions Tab'!$D$159) -> 

Sheet EL_Calcs #2 (hidden)
B1: Revenue Analysis
B2: Annual Growth Rate - Opening to Design Year | C2: ='Express Lanes'!I12 -> 
B3: Annual Growth Rate after Design Year | C3: =IF(C2/3>0.0075,0.0075,C2/3) -> 
B5: Traffic growth rate | C5: =(1+GrowthPct_EL)^(C7-$C$7) ->  | D5: =IF(D7<=DesignYear_EL,(1+GrowthPct_EL)^(D7-$C$7),(1+$C$3)^(D7-DesignYear_EL)) -> 
A7: 1 | C7: ='Express Lanes'!$I$8 -> 0 | D7: =C7+1 -> 1 | E7: 2 | F7: 3 | G7: 4 | H7: 5 | I7: 6 | J7: 7 | K7: 8 | L7: 9 | M7: 10 | N7: 11 | O7: 12 | P7: 13 | Q7: 14 | R7: 15 | S7: 16 | T7: 17 | U7: 18 | V7: 19 | W7: 20 | X7: 21 | Y7: 22 | Z7: 23 | AA7: 24 | AB7: 25 | AC7: 26 | AD7: 27 | AE7: 28 | AF7: 29 | AG7: 30 | AH7: 31 | AI7: 32 | AJ7: 33 | AK7: 34 | AL7: 35 | AM7: 36 | AN7: 37 | AO7: 38 | AP7: 39
A8: =A7+1 -> 2 | B8: Baseline AADT-Autos | C8: ='Express Lanes'!$I$9*(1-'Express Lanes'!$I$13) -> 0 | D8: =IF(D7<=DesignYear_EL,$C$8*D5,HLOOKUP(DesignYear_EL,$C$7:$AP$8,2,FALSE)*D5) -> 
A9: =A8+1 -> 3 | B9: Existing # of GP Lanes | C9: ='Express Lanes'!$C$11 -> 0 | D9: ='Express Lanes'!$C$11 -> 0 | E9: ='Express Lanes'!$C$11 -> 0 | F9: ='Express Lanes'!$C$11 -> 0 | G9: ='Express Lanes'!$C$11 -> 0 | H9: ='Express Lanes'!$C$11 -> 0 | I9: ='Express Lanes'!$C$11 -> 0 | J9: ='Express Lanes'!$C$11 -> 0 | K9: ='Express Lanes'!$C$11 -> 0 | L9: ='Express Lanes'!$C$11 -> 0 | M9: ='Express Lanes'!$C$11 -> 0 | N9: ='Express Lanes'!$C$11 -> 0 | O9: ='Express Lanes'!$C$11 -> 0 | P9: ='Express Lanes'!$C$11 -> 0 | Q9: ='Express Lanes'!$C$11 -> 0 | R9: ='Express Lanes'!$C$11 -> 0 | S9: ='Express Lanes'!$C$11 -> 0 | T9: ='Express Lanes'!$C$11 -> 0 | U9: ='Express Lanes'!$C$11 -> 0 | V9: ='Express Lanes'!$C$11 -> 0 | W9: ='Express Lanes'!$C$11 -> 0 | X9: ='Express Lanes'!$C$11 -> 0 | Y9: ='Express Lanes'!$C$11 -> 0 | Z9: ='Express Lanes'!$C$11 -> 0 | AA9: ='Express Lanes'!$C$11 -> 0 | AB9: ='Express Lanes'!$C$11 -> 0 | AC9: ='Express Lanes'!$C$11 -> 0 | AD9: ='Express Lanes'!$C$11 -> 0 | AE9: ='Express Lanes'!$C$11 -> 0 | AF9: ='Express Lanes'!$C$11 -> 0 | AG9: ='Express Lanes'!$C$11 -> 0 | AH9: ='Express Lanes'!$C$11 -> 0 | AI9: ='Express Lanes'!$C$11 -> 0 | AJ9: ='Express Lanes'!$C$11 -> 0 | AK9: ='Express Lanes'!$C$11 -> 0 | AL9: ='Express Lanes'!$C$11 -> 0 | AM9: ='Express Lanes'!$C$11 -> 0 | AN9: ='Express Lanes'!$C$11 -> 0 | AO9: ='Express Lanes'!$C$11 -> 0 | AP9: ='Express Lanes'!$C$11 -> 0
A10: 4 | B10: AADT / GP Lane | C10: =C8/C9 ->  | AI10: =AI8/AI9 -> 
A11: 5 | B11: Requested # EL | C11: ='Express Lanes'!$C$12 -> 0 | D11: =C11 -> 0 | E11: =D11 -> 0 | F11: 0 | G11: 0 | H11: 0 | I11: 0 | J11: 0 | K11: 0 | L11: 0 | M11: 0 | N11: 0 | O11: 0 | P11: 0 | Q11: 0 | R11: 0 | S11: 0 | T11: 0 | U11: 0 | V11: 0 | W11: 0 | X11: 0 | Y11: 0 | Z11: 0 | AA11: 0 | AB11: 0 | AC11: 0 | AD11: 0 | AE11: 0 | AF11: 0 | AG11: 0 | AH11: 0 | AI11: 0 | AJ11: 0 | AK11: 0 | AL11: 0 | AM11: 0 | AN11: 0 | AO11: 0 | AP11: 0
A12: 6 | B12: Total # Lanes | C12: =C9+C11 -> 0 | D12: 0 | E12: 0 | F12: 0 | G12: 0 | H12: 0 | I12: 0 | J12: 0 | K12: 0 | L12: 0 | M12: 0 | N12: 0 | O12: 0 | P12: 0 | Q12: 0 | R12: 0 | S12: 0 | T12: 0 | U12: 0 | V12: 0 | W12: 0 | X12: 0 | Y12: 0 | Z12: 0 | AA12: 0 | AB12: 0 | AC12: 0 | AD12: 0 | AE12: 0 | AF12: 0 | AG12: 0 | AH12: 0 | AI12: 0 | AJ12: 0 | AK12: 0 | AL12: 0 | AM12: 0 | AN12: 0 | AO12: 0 | AP12: 0
A13: 7 | B13: Revised GP Lanes | C13: =C12-C11 -> 0 | D13: 0 | E13: 0 | F13: 0 | G13: 0 | H13: 0 | I13: 0 | J13: 0 | K13: 0 | L13: 0 | M13: 0 | N13: 0 | O13: 0 | P13: 0 | Q13: 0 | R13: 0 | S13: 0 | T13: 0 | U13: 0 | V13: 0 | W13: 0 | X13: 0 | Y13: 0 | Z13: 0 | AA13: 0 | AB13: 0 | AC13: 0 | AD13: 0 | AE13: 0 | AF13: 0 | AG13: 0 | AH13: 0 | AI13: 0 | AJ13: 0 | AK13: 0 | AL13: 0 | AM13: 0 | AN13: 0 | AO13: 0 | AP13: 0
A14: 8 | B14: Base Volume, GP | C14: =MIN(C8,C13*'Assumptions Tab'!$D$156) -> 0 | D14: =MIN(D8,D13*'Assumptions Tab'!$D$156) ->  | E14: =MIN(E8,E13*'Assumptions Tab'!$D$156) ->  | F14: =MIN(F8,F13*'Assumptions Tab'!$D$156) ->  | G14: =MIN(G8,G13*'Assumptions Tab'!$D$156) ->  | H14: =MIN(H8,H13*'Assumptions Tab'!$D$156) ->  | I14: =MIN(I8,I13*'Assumptions Tab'!$D$156) ->  | J14: =MIN(J8,J13*'Assumptions Tab'!$D$156) ->  | K14: =MIN(K8,K13*'Assumptions Tab'!$D$156) ->  | L14: =MIN(L8,L13*'Assumptions Tab'!$D$156) ->  | M14: =MIN(M8,M13*'Assumptions Tab'!$D$156) ->  | N14: =MIN(N8,N13*'Assumptions Tab'!$D$156) ->  | O14: =MIN(O8,O13*'Assumptions Tab'!$D$156) ->  | P14: =MIN(P8,P13*'Assumptions Tab'!$D$156) ->  | Q14: =MIN(Q8,Q13*'Assumptions Tab'!$D$156) ->  | R14: =MIN(R8,R13*'Assumptions Tab'!$D$156) ->  | S14: =MIN(S8,S13*'Assumptions Tab'!$D$156) ->  | T14: =MIN(T8,T13*'Assumptions Tab'!$D$156) ->  | U14: =MIN(U8,U13*'Assumptions Tab'!$D$156) ->  | V14: =MIN(V8,V13*'Assumptions Tab'!$D$156) ->  | W14: =MIN(W8,W13*'Assumptions Tab'!$D$156) ->  | X14: =MIN(X8,X13*'Assumptions Tab'!$D$156) ->  | Y14: =MIN(Y8,Y13*'Assumptions Tab'!$D$156) ->  | Z14: =MIN(Z8,Z13*'Assumptions Tab'!$D$156) ->  | AA14: =MIN(AA8,AA13*'Assumptions Tab'!$D$156) ->  | AB14: =MIN(AB8,AB13*'Assumptions Tab'!$D$156) ->  | AC14: =MIN(AC8,AC13*'Assumptions Tab'!$D$156) ->  | AD14: =MIN(AD8,AD13*'Assumptions Tab'!$D$156) ->  | AE14: =MIN(AE8,AE13*'Assumptions Tab'!$D$156) ->  | AF14: =MIN(AF8,AF13*'Assumptions Tab'!$D$156) ->  | AG14: =MIN(AG8,AG13*'Assumptions Tab'!$D$156) ->  | AH14: =MIN(AH8,AH13*'Assumptions Tab'!$D$156) ->  | AI14: =MIN(AI8,AI13*'Assumptions Tab'!$D$156) ->  | AJ14: =MIN(AJ8,AJ13*'Assumptions Tab'!$D$156) ->  | AK14: =MIN(AK8,AK13*'Assumptions Tab'!$D$156) ->  | AL14: =MIN(AL8,AL13*'Assumptions Tab'!$D$156) ->  | AM14: =MIN(AM8,AM13*'Assumptions Tab'!$D$156) ->  | AN14: =MIN(AN8,AN13*'Assumptions Tab'!$D$156) ->  | AO14: =MIN(AO8,AO13*'Assumptions Tab'!$D$156) ->  | AP14: =MIN(AP8,AP13*'Assumptions Tab'!$D$156) -> 
A15: 9 | B15: Initial Overage | C15: =C8-C14 -> 0
A16: 10 | B16: Avail. Capacity, GP | C16: =('Assumptions Tab'!$D$157-'Assumptions Tab'!$D$156)*C13 -> 0 | D16: =('Assumptions Tab'!$D$157-'Assumptions Tab'!$D$156)*D13 -> 0 | E16: =('Assumptions Tab'!$D$157-'Assumptions Tab'!$D$156)*E13 -> 0 | F16: =('Assumptions Tab'!$D$157-'Assumptions Tab'!$D$156)*F13 -> 0 | G16: =('Assumptions Tab'!$D$157-'Assumptions Tab'!$D$156)*G13 -> 0 | H16: =('Assumptions Tab'!$D$157-'Assumptions Tab'!$D$156)*H13 -> 0 | I16: =('Assumptions Tab'!$D$157-'Assumptions Tab'!$D$156)*I13 -> 0 | J16: =('Assumptions Tab'!$D$157-'Assumptions Tab'!$D$156)*J13 -> 0 | K16: =('Assumptions Tab'!$D$157-'Assumptions Tab'!$D$156)*K13 -> 0 | L16: =('Assumptions Tab'!$D$157-'Assumptions Tab'!$D$156)*L13 -> 0 | M16: =('Assumptions Tab'!$D$157-'Assumptions Tab'!$D$156)*M13 -> 0 | N16: =('Assumptions Tab'!$D$157-'Assumptions Tab'!$D$156)*N13 -> 0 | O16: =('Assumptions Tab'!$D$157-'Assumptions Tab'!$D$156)*O13 -> 0 | P16: =('Assumptions Tab'!$D$157-'Assumptions Tab'!$D$156)*P13 -> 0 | Q16: =('Assumptions Tab'!$D$157-'Assumptions Tab'!$D$156)*Q13 -> 0 | R16: =('Assumptions Tab'!$D$157-'Assumptions Tab'!$D$156)*R13 -> 0 | S16: =('Assumptions Tab'!$D$157-'Assumptions Tab'!$D$156)*S13 -> 0 | T16: =('Assumptions Tab'!$D$157-'Assumptions Tab'!$D$156)*T13 -> 0 | U16: =('Assumptions Tab'!$D$157-'Assumptions Tab'!$D$156)*U13 -> 0 | V16: =('Assumptions Tab'!$D$157-'Assumptions Tab'!$D$156)*V13 -> 0 | W16: =('Assumptions Tab'!$D$157-'Assumptions Tab'!$D$156)*W13 -> 0 | X16: =('Assumptions Tab'!$D$157-'Assumptions Tab'!$D$156)*X13 -> 0 | Y16: =('Assumptions Tab'!$D$157-'Assumptions Tab'!$D$156)*Y13 -> 0 | Z16: =('Assumptions Tab'!$D$157-'Assumptions Tab'!$D$156)*Z13 -> 0 | AA16: =('Assumptions Tab'!$D$157-'Assumptions Tab'!$D$156)*AA13 -> 0 | AB16: =('Assumptions Tab'!$D$157-'Assumptions Tab'!$D$156)*AB13 -> 0 | AC16: =('Assumptions Tab'!$D$157-'Assumptions Tab'!$D$156)*AC13 -> 0 | AD16: =('Assumptions Tab'!$D$157-'Assumptions Tab'!$D$156)*AD13 -> 0 | AE16: =('Assumptions Tab'!$D$157-'Assumptions Tab'!$D$156)*AE13 -> 0 | AF16: =('Assumptions Tab'!$D$157-'Assumptions Tab'!$D$156)*AF13 -> 0 | AG16: =('Assumptions Tab'!$D$157-'Assumptions Tab'!$D$156)*AG13 -> 0 | AH16: =('Assumptions Tab'!$D$157-'Assumptions Tab'!$D$156)*AH13 -> 0 | AI16: =('Assumptions Tab'!$D$157-'Assumptions Tab'!$D$156)*AI13 -> 0 | AJ16: =('Assumptions Tab'!$D$157-'Assumptions Tab'!$D$156)*AJ13 -> 0 | AK16: =('Assumptions Tab'!$D$157-'Assumptions Tab'!$D$156)*AK13 -> 0 | AL16: =('Assumptions Tab'!$D$157-'Assumptions Tab'!$D$156)*AL13 -> 0 | AM16: =('Assumptions Tab'!$D$157-'Assumptions Tab'!$D$156)*AM13 -> 0 | AN16: =('Assumptions Tab'!$D$157-'Assumptions Tab'!$D$156)*AN13 -> 0 | AO16: =('Assumptions Tab'!$D$157-'Assumptions Tab'!$D$156)*AO13 -> 0 | AP16: =('Assumptions Tab'!$D$157-'Assumptions Tab'!$D$156)*AP13 -> 0
A17: 11 | B17: Avail. Capacity, EL | C17: ='Assumptions Tab'!$D$154*C11 -> 0 | D17: ='Assumptions Tab'!$D$154*D11 -> 0 | E17: ='Assumptions Tab'!$D$154*E11 -> 0 | F17: ='Assumptions Tab'!$D$154*F11 -> 0 | G17: ='Assumptions Tab'!$D$154*G11 -> 0 | H17: ='Assumptions Tab'!$D$154*H11 -> 0 | I17: ='Assumptions Tab'!$D$154*I11 -> 0 | J17: ='Assumptions Tab'!$D$154*J11 -> 0 | K17: ='Assumptions Tab'!$D$154*K11 -> 0 | L17: ='Assumptions Tab'!$D$154*L11 -> 0 | M17: ='Assumptions Tab'!$D$154*M11 -> 0 | N17: ='Assumptions Tab'!$D$154*N11 -> 0 | O17: ='Assumptions Tab'!$D$154*O11 -> 0 | P17: ='Assumptions Tab'!$D$154*P11 -> 0 | Q17: ='Assumptions Tab'!$D$154*Q11 -> 0 | R17: ='Assumptions Tab'!$D$154*R11 -> 0 | S17: ='Assumptions Tab'!$D$154*S11 -> 0 | T17: ='Assumptions Tab'!$D$154*T11 -> 0 | U17: ='Assumptions Tab'!$D$154*U11 -> 0 | V17: ='Assumptions Tab'!$D$154*V11 -> 0 | W17: ='Assumptions Tab'!$D$154*W11 -> 0 | X17: ='Assumptions Tab'!$D$154*X11 -> 0 | Y17: ='Assumptions Tab'!$D$154*Y11 -> 0 | Z17: ='Assumptions Tab'!$D$154*Z11 -> 0 | AA17: ='Assumptions Tab'!$D$154*AA11 -> 0 | AB17: ='Assumptions Tab'!$D$154*AB11 -> 0 | AC17: ='Assumptions Tab'!$D$154*AC11 -> 0 | AD17: ='Assumptions Tab'!$D$154*AD11 -> 0 | AE17: ='Assumptions Tab'!$D$154*AE11 -> 0 | AF17: ='Assumptions Tab'!$D$154*AF11 -> 0 | AG17: ='Assumptions Tab'!$D$154*AG11 -> 0 | AH17: ='Assumptions Tab'!$D$154*AH11 -> 0 | AI17: ='Assumptions Tab'!$D$154*AI11 -> 0 | AJ17: ='Assumptions Tab'!$D$154*AJ11 -> 0 | AK17: ='Assumptions Tab'!$D$154*AK11 -> 0 | AL17: ='Assumptions Tab'!$D$154*AL11 -> 0 | AM17: ='Assumptions Tab'!$D$154*AM11 -> 0 | AN17: ='Assumptions Tab'!$D$154*AN11 -> 0 | AO17: ='Assumptions Tab'!$D$154*AO11 -> 0 | AP17: ='Assumptions Tab'!$D$154*AP11 -> 0
A18: 12 | B18: Total Avail. Capacity | C18: =SUM(C16:C17) -> 0 | D18: 0 | E18: 0 | F18: 0 | G18: 0 | H18: 0 | I18: 0 | J18: 0 | K18: 0 | L18: 0 | M18: 0 | N18: 0 | O18: 0 | P18: 0 | Q18: 0 | R18: 0 | S18: 0 | T18: 0 | U18: 0 | V18: 0 | W18: 0 | X18: 0 | Y18: 0 | Z18: 0 | AA18: 0 | AB18: 0 | AC18: 0 | AD18: 0 | AE18: 0 | AF18: 0 | AG18: 0 | AH18: 0 | AI18: 0 | AJ18: 0 | AK18: 0 | AL18: 0 | AM18: 0 | AN18: 0 | AO18: 0 | AP18: 0
A19: 13 | B19: Avail. Capacity Sufficient? | C19: =IF(C18>=C15,"Y","N") -> Y
A20: 14 | B20: EL %Allocation | C20: =C17/C18 -> 
A21: 15 | B21: EL Volume | C21: =MIN(C$20*C$15,C$11*'Assumptions Tab'!$D$154*(1+'Express Lanes'!$I$12)^(C7-$C7)) ->  | D21: =MIN(D$20*D$15,D$11*'Assumptions Tab'!$D$154*(1+'Express Lanes'!$I$12)^(D7-$C7)) ->  | E21: =MIN(E$20*E$15,E$11*'Assumptions Tab'!$D$154*(1+'Express Lanes'!$I$12)^(E7-$C7)) ->  | F21: =MIN(F$20*F$15,F$11*'Assumptions Tab'!$D$154*(1+'Express Lanes'!$I$12)^(F7-$C7)) ->  | G21: =MIN(G$20*G$15,G$11*'Assumptions Tab'!$D$154*(1+'Express Lanes'!$I$12)^(G7-$C7)) ->  | H21: =MIN(H$20*H$15,H$11*'Assumptions Tab'!$D$154*(1+'Express Lanes'!$I$12)^(H7-$C7)) ->  | I21: =MIN(I$20*I$15,I$11*'Assumptions Tab'!$D$154*(1+'Express Lanes'!$I$12)^(I7-$C7)) ->  | J21: =MIN(J$20*J$15,J$11*'Assumptions Tab'!$D$154*(1+'Express Lanes'!$I$12)^(J7-$C7)) ->  | K21: =MIN(K$20*K$15,K$11*'Assumptions Tab'!$D$154*(1+'Express Lanes'!$I$12)^(K7-$C7)) ->  | L21: =MIN(L$20*L$15,L$11*'Assumptions Tab'!$D$154*(1+'Express Lanes'!$I$12)^(L7-$C7)) ->  | M21: =MIN(M$20*M$15,M$11*'Assumptions Tab'!$D$154*(1+'Express Lanes'!$I$12)^(M7-$C7)) ->  | N21: =MIN(N$20*N$15,N$11*'Assumptions Tab'!$D$154*(1+'Express Lanes'!$I$12)^(N7-$C7)) ->  | O21: =MIN(O$20*O$15,O$11*'Assumptions Tab'!$D$154*(1+'Express Lanes'!$I$12)^(O7-$C7)) ->  | P21: =MIN(P$20*P$15,P$11*'Assumptions Tab'!$D$154*(1+'Express Lanes'!$I$12)^(P7-$C7)) ->  | Q21: =MIN(Q$20*Q$15,Q$11*'Assumptions Tab'!$D$154*(1+'Express Lanes'!$I$12)^(Q7-$C7)) ->  | R21: =MIN(R$20*R$15,R$11*'Assumptions Tab'!$D$154*(1+'Express Lanes'!$I$12)^(R7-$C7)) ->  | S21: =MIN(S$20*S$15,S$11*'Assumptions Tab'!$D$154*(1+'Express Lanes'!$I$12)^(S7-$C7)) ->  | T21: =MIN(T$20*T$15,T$11*'Assumptions Tab'!$D$154*(1+'Express Lanes'!$I$12)^(T7-$C7)) ->  | U21: =MIN(U$20*U$15,U$11*'Assumptions Tab'!$D$154*(1+'Express Lanes'!$I$12)^(U7-$C7)) ->  | V21: =MIN(V$20*V$15,V$11*'Assumptions Tab'!$D$154*(1+'Express Lanes'!$I$12)^(V7-$C7)) ->  | W21: =MIN(W$20*W$15,W$11*'Assumptions Tab'!$D$154*(1+'Express Lanes'!$I$12)^(W7-$C7)) ->  | X21: =MIN(X$20*X$15,X$11*'Assumptions Tab'!$D$154*(1+'Express Lanes'!$I$12)^(X7-$C7)) ->  | Y21: =MIN(Y$20*Y$15,Y$11*'Assumptions Tab'!$D$154*(1+'Express Lanes'!$I$12)^(Y7-$C7)) ->  | Z21: =MIN(Z$20*Z$15,Z$11*'Assumptions Tab'!$D$154*(1+'Express Lanes'!$I$12)^(Z7-$C7)) ->  | AA21: =MIN(AA$20*AA$15,AA$11*'Assumptions Tab'!$D$154*(1+'Express Lanes'!$I$12)^(AA7-$C7)) ->  | AB21: =MIN(AB$20*AB$15,AB$11*'Assumptions Tab'!$D$154*(1+'Express Lanes'!$I$12)^(AB7-$C7)) ->  | AC21: =MIN(AC$20*AC$15,AC$11*'Assumptions Tab'!$D$154*(1+'Express Lanes'!$I$12)^(AC7-$C7)) ->  | AD21: =MIN(AD$20*AD$15,AD$11*'Assumptions Tab'!$D$154*(1+'Express Lanes'!$I$12)^(AD7-$C7)) ->  | AE21: =MIN(AE$20*AE$15,AE$11*'Assumptions Tab'!$D$154*(1+'Express Lanes'!$I$12)^(AE7-$C7)) ->  | AF21: =MIN(AF$20*AF$15,AF$11*'Assumptions Tab'!$D$154*(1+'Express Lanes'!$I$12)^(AF7-$C7)) ->  | AG21: =MIN(AG$20*AG$15,AG$11*'Assumptions Tab'!$D$154*(1+'Express Lanes'!$I$12)^(AG7-$C7)) ->  | AH21: =MIN(AH$20*AH$15,AH$11*'Assumptions Tab'!$D$154*(1+'Express Lanes'!$I$12)^(AH7-$C7)) ->  | AI21: =MIN(AI$20*AI$15,AI$11*'Assumptions Tab'!$D$154*(1+'Express Lanes'!$I$12)^(AI7-$C7)) ->  | AJ21: =MIN(AJ$20*AJ$15,AJ$11*'Assumptions Tab'!$D$154*(1+'Express Lanes'!$I$12)^(AJ7-$C7)) ->  | AK21: =MIN(AK$20*AK$15,AK$11*'Assumptions Tab'!$D$154*(1+'Express Lanes'!$I$12)^(AK7-$C7)) ->  | AL21: =MIN(AL$20*AL$15,AL$11*'Assumptions Tab'!$D$154*(1+'Express Lanes'!$I$12)^(AL7-$C7)) ->  | AM21: =MIN(AM$20*AM$15,AM$11*'Assumptions Tab'!$D$154*(1+'Express Lanes'!$I$12)^(AM7-$C7)) ->  | AN21: =MIN(AN$20*AN$15,AN$11*'Assumptions Tab'!$D$154*(1+'Express Lanes'!$I$12)^(AN7-$C7)) ->  | AO21: =MIN(AO$20*AO$15,AO$11*'Assumptions Tab'!$D$154*(1+'Express Lanes'!$I$12)^(AO7-$C7)) ->  | AP21: =MIN(AP$20*AP$15,AP$11*'Assumptions Tab'!$D$154*(1+'Express Lanes'!$I$12)^(AP7-$C7)) -> 
A22: 16 | B22: EL Volume -- Adjusted for IAP's & Max Vol | C22: =MIN(IF('Express Lanes'!$I$16="Yes",C21,C21*(1-'Assumptions Tab'!$D$144)),C11*'Assumptions Tab'!$D$155) ->  | D22: =MIN(IF('Express Lanes'!$I$16="Yes",D21,D21*(1-'Assumptions Tab'!$D$144)),D11*'Assumptions Tab'!$D$155) ->  | E22: =MIN(IF('Express Lanes'!$I$16="Yes",E21,E21*(1-'Assumptions Tab'!$D$144)),E11*'Assumptions Tab'!$D$155) ->  | F22: =MIN(IF('Express Lanes'!$I$16="Yes",F21,F21*(1-'Assumptions Tab'!$D$144)),F11*'Assumptions Tab'!$D$155) ->  | G22: =MIN(IF('Express Lanes'!$I$16="Yes",G21,G21*(1-'Assumptions Tab'!$D$144)),G11*'Assumptions Tab'!$D$155) ->  | H22: =MIN(IF('Express Lanes'!$I$16="Yes",H21,H21*(1-'Assumptions Tab'!$D$144)),H11*'Assumptions Tab'!$D$155) ->  | I22: =MIN(IF('Express Lanes'!$I$16="Yes",I21,I21*(1-'Assumptions Tab'!$D$144)),I11*'Assumptions Tab'!$D$155) ->  | J22: =MIN(IF('Express Lanes'!$I$16="Yes",J21,J21*(1-'Assumptions Tab'!$D$144)),J11*'Assumptions Tab'!$D$155) ->  | K22: =MIN(IF('Express Lanes'!$I$16="Yes",K21,K21*(1-'Assumptions Tab'!$D$144)),K11*'Assumptions Tab'!$D$155) ->  | L22: =MIN(IF('Express Lanes'!$I$16="Yes",L21,L21*(1-'Assumptions Tab'!$D$144)),L11*'Assumptions Tab'!$D$155) ->  | M22: =MIN(IF('Express Lanes'!$I$16="Yes",M21,M21*(1-'Assumptions Tab'!$D$144)),M11*'Assumptions Tab'!$D$155) ->  | N22: =MIN(IF('Express Lanes'!$I$16="Yes",N21,N21*(1-'Assumptions Tab'!$D$144)),N11*'Assumptions Tab'!$D$155) ->  | O22: =MIN(IF('Express Lanes'!$I$16="Yes",O21,O21*(1-'Assumptions Tab'!$D$144)),O11*'Assumptions Tab'!$D$155) ->  | P22: =MIN(IF('Express Lanes'!$I$16="Yes",P21,P21*(1-'Assumptions Tab'!$D$144)),P11*'Assumptions Tab'!$D$155) ->  | Q22: =MIN(IF('Express Lanes'!$I$16="Yes",Q21,Q21*(1-'Assumptions Tab'!$D$144)),Q11*'Assumptions Tab'!$D$155) ->  | R22: =MIN(IF('Express Lanes'!$I$16="Yes",R21,R21*(1-'Assumptions Tab'!$D$144)),R11*'Assumptions Tab'!$D$155) ->  | S22: =MIN(IF('Express Lanes'!$I$16="Yes",S21,S21*(1-'Assumptions Tab'!$D$144)),S11*'Assumptions Tab'!$D$155) ->  | T22: =MIN(IF('Express Lanes'!$I$16="Yes",T21,T21*(1-'Assumptions Tab'!$D$144)),T11*'Assumptions Tab'!$D$155) ->  | U22: =MIN(IF('Express Lanes'!$I$16="Yes",U21,U21*(1-'Assumptions Tab'!$D$144)),U11*'Assumptions Tab'!$D$155) ->  | V22: =MIN(IF('Express Lanes'!$I$16="Yes",V21,V21*(1-'Assumptions Tab'!$D$144)),V11*'Assumptions Tab'!$D$155) ->  | W22: =MIN(IF('Express Lanes'!$I$16="Yes",W21,W21*(1-'Assumptions Tab'!$D$144)),W11*'Assumptions Tab'!$D$155) ->  | X22: =MIN(IF('Express Lanes'!$I$16="Yes",X21,X21*(1-'Assumptions Tab'!$D$144)),X11*'Assumptions Tab'!$D$155) ->  | Y22: =MIN(IF('Express Lanes'!$I$16="Yes",Y21,Y21*(1-'Assumptions Tab'!$D$144)),Y11*'Assumptions Tab'!$D$155) ->  | Z22: =MIN(IF('Express Lanes'!$I$16="Yes",Z21,Z21*(1-'Assumptions Tab'!$D$144)),Z11*'Assumptions Tab'!$D$155) ->  | AA22: =MIN(IF('Express Lanes'!$I$16="Yes",AA21,AA21*(1-'Assumptions Tab'!$D$144)),AA11*'Assumptions Tab'!$D$155) ->  | AB22: =MIN(IF('Express Lanes'!$I$16="Yes",AB21,AB21*(1-'Assumptions Tab'!$D$144)),AB11*'Assumptions Tab'!$D$155) ->  | AC22: =MIN(IF('Express Lanes'!$I$16="Yes",AC21,AC21*(1-'Assumptions Tab'!$D$144)),AC11*'Assumptions Tab'!$D$155) ->  | AD22: =MIN(IF('Express Lanes'!$I$16="Yes",AD21,AD21*(1-'Assumptions Tab'!$D$144)),AD11*'Assumptions Tab'!$D$155) ->  | AE22: =MIN(IF('Express Lanes'!$I$16="Yes",AE21,AE21*(1-'Assumptions Tab'!$D$144)),AE11*'Assumptions Tab'!$D$155) ->  | AF22: =MIN(IF('Express Lanes'!$I$16="Yes",AF21,AF21*(1-'Assumptions Tab'!$D$144)),AF11*'Assumptions Tab'!$D$155) ->  | AG22: =MIN(IF('Express Lanes'!$I$16="Yes",AG21,AG21*(1-'Assumptions Tab'!$D$144)),AG11*'Assumptions Tab'!$D$155) ->  | AH22: =MIN(IF('Express Lanes'!$I$16="Yes",AH21,AH21*(1-'Assumptions Tab'!$D$144)),AH11*'Assumptions Tab'!$D$155) ->  | AI22: =MIN(IF('Express Lanes'!$I$16="Yes",AI21,AI21*(1-'Assumptions Tab'!$D$144)),AI11*'Assumptions Tab'!$D$155) ->  | AJ22: =MIN(IF('Express Lanes'!$I$16="Yes",AJ21,AJ21*(1-'Assumptions Tab'!$D$144)),AJ11*'Assumptions Tab'!$D$155) ->  | AK22: =MIN(IF('Express Lanes'!$I$16="Yes",AK21,AK21*(1-'Assumptions Tab'!$D$144)),AK11*'Assumptions Tab'!$D$155) ->  | AL22: =MIN(IF('Express Lanes'!$I$16="Yes",AL21,AL21*(1-'Assumptions Tab'!$D$144)),AL11*'Assumptions Tab'!$D$155) ->  | AM22: =MIN(IF('Express Lanes'!$I$16="Yes",AM21,AM21*(1-'Assumptions Tab'!$D$144)),AM11*'Assumptions Tab'!$D$155) ->  | AN22: =MIN(IF('Express Lanes'!$I$16="Yes",AN21,AN21*(1-'Assumptions Tab'!$D$144)),AN11*'Assumptions Tab'!$D$155) ->  | AO22: =MIN(IF('Express Lanes'!$I$16="Yes",AO21,AO21*(1-'Assumptions Tab'!$D$144)),AO11*'Assumptions Tab'!$D$155) ->  | AP22: =MIN(IF('Express Lanes'!$I$16="Yes",AP21,AP21*(1-'Assumptions Tab'!$D$144)),AP11*'Assumptions Tab'!$D$155) -> 
A23: 17 | B23: GP Add'l Allocation | C23: =C15-C22 -> 
A24: 18 | B24: GP Average AADT | C24: =ROUND(C23+C14,-2) -> 
A25: 19 | B25: EL Average AADT (pre ramp-up) | C25: =C15-C23 ->  | D25: =D15-D23 -> 
A26: 20 | B26: EL Average AADT (post ramp-up) | C26: =MAX(ROUND(C25*VLOOKUP(C$7,'Assumptions Tab'!$C$65:$G$125,5,-2),ROUND('EL_Calcs #3'!C27*'Express Lanes'!$C$12,-2))) ->  | D26: =MAX(ROUND(D25*VLOOKUP(D$7,'Assumptions Tab'!$C$65:$G$125,5,-2),ROUND('EL_Calcs #3'!D27*'Express Lanes'!$C$12,-2))) ->  | E26: =MAX(ROUND(E25*VLOOKUP(E$7,'Assumptions Tab'!$C$65:$G$125,5,-2),ROUND('EL_Calcs #3'!E27*'Express Lanes'!$C$12,-2))) ->  | F26: =MAX(ROUND(F25*VLOOKUP(F$7,'Assumptions Tab'!$C$65:$G$125,5,-2),ROUND('EL_Calcs #3'!F27*'Express Lanes'!$C$12,-2))) ->  | G26: =MAX(ROUND(G25*VLOOKUP(G$7,'Assumptions Tab'!$C$65:$G$125,5,-2),ROUND('EL_Calcs #3'!G27*'Express Lanes'!$C$12,-2))) ->  | H26: =MAX(ROUND(H25*VLOOKUP(H$7,'Assumptions Tab'!$C$65:$G$125,5,-2),ROUND('EL_Calcs #3'!H27*'Express Lanes'!$C$12,-2))) ->  | I26: =MAX(ROUND(I25*VLOOKUP(I$7,'Assumptions Tab'!$C$65:$G$125,5,-2),ROUND('EL_Calcs #3'!I27*'Express Lanes'!$C$12,-2))) ->  | J26: =MAX(ROUND(J25*VLOOKUP(J$7,'Assumptions Tab'!$C$65:$G$125,5,-2),ROUND('EL_Calcs #3'!J27*'Express Lanes'!$C$12,-2))) ->  | K26: =MAX(ROUND(K25*VLOOKUP(K$7,'Assumptions Tab'!$C$65:$G$125,5,-2),ROUND('EL_Calcs #3'!K27*'Express Lanes'!$C$12,-2))) ->  | L26: =MAX(ROUND(L25*VLOOKUP(L$7,'Assumptions Tab'!$C$65:$G$125,5,-2),ROUND('EL_Calcs #3'!L27*'Express Lanes'!$C$12,-2))) ->  | M26: =MAX(ROUND(M25*VLOOKUP(M$7,'Assumptions Tab'!$C$65:$G$125,5,-2),ROUND('EL_Calcs #3'!M27*'Express Lanes'!$C$12,-2))) ->  | N26: =MAX(ROUND(N25*VLOOKUP(N$7,'Assumptions Tab'!$C$65:$G$125,5,-2),ROUND('EL_Calcs #3'!N27*'Express Lanes'!$C$12,-2))) ->  | O26: =MAX(ROUND(O25*VLOOKUP(O$7,'Assumptions Tab'!$C$65:$G$125,5,-2),ROUND('EL_Calcs #3'!O27*'Express Lanes'!$C$12,-2))) ->  | P26: =MAX(ROUND(P25*VLOOKUP(P$7,'Assumptions Tab'!$C$65:$G$125,5,-2),ROUND('EL_Calcs #3'!P27*'Express Lanes'!$C$12,-2))) ->  | Q26: =MAX(ROUND(Q25*VLOOKUP(Q$7,'Assumptions Tab'!$C$65:$G$125,5,-2),ROUND('EL_Calcs #3'!Q27*'Express Lanes'!$C$12,-2))) ->  | R26: =MAX(ROUND(R25*VLOOKUP(R$7,'Assumptions Tab'!$C$65:$G$125,5,-2),ROUND('EL_Calcs #3'!R27*'Express Lanes'!$C$12,-2))) ->  | S26: =MAX(ROUND(S25*VLOOKUP(S$7,'Assumptions Tab'!$C$65:$G$125,5,-2),ROUND('EL_Calcs #3'!S27*'Express Lanes'!$C$12,-2))) ->  | T26: =MAX(ROUND(T25*VLOOKUP(T$7,'Assumptions Tab'!$C$65:$G$125,5,-2),ROUND('EL_Calcs #3'!T27*'Express Lanes'!$C$12,-2))) ->  | U26: =MAX(ROUND(U25*VLOOKUP(U$7,'Assumptions Tab'!$C$65:$G$125,5,-2),ROUND('EL_Calcs #3'!U27*'Express Lanes'!$C$12,-2))) ->  | V26: =MAX(ROUND(V25*VLOOKUP(V$7,'Assumptions Tab'!$C$65:$G$125,5,-2),ROUND('EL_Calcs #3'!V27*'Express Lanes'!$C$12,-2))) ->  | W26: =MAX(ROUND(W25*VLOOKUP(W$7,'Assumptions Tab'!$C$65:$G$125,5,-2),ROUND('EL_Calcs #3'!W27*'Express Lanes'!$C$12,-2))) ->  | X26: =MAX(ROUND(X25*VLOOKUP(X$7,'Assumptions Tab'!$C$65:$G$125,5,-2),ROUND('EL_Calcs #3'!X27*'Express Lanes'!$C$12,-2))) ->  | Y26: =MAX(ROUND(Y25*VLOOKUP(Y$7,'Assumptions Tab'!$C$65:$G$125,5,-2),ROUND('EL_Calcs #3'!Y27*'Express Lanes'!$C$12,-2))) ->  | Z26: =MAX(ROUND(Z25*VLOOKUP(Z$7,'Assumptions Tab'!$C$65:$G$125,5,-2),ROUND('EL_Calcs #3'!Z27*'Express Lanes'!$C$12,-2))) ->  | AA26: =MAX(ROUND(AA25*VLOOKUP(AA$7,'Assumptions Tab'!$C$65:$G$125,5,-2),ROUND('EL_Calcs #3'!AA27*'Express Lanes'!$C$12,-2))) ->  | AB26: =MAX(ROUND(AB25*VLOOKUP(AB$7,'Assumptions Tab'!$C$65:$G$125,5,-2),ROUND('EL_Calcs #3'!AB27*'Express Lanes'!$C$12,-2))) ->  | AC26: =MAX(ROUND(AC25*VLOOKUP(AC$7,'Assumptions Tab'!$C$65:$G$125,5,-2),ROUND('EL_Calcs #3'!AC27*'Express Lanes'!$C$12,-2))) ->  | AD26: =MAX(ROUND(AD25*VLOOKUP(AD$7,'Assumptions Tab'!$C$65:$G$125,5,-2),ROUND('EL_Calcs #3'!AD27*'Express Lanes'!$C$12,-2))) ->  | AE26: =MAX(ROUND(AE25*VLOOKUP(AE$7,'Assumptions Tab'!$C$65:$G$125,5,-2),ROUND('EL_Calcs #3'!AE27*'Express Lanes'!$C$12,-2))) ->  | AF26: =MAX(ROUND(AF25*VLOOKUP(AF$7,'Assumptions Tab'!$C$65:$G$125,5,-2),ROUND('EL_Calcs #3'!AF27*'Express Lanes'!$C$12,-2))) ->  | AG26: =MAX(ROUND(AG25*VLOOKUP(AG$7,'Assumptions Tab'!$C$65:$G$125,5,-2),ROUND('EL_Calcs #3'!AG27*'Express Lanes'!$C$12,-2))) ->  | AH26: =MAX(ROUND(AH25*VLOOKUP(AH$7,'Assumptions Tab'!$C$65:$G$125,5,-2),ROUND('EL_Calcs #3'!AH27*'Express Lanes'!$C$12,-2))) ->  | AI26: =MAX(ROUND(AI25*VLOOKUP(AI$7,'Assumptions Tab'!$C$65:$G$125,5,-2),ROUND('EL_Calcs #3'!AI27*'Express Lanes'!$C$12,-2))) ->  | AJ26: =MAX(ROUND(AJ25*VLOOKUP(AJ$7,'Assumptions Tab'!$C$65:$G$125,5,-2),ROUND('EL_Calcs #3'!AJ27*'Express Lanes'!$C$12,-2))) ->  | AK26: =MAX(ROUND(AK25*VLOOKUP(AK$7,'Assumptions Tab'!$C$65:$G$125,5,-2),ROUND('EL_Calcs #3'!AK27*'Express Lanes'!$C$12,-2))) ->  | AL26: =MAX(ROUND(AL25*VLOOKUP(AL$7,'Assumptions Tab'!$C$65:$G$125,5,-2),ROUND('EL_Calcs #3'!AL27*'Express Lanes'!$C$12,-2))) ->  | AM26: =MAX(ROUND(AM25*VLOOKUP(AM$7,'Assumptions Tab'!$C$65:$G$125,5,-2),ROUND('EL_Calcs #3'!AM27*'Express Lanes'!$C$12,-2))) ->  | AN26: =MAX(ROUND(AN25*VLOOKUP(AN$7,'Assumptions Tab'!$C$65:$G$125,5,-2),ROUND('EL_Calcs #3'!AN27*'Express Lanes'!$C$12,-2))) ->  | AO26: =MAX(ROUND(AO25*VLOOKUP(AO$7,'Assumptions Tab'!$C$65:$G$125,5,-2),ROUND('EL_Calcs #3'!AO27*'Express Lanes'!$C$12,-2))) ->  | AP26: =MAX(ROUND(AP25*VLOOKUP(AP$7,'Assumptions Tab'!$C$65:$G$125,5,-2),ROUND('EL_Calcs #3'!AP27*'Express Lanes'!$C$12,-2))) -> 
A27: 21 | B27: GP %Capacity | C27: =C24/(C13*'Assumptions Tab'!$D$157) ->  | D27: =D24/(D13*'Assumptions Tab'!$D$157) ->  | E27: =E24/(E13*'Assumptions Tab'!$D$157) ->  | F27: =F24/(F13*'Assumptions Tab'!$D$157) ->  | G27: =G24/(G13*'Assumptions Tab'!$D$157) ->  | H27: =H24/(H13*'Assumptions Tab'!$D$157) ->  | I27: =I24/(I13*'Assumptions Tab'!$D$157) ->  | J27: =J24/(J13*'Assumptions Tab'!$D$157) ->  | K27: =K24/(K13*'Assumptions Tab'!$D$157) ->  | L27: =L24/(L13*'Assumptions Tab'!$D$157) ->  | M27: =M24/(M13*'Assumptions Tab'!$D$157) ->  | N27: =N24/(N13*'Assumptions Tab'!$D$157) ->  | O27: =O24/(O13*'Assumptions Tab'!$D$157) ->  | P27: =P24/(P13*'Assumptions Tab'!$D$157) ->  | Q27: =Q24/(Q13*'Assumptions Tab'!$D$157) ->  | R27: =R24/(R13*'Assumptions Tab'!$D$157) ->  | S27: =S24/(S13*'Assumptions Tab'!$D$157) ->  | T27: =T24/(T13*'Assumptions Tab'!$D$157) ->  | U27: =U24/(U13*'Assumptions Tab'!$D$157) ->  | V27: =V24/(V13*'Assumptions Tab'!$D$157) ->  | W27: =W24/(W13*'Assumptions Tab'!$D$157) ->  | X27: =X24/(X13*'Assumptions Tab'!$D$157) ->  | Y27: =Y24/(Y13*'Assumptions Tab'!$D$157) ->  | Z27: =Z24/(Z13*'Assumptions Tab'!$D$157) ->  | AA27: =AA24/(AA13*'Assumptions Tab'!$D$157) ->  | AB27: =AB24/(AB13*'Assumptions Tab'!$D$157) ->  | AC27: =AC24/(AC13*'Assumptions Tab'!$D$157) ->  | AD27: =AD24/(AD13*'Assumptions Tab'!$D$157) ->  | AE27: =AE24/(AE13*'Assumptions Tab'!$D$157) ->  | AF27: =AF24/(AF13*'Assumptions Tab'!$D$157) ->  | AG27: =AG24/(AG13*'Assumptions Tab'!$D$157) ->  | AH27: =AH24/(AH13*'Assumptions Tab'!$D$157) ->  | AI27: =AI24/(AI13*'Assumptions Tab'!$D$157) ->  | AJ27: =AJ24/(AJ13*'Assumptions Tab'!$D$157) ->  | AK27: =AK24/(AK13*'Assumptions Tab'!$D$157) ->  | AL27: =AL24/(AL13*'Assumptions Tab'!$D$157) ->  | AM27: =AM24/(AM13*'Assumptions Tab'!$D$157) ->  | AN27: =AN24/(AN13*'Assumptions Tab'!$D$157) ->  | AO27: =AO24/(AO13*'Assumptions Tab'!$D$157) ->  | AP27: =AP24/(AP13*'Assumptions Tab'!$D$157) -> 
A28: 22 | B28: EL %Capacity | C28: =C26/(C11*'Assumptions Tab'!$D$154) ->  | D28: =D26/(D11*'Assumptions Tab'!$D$154) ->  | E28: =E26/(E11*'Assumptions Tab'!$D$154) ->  | F28: =F26/(F11*'Assumptions Tab'!$D$154) ->  | G28: =G26/(G11*'Assumptions Tab'!$D$154) ->  | H28: =H26/(H11*'Assumptions Tab'!$D$154) ->  | I28: =I26/(I11*'Assumptions Tab'!$D$154) ->  | J28: =J26/(J11*'Assumptions Tab'!$D$154) ->  | K28: =K26/(K11*'Assumptions Tab'!$D$154) ->  | L28: =L26/(L11*'Assumptions Tab'!$D$154) ->  | M28: =M26/(M11*'Assumptions Tab'!$D$154) ->  | N28: =N26/(N11*'Assumptions Tab'!$D$154) ->  | O28: =O26/(O11*'Assumptions Tab'!$D$154) ->  | P28: =P26/(P11*'Assumptions Tab'!$D$154) ->  | Q28: =Q26/(Q11*'Assumptions Tab'!$D$154) ->  | R28: =R26/(R11*'Assumptions Tab'!$D$154) ->  | S28: =S26/(S11*'Assumptions Tab'!$D$154) ->  | T28: =T26/(T11*'Assumptions Tab'!$D$154) ->  | U28: =U26/(U11*'Assumptions Tab'!$D$154) ->  | V28: =V26/(V11*'Assumptions Tab'!$D$154) ->  | W28: =W26/(W11*'Assumptions Tab'!$D$154) ->  | X28: =X26/(X11*'Assumptions Tab'!$D$154) ->  | Y28: =Y26/(Y11*'Assumptions Tab'!$D$154) ->  | Z28: =Z26/(Z11*'Assumptions Tab'!$D$154) ->  | AA28: =AA26/(AA11*'Assumptions Tab'!$D$154) ->  | AB28: =AB26/(AB11*'Assumptions Tab'!$D$154) ->  | AC28: =AC26/(AC11*'Assumptions Tab'!$D$154) ->  | AD28: =AD26/(AD11*'Assumptions Tab'!$D$154) ->  | AE28: =AE26/(AE11*'Assumptions Tab'!$D$154) ->  | AF28: =AF26/(AF11*'Assumptions Tab'!$D$154) ->  | AG28: =AG26/(AG11*'Assumptions Tab'!$D$154) ->  | AH28: =AH26/(AH11*'Assumptions Tab'!$D$154) ->  | AI28: =AI26/(AI11*'Assumptions Tab'!$D$154) ->  | AJ28: =AJ26/(AJ11*'Assumptions Tab'!$D$154) ->  | AK28: =AK26/(AK11*'Assumptions Tab'!$D$154) ->  | AL28: =AL26/(AL11*'Assumptions Tab'!$D$154) ->  | AM28: =AM26/(AM11*'Assumptions Tab'!$D$154) ->  | AN28: =AN26/(AN11*'Assumptions Tab'!$D$154) ->  | AO28: =AO26/(AO11*'Assumptions Tab'!$D$154) ->  | AP28: =AP26/(AP11*'Assumptions Tab'!$D$154) -> 
A29: 23 | B29: EL Share of Total | C29: =C26/SUM(C24,C26) ->  | D29: =D26/SUM(D24,D26) -> 
A30: 24 | B30: EL VMT (per day) | C30: =ROUND(C26*'Express Lanes'!$C$10,-2) ->  | D30: =ROUND(D26*'Express Lanes'!$C$10,-2) ->  | E30: =ROUND(E26*'Express Lanes'!$C$10,-2) ->  | F30: =ROUND(F26*'Express Lanes'!$C$10,-2) ->  | G30: =ROUND(G26*'Express Lanes'!$C$10,-2) ->  | H30: =ROUND(H26*'Express Lanes'!$C$10,-2) ->  | I30: =ROUND(I26*'Express Lanes'!$C$10,-2) ->  | J30: =ROUND(J26*'Express Lanes'!$C$10,-2) ->  | K30: =ROUND(K26*'Express Lanes'!$C$10,-2) ->  | L30: =ROUND(L26*'Express Lanes'!$C$10,-2) ->  | M30: =ROUND(M26*'Express Lanes'!$C$10,-2) ->  | N30: =ROUND(N26*'Express Lanes'!$C$10,-2) ->  | O30: =ROUND(O26*'Express Lanes'!$C$10,-2) ->  | P30: =ROUND(P26*'Express Lanes'!$C$10,-2) ->  | Q30: =ROUND(Q26*'Express Lanes'!$C$10,-2) ->  | R30: =ROUND(R26*'Express Lanes'!$C$10,-2) ->  | S30: =ROUND(S26*'Express Lanes'!$C$10,-2) ->  | T30: =ROUND(T26*'Express Lanes'!$C$10,-2) ->  | U30: =ROUND(U26*'Express Lanes'!$C$10,-2) ->  | V30: =ROUND(V26*'Express Lanes'!$C$10,-2) ->  | W30: =ROUND(W26*'Express Lanes'!$C$10,-2) ->  | X30: =ROUND(X26*'Express Lanes'!$C$10,-2) ->  | Y30: =ROUND(Y26*'Express Lanes'!$C$10,-2) ->  | Z30: =ROUND(Z26*'Express Lanes'!$C$10,-2) ->  | AA30: =ROUND(AA26*'Express Lanes'!$C$10,-2) ->  | AB30: =ROUND(AB26*'Express Lanes'!$C$10,-2) ->  | AC30: =ROUND(AC26*'Express Lanes'!$C$10,-2) ->  | AD30: =ROUND(AD26*'Express Lanes'!$C$10,-2) ->  | AE30: =ROUND(AE26*'Express Lanes'!$C$10,-2) ->  | AF30: =ROUND(AF26*'Express Lanes'!$C$10,-2) ->  | AG30: =ROUND(AG26*'Express Lanes'!$C$10,-2) ->  | AH30: =ROUND(AH26*'Express Lanes'!$C$10,-2) ->  | AI30: =ROUND(AI26*'Express Lanes'!$C$10,-2) ->  | AJ30: =ROUND(AJ26*'Express Lanes'!$C$10,-2) ->  | AK30: =ROUND(AK26*'Express Lanes'!$C$10,-2) ->  | AL30: =ROUND(AL26*'Express Lanes'!$C$10,-2) ->  | AM30: =ROUND(AM26*'Express Lanes'!$C$10,-2) ->  | AN30: =ROUND(AN26*'Express Lanes'!$C$10,-2) ->  | AO30: =ROUND(AO26*'Express Lanes'!$C$10,-2) ->  | AP30: =ROUND(AP26*'Express Lanes'!$C$10,-2) -> 
A31: 25 | B31: EL Annual VMT | C31: =C30*Annualization_Factor -> 
A32: 26 | B32: Effectively Tolled EL Annual VMT (includes violators) | C32: =ROUND(C31*(1-'Express Lanes'!$I$14),-2) ->  | D32: =ROUND(D31*(1-'Express Lanes'!$I$14),-2) ->  | E32: =ROUND(E31*(1-'Express Lanes'!$I$14),-2) ->  | F32: =ROUND(F31*(1-'Express Lanes'!$I$14),-2) ->  | G32: =ROUND(G31*(1-'Express Lanes'!$I$14),-2) ->  | H32: =ROUND(H31*(1-'Express Lanes'!$I$14),-2) ->  | I32: =ROUND(I31*(1-'Express Lanes'!$I$14),-2) ->  | J32: =ROUND(J31*(1-'Express Lanes'!$I$14),-2) ->  | K32: =ROUND(K31*(1-'Express Lanes'!$I$14),-2) ->  | L32: =ROUND(L31*(1-'Express Lanes'!$I$14),-2) ->  | M32: =ROUND(M31*(1-'Express Lanes'!$I$14),-2) ->  | N32: =ROUND(N31*(1-'Express Lanes'!$I$14),-2) ->  | O32: =ROUND(O31*(1-'Express Lanes'!$I$14),-2) ->  | P32: =ROUND(P31*(1-'Express Lanes'!$I$14),-2) ->  | Q32: =ROUND(Q31*(1-'Express Lanes'!$I$14),-2) ->  | R32: =ROUND(R31*(1-'Express Lanes'!$I$14),-2) ->  | S32: =ROUND(S31*(1-'Express Lanes'!$I$14),-2) ->  | T32: =ROUND(T31*(1-'Express Lanes'!$I$14),-2) ->  | U32: =ROUND(U31*(1-'Express Lanes'!$I$14),-2) ->  | V32: =ROUND(V31*(1-'Express Lanes'!$I$14),-2) ->  | W32: =ROUND(W31*(1-'Express Lanes'!$I$14),-2) ->  | X32: =ROUND(X31*(1-'Express Lanes'!$I$14),-2) ->  | Y32: =ROUND(Y31*(1-'Express Lanes'!$I$14),-2) ->  | Z32: =ROUND(Z31*(1-'Express Lanes'!$I$14),-2) ->  | AA32: =ROUND(AA31*(1-'Express Lanes'!$I$14),-2) ->  | AB32: =ROUND(AB31*(1-'Express Lanes'!$I$14),-2) ->  | AC32: =ROUND(AC31*(1-'Express Lanes'!$I$14),-2) ->  | AD32: =ROUND(AD31*(1-'Express Lanes'!$I$14),-2) ->  | AE32: =ROUND(AE31*(1-'Express Lanes'!$I$14),-2) ->  | AF32: =ROUND(AF31*(1-'Express Lanes'!$I$14),-2) ->  | AG32: =ROUND(AG31*(1-'Express Lanes'!$I$14),-2) ->  | AH32: =ROUND(AH31*(1-'Express Lanes'!$I$14),-2) ->  | AI32: =ROUND(AI31*(1-'Express Lanes'!$I$14),-2) ->  | AJ32: =ROUND(AJ31*(1-'Express Lanes'!$I$14),-2) ->  | AK32: =ROUND(AK31*(1-'Express Lanes'!$I$14),-2) ->  | AL32: =ROUND(AL31*(1-'Express Lanes'!$I$14),-2) ->  | AM32: =ROUND(AM31*(1-'Express Lanes'!$I$14),-2) ->  | AN32: =ROUND(AN31*(1-'Express Lanes'!$I$14),-2) ->  | AO32: =ROUND(AO31*(1-'Express Lanes'!$I$14),-2) ->  | AP32: =ROUND(AP31*(1-'Express Lanes'!$I$14),-2) -> 
A33: 27 | B33: Paid Percent | C33: =1-VLOOKUP(C7,'Assumptions Tab'!$C$64:$F$125,4,FALSE)*(1-'Assumptions Tab'!$E$58) -> 0.92 | D33: =1-VLOOKUP(D7,'Assumptions Tab'!$C$64:$F$125,4,FALSE)*(1-'Assumptions Tab'!$E$58) -> 0.924 | E33: =1-VLOOKUP(E7,'Assumptions Tab'!$C$64:$F$125,4,FALSE)*(1-'Assumptions Tab'!$E$58) -> 0.928 | F33: =1-VLOOKUP(F7,'Assumptions Tab'!$C$64:$F$125,4,FALSE)*(1-'Assumptions Tab'!$E$58) -> 0.932 | G33: =1-VLOOKUP(G7,'Assumptions Tab'!$C$64:$F$125,4,FALSE)*(1-'Assumptions Tab'!$E$58) -> 0.936 | H33: =1-VLOOKUP(H7,'Assumptions Tab'!$C$64:$F$125,4,FALSE)*(1-'Assumptions Tab'!$E$58) -> 0.94 | I33: =1-VLOOKUP(I7,'Assumptions Tab'!$C$64:$F$125,4,FALSE)*(1-'Assumptions Tab'!$E$58) -> 0.944 | J33: =1-VLOOKUP(J7,'Assumptions Tab'!$C$64:$F$125,4,FALSE)*(1-'Assumptions Tab'!$E$58) -> 0.948 | K33: =1-VLOOKUP(K7,'Assumptions Tab'!$C$64:$F$125,4,FALSE)*(1-'Assumptions Tab'!$E$58) -> 0.952 | L33: =1-VLOOKUP(L7,'Assumptions Tab'!$C$64:$F$125,4,FALSE)*(1-'Assumptions Tab'!$E$58) -> 0.956 | M33: =1-VLOOKUP(M7,'Assumptions Tab'!$C$64:$F$125,4,FALSE)*(1-'Assumptions Tab'!$E$58) -> 0.96 | N33: =1-VLOOKUP(N7,'Assumptions Tab'!$C$64:$F$125,4,FALSE)*(1-'Assumptions Tab'!$E$58) -> 0.96 | O33: =1-VLOOKUP(O7,'Assumptions Tab'!$C$64:$F$125,4,FALSE)*(1-'Assumptions Tab'!$E$58) -> 0.96 | P33: =1-VLOOKUP(P7,'Assumptions Tab'!$C$64:$F$125,4,FALSE)*(1-'Assumptions Tab'!$E$58) -> 0.96 | Q33: =1-VLOOKUP(Q7,'Assumptions Tab'!$C$64:$F$125,4,FALSE)*(1-'Assumptions Tab'!$E$58) -> 0.96 | R33: =1-VLOOKUP(R7,'Assumptions Tab'!$C$64:$F$125,4,FALSE)*(1-'Assumptions Tab'!$E$58) -> 0.96 | S33: =1-VLOOKUP(S7,'Assumptions Tab'!$C$64:$F$125,4,FALSE)*(1-'Assumptions Tab'!$E$58) -> 0.96 | T33: =1-VLOOKUP(T7,'Assumptions Tab'!$C$64:$F$125,4,FALSE)*(1-'Assumptions Tab'!$E$58) -> 0.96 | U33: =1-VLOOKUP(U7,'Assumptions Tab'!$C$64:$F$125,4,FALSE)*(1-'Assumptions Tab'!$E$58) -> 0.96 | V33: =1-VLOOKUP(V7,'Assumptions Tab'!$C$64:$F$125,4,FALSE)*(1-'Assumptions Tab'!$E$58) -> 0.96 | W33: =1-VLOOKUP(W7,'Assumptions Tab'!$C$64:$F$125,4,FALSE)*(1-'Assumptions Tab'!$E$58) -> 0.96 | X33: =1-VLOOKUP(X7,'Assumptions Tab'!$C$64:$F$125,4,FALSE)*(1-'Assumptions Tab'!$E$58) -> 0.96 | Y33: =1-VLOOKUP(Y7,'Assumptions Tab'!$C$64:$F$125,4,FALSE)*(1-'Assumptions Tab'!$E$58) -> 0.96 | Z33: =1-VLOOKUP(Z7,'Assumptions Tab'!$C$64:$F$125,4,FALSE)*(1-'Assumptions Tab'!$E$58) -> 0.96 | AA33: =1-VLOOKUP(AA7,'Assumptions Tab'!$C$64:$F$125,4,FALSE)*(1-'Assumptions Tab'!$E$58) -> 0.96 | AB33: =1-VLOOKUP(AB7,'Assumptions Tab'!$C$64:$F$125,4,FALSE)*(1-'Assumptions Tab'!$E$58) -> 0.96 | AC33: =1-VLOOKUP(AC7,'Assumptions Tab'!$C$64:$F$125,4,FALSE)*(1-'Assumptions Tab'!$E$58) -> 0.96 | AD33: =1-VLOOKUP(AD7,'Assumptions Tab'!$C$64:$F$125,4,FALSE)*(1-'Assumptions Tab'!$E$58) -> 0.96 | AE33: =1-VLOOKUP(AE7,'Assumptions Tab'!$C$64:$F$125,4,FALSE)*(1-'Assumptions Tab'!$E$58) -> 0.96 | AF33: =1-VLOOKUP(AF7,'Assumptions Tab'!$C$64:$F$125,4,FALSE)*(1-'Assumptions Tab'!$E$58) -> 0.96 | AG33: =1-VLOOKUP(AG7,'Assumptions Tab'!$C$64:$F$125,4,FALSE)*(1-'Assumptions Tab'!$E$58) -> 0.96 | AH33: =1-VLOOKUP(AH7,'Assumptions Tab'!$C$64:$F$125,4,FALSE)*(1-'Assumptions Tab'!$E$58) -> 0.96 | AI33: =1-VLOOKUP(AI7,'Assumptions Tab'!$C$64:$F$125,4,FALSE)*(1-'Assumptions Tab'!$E$58) -> 0.96 | AJ33: =1-VLOOKUP(AJ7,'Assumptions Tab'!$C$64:$F$125,4,FALSE)*(1-'Assumptions Tab'!$E$58) -> 0.96 | AK33: =1-VLOOKUP(AK7,'Assumptions Tab'!$C$64:$F$125,4,FALSE)*(1-'Assumptions Tab'!$E$58) -> 0.96 | AL33: =1-VLOOKUP(AL7,'Assumptions Tab'!$C$64:$F$125,4,FALSE)*(1-'Assumptions Tab'!$E$58) -> 0.96 | AM33: =1-VLOOKUP(AM7,'Assumptions Tab'!$C$64:$F$125,4,FALSE)*(1-'Assumptions Tab'!$E$58) -> 0.96 | AN33: =1-VLOOKUP(AN7,'Assumptions Tab'!$C$64:$F$125,4,FALSE)*(1-'Assumptions Tab'!$E$58) -> 0.96 | AO33: =1-VLOOKUP(AO7,'Assumptions Tab'!$C$64:$F$125,4,FALSE)*(1-'Assumptions Tab'!$E$58) -> 0.96 | AP33: =1-VLOOKUP(AP7,'Assumptions Tab'!$C$64:$F$125,4,FALSE)*(1-'Assumptions Tab'!$E$58) -> 0.96
A34: 28 | B34: Paid EL Annual VMT | C34: =C33*C32 -> 
A35: 29
A36: 30 | B36: VMT for ETC Toll Rate | C36: =('EL_CostCalcs_WKST#4'!C14+'EL_CostCalcs_WKST#4'!C18)*'EL_CostCalcs_WKST#4'!C6 ->  | D36: =('EL_CostCalcs_WKST#4'!D14+'EL_CostCalcs_WKST#4'!D18)*'EL_CostCalcs_WKST#4'!D6 ->  | E36: =('EL_CostCalcs_WKST#4'!E14+'EL_CostCalcs_WKST#4'!E18)*'EL_CostCalcs_WKST#4'!E6 ->  | F36: =('EL_CostCalcs_WKST#4'!F14+'EL_CostCalcs_WKST#4'!F18)*'EL_CostCalcs_WKST#4'!F6 ->  | G36: =('EL_CostCalcs_WKST#4'!G14+'EL_CostCalcs_WKST#4'!G18)*'EL_CostCalcs_WKST#4'!G6 ->  | H36: =('EL_CostCalcs_WKST#4'!H14+'EL_CostCalcs_WKST#4'!H18)*'EL_CostCalcs_WKST#4'!H6 ->  | I36: =('EL_CostCalcs_WKST#4'!I14+'EL_CostCalcs_WKST#4'!I18)*'EL_CostCalcs_WKST#4'!I6 ->  | J36: =('EL_CostCalcs_WKST#4'!J14+'EL_CostCalcs_WKST#4'!J18)*'EL_CostCalcs_WKST#4'!J6 ->  | K36: =('EL_CostCalcs_WKST#4'!K14+'EL_CostCalcs_WKST#4'!K18)*'EL_CostCalcs_WKST#4'!K6 ->  | L36: =('EL_CostCalcs_WKST#4'!L14+'EL_CostCalcs_WKST#4'!L18)*'EL_CostCalcs_WKST#4'!L6 ->  | M36: =('EL_CostCalcs_WKST#4'!M14+'EL_CostCalcs_WKST#4'!M18)*'EL_CostCalcs_WKST#4'!M6 ->  | N36: =('EL_CostCalcs_WKST#4'!N14+'EL_CostCalcs_WKST#4'!N18)*'EL_CostCalcs_WKST#4'!N6 ->  | O36: =('EL_CostCalcs_WKST#4'!O14+'EL_CostCalcs_WKST#4'!O18)*'EL_CostCalcs_WKST#4'!O6 ->  | P36: =('EL_CostCalcs_WKST#4'!P14+'EL_CostCalcs_WKST#4'!P18)*'EL_CostCalcs_WKST#4'!P6 ->  | Q36: =('EL_CostCalcs_WKST#4'!Q14+'EL_CostCalcs_WKST#4'!Q18)*'EL_CostCalcs_WKST#4'!Q6 ->  | R36: =('EL_CostCalcs_WKST#4'!R14+'EL_CostCalcs_WKST#4'!R18)*'EL_CostCalcs_WKST#4'!R6 ->  | S36: =('EL_CostCalcs_WKST#4'!S14+'EL_CostCalcs_WKST#4'!S18)*'EL_CostCalcs_WKST#4'!S6 ->  | T36: =('EL_CostCalcs_WKST#4'!T14+'EL_CostCalcs_WKST#4'!T18)*'EL_CostCalcs_WKST#4'!T6 ->  | U36: =('EL_CostCalcs_WKST#4'!U14+'EL_CostCalcs_WKST#4'!U18)*'EL_CostCalcs_WKST#4'!U6 ->  | V36: =('EL_CostCalcs_WKST#4'!V14+'EL_CostCalcs_WKST#4'!V18)*'EL_CostCalcs_WKST#4'!V6 ->  | W36: =('EL_CostCalcs_WKST#4'!W14+'EL_CostCalcs_WKST#4'!W18)*'EL_CostCalcs_WKST#4'!W6 ->  | X36: =('EL_CostCalcs_WKST#4'!X14+'EL_CostCalcs_WKST#4'!X18)*'EL_CostCalcs_WKST#4'!X6 ->  | Y36: =('EL_CostCalcs_WKST#4'!Y14+'EL_CostCalcs_WKST#4'!Y18)*'EL_CostCalcs_WKST#4'!Y6 ->  | Z36: =('EL_CostCalcs_WKST#4'!Z14+'EL_CostCalcs_WKST#4'!Z18)*'EL_CostCalcs_WKST#4'!Z6 ->  | AA36: =('EL_CostCalcs_WKST#4'!AA14+'EL_CostCalcs_WKST#4'!AA18)*'EL_CostCalcs_WKST#4'!AA6 ->  | AB36: =('EL_CostCalcs_WKST#4'!AB14+'EL_CostCalcs_WKST#4'!AB18)*'EL_CostCalcs_WKST#4'!AB6 ->  | AC36: =('EL_CostCalcs_WKST#4'!AC14+'EL_CostCalcs_WKST#4'!AC18)*'EL_CostCalcs_WKST#4'!AC6 ->  | AD36: =('EL_CostCalcs_WKST#4'!AD14+'EL_CostCalcs_WKST#4'!AD18)*'EL_CostCalcs_WKST#4'!AD6 ->  | AE36: =('EL_CostCalcs_WKST#4'!AE14+'EL_CostCalcs_WKST#4'!AE18)*'EL_CostCalcs_WKST#4'!AE6 ->  | AF36: =('EL_CostCalcs_WKST#4'!AF14+'EL_CostCalcs_WKST#4'!AF18)*'EL_CostCalcs_WKST#4'!AF6 ->  | AG36: =('EL_CostCalcs_WKST#4'!AG14+'EL_CostCalcs_WKST#4'!AG18)*'EL_CostCalcs_WKST#4'!AG6 ->  | AH36: =('EL_CostCalcs_WKST#4'!AH14+'EL_CostCalcs_WKST#4'!AH18)*'EL_CostCalcs_WKST#4'!AH6 ->  | AI36: =('EL_CostCalcs_WKST#4'!AI14+'EL_CostCalcs_WKST#4'!AI18)*'EL_CostCalcs_WKST#4'!AI6 ->  | AJ36: =('EL_CostCalcs_WKST#4'!AJ14+'EL_CostCalcs_WKST#4'!AJ18)*'EL_CostCalcs_WKST#4'!AJ6 ->  | AK36: =('EL_CostCalcs_WKST#4'!AK14+'EL_CostCalcs_WKST#4'!AK18)*'EL_CostCalcs_WKST#4'!AK6 ->  | AL36: =('EL_CostCalcs_WKST#4'!AL14+'EL_CostCalcs_WKST#4'!AL18)*'EL_CostCalcs_WKST#4'!AL6 ->  | AM36: =('EL_CostCalcs_WKST#4'!AM14+'EL_CostCalcs_WKST#4'!AM18)*'EL_CostCalcs_WKST#4'!AM6 ->  | AN36: =('EL_CostCalcs_WKST#4'!AN14+'EL_CostCalcs_WKST#4'!AN18)*'EL_CostCalcs_WKST#4'!AN6 ->  | AO36: =('EL_CostCalcs_WKST#4'!AO14+'EL_CostCalcs_WKST#4'!AO18)*'EL_CostCalcs_WKST#4'!AO6 ->  | AP36: =('EL_CostCalcs_WKST#4'!AP14+'EL_CostCalcs_WKST#4'!AP18)*'EL_CostCalcs_WKST#4'!AP6 -> 
A37: 31 | B37: VMT for BBM Toll Rate | C37: ='EL_CostCalcs_WKST#4'!C22*'EL_CostCalcs_WKST#4'!C6 ->  | D37: ='EL_CostCalcs_WKST#4'!D22*'EL_CostCalcs_WKST#4'!D6 ->  | E37: ='EL_CostCalcs_WKST#4'!E22*'EL_CostCalcs_WKST#4'!E6 ->  | F37: ='EL_CostCalcs_WKST#4'!F22*'EL_CostCalcs_WKST#4'!F6 ->  | G37: ='EL_CostCalcs_WKST#4'!G22*'EL_CostCalcs_WKST#4'!G6 ->  | H37: ='EL_CostCalcs_WKST#4'!H22*'EL_CostCalcs_WKST#4'!H6 ->  | I37: ='EL_CostCalcs_WKST#4'!I22*'EL_CostCalcs_WKST#4'!I6 ->  | J37: ='EL_CostCalcs_WKST#4'!J22*'EL_CostCalcs_WKST#4'!J6 ->  | K37: ='EL_CostCalcs_WKST#4'!K22*'EL_CostCalcs_WKST#4'!K6 ->  | L37: ='EL_CostCalcs_WKST#4'!L22*'EL_CostCalcs_WKST#4'!L6 ->  | M37: ='EL_CostCalcs_WKST#4'!M22*'EL_CostCalcs_WKST#4'!M6 ->  | N37: ='EL_CostCalcs_WKST#4'!N22*'EL_CostCalcs_WKST#4'!N6 ->  | O37: ='EL_CostCalcs_WKST#4'!O22*'EL_CostCalcs_WKST#4'!O6 ->  | P37: ='EL_CostCalcs_WKST#4'!P22*'EL_CostCalcs_WKST#4'!P6 ->  | Q37: ='EL_CostCalcs_WKST#4'!Q22*'EL_CostCalcs_WKST#4'!Q6 ->  | R37: ='EL_CostCalcs_WKST#4'!R22*'EL_CostCalcs_WKST#4'!R6 ->  | S37: ='EL_CostCalcs_WKST#4'!S22*'EL_CostCalcs_WKST#4'!S6 ->  | T37: ='EL_CostCalcs_WKST#4'!T22*'EL_CostCalcs_WKST#4'!T6 ->  | U37: ='EL_CostCalcs_WKST#4'!U22*'EL_CostCalcs_WKST#4'!U6 ->  | V37: ='EL_CostCalcs_WKST#4'!V22*'EL_CostCalcs_WKST#4'!V6 ->  | W37: ='EL_CostCalcs_WKST#4'!W22*'EL_CostCalcs_WKST#4'!W6 ->  | X37: ='EL_CostCalcs_WKST#4'!X22*'EL_CostCalcs_WKST#4'!X6 ->  | Y37: ='EL_CostCalcs_WKST#4'!Y22*'EL_CostCalcs_WKST#4'!Y6 ->  | Z37: ='EL_CostCalcs_WKST#4'!Z22*'EL_CostCalcs_WKST#4'!Z6 ->  | AA37: ='EL_CostCalcs_WKST#4'!AA22*'EL_CostCalcs_WKST#4'!AA6 ->  | AB37: ='EL_CostCalcs_WKST#4'!AB22*'EL_CostCalcs_WKST#4'!AB6 ->  | AC37: ='EL_CostCalcs_WKST#4'!AC22*'EL_CostCalcs_WKST#4'!AC6 ->  | AD37: ='EL_CostCalcs_WKST#4'!AD22*'EL_CostCalcs_WKST#4'!AD6 ->  | AE37: ='EL_CostCalcs_WKST#4'!AE22*'EL_CostCalcs_WKST#4'!AE6 ->  | AF37: ='EL_CostCalcs_WKST#4'!AF22*'EL_CostCalcs_WKST#4'!AF6 ->  | AG37: ='EL_CostCalcs_WKST#4'!AG22*'EL_CostCalcs_WKST#4'!AG6 ->  | AH37: ='EL_CostCalcs_WKST#4'!AH22*'EL_CostCalcs_WKST#4'!AH6 ->  | AI37: ='EL_CostCalcs_WKST#4'!AI22*'EL_CostCalcs_WKST#4'!AI6 ->  | AJ37: ='EL_CostCalcs_WKST#4'!AJ22*'EL_CostCalcs_WKST#4'!AJ6 ->  | AK37: ='EL_CostCalcs_WKST#4'!AK22*'EL_CostCalcs_WKST#4'!AK6 ->  | AL37: ='EL_CostCalcs_WKST#4'!AL22*'EL_CostCalcs_WKST#4'!AL6 ->  | AM37: ='EL_CostCalcs_WKST#4'!AM22*'EL_CostCalcs_WKST#4'!AM6 ->  | AN37: ='EL_CostCalcs_WKST#4'!AN22*'EL_CostCalcs_WKST#4'!AN6 ->  | AO37: ='EL_CostCalcs_WKST#4'!AO22*'EL_CostCalcs_WKST#4'!AO6 ->  | AP37: ='EL_CostCalcs_WKST#4'!AP22*'EL_CostCalcs_WKST#4'!AP6 -> 
A38: 32
A39: 33 | B39: Base Per-Mile Fare | C39: =VLOOKUP(C28,'EL_Calcs #1'!$H$10:$J$62,2,TRUE)*(1+'Express Lanes'!$C$30)^(C7-'Express Lanes'!$I$8) ->  | D39: =VLOOKUP(D28,'EL_Calcs #1'!$H$10:$J$62,2,TRUE)*(1+'Express Lanes'!$C$30)^(D7-'Express Lanes'!$I$8) ->  | E39: =VLOOKUP(E28,'EL_Calcs #1'!$H$10:$J$62,2,TRUE)*(1+'Express Lanes'!$C$30)^(E7-'Express Lanes'!$I$8) ->  | F39: =VLOOKUP(F28,'EL_Calcs #1'!$H$10:$J$62,2,TRUE)*(1+'Express Lanes'!$C$30)^(F7-'Express Lanes'!$I$8) ->  | G39: =VLOOKUP(G28,'EL_Calcs #1'!$H$10:$J$62,2,TRUE)*(1+'Express Lanes'!$C$30)^(G7-'Express Lanes'!$I$8) ->  | H39: =VLOOKUP(H28,'EL_Calcs #1'!$H$10:$J$62,2,TRUE)*(1+'Express Lanes'!$C$30)^(H7-'Express Lanes'!$I$8) ->  | I39: =VLOOKUP(I28,'EL_Calcs #1'!$H$10:$J$62,2,TRUE)*(1+'Express Lanes'!$C$30)^(I7-'Express Lanes'!$I$8) ->  | J39: =VLOOKUP(J28,'EL_Calcs #1'!$H$10:$J$62,2,TRUE)*(1+'Express Lanes'!$C$30)^(J7-'Express Lanes'!$I$8) ->  | K39: =VLOOKUP(K28,'EL_Calcs #1'!$H$10:$J$62,2,TRUE)*(1+'Express Lanes'!$C$30)^(K7-'Express Lanes'!$I$8) ->  | L39: =VLOOKUP(L28,'EL_Calcs #1'!$H$10:$J$62,2,TRUE)*(1+'Express Lanes'!$C$30)^(L7-'Express Lanes'!$I$8) ->  | M39: =VLOOKUP(M28,'EL_Calcs #1'!$H$10:$J$62,2,TRUE)*(1+'Express Lanes'!$C$30)^(M7-'Express Lanes'!$I$8) ->  | N39: =VLOOKUP(N28,'EL_Calcs #1'!$H$10:$J$62,2,TRUE)*(1+'Express Lanes'!$C$30)^(N7-'Express Lanes'!$I$8) ->  | O39: =VLOOKUP(O28,'EL_Calcs #1'!$H$10:$J$62,2,TRUE)*(1+'Express Lanes'!$C$30)^(O7-'Express Lanes'!$I$8) ->  | P39: =VLOOKUP(P28,'EL_Calcs #1'!$H$10:$J$62,2,TRUE)*(1+'Express Lanes'!$C$30)^(P7-'Express Lanes'!$I$8) ->  | Q39: =VLOOKUP(Q28,'EL_Calcs #1'!$H$10:$J$62,2,TRUE)*(1+'Express Lanes'!$C$30)^(Q7-'Express Lanes'!$I$8) ->  | R39: =VLOOKUP(R28,'EL_Calcs #1'!$H$10:$J$62,2,TRUE)*(1+'Express Lanes'!$C$30)^(R7-'Express Lanes'!$I$8) ->  | S39: =VLOOKUP(S28,'EL_Calcs #1'!$H$10:$J$62,2,TRUE)*(1+'Express Lanes'!$C$30)^(S7-'Express Lanes'!$I$8) ->  | T39: =VLOOKUP(T28,'EL_Calcs #1'!$H$10:$J$62,2,TRUE)*(1+'Express Lanes'!$C$30)^(T7-'Express Lanes'!$I$8) ->  | U39: =VLOOKUP(U28,'EL_Calcs #1'!$H$10:$J$62,2,TRUE)*(1+'Express Lanes'!$C$30)^(U7-'Express Lanes'!$I$8) ->  | V39: =VLOOKUP(V28,'EL_Calcs #1'!$H$10:$J$62,2,TRUE)*(1+'Express Lanes'!$C$30)^(V7-'Express Lanes'!$I$8) ->  | W39: =VLOOKUP(W28,'EL_Calcs #1'!$H$10:$J$62,2,TRUE)*(1+'Express Lanes'!$C$30)^(W7-'Express Lanes'!$I$8) ->  | X39: =VLOOKUP(X28,'EL_Calcs #1'!$H$10:$J$62,2,TRUE)*(1+'Express Lanes'!$C$30)^(X7-'Express Lanes'!$I$8) ->  | Y39: =VLOOKUP(Y28,'EL_Calcs #1'!$H$10:$J$62,2,TRUE)*(1+'Express Lanes'!$C$30)^(Y7-'Express Lanes'!$I$8) ->  | Z39: =VLOOKUP(Z28,'EL_Calcs #1'!$H$10:$J$62,2,TRUE)*(1+'Express Lanes'!$C$30)^(Z7-'Express Lanes'!$I$8) ->  | AA39: =VLOOKUP(AA28,'EL_Calcs #1'!$H$10:$J$62,2,TRUE)*(1+'Express Lanes'!$C$30)^(AA7-'Express Lanes'!$I$8) ->  | AB39: =VLOOKUP(AB28,'EL_Calcs #1'!$H$10:$J$62,2,TRUE)*(1+'Express Lanes'!$C$30)^(AB7-'Express Lanes'!$I$8) ->  | AC39: =VLOOKUP(AC28,'EL_Calcs #1'!$H$10:$J$62,2,TRUE)*(1+'Express Lanes'!$C$30)^(AC7-'Express Lanes'!$I$8) ->  | AD39: =VLOOKUP(AD28,'EL_Calcs #1'!$H$10:$J$62,2,TRUE)*(1+'Express Lanes'!$C$30)^(AD7-'Express Lanes'!$I$8) ->  | AE39: =VLOOKUP(AE28,'EL_Calcs #1'!$H$10:$J$62,2,TRUE)*(1+'Express Lanes'!$C$30)^(AE7-'Express Lanes'!$I$8) ->  | AF39: =VLOOKUP(AF28,'EL_Calcs #1'!$H$10:$J$62,2,TRUE)*(1+'Express Lanes'!$C$30)^(AF7-'Express Lanes'!$I$8) ->  | AG39: =VLOOKUP(AG28,'EL_Calcs #1'!$H$10:$J$62,2,TRUE)*(1+'Express Lanes'!$C$30)^(AG7-'Express Lanes'!$I$8) ->  | AH39: =VLOOKUP(AH28,'EL_Calcs #1'!$H$10:$J$62,2,TRUE)*(1+'Express Lanes'!$C$30)^(AH7-'Express Lanes'!$I$8) ->  | AI39: =VLOOKUP(AI28,'EL_Calcs #1'!$H$10:$J$62,2,TRUE)*(1+'Express Lanes'!$C$30)^(AI7-'Express Lanes'!$I$8) ->  | AJ39: =VLOOKUP(AJ28,'EL_Calcs #1'!$H$10:$J$62,2,TRUE)*(1+'Express Lanes'!$C$30)^(AJ7-'Express Lanes'!$I$8) ->  | AK39: =VLOOKUP(AK28,'EL_Calcs #1'!$H$10:$J$62,2,TRUE)*(1+'Express Lanes'!$C$30)^(AK7-'Express Lanes'!$I$8) ->  | AL39: =VLOOKUP(AL28,'EL_Calcs #1'!$H$10:$J$62,2,TRUE)*(1+'Express Lanes'!$C$30)^(AL7-'Express Lanes'!$I$8) ->  | AM39: =VLOOKUP(AM28,'EL_Calcs #1'!$H$10:$J$62,2,TRUE)*(1+'Express Lanes'!$C$30)^(AM7-'Express Lanes'!$I$8) ->  | AN39: =VLOOKUP(AN28,'EL_Calcs #1'!$H$10:$J$62,2,TRUE)*(1+'Express Lanes'!$C$30)^(AN7-'Express Lanes'!$I$8) ->  | AO39: =VLOOKUP(AO28,'EL_Calcs #1'!$H$10:$J$62,2,TRUE)*(1+'Express Lanes'!$C$30)^(AO7-'Express Lanes'!$I$8) ->  | AP39: =VLOOKUP(AP28,'EL_Calcs #1'!$H$10:$J$62,2,TRUE)*(1+'Express Lanes'!$C$30)^(AP7-'Express Lanes'!$I$8) -> 
A40: 34 | B40: GP %Capacity in excess of 95% | C40: =MAX(C27-0.95,0) ->  | D40: =MAX(D27-0.95,0) -> 
A41: 35 | B41: Increase due to capacity constraint in GP lanes | C41: =IF(C28<1,C40*'Assumptions Tab'!$D$133,C40) ->  | D41: =IF(D28<1,D40*'Assumptions Tab'!$D$133,D40) ->  | E41: =IF(E28<1,E40*'Assumptions Tab'!$D$133,E40) ->  | F41: =IF(F28<1,F40*'Assumptions Tab'!$D$133,F40) ->  | G41: =IF(G28<1,G40*'Assumptions Tab'!$D$133,G40) ->  | H41: =IF(H28<1,H40*'Assumptions Tab'!$D$133,H40) ->  | I41: =IF(I28<1,I40*'Assumptions Tab'!$D$133,I40) ->  | J41: =IF(J28<1,J40*'Assumptions Tab'!$D$133,J40) ->  | K41: =IF(K28<1,K40*'Assumptions Tab'!$D$133,K40) ->  | L41: =IF(L28<1,L40*'Assumptions Tab'!$D$133,L40) ->  | M41: =IF(M28<1,M40*'Assumptions Tab'!$D$133,M40) ->  | N41: =IF(N28<1,N40*'Assumptions Tab'!$D$133,N40) ->  | O41: =IF(O28<1,O40*'Assumptions Tab'!$D$133,O40) ->  | P41: =IF(P28<1,P40*'Assumptions Tab'!$D$133,P40) ->  | Q41: =IF(Q28<1,Q40*'Assumptions Tab'!$D$133,Q40) ->  | R41: =IF(R28<1,R40*'Assumptions Tab'!$D$133,R40) ->  | S41: =IF(S28<1,S40*'Assumptions Tab'!$D$133,S40) ->  | T41: =IF(T28<1,T40*'Assumptions Tab'!$D$133,T40) ->  | U41: =IF(U28<1,U40*'Assumptions Tab'!$D$133,U40) ->  | V41: =IF(V28<1,V40*'Assumptions Tab'!$D$133,V40) ->  | W41: =IF(W28<1,W40*'Assumptions Tab'!$D$133,W40) ->  | X41: =IF(X28<1,X40*'Assumptions Tab'!$D$133,X40) ->  | Y41: =IF(Y28<1,Y40*'Assumptions Tab'!$D$133,Y40) ->  | Z41: =IF(Z28<1,Z40*'Assumptions Tab'!$D$133,Z40) ->  | AA41: =IF(AA28<1,AA40*'Assumptions Tab'!$D$133,AA40) ->  | AB41: =IF(AB28<1,AB40*'Assumptions Tab'!$D$133,AB40) ->  | AC41: =IF(AC28<1,AC40*'Assumptions Tab'!$D$133,AC40) ->  | AD41: =IF(AD28<1,AD40*'Assumptions Tab'!$D$133,AD40) ->  | AE41: =IF(AE28<1,AE40*'Assumptions Tab'!$D$133,AE40) ->  | AF41: =IF(AF28<1,AF40*'Assumptions Tab'!$D$133,AF40) ->  | AG41: =IF(AG28<1,AG40*'Assumptions Tab'!$D$133,AG40) ->  | AH41: =IF(AH28<1,AH40*'Assumptions Tab'!$D$133,AH40) ->  | AI41: =IF(AI28<1,AI40*'Assumptions Tab'!$D$133,AI40) ->  | AJ41: =IF(AJ28<1,AJ40*'Assumptions Tab'!$D$133,AJ40) ->  | AK41: =IF(AK28<1,AK40*'Assumptions Tab'!$D$133,AK40) ->  | AL41: =IF(AL28<1,AL40*'Assumptions Tab'!$D$133,AL40) ->  | AM41: =IF(AM28<1,AM40*'Assumptions Tab'!$D$133,AM40) ->  | AN41: =IF(AN28<1,AN40*'Assumptions Tab'!$D$133,AN40) ->  | AO41: =IF(AO28<1,AO40*'Assumptions Tab'!$D$133,AO40) ->  | AP41: =IF(AP28<1,AP40*'Assumptions Tab'!$D$133,AP40) -> 
A42: 36 | B42: Revised Per-Mile Fare | C42: =C$39*(1+C$41) ->  | D42: =D$39*(1+D$41) -> 
A43: 37
A44: 38 | B44: ETC, per-mile fare | C44: =C42 ->  | D44: =D42 -> 
A45: 39 | B45: BBM, per-mile fare | C45: =C44+'Assumptions Tab'!$E$18 ->  | D45: =D44+'Assumptions Tab'!$E$18 ->  | E45: =E44+'Assumptions Tab'!$E$18 ->  | F45: =F44+'Assumptions Tab'!$E$18 ->  | G45: =G44+'Assumptions Tab'!$E$18 ->  | H45: =H44+'Assumptions Tab'!$E$18 ->  | I45: =I44+'Assumptions Tab'!$E$18 ->  | J45: =J44+'Assumptions Tab'!$E$18 ->  | K45: =K44+'Assumptions Tab'!$E$18 ->  | L45: =L44+'Assumptions Tab'!$E$18 ->  | M45: =M44+'Assumptions Tab'!$E$18 ->  | N45: =N44+'Assumptions Tab'!$E$18 ->  | O45: =O44+'Assumptions Tab'!$E$18 ->  | P45: =P44+'Assumptions Tab'!$E$18 ->  | Q45: =Q44+'Assumptions Tab'!$E$18 ->  | R45: =R44+'Assumptions Tab'!$E$18 ->  | S45: =S44+'Assumptions Tab'!$E$18 ->  | T45: =T44+'Assumptions Tab'!$E$18 ->  | U45: =U44+'Assumptions Tab'!$E$18 ->  | V45: =V44+'Assumptions Tab'!$E$18 ->  | W45: =W44+'Assumptions Tab'!$E$18 ->  | X45: =X44+'Assumptions Tab'!$E$18 ->  | Y45: =Y44+'Assumptions Tab'!$E$18 ->  | Z45: =Z44+'Assumptions Tab'!$E$18 ->  | AA45: =AA44+'Assumptions Tab'!$E$18 ->  | AB45: =AB44+'Assumptions Tab'!$E$18 ->  | AC45: =AC44+'Assumptions Tab'!$E$18 ->  | AD45: =AD44+'Assumptions Tab'!$E$18 ->  | AE45: =AE44+'Assumptions Tab'!$E$18 ->  | AF45: =AF44+'Assumptions Tab'!$E$18 ->  | AG45: =AG44+'Assumptions Tab'!$E$18 ->  | AH45: =AH44+'Assumptions Tab'!$E$18 ->  | AI45: =AI44+'Assumptions Tab'!$E$18 ->  | AJ45: =AJ44+'Assumptions Tab'!$E$18 ->  | AK45: =AK44+'Assumptions Tab'!$E$18 ->  | AL45: =AL44+'Assumptions Tab'!$E$18 ->  | AM45: =AM44+'Assumptions Tab'!$E$18 ->  | AN45: =AN44+'Assumptions Tab'!$E$18 ->  | AO45: =AO44+'Assumptions Tab'!$E$18 ->  | AP45: =AP44+'Assumptions Tab'!$E$18 -> 
A46: 40
A47: 41 | B47: Est. Annual Rev. ($) | C47: =ROUND(C36*C44+C37*C45,-3) ->  | D47: =ROUND(D36*D44+D37*D45,-3) -> 
A48: 42 | B48: Est. Annual Costs ($) | C48: =-'EL_CostCalcs_WKST#4'!C34 ->  | D48: =-'EL_CostCalcs_WKST#4'!D34 ->  | E48: =-'EL_CostCalcs_WKST#4'!E34 ->  | F48: =-'EL_CostCalcs_WKST#4'!F34 ->  | G48: =-'EL_CostCalcs_WKST#4'!G34 ->  | H48: =-'EL_CostCalcs_WKST#4'!H34 ->  | I48: =-'EL_CostCalcs_WKST#4'!I34 ->  | J48: =-'EL_CostCalcs_WKST#4'!J34 ->  | K48: =-'EL_CostCalcs_WKST#4'!K34 ->  | L48: =-'EL_CostCalcs_WKST#4'!L34 ->  | M48: =-'EL_CostCalcs_WKST#4'!M34 ->  | N48: =-'EL_CostCalcs_WKST#4'!N34 ->  | O48: =-'EL_CostCalcs_WKST#4'!O34 ->  | P48: =-'EL_CostCalcs_WKST#4'!P34 ->  | Q48: =-'EL_CostCalcs_WKST#4'!Q34 ->  | R48: =-'EL_CostCalcs_WKST#4'!R34 ->  | S48: =-'EL_CostCalcs_WKST#4'!S34 ->  | T48: =-'EL_CostCalcs_WKST#4'!T34 ->  | U48: =-'EL_CostCalcs_WKST#4'!U34 ->  | V48: =-'EL_CostCalcs_WKST#4'!V34 ->  | W48: =-'EL_CostCalcs_WKST#4'!W34 ->  | X48: =-'EL_CostCalcs_WKST#4'!X34 ->  | Y48: =-'EL_CostCalcs_WKST#4'!Y34 ->  | Z48: =-'EL_CostCalcs_WKST#4'!Z34 ->  | AA48: =-'EL_CostCalcs_WKST#4'!AA34 ->  | AB48: =-'EL_CostCalcs_WKST#4'!AB34 ->  | AC48: =-'EL_CostCalcs_WKST#4'!AC34 ->  | AD48: =-'EL_CostCalcs_WKST#4'!AD34 ->  | AE48: =-'EL_CostCalcs_WKST#4'!AE34 ->  | AF48: =-'EL_CostCalcs_WKST#4'!AF34 ->  | AG48: =-'EL_CostCalcs_WKST#4'!AG34 ->  | AH48: =-'EL_CostCalcs_WKST#4'!AH34 ->  | AI48: =-'EL_CostCalcs_WKST#4'!AI34 ->  | AJ48: =-'EL_CostCalcs_WKST#4'!AJ34 ->  | AK48: =-'EL_CostCalcs_WKST#4'!AK34 ->  | AL48: =-'EL_CostCalcs_WKST#4'!AL34 ->  | AM48: =-'EL_CostCalcs_WKST#4'!AM34 ->  | AN48: =-'EL_CostCalcs_WKST#4'!AN34 ->  | AO48: =-'EL_CostCalcs_WKST#4'!AO34 ->  | AP48: =-'EL_CostCalcs_WKST#4'!AP34 -> 
A49: 43 | B49: Est. Net Operating Revenue | C49: =SUM(C47:C48) ->  | D49: =SUM(D47:D48) -> 
A50: 44
A51: 45 | B51: Operating Margin | C51: =C49/C47 ->  | D51: =D49/D47 -> 
B53: Per Mile Fare | C53: =C47/C34 ->  | D53: =D47/D34 -> 
B109: 2028-2034 | C109: =LOGEST(C60:C66,$B60:$B66,,)-1 ->  | E109: =LOGEST(E60:E66,$B60:$B66,,)-1 -> 
B110: 2035-2044 | C110: =LOGEST(C67:C76,$B67:$B76,,)-1 ->  | E110: =LOGEST(E67:E76,$B67:$B76,,)-1 -> 
B111: 2045-2054 | C111: =LOGEST(C77:C86,$B77:$B86,,)-1 ->  | E111: =LOGEST(E77:E86,$B77:$B86,,)-1 -> 
B112: 2055-2064 | C112: =LOGEST(C87:C96,$B87:$B96,,)-1 ->  | E112: =LOGEST(E87:E96,$B87:$B96,,)-1 -> 
B113: 2065-2074 | C113: =LOGEST(C97:C106,$B97:$B106,,)-1 ->  | E113: =LOGEST(E97:E106,$B97:$B106,,)-1 -> 

Sheet EL_Calcs #3 (hidden)
B2: Operational Analysis
C3: 2023 | D3: =C3+1 -> 2024 | E3: 2025 | F3: 2026 | G3: 2027 | H3: 2028 | I3: 2029 | J3: 2030 | K3: 2031 | L3: 2032 | M3: 2033 | N3: 2034 | O3: 2035 | P3: 2036 | Q3: 2037 | R3: 2038 | S3: 2039 | T3: 2040 | U3: 2041 | V3: 2042 | W3: 2043 | X3: 2044 | Y3: 2045 | Z3: 2046 | AA3: 2047 | AB3: 2048 | AC3: 2049 | AD3: 2050 | AE3: 2051 | AF3: 2052 | AG3: 2053 | AH3: 2054 | AI3: 2055 | AJ3: 2056 | AK3: 2057 | AL3: 2058 | AM3: 2059 | AN3: 2060 | AO3: 2061 | AP3: 2062
B4: Pk Hr Volume (2-way) | C4: =ROUND('EL_Calcs #2'!C8*VLOOKUP('Express Lanes'!$I$15,'Assumptions Tab'!$C$190:$E$192,3,FALSE),-1) -> 0 | D4: =ROUND($C$4*(1+'Express Lanes'!$I$12)^(D3-$C$3),-1) ->  | E4: =ROUND($C$4*(1+'Express Lanes'!$I$12)^(E3-$C$3),-1) ->  | F4: =ROUND($C$4*(1+'Express Lanes'!$I$12)^(F3-$C$3),-1) ->  | G4: =ROUND($C$4*(1+'Express Lanes'!$I$12)^(G3-$C$3),-1) ->  | H4: =ROUND($C$4*(1+'Express Lanes'!$I$12)^(H3-$C$3),-1) ->  | I4: =ROUND($C$4*(1+'Express Lanes'!$I$12)^(I3-$C$3),-1) ->  | J4: =ROUND($C$4*(1+'Express Lanes'!$I$12)^(J3-$C$3),-1) ->  | K4: =ROUND($C$4*(1+'Express Lanes'!$I$12)^(K3-$C$3),-1) ->  | L4: =ROUND($C$4*(1+'Express Lanes'!$I$12)^(L3-$C$3),-1) ->  | M4: =ROUND($C$4*(1+'Express Lanes'!$I$12)^(M3-$C$3),-1) ->  | N4: =ROUND($C$4*(1+'Express Lanes'!$I$12)^(N3-$C$3),-1) ->  | O4: =ROUND($C$4*(1+'Express Lanes'!$I$12)^(O3-$C$3),-1) ->  | P4: =ROUND($C$4*(1+'Express Lanes'!$I$12)^(P3-$C$3),-1) ->  | Q4: =ROUND($C$4*(1+'Express Lanes'!$I$12)^(Q3-$C$3),-1) ->  | R4: =ROUND($C$4*(1+'Express Lanes'!$I$12)^(R3-$C$3),-1) ->  | S4: =ROUND($C$4*(1+'Express Lanes'!$I$12)^(S3-$C$3),-1) ->  | T4: =ROUND($C$4*(1+'Express Lanes'!$I$12)^(T3-$C$3),-1) ->  | U4: =ROUND($C$4*(1+'Express Lanes'!$I$12)^(U3-$C$3),-1) ->  | V4: =ROUND($C$4*(1+'Express Lanes'!$I$12)^(V3-$C$3),-1) ->  | W4: =ROUND($C$4*(1+'Express Lanes'!$I$12)^(W3-$C$3),-1) ->  | X4: =ROUND($C$4*(1+'Express Lanes'!$I$12)^(X3-$C$3),-1) ->  | Y4: =ROUND($C$4*(1+'Express Lanes'!$I$12)^(Y3-$C$3),-1) ->  | Z4: =ROUND($C$4*(1+'Express Lanes'!$I$12)^(Z3-$C$3),-1) ->  | AA4: =ROUND($C$4*(1+'Express Lanes'!$I$12)^(AA3-$C$3),-1) ->  | AB4: =ROUND($C$4*(1+'Express Lanes'!$I$12)^(AB3-$C$3),-1) ->  | AC4: =ROUND($C$4*(1+'Express Lanes'!$I$12)^(AC3-$C$3),-1) ->  | AD4: =ROUND($C$4*(1+'Express Lanes'!$I$12)^(AD3-$C$3),-1) ->  | AE4: =ROUND($C$4*(1+'Express Lanes'!$I$12)^(AE3-$C$3),-1) ->  | AF4: =ROUND($C$4*(1+'Express Lanes'!$I$12)^(AF3-$C$3),-1) ->  | AG4: =ROUND($C$4*(1+'Express Lanes'!$I$12)^(AG3-$C$3),-1) ->  | AH4: =ROUND($C$4*(1+'Express Lanes'!$I$12)^(AH3-$C$3),-1) ->  | AI4: =ROUND($C$4*(1+'Express Lanes'!$I$12)^(AI3-$C$3),-1) ->  | AJ4: =ROUND($C$4*(1+'Express Lanes'!$I$12)^(AJ3-$C$3),-1) ->  | AK4: =ROUND($C$4*(1+'Express Lanes'!$I$12)^(AK3-$C$3),-1) ->  | AL4: =ROUND($C$4*(1+'Express Lanes'!$I$12)^(AL3-$C$3),-1) ->  | AM4: =ROUND($C$4*(1+'Express Lanes'!$I$12)^(AM3-$C$3),-1) ->  | AN4: =ROUND($C$4*(1+'Express Lanes'!$I$12)^(AN3-$C$3),-1) ->  | AO4: =ROUND($C$4*(1+'Express Lanes'!$I$12)^(AO3-$C$3),-1) ->  | AP4: =ROUND($C$4*(1+'Express Lanes'!$I$12)^(AP3-$C$3),-1) -> 
B5: Directional Split | C5: =VLOOKUP('Express Lanes'!$I$15,'Assumptions Tab'!$C$190:$G$192,5,FALSE) -> 0.54 | D5: =VLOOKUP('Express Lanes'!$I$15,'Assumptions Tab'!$C$190:$G$192,5,FALSE) -> 0.54 | E5: =VLOOKUP('Express Lanes'!$I$15,'Assumptions Tab'!$C$190:$G$192,5,FALSE) -> 0.54 | F5: =VLOOKUP('Express Lanes'!$I$15,'Assumptions Tab'!$C$190:$G$192,5,FALSE) -> 0.54 | G5: =VLOOKUP('Express Lanes'!$I$15,'Assumptions Tab'!$C$190:$G$192,5,FALSE) -> 0.54 | H5: =VLOOKUP('Express Lanes'!$I$15,'Assumptions Tab'!$C$190:$G$192,5,FALSE) -> 0.54 | I5: =VLOOKUP('Express Lanes'!$I$15,'Assumptions Tab'!$C$190:$G$192,5,FALSE) -> 0.54 | J5: =VLOOKUP('Express Lanes'!$I$15,'Assumptions Tab'!$C$190:$G$192,5,FALSE) -> 0.54 | K5: =VLOOKUP('Express Lanes'!$I$15,'Assumptions Tab'!$C$190:$G$192,5,FALSE) -> 0.54 | L5: =VLOOKUP('Express Lanes'!$I$15,'Assumptions Tab'!$C$190:$G$192,5,FALSE) -> 0.54 | M5: =VLOOKUP('Express Lanes'!$I$15,'Assumptions Tab'!$C$190:$G$192,5,FALSE) -> 0.54 | N5: =VLOOKUP('Express Lanes'!$I$15,'Assumptions Tab'!$C$190:$G$192,5,FALSE) -> 0.54 | O5: =VLOOKUP('Express Lanes'!$I$15,'Assumptions Tab'!$C$190:$G$192,5,FALSE) -> 0.54 | P5: =VLOOKUP('Express Lanes'!$I$15,'Assumptions Tab'!$C$190:$G$192,5,FALSE) -> 0.54 | Q5: =VLOOKUP('Express Lanes'!$I$15,'Assumptions Tab'!$C$190:$G$192,5,FALSE) -> 0.54 | R5: =VLOOKUP('Express Lanes'!$I$15,'Assumptions Tab'!$C$190:$G$192,5,FALSE) -> 0.54 | S5: =VLOOKUP('Express Lanes'!$I$15,'Assumptions Tab'!$C$190:$G$192,5,FALSE) -> 0.54 | T5: =VLOOKUP('Express Lanes'!$I$15,'Assumptions Tab'!$C$190:$G$192,5,FALSE) -> 0.54 | U5: =VLOOKUP('Express Lanes'!$I$15,'Assumptions Tab'!$C$190:$G$192,5,FALSE) -> 0.54 | V5: =VLOOKUP('Express Lanes'!$I$15,'Assumptions Tab'!$C$190:$G$192,5,FALSE) -> 0.54 | W5: =VLOOKUP('Express Lanes'!$I$15,'Assumptions Tab'!$C$190:$G$192,5,FALSE) -> 0.54 | X5: =VLOOKUP('Express Lanes'!$I$15,'Assumptions Tab'!$C$190:$G$192,5,FALSE) -> 0.54 | Y5: =VLOOKUP('Express Lanes'!$I$15,'Assumptions Tab'!$C$190:$G$192,5,FALSE) -> 0.54 | Z5: =VLOOKUP('Express Lanes'!$I$15,'Assumptions Tab'!$C$190:$G$192,5,FALSE) -> 0.54 | AA5: =VLOOKUP('Express Lanes'!$I$15,'Assumptions Tab'!$C$190:$G$192,5,FALSE) -> 0.54 | AB5: =VLOOKUP('Express Lanes'!$I$15,'Assumptions Tab'!$C$190:$G$192,5,FALSE) -> 0.54 | AC5: =VLOOKUP('Express Lanes'!$I$15,'Assumptions Tab'!$C$190:$G$192,5,FALSE) -> 0.54 | AD5: =VLOOKUP('Express Lanes'!$I$15,'Assumptions Tab'!$C$190:$G$192,5,FALSE) -> 0.54 | AE5: =VLOOKUP('Express Lanes'!$I$15,'Assumptions Tab'!$C$190:$G$192,5,FALSE) -> 0.54 | AF5: =VLOOKUP('Express Lanes'!$I$15,'Assumptions Tab'!$C$190:$G$192,5,FALSE) -> 0.54 | AG5: =VLOOKUP('Express Lanes'!$I$15,'Assumptions Tab'!$C$190:$G$192,5,FALSE) -> 0.54 | AH5: =VLOOKUP('Express Lanes'!$I$15,'Assumptions Tab'!$C$190:$G$192,5,FALSE) -> 0.54 | AI5: =VLOOKUP('Express Lanes'!$I$15,'Assumptions Tab'!$C$190:$G$192,5,FALSE) -> 0.54 | AJ5: =VLOOKUP('Express Lanes'!$I$15,'Assumptions Tab'!$C$190:$G$192,5,FALSE) -> 0.54 | AK5: =VLOOKUP('Express Lanes'!$I$15,'Assumptions Tab'!$C$190:$G$192,5,FALSE) -> 0.54 | AL5: =VLOOKUP('Express Lanes'!$I$15,'Assumptions Tab'!$C$190:$G$192,5,FALSE) -> 0.54 | AM5: =VLOOKUP('Express Lanes'!$I$15,'Assumptions Tab'!$C$190:$G$192,5,FALSE) -> 0.54 | AN5: =VLOOKUP('Express Lanes'!$I$15,'Assumptions Tab'!$C$190:$G$192,5,FALSE) -> 0.54 | AO5: =VLOOKUP('Express Lanes'!$I$15,'Assumptions Tab'!$C$190:$G$192,5,FALSE) -> 0.54 | AP5: =VLOOKUP('Express Lanes'!$I$15,'Assumptions Tab'!$C$190:$G$192,5,FALSE) -> 0.54
B6: Pk Hr Directional (1-way) | C6: =C4*C5 -> 0
B7: # of Lanes (1-way) | C7: ='EL_Calcs #2'!C13/2 -> 0 | D7: ='EL_Calcs #2'!D13/2 -> 0 | E7: ='EL_Calcs #2'!E13/2 -> 0 | F7: ='EL_Calcs #2'!F13/2 -> 0 | G7: ='EL_Calcs #2'!G13/2 -> 0 | H7: ='EL_Calcs #2'!H13/2 -> 0 | I7: ='EL_Calcs #2'!I13/2 -> 0 | J7: ='EL_Calcs #2'!J13/2 -> 0 | K7: ='EL_Calcs #2'!K13/2 -> 0 | L7: ='EL_Calcs #2'!L13/2 -> 0 | M7: ='EL_Calcs #2'!M13/2 -> 0 | N7: ='EL_Calcs #2'!N13/2 -> 0 | O7: ='EL_Calcs #2'!O13/2 -> 0 | P7: ='EL_Calcs #2'!P13/2 -> 0 | Q7: ='EL_Calcs #2'!Q13/2 -> 0 | R7: ='EL_Calcs #2'!R13/2 -> 0 | S7: ='EL_Calcs #2'!S13/2 -> 0 | T7: ='EL_Calcs #2'!T13/2 -> 0 | U7: ='EL_Calcs #2'!U13/2 -> 0 | V7: ='EL_Calcs #2'!V13/2 -> 0 | W7: ='EL_Calcs #2'!W13/2 -> 0 | X7: ='EL_Calcs #2'!X13/2 -> 0 | Y7: ='EL_Calcs #2'!Y13/2 -> 0 | Z7: ='EL_Calcs #2'!Z13/2 -> 0 | AA7: ='EL_Calcs #2'!AA13/2 -> 0 | AB7: ='EL_Calcs #2'!AB13/2 -> 0 | AC7: ='EL_Calcs #2'!AC13/2 -> 0 | AD7: ='EL_Calcs #2'!AD13/2 -> 0 | AE7: ='EL_Calcs #2'!AE13/2 -> 0 | AF7: ='EL_Calcs #2'!AF13/2 -> 0 | AG7: ='EL_Calcs #2'!AG13/2 -> 0 | AH7: ='EL_Calcs #2'!AH13/2 -> 0 | AI7: ='EL_Calcs #2'!AI13/2 -> 0 | AJ7: ='EL_Calcs #2'!AJ13/2 -> 0 | AK7: ='EL_Calcs #2'!AK13/2 -> 0 | AL7: ='EL_Calcs #2'!AL13/2 -> 0 | AM7: ='EL_Calcs #2'!AM13/2 -> 0 | AN7: ='EL_Calcs #2'!AN13/2 -> 0 | AO7: ='EL_Calcs #2'!AO13/2 -> 0 | AP7: ='EL_Calcs #2'!AP13/2 -> 0
B8: GP vphpl -- no managed lane | C8: =C6/C7 -> 
B9: GP Peak-Hour LOS -- no managed lane | C9: =VLOOKUP(C8,'Assumptions Tab'!$C$178:$E$184,2,TRUE) ->  | D9: =VLOOKUP(D8,'Assumptions Tab'!$C$178:$E$184,2,TRUE) ->  | E9: =VLOOKUP(E8,'Assumptions Tab'!$C$178:$E$184,2,TRUE) ->  | F9: =VLOOKUP(F8,'Assumptions Tab'!$C$178:$E$184,2,TRUE) ->  | G9: =VLOOKUP(G8,'Assumptions Tab'!$C$178:$E$184,2,TRUE) ->  | H9: =VLOOKUP(H8,'Assumptions Tab'!$C$178:$E$184,2,TRUE) ->  | I9: =VLOOKUP(I8,'Assumptions Tab'!$C$178:$E$184,2,TRUE) ->  | J9: =VLOOKUP(J8,'Assumptions Tab'!$C$178:$E$184,2,TRUE) ->  | K9: =VLOOKUP(K8,'Assumptions Tab'!$C$178:$E$184,2,TRUE) ->  | L9: =VLOOKUP(L8,'Assumptions Tab'!$C$178:$E$184,2,TRUE) ->  | M9: =VLOOKUP(M8,'Assumptions Tab'!$C$178:$E$184,2,TRUE) ->  | N9: =VLOOKUP(N8,'Assumptions Tab'!$C$178:$E$184,2,TRUE) ->  | O9: =VLOOKUP(O8,'Assumptions Tab'!$C$178:$E$184,2,TRUE) ->  | P9: =VLOOKUP(P8,'Assumptions Tab'!$C$178:$E$184,2,TRUE) ->  | Q9: =VLOOKUP(Q8,'Assumptions Tab'!$C$178:$E$184,2,TRUE) ->  | R9: =VLOOKUP(R8,'Assumptions Tab'!$C$178:$E$184,2,TRUE) ->  | S9: =VLOOKUP(S8,'Assumptions Tab'!$C$178:$E$184,2,TRUE) ->  | T9: =VLOOKUP(T8,'Assumptions Tab'!$C$178:$E$184,2,TRUE) ->  | U9: =VLOOKUP(U8,'Assumptions Tab'!$C$178:$E$184,2,TRUE) ->  | V9: =VLOOKUP(V8,'Assumptions Tab'!$C$178:$E$184,2,TRUE) ->  | W9: =VLOOKUP(W8,'Assumptions Tab'!$C$178:$E$184,2,TRUE) ->  | X9: =VLOOKUP(X8,'Assumptions Tab'!$C$178:$E$184,2,TRUE) ->  | Y9: =VLOOKUP(Y8,'Assumptions Tab'!$C$178:$E$184,2,TRUE) ->  | Z9: =VLOOKUP(Z8,'Assumptions Tab'!$C$178:$E$184,2,TRUE) ->  | AA9: =VLOOKUP(AA8,'Assumptions Tab'!$C$178:$E$184,2,TRUE) ->  | AB9: =VLOOKUP(AB8,'Assumptions Tab'!$C$178:$E$184,2,TRUE) ->  | AC9: =VLOOKUP(AC8,'Assumptions Tab'!$C$178:$E$184,2,TRUE) ->  | AD9: =VLOOKUP(AD8,'Assumptions Tab'!$C$178:$E$184,2,TRUE) ->  | AE9: =VLOOKUP(AE8,'Assumptions Tab'!$C$178:$E$184,2,TRUE) ->  | AF9: =VLOOKUP(AF8,'Assumptions Tab'!$C$178:$E$184,2,TRUE) ->  | AG9: =VLOOKUP(AG8,'Assumptions Tab'!$C$178:$E$184,2,TRUE) ->  | AH9: =VLOOKUP(AH8,'Assumptions Tab'!$C$178:$E$184,2,TRUE) ->  | AI9: =VLOOKUP(AI8,'Assumptions Tab'!$C$178:$E$184,2,TRUE) ->  | AJ9: =VLOOKUP(AJ8,'Assumptions Tab'!$C$178:$E$184,2,TRUE) ->  | AK9: =VLOOKUP(AK8,'Assumptions Tab'!$C$178:$E$184,2,TRUE) ->  | AL9: =VLOOKUP(AL8,'Assumptions Tab'!$C$178:$E$184,2,TRUE) ->  | AM9: =VLOOKUP(AM8,'Assumptions Tab'!$C$178:$E$184,2,TRUE) ->  | AN9: =VLOOKUP(AN8,'Assumptions Tab'!$C$178:$E$184,2,TRUE) ->  | AO9: =VLOOKUP(AO8,'Assumptions Tab'!$C$178:$E$184,2,TRUE) ->  | AP9: =VLOOKUP(AP8,'Assumptions Tab'!$C$178:$E$184,2,TRUE) -> 
B10: GP V/C Ratio -- no managed lane | C10: =ROUND(C8/'Assumptions Tab'!$D$135,2) ->  | D10: =ROUND(D8/'Assumptions Tab'!$D$135,2) ->  | E10: =ROUND(E8/'Assumptions Tab'!$D$135,2) ->  | F10: =ROUND(F8/'Assumptions Tab'!$D$135,2) ->  | G10: =ROUND(G8/'Assumptions Tab'!$D$135,2) ->  | H10: =ROUND(H8/'Assumptions Tab'!$D$135,2) ->  | I10: =ROUND(I8/'Assumptions Tab'!$D$135,2) ->  | J10: =ROUND(J8/'Assumptions Tab'!$D$135,2) ->  | K10: =ROUND(K8/'Assumptions Tab'!$D$135,2) ->  | L10: =ROUND(L8/'Assumptions Tab'!$D$135,2) ->  | M10: =ROUND(M8/'Assumptions Tab'!$D$135,2) ->  | N10: =ROUND(N8/'Assumptions Tab'!$D$135,2) ->  | O10: =ROUND(O8/'Assumptions Tab'!$D$135,2) ->  | P10: =ROUND(P8/'Assumptions Tab'!$D$135,2) ->  | Q10: =ROUND(Q8/'Assumptions Tab'!$D$135,2) ->  | R10: =ROUND(R8/'Assumptions Tab'!$D$135,2) ->  | S10: =ROUND(S8/'Assumptions Tab'!$D$135,2) ->  | T10: =ROUND(T8/'Assumptions Tab'!$D$135,2) ->  | U10: =ROUND(U8/'Assumptions Tab'!$D$135,2) ->  | V10: =ROUND(V8/'Assumptions Tab'!$D$135,2) ->  | W10: =ROUND(W8/'Assumptions Tab'!$D$135,2) ->  | X10: =ROUND(X8/'Assumptions Tab'!$D$135,2) ->  | Y10: =ROUND(Y8/'Assumptions Tab'!$D$135,2) ->  | Z10: =ROUND(Z8/'Assumptions Tab'!$D$135,2) ->  | AA10: =ROUND(AA8/'Assumptions Tab'!$D$135,2) ->  | AB10: =ROUND(AB8/'Assumptions Tab'!$D$135,2) ->  | AC10: =ROUND(AC8/'Assumptions Tab'!$D$135,2) ->  | AD10: =ROUND(AD8/'Assumptions Tab'!$D$135,2) ->  | AE10: =ROUND(AE8/'Assumptions Tab'!$D$135,2) ->  | AF10: =ROUND(AF8/'Assumptions Tab'!$D$135,2) ->  | AG10: =ROUND(AG8/'Assumptions Tab'!$D$135,2) ->  | AH10: =ROUND(AH8/'Assumptions Tab'!$D$135,2) ->  | AI10: =ROUND(AI8/'Assumptions Tab'!$D$135,2) ->  | AJ10: =ROUND(AJ8/'Assumptions Tab'!$D$135,2) ->  | AK10: =ROUND(AK8/'Assumptions Tab'!$D$135,2) ->  | AL10: =ROUND(AL8/'Assumptions Tab'!$D$135,2) ->  | AM10: =ROUND(AM8/'Assumptions Tab'!$D$135,2) ->  | AN10: =ROUND(AN8/'Assumptions Tab'!$D$135,2) ->  | AO10: =ROUND(AO8/'Assumptions Tab'!$D$135,2) ->  | AP10: =ROUND(AP8/'Assumptions Tab'!$D$135,2) -> 
B11: Reversible? | C11: No | D11: No | E11: No | F11: No | G11: No | H11: No | I11: No | J11: No | K11: No | L11: No | M11: No | N11: No | O11: No | P11: No | Q11: No | R11: No | S11: No | T11: No | U11: No | V11: No | W11: No | X11: No | Y11: No | Z11: No | AA11: No | AB11: No | AC11: No | AD11: No | AE11: No | AF11: No | AG11: No | AH11: No | AI11: No | AJ11: No | AK11: No | AL11: No | AM11: No | AN11: No | AO11: No | AP11: No
B12: EL Lanes | C12: ='EL_Calcs #2'!C11/2 -> 0 | D12: ='EL_Calcs #2'!D11/2 -> 0 | E12: ='EL_Calcs #2'!E11/2 -> 0 | F12: ='EL_Calcs #2'!F11/2 -> 0 | G12: ='EL_Calcs #2'!G11/2 -> 0 | H12: ='EL_Calcs #2'!H11/2 -> 0 | I12: ='EL_Calcs #2'!I11/2 -> 0 | J12: ='EL_Calcs #2'!J11/2 -> 0 | K12: ='EL_Calcs #2'!K11/2 -> 0 | L12: ='EL_Calcs #2'!L11/2 -> 0 | M12: ='EL_Calcs #2'!M11/2 -> 0 | N12: ='EL_Calcs #2'!N11/2 -> 0 | O12: ='EL_Calcs #2'!O11/2 -> 0 | P12: ='EL_Calcs #2'!P11/2 -> 0 | Q12: ='EL_Calcs #2'!Q11/2 -> 0 | R12: ='EL_Calcs #2'!R11/2 -> 0 | S12: ='EL_Calcs #2'!S11/2 -> 0 | T12: ='EL_Calcs #2'!T11/2 -> 0 | U12: ='EL_Calcs #2'!U11/2 -> 0 | V12: ='EL_Calcs #2'!V11/2 -> 0 | W12: ='EL_Calcs #2'!W11/2 -> 0 | X12: ='EL_Calcs #2'!X11/2 -> 0 | Y12: ='EL_Calcs #2'!Y11/2 -> 0 | Z12: ='EL_Calcs #2'!Z11/2 -> 0 | AA12: ='EL_Calcs #2'!AA11/2 -> 0 | AB12: ='EL_Calcs #2'!AB11/2 -> 0 | AC12: ='EL_Calcs #2'!AC11/2 -> 0 | AD12: ='EL_Calcs #2'!AD11/2 -> 0 | AE12: ='EL_Calcs #2'!AE11/2 -> 0 | AF12: ='EL_Calcs #2'!AF11/2 -> 0 | AG12: ='EL_Calcs #2'!AG11/2 -> 0 | AH12: ='EL_Calcs #2'!AH11/2 -> 0 | AI12: ='EL_Calcs #2'!AI11/2 -> 0 | AJ12: ='EL_Calcs #2'!AJ11/2 -> 0 | AK12: ='EL_Calcs #2'!AK11/2 -> 0 | AL12: ='EL_Calcs #2'!AL11/2 -> 0 | AM12: ='EL_Calcs #2'!AM11/2 -> 0 | AN12: ='EL_Calcs #2'!AN11/2 -> 0 | AO12: ='EL_Calcs #2'!AO11/2 -> 0 | AP12: ='EL_Calcs #2'!AP11/2 -> 0
B13: GP Lanes | C13: =C7 -> 0 | D13: =D7 -> 0 | E13: 0 | F13: 0 | G13: 0 | H13: 0 | I13: 0 | J13: 0 | K13: 0 | L13: 0 | M13: 0 | N13: 0 | O13: 0 | P13: 0 | Q13: 0 | R13: 0 | S13: 0 | T13: 0 | U13: 0 | V13: 0 | W13: 0 | X13: 0 | Y13: 0 | Z13: 0 | AA13: 0 | AB13: 0 | AC13: 0 | AD13: 0 | AE13: 0 | AF13: 0 | AG13: 0 | AH13: 0 | AI13: 0 | AJ13: 0 | AK13: 0 | AL13: 0 | AM13: 0 | AN13: 0 | AO13: 0 | AP13: 0
B14: EL% of Total Lanes | C14: =C12/SUM(C12:C13) ->  | M14: =M12/SUM(M12:M13) -> 
B15: EL% of Traffic | C15: =VLOOKUP(C10,'Assumptions Tab'!$C$165:$D$174,2,TRUE) ->  | D15: =VLOOKUP(D10,'Assumptions Tab'!$C$165:$D$174,2,TRUE) ->  | E15: =VLOOKUP(E10,'Assumptions Tab'!$C$165:$D$174,2,TRUE) ->  | F15: =VLOOKUP(F10,'Assumptions Tab'!$C$165:$D$174,2,TRUE) ->  | G15: =VLOOKUP(G10,'Assumptions Tab'!$C$165:$D$174,2,TRUE) ->  | H15: =VLOOKUP(H10,'Assumptions Tab'!$C$165:$D$174,2,TRUE) ->  | I15: =VLOOKUP(I10,'Assumptions Tab'!$C$165:$D$174,2,TRUE) ->  | J15: =VLOOKUP(J10,'Assumptions Tab'!$C$165:$D$174,2,TRUE) ->  | K15: =VLOOKUP(K10,'Assumptions Tab'!$C$165:$D$174,2,TRUE) ->  | L15: =VLOOKUP(L10,'Assumptions Tab'!$C$165:$D$174,2,TRUE) ->  | M15: =VLOOKUP(M10,'Assumptions Tab'!$C$165:$D$174,2,TRUE) ->  | N15: =VLOOKUP(N10,'Assumptions Tab'!$C$165:$D$174,2,TRUE) ->  | O15: =VLOOKUP(O10,'Assumptions Tab'!$C$165:$D$174,2,TRUE) ->  | P15: =VLOOKUP(P10,'Assumptions Tab'!$C$165:$D$174,2,TRUE) ->  | Q15: =VLOOKUP(Q10,'Assumptions Tab'!$C$165:$D$174,2,TRUE) ->  | R15: =VLOOKUP(R10,'Assumptions Tab'!$C$165:$D$174,2,TRUE) ->  | S15: =VLOOKUP(S10,'Assumptions Tab'!$C$165:$D$174,2,TRUE) ->  | T15: =VLOOKUP(T10,'Assumptions Tab'!$C$165:$D$174,2,TRUE) ->  | U15: =VLOOKUP(U10,'Assumptions Tab'!$C$165:$D$174,2,TRUE) ->  | V15: =VLOOKUP(V10,'Assumptions Tab'!$C$165:$D$174,2,TRUE) ->  | W15: =VLOOKUP(W10,'Assumptions Tab'!$C$165:$D$174,2,TRUE) ->  | X15: =VLOOKUP(X10,'Assumptions Tab'!$C$165:$D$174,2,TRUE) ->  | Y15: =VLOOKUP(Y10,'Assumptions Tab'!$C$165:$D$174,2,TRUE) ->  | Z15: =VLOOKUP(Z10,'Assumptions Tab'!$C$165:$D$174,2,TRUE) ->  | AA15: =VLOOKUP(AA10,'Assumptions Tab'!$C$165:$D$174,2,TRUE) ->  | AB15: =VLOOKUP(AB10,'Assumptions Tab'!$C$165:$D$174,2,TRUE) ->  | AC15: =VLOOKUP(AC10,'Assumptions Tab'!$C$165:$D$174,2,TRUE) ->  | AD15: =VLOOKUP(AD10,'Assumptions Tab'!$C$165:$D$174,2,TRUE) ->  | AE15: =VLOOKUP(AE10,'Assumptions Tab'!$C$165:$D$174,2,TRUE) ->  | AF15: =VLOOKUP(AF10,'Assumptions Tab'!$C$165:$D$174,2,TRUE) ->  | AG15: =VLOOKUP(AG10,'Assumptions Tab'!$C$165:$D$174,2,TRUE) ->  | AH15: =VLOOKUP(AH10,'Assumptions Tab'!$C$165:$D$174,2,TRUE) ->  | AI15: =VLOOKUP(AI10,'Assumptions Tab'!$C$165:$D$174,2,TRUE) ->  | AJ15: =VLOOKUP(AJ10,'Assumptions Tab'!$C$165:$D$174,2,TRUE) ->  | AK15: =VLOOKUP(AK10,'Assumptions Tab'!$C$165:$D$174,2,TRUE) ->  | AL15: =VLOOKUP(AL10,'Assumptions Tab'!$C$165:$D$174,2,TRUE) ->  | AM15: =VLOOKUP(AM10,'Assumptions Tab'!$C$165:$D$174,2,TRUE) ->  | AN15: =VLOOKUP(AN10,'Assumptions Tab'!$C$165:$D$174,2,TRUE) ->  | AO15: =VLOOKUP(AO10,'Assumptions Tab'!$C$165:$D$174,2,TRUE) ->  | AP15: =VLOOKUP(AP10,'Assumptions Tab'!$C$165:$D$174,2,TRUE) -> 
B16: EL AADT% (adj. for reversible) | C16: =C14*C15 -> 
B17: EL Base Volume | C17: =C6*C16 -> 
B18: GP Base Volume | C18: =C6-C17 -> 
B19: EL vphpl (base) | C19: =C17/C12 -> 
B20: EL vphpl (constrained) | C20: =MIN(C19,'Assumptions Tab'!$D$136) ->  | D20: =MIN(D19,'Assumptions Tab'!$D$136) ->  | E20: =MIN(E19,'Assumptions Tab'!$D$136) ->  | F20: =MIN(F19,'Assumptions Tab'!$D$136) ->  | G20: =MIN(G19,'Assumptions Tab'!$D$136) ->  | H20: =MIN(H19,'Assumptions Tab'!$D$136) ->  | I20: =MIN(I19,'Assumptions Tab'!$D$136) ->  | J20: =MIN(J19,'Assumptions Tab'!$D$136) ->  | K20: =MIN(K19,'Assumptions Tab'!$D$136) ->  | L20: =MIN(L19,'Assumptions Tab'!$D$136) ->  | M20: =MIN(M19,'Assumptions Tab'!$D$136) ->  | N20: =MIN(N19,'Assumptions Tab'!$D$136) ->  | O20: =MIN(O19,'Assumptions Tab'!$D$136) ->  | P20: =MIN(P19,'Assumptions Tab'!$D$136) ->  | Q20: =MIN(Q19,'Assumptions Tab'!$D$136) ->  | R20: =MIN(R19,'Assumptions Tab'!$D$136) ->  | S20: =MIN(S19,'Assumptions Tab'!$D$136) ->  | T20: =MIN(T19,'Assumptions Tab'!$D$136) ->  | U20: =MIN(U19,'Assumptions Tab'!$D$136) ->  | V20: =MIN(V19,'Assumptions Tab'!$D$136) ->  | W20: =MIN(W19,'Assumptions Tab'!$D$136) ->  | X20: =MIN(X19,'Assumptions Tab'!$D$136) ->  | Y20: =MIN(Y19,'Assumptions Tab'!$D$136) ->  | Z20: =MIN(Z19,'Assumptions Tab'!$D$136) ->  | AA20: =MIN(AA19,'Assumptions Tab'!$D$136) ->  | AB20: =MIN(AB19,'Assumptions Tab'!$D$136) ->  | AC20: =MIN(AC19,'Assumptions Tab'!$D$136) ->  | AD20: =MIN(AD19,'Assumptions Tab'!$D$136) ->  | AE20: =MIN(AE19,'Assumptions Tab'!$D$136) ->  | AF20: =MIN(AF19,'Assumptions Tab'!$D$136) ->  | AG20: =MIN(AG19,'Assumptions Tab'!$D$136) ->  | AH20: =MIN(AH19,'Assumptions Tab'!$D$136) ->  | AI20: =MIN(AI19,'Assumptions Tab'!$D$136) ->  | AJ20: =MIN(AJ19,'Assumptions Tab'!$D$136) ->  | AK20: =MIN(AK19,'Assumptions Tab'!$D$136) ->  | AL20: =MIN(AL19,'Assumptions Tab'!$D$136) ->  | AM20: =MIN(AM19,'Assumptions Tab'!$D$136) ->  | AN20: =MIN(AN19,'Assumptions Tab'!$D$136) ->  | AO20: =MIN(AO19,'Assumptions Tab'!$D$136) ->  | AP20: =MIN(AP19,'Assumptions Tab'!$D$136) -> 
B21: EL overage | C21: =C19-C20 -> 
B22: EL available capacity | C22: =('Assumptions Tab'!$D$136-C20)*C12 ->  | D22: =('Assumptions Tab'!$D$136-D20)*D12 ->  | E22: =('Assumptions Tab'!$D$136-E20)*E12 ->  | F22: =('Assumptions Tab'!$D$136-F20)*F12 ->  | G22: =('Assumptions Tab'!$D$136-G20)*G12 ->  | H22: =('Assumptions Tab'!$D$136-H20)*H12 ->  | I22: =('Assumptions Tab'!$D$136-I20)*I12 ->  | J22: =('Assumptions Tab'!$D$136-J20)*J12 ->  | K22: =('Assumptions Tab'!$D$136-K20)*K12 ->  | L22: =('Assumptions Tab'!$D$136-L20)*L12 ->  | M22: =('Assumptions Tab'!$D$136-M20)*M12 ->  | N22: =('Assumptions Tab'!$D$136-N20)*N12 ->  | O22: =('Assumptions Tab'!$D$136-O20)*O12 ->  | P22: =('Assumptions Tab'!$D$136-P20)*P12 ->  | Q22: =('Assumptions Tab'!$D$136-Q20)*Q12 ->  | R22: =('Assumptions Tab'!$D$136-R20)*R12 ->  | S22: =('Assumptions Tab'!$D$136-S20)*S12 ->  | T22: =('Assumptions Tab'!$D$136-T20)*T12 ->  | U22: =('Assumptions Tab'!$D$136-U20)*U12 ->  | V22: =('Assumptions Tab'!$D$136-V20)*V12 ->  | W22: =('Assumptions Tab'!$D$136-W20)*W12 ->  | X22: =('Assumptions Tab'!$D$136-X20)*X12 ->  | Y22: =('Assumptions Tab'!$D$136-Y20)*Y12 ->  | Z22: =('Assumptions Tab'!$D$136-Z20)*Z12 ->  | AA22: =('Assumptions Tab'!$D$136-AA20)*AA12 ->  | AB22: =('Assumptions Tab'!$D$136-AB20)*AB12 ->  | AC22: =('Assumptions Tab'!$D$136-AC20)*AC12 ->  | AD22: =('Assumptions Tab'!$D$136-AD20)*AD12 ->  | AE22: =('Assumptions Tab'!$D$136-AE20)*AE12 ->  | AF22: =('Assumptions Tab'!$D$136-AF20)*AF12 ->  | AG22: =('Assumptions Tab'!$D$136-AG20)*AG12 ->  | AH22: =('Assumptions Tab'!$D$136-AH20)*AH12 ->  | AI22: =('Assumptions Tab'!$D$136-AI20)*AI12 ->  | AJ22: =('Assumptions Tab'!$D$136-AJ20)*AJ12 ->  | AK22: =('Assumptions Tab'!$D$136-AK20)*AK12 ->  | AL22: =('Assumptions Tab'!$D$136-AL20)*AL12 ->  | AM22: =('Assumptions Tab'!$D$136-AM20)*AM12 ->  | AN22: =('Assumptions Tab'!$D$136-AN20)*AN12 ->  | AO22: =('Assumptions Tab'!$D$136-AO20)*AO12 ->  | AP22: =('Assumptions Tab'!$D$136-AP20)*AP12 -> 
B23: GP vphpl | C23: =C18/C13+C21 -> 
B24: GP desired pushback | C24: =(MAX(C23-'Assumptions Tab'!$D$135,0))*C13 ->  | D24: =(MAX(D23-'Assumptions Tab'!$D$135,0))*D13 ->  | E24: =(MAX(E23-'Assumptions Tab'!$D$135,0))*E13 ->  | F24: =(MAX(F23-'Assumptions Tab'!$D$135,0))*F13 ->  | G24: =(MAX(G23-'Assumptions Tab'!$D$135,0))*G13 ->  | H24: =(MAX(H23-'Assumptions Tab'!$D$135,0))*H13 ->  | I24: =(MAX(I23-'Assumptions Tab'!$D$135,0))*I13 ->  | J24: =(MAX(J23-'Assumptions Tab'!$D$135,0))*J13 ->  | K24: =(MAX(K23-'Assumptions Tab'!$D$135,0))*K13 ->  | L24: =(MAX(L23-'Assumptions Tab'!$D$135,0))*L13 ->  | M24: =(MAX(M23-'Assumptions Tab'!$D$135,0))*M13 ->  | N24: =(MAX(N23-'Assumptions Tab'!$D$135,0))*N13 ->  | O24: =(MAX(O23-'Assumptions Tab'!$D$135,0))*O13 ->  | P24: =(MAX(P23-'Assumptions Tab'!$D$135,0))*P13 ->  | Q24: =(MAX(Q23-'Assumptions Tab'!$D$135,0))*Q13 ->  | R24: =(MAX(R23-'Assumptions Tab'!$D$135,0))*R13 ->  | S24: =(MAX(S23-'Assumptions Tab'!$D$135,0))*S13 ->  | T24: =(MAX(T23-'Assumptions Tab'!$D$135,0))*T13 ->  | U24: =(MAX(U23-'Assumptions Tab'!$D$135,0))*U13 ->  | V24: =(MAX(V23-'Assumptions Tab'!$D$135,0))*V13 ->  | W24: =(MAX(W23-'Assumptions Tab'!$D$135,0))*W13 ->  | X24: =(MAX(X23-'Assumptions Tab'!$D$135,0))*X13 ->  | Y24: =(MAX(Y23-'Assumptions Tab'!$D$135,0))*Y13 ->  | Z24: =(MAX(Z23-'Assumptions Tab'!$D$135,0))*Z13 ->  | AA24: =(MAX(AA23-'Assumptions Tab'!$D$135,0))*AA13 ->  | AB24: =(MAX(AB23-'Assumptions Tab'!$D$135,0))*AB13 ->  | AC24: =(MAX(AC23-'Assumptions Tab'!$D$135,0))*AC13 ->  | AD24: =(MAX(AD23-'Assumptions Tab'!$D$135,0))*AD13 ->  | AE24: =(MAX(AE23-'Assumptions Tab'!$D$135,0))*AE13 ->  | AF24: =(MAX(AF23-'Assumptions Tab'!$D$135,0))*AF13 ->  | AG24: =(MAX(AG23-'Assumptions Tab'!$D$135,0))*AG13 ->  | AH24: =(MAX(AH23-'Assumptions Tab'!$D$135,0))*AH13 ->  | AI24: =(MAX(AI23-'Assumptions Tab'!$D$135,0))*AI13 ->  | AJ24: =(MAX(AJ23-'Assumptions Tab'!$D$135,0))*AJ13 ->  | AK24: =(MAX(AK23-'Assumptions Tab'!$D$135,0))*AK13 ->  | AL24: =(MAX(AL23-'Assumptions Tab'!$D$135,0))*AL13 ->  | AM24: =(MAX(AM23-'Assumptions Tab'!$D$135,0))*AM13 ->  | AN24: =(MAX(AN23-'Assumptions Tab'!$D$135,0))*AN13 ->  | AO24: =(MAX(AO23-'Assumptions Tab'!$D$135,0))*AO13 ->  | AP24: =(MAX(AP23-'Assumptions Tab'!$D$135,0))*AP13 -> 
B25: EL add'l volume | C25: =MIN(C22,C24) -> 
B26: EL total volume | C26: =C25+C20*C12 ->  | AQ26: 0.0193266933
B27: EL vphpl (adjusted) | C27: =(C26/C12) ->  | D27: =(D26/D12) ->  | AQ27: 0.0193266933
B28: GP total volume | C28: =C6-C26 ->  | AI28: =AI6-AI26 -> 
B29: GP volume (adjusted) | C29: =C28/C13 ->  | AI29: =AI28/AI13 ->  | AQ29: 0.01076233964
B30: GP vphpl -- % reduction | C30: =C29/C8-1 ->  | AI30: =AI29/AI8-1 -> 
B35: EL %Capacity (relative to 1800 vphpl) | C35: =C27/'Assumptions Tab'!$D$136 ->  | D35: =D27/'Assumptions Tab'!$D$136 ->  | E35: =E27/'Assumptions Tab'!$D$136 ->  | F35: =F27/'Assumptions Tab'!$D$136 ->  | G35: =G27/'Assumptions Tab'!$D$136 ->  | H35: =H27/'Assumptions Tab'!$D$136 ->  | I35: =I27/'Assumptions Tab'!$D$136 ->  | J35: =J27/'Assumptions Tab'!$D$136 ->  | K35: =K27/'Assumptions Tab'!$D$136 ->  | L35: =L27/'Assumptions Tab'!$D$136 ->  | M35: =M27/'Assumptions Tab'!$D$136 ->  | N35: =N27/'Assumptions Tab'!$D$136 ->  | O35: =O27/'Assumptions Tab'!$D$136 ->  | P35: =P27/'Assumptions Tab'!$D$136 ->  | Q35: =Q27/'Assumptions Tab'!$D$136 ->  | R35: =R27/'Assumptions Tab'!$D$136 ->  | S35: =S27/'Assumptions Tab'!$D$136 ->  | T35: =T27/'Assumptions Tab'!$D$136 ->  | U35: =U27/'Assumptions Tab'!$D$136 ->  | V35: =V27/'Assumptions Tab'!$D$136 ->  | W35: =W27/'Assumptions Tab'!$D$136 ->  | X35: =X27/'Assumptions Tab'!$D$136 ->  | Y35: =Y27/'Assumptions Tab'!$D$136 ->  | Z35: =Z27/'Assumptions Tab'!$D$136 ->  | AA35: =AA27/'Assumptions Tab'!$D$136 ->  | AB35: =AB27/'Assumptions Tab'!$D$136 ->  | AC35: =AC27/'Assumptions Tab'!$D$136 ->  | AD35: =AD27/'Assumptions Tab'!$D$136 ->  | AE35: =AE27/'Assumptions Tab'!$D$136 ->  | AF35: =AF27/'Assumptions Tab'!$D$136 ->  | AG35: =AG27/'Assumptions Tab'!$D$136 ->  | AH35: =AH27/'Assumptions Tab'!$D$136 ->  | AI35: =AI27/'Assumptions Tab'!$D$136 ->  | AJ35: =AJ27/'Assumptions Tab'!$D$136 ->  | AK35: =AK27/'Assumptions Tab'!$D$136 ->  | AL35: =AL27/'Assumptions Tab'!$D$136 ->  | AM35: =AM27/'Assumptions Tab'!$D$136 ->  | AN35: =AN27/'Assumptions Tab'!$D$136 ->  | AO35: =AO27/'Assumptions Tab'!$D$136 ->  | AP35: =AP27/'Assumptions Tab'!$D$136 -> 
B36: peak hour rate per mile (lookup) | C36: =VLOOKUP(C35,'EL_Calcs #1'!$H$10:$J$62,3,TRUE) ->  | D36: =VLOOKUP(D35,'EL_Calcs #1'!$H$10:$J$62,3,TRUE) ->  | E36: =VLOOKUP(E35,'EL_Calcs #1'!$H$10:$J$62,3,TRUE) ->  | F36: =VLOOKUP(F35,'EL_Calcs #1'!$H$10:$J$62,3,TRUE) ->  | G36: =VLOOKUP(G35,'EL_Calcs #1'!$H$10:$J$62,3,TRUE) ->  | H36: =VLOOKUP(H35,'EL_Calcs #1'!$H$10:$J$62,3,TRUE) ->  | I36: =VLOOKUP(I35,'EL_Calcs #1'!$H$10:$J$62,3,TRUE) ->  | J36: =VLOOKUP(J35,'EL_Calcs #1'!$H$10:$J$62,3,TRUE) ->  | K36: =VLOOKUP(K35,'EL_Calcs #1'!$H$10:$J$62,3,TRUE) ->  | L36: =VLOOKUP(L35,'EL_Calcs #1'!$H$10:$J$62,3,TRUE) ->  | M36: =VLOOKUP(M35,'EL_Calcs #1'!$H$10:$J$62,3,TRUE) ->  | N36: =VLOOKUP(N35,'EL_Calcs #1'!$H$10:$J$62,3,TRUE) ->  | O36: =VLOOKUP(O35,'EL_Calcs #1'!$H$10:$J$62,3,TRUE) ->  | P36: =VLOOKUP(P35,'EL_Calcs #1'!$H$10:$J$62,3,TRUE) ->  | Q36: =VLOOKUP(Q35,'EL_Calcs #1'!$H$10:$J$62,3,TRUE) ->  | R36: =VLOOKUP(R35,'EL_Calcs #1'!$H$10:$J$62,3,TRUE) ->  | S36: =VLOOKUP(S35,'EL_Calcs #1'!$H$10:$J$62,3,TRUE) ->  | T36: =VLOOKUP(T35,'EL_Calcs #1'!$H$10:$J$62,3,TRUE) ->  | U36: =VLOOKUP(U35,'EL_Calcs #1'!$H$10:$J$62,3,TRUE) ->  | V36: =VLOOKUP(V35,'EL_Calcs #1'!$H$10:$J$62,3,TRUE) ->  | W36: =VLOOKUP(W35,'EL_Calcs #1'!$H$10:$J$62,3,TRUE) ->  | X36: =VLOOKUP(X35,'EL_Calcs #1'!$H$10:$J$62,3,TRUE) ->  | Y36: =VLOOKUP(Y35,'EL_Calcs #1'!$H$10:$J$62,3,TRUE) ->  | Z36: =VLOOKUP(Z35,'EL_Calcs #1'!$H$10:$J$62,3,TRUE) ->  | AA36: =VLOOKUP(AA35,'EL_Calcs #1'!$H$10:$J$62,3,TRUE) ->  | AB36: =VLOOKUP(AB35,'EL_Calcs #1'!$H$10:$J$62,3,TRUE) ->  | AC36: =VLOOKUP(AC35,'EL_Calcs #1'!$H$10:$J$62,3,TRUE) ->  | AD36: =VLOOKUP(AD35,'EL_Calcs #1'!$H$10:$J$62,3,TRUE) ->  | AE36: =VLOOKUP(AE35,'EL_Calcs #1'!$H$10:$J$62,3,TRUE) ->  | AF36: =VLOOKUP(AF35,'EL_Calcs #1'!$H$10:$J$62,3,TRUE) ->  | AG36: =VLOOKUP(AG35,'EL_Calcs #1'!$H$10:$J$62,3,TRUE) ->  | AH36: =VLOOKUP(AH35,'EL_Calcs #1'!$H$10:$J$62,3,TRUE) ->  | AI36: =VLOOKUP(AI35,'EL_Calcs #1'!$H$10:$J$62,3,TRUE) ->  | AJ36: =VLOOKUP(AJ35,'EL_Calcs #1'!$H$10:$J$62,3,TRUE) ->  | AK36: =VLOOKUP(AK35,'EL_Calcs #1'!$H$10:$J$62,3,TRUE) ->  | AL36: =VLOOKUP(AL35,'EL_Calcs #1'!$H$10:$J$62,3,TRUE) ->  | AM36: =VLOOKUP(AM35,'EL_Calcs #1'!$H$10:$J$62,3,TRUE) ->  | AN36: =VLOOKUP(AN35,'EL_Calcs #1'!$H$10:$J$62,3,TRUE) ->  | AO36: =VLOOKUP(AO35,'EL_Calcs #1'!$H$10:$J$62,3,TRUE) ->  | AP36: =VLOOKUP(AP35,'EL_Calcs #1'!$H$10:$J$62,3,TRUE) -> 
B37: GP %Capacity (relative to 1800 vphpl) | C37: =C29/'Assumptions Tab'!$D$136 ->  | D37: =D29/'Assumptions Tab'!$D$136 ->  | E37: =E29/'Assumptions Tab'!$D$136 ->  | F37: =F29/'Assumptions Tab'!$D$136 ->  | G37: =G29/'Assumptions Tab'!$D$136 ->  | H37: =H29/'Assumptions Tab'!$D$136 ->  | I37: =I29/'Assumptions Tab'!$D$136 ->  | J37: =J29/'Assumptions Tab'!$D$136 ->  | K37: =K29/'Assumptions Tab'!$D$136 ->  | L37: =L29/'Assumptions Tab'!$D$136 ->  | M37: =M29/'Assumptions Tab'!$D$136 ->  | N37: =N29/'Assumptions Tab'!$D$136 ->  | O37: =O29/'Assumptions Tab'!$D$136 ->  | P37: =P29/'Assumptions Tab'!$D$136 ->  | Q37: =Q29/'Assumptions Tab'!$D$136 ->  | R37: =R29/'Assumptions Tab'!$D$136 ->  | S37: =S29/'Assumptions Tab'!$D$136 ->  | T37: =T29/'Assumptions Tab'!$D$136 ->  | U37: =U29/'Assumptions Tab'!$D$136 ->  | V37: =V29/'Assumptions Tab'!$D$136 ->  | W37: =W29/'Assumptions Tab'!$D$136 ->  | X37: =X29/'Assumptions Tab'!$D$136 ->  | Y37: =Y29/'Assumptions Tab'!$D$136 ->  | Z37: =Z29/'Assumptions Tab'!$D$136 ->  | AA37: =AA29/'Assumptions Tab'!$D$136 ->  | AB37: =AB29/'Assumptions Tab'!$D$136 ->  | AC37: =AC29/'Assumptions Tab'!$D$136 ->  | AD37: =AD29/'Assumptions Tab'!$D$136 ->  | AE37: =AE29/'Assumptions Tab'!$D$136 ->  | AF37: =AF29/'Assumptions Tab'!$D$136 ->  | AG37: =AG29/'Assumptions Tab'!$D$136 ->  | AH37: =AH29/'Assumptions Tab'!$D$136 ->  | AI37: =AI29/'Assumptions Tab'!$D$136 ->  | AJ37: =AJ29/'Assumptions Tab'!$D$136 ->  | AK37: =AK29/'Assumptions Tab'!$D$136 ->  | AL37: =AL29/'Assumptions Tab'!$D$136 ->  | AM37: =AM29/'Assumptions Tab'!$D$136 ->  | AN37: =AN29/'Assumptions Tab'!$D$136 ->  | AO37: =AO29/'Assumptions Tab'!$D$136 ->  | AP37: =AP29/'Assumptions Tab'!$D$136 -> 
B38: GP %Capacity in excess of 100% | C38: =MAX(C37-1,0) ->  | D38: =MAX(D37-1,0) ->  | E38: =MAX(E37-1,0) -> 
B39: RPM increment (from daily calcs) | C39: =C38 ->  | D39: =D38*'Assumptions Tab'!$D$133 ->  | E39: =E38*'Assumptions Tab'!$D$133 ->  | F39: =F38*'Assumptions Tab'!$D$133 ->  | G39: =G38*'Assumptions Tab'!$D$133 ->  | H39: =H38*'Assumptions Tab'!$D$133 ->  | I39: =I38*'Assumptions Tab'!$D$133 ->  | J39: =J38*'Assumptions Tab'!$D$133 ->  | K39: =K38*'Assumptions Tab'!$D$133 ->  | L39: =L38*'Assumptions Tab'!$D$133 ->  | M39: =M38*'Assumptions Tab'!$D$133 ->  | N39: =N38*'Assumptions Tab'!$D$133 ->  | O39: =O38*'Assumptions Tab'!$D$133 ->  | P39: =P38*'Assumptions Tab'!$D$133 ->  | Q39: =Q38*'Assumptions Tab'!$D$133 ->  | R39: =R38*'Assumptions Tab'!$D$133 ->  | S39: =S38*'Assumptions Tab'!$D$133 ->  | T39: =T38*'Assumptions Tab'!$D$133 ->  | U39: =U38*'Assumptions Tab'!$D$133 ->  | V39: =V38*'Assumptions Tab'!$D$133 ->  | W39: =W38*'Assumptions Tab'!$D$133 ->  | X39: =X38*'Assumptions Tab'!$D$133 ->  | Y39: =Y38*'Assumptions Tab'!$D$133 ->  | Z39: =Z38*'Assumptions Tab'!$D$133 ->  | AA39: =AA38*'Assumptions Tab'!$D$133 ->  | AB39: =AB38*'Assumptions Tab'!$D$133 ->  | AC39: =AC38*'Assumptions Tab'!$D$133 ->  | AD39: =AD38*'Assumptions Tab'!$D$133 ->  | AE39: =AE38*'Assumptions Tab'!$D$133 ->  | AF39: =AF38*'Assumptions Tab'!$D$133 ->  | AG39: =AG38*'Assumptions Tab'!$D$133 ->  | AH39: =AH38*'Assumptions Tab'!$D$133 ->  | AI39: =AI38*'Assumptions Tab'!$D$133 ->  | AJ39: =AJ38*'Assumptions Tab'!$D$133 ->  | AK39: =AK38*'Assumptions Tab'!$D$133 ->  | AL39: =AL38*'Assumptions Tab'!$D$133 ->  | AM39: =AM38*'Assumptions Tab'!$D$133 ->  | AN39: =AN38*'Assumptions Tab'!$D$133 ->  | AO39: =AO38*'Assumptions Tab'!$D$133 ->  | AP39: =AP38*'Assumptions Tab'!$D$133 -> 
B40: Peak-Hour Rate per Mile | C40: =C$36*(1+C$39) ->  | D40: =D$36*(1+D$39) -> 
B41: Daily Rate per Mile | C41: ='EL_Calcs #2'!C53 ->  | D41: ='EL_Calcs #2'!D53 ->  | E41: ='EL_Calcs #2'!E53 ->  | F41: ='EL_Calcs #2'!F53 ->  | G41: ='EL_Calcs #2'!G53 ->  | H41: ='EL_Calcs #2'!H53 ->  | I41: ='EL_Calcs #2'!I53 ->  | J41: ='EL_Calcs #2'!J53 ->  | K41: ='EL_Calcs #2'!K53 ->  | L41: ='EL_Calcs #2'!L53 ->  | M41: ='EL_Calcs #2'!M53 ->  | N41: ='EL_Calcs #2'!N53 ->  | O41: ='EL_Calcs #2'!O53 ->  | P41: ='EL_Calcs #2'!P53 ->  | Q41: ='EL_Calcs #2'!Q53 ->  | R41: ='EL_Calcs #2'!R53 ->  | S41: ='EL_Calcs #2'!S53 ->  | T41: ='EL_Calcs #2'!T53 ->  | U41: ='EL_Calcs #2'!U53 ->  | V41: ='EL_Calcs #2'!V53 ->  | W41: ='EL_Calcs #2'!W53 ->  | X41: ='EL_Calcs #2'!X53 ->  | Y41: ='EL_Calcs #2'!Y53 ->  | Z41: ='EL_Calcs #2'!Z53 ->  | AA41: ='EL_Calcs #2'!AA53 ->  | AB41: ='EL_Calcs #2'!AB53 ->  | AC41: ='EL_Calcs #2'!AC53 ->  | AD41: ='EL_Calcs #2'!AD53 ->  | AE41: ='EL_Calcs #2'!AE53 ->  | AF41: ='EL_Calcs #2'!AF53 ->  | AG41: ='EL_Calcs #2'!AG53 ->  | AH41: ='EL_Calcs #2'!AH53 ->  | AI41: ='EL_Calcs #2'!AI53 ->  | AJ41: ='EL_Calcs #2'!AJ53 ->  | AK41: ='EL_Calcs #2'!AK53 ->  | AL41: ='EL_Calcs #2'!AL53 ->  | AM41: ='EL_Calcs #2'!AM53 ->  | AN41: ='EL_Calcs #2'!AN53 ->  | AO41: ='EL_Calcs #2'!AO53 ->  | AP41: ='EL_Calcs #2'!AP53 -> 
B43: Daily Revenue | C43: ='EL_Calcs #2'!C47/365 ->  | D43: ='EL_Calcs #2'!D47/365 ->  | E43: ='EL_Calcs #2'!E47/365 ->  | F43: ='EL_Calcs #2'!F47/365 ->  | G43: ='EL_Calcs #2'!G47/365 ->  | H43: ='EL_Calcs #2'!H47/365 ->  | I43: ='EL_Calcs #2'!I47/365 ->  | J43: ='EL_Calcs #2'!J47/365 ->  | K43: ='EL_Calcs #2'!K47/365 ->  | L43: ='EL_Calcs #2'!L47/365 ->  | M43: ='EL_Calcs #2'!M47/365 ->  | N43: ='EL_Calcs #2'!N47/365 ->  | O43: ='EL_Calcs #2'!O47/365 ->  | P43: ='EL_Calcs #2'!P47/365 ->  | Q43: ='EL_Calcs #2'!Q47/365 ->  | R43: ='EL_Calcs #2'!R47/365 ->  | S43: ='EL_Calcs #2'!S47/365 ->  | T43: ='EL_Calcs #2'!T47/365 ->  | U43: ='EL_Calcs #2'!U47/365 ->  | V43: ='EL_Calcs #2'!V47/365 ->  | W43: ='EL_Calcs #2'!W47/365 ->  | X43: ='EL_Calcs #2'!X47/365 ->  | Y43: ='EL_Calcs #2'!Y47/365 ->  | Z43: ='EL_Calcs #2'!Z47/365 ->  | AA43: ='EL_Calcs #2'!AA47/365 ->  | AB43: ='EL_Calcs #2'!AB47/365 ->  | AC43: ='EL_Calcs #2'!AC47/365 ->  | AD43: ='EL_Calcs #2'!AD47/365 ->  | AE43: ='EL_Calcs #2'!AE47/365 ->  | AF43: ='EL_Calcs #2'!AF47/365 ->  | AG43: ='EL_Calcs #2'!AG47/365 ->  | AH43: ='EL_Calcs #2'!AH47/365 ->  | AI43: ='EL_Calcs #2'!AI47/365 ->  | AJ43: ='EL_Calcs #2'!AJ47/365 ->  | AK43: ='EL_Calcs #2'!AK47/365 ->  | AL43: ='EL_Calcs #2'!AL47/365 ->  | AM43: ='EL_Calcs #2'!AM47/365 ->  | AN43: ='EL_Calcs #2'!AN47/365 ->  | AO43: ='EL_Calcs #2'!AO47/365 ->  | AP43: ='EL_Calcs #2'!AP47/365 -> 
B44: Peak-Hour Revenue (w/ ramp-up) | C44: =C40*C27*C12*'Express Lanes'!$C$10*VLOOKUP(C3,'Assumptions Tab'!$C$65:$G$125,5,FALSE) ->  | D44: =D40*D27*D12*'Express Lanes'!$C$10*VLOOKUP(D3,'Assumptions Tab'!$C$65:$G$125,5,FALSE) ->  | E44: =E40*E27*E12*'Express Lanes'!$C$10*VLOOKUP(E3,'Assumptions Tab'!$C$65:$G$125,5,FALSE) ->  | F44: =F40*F27*F12*'Express Lanes'!$C$10*VLOOKUP(F3,'Assumptions Tab'!$C$65:$G$125,5,FALSE) ->  | G44: =G40*G27*G12*'Express Lanes'!$C$10*VLOOKUP(G3,'Assumptions Tab'!$C$65:$G$125,5,FALSE) ->  | H44: =H40*H27*H12*'Express Lanes'!$C$10*VLOOKUP(H3,'Assumptions Tab'!$C$65:$G$125,5,FALSE) ->  | I44: =I40*I27*I12*'Express Lanes'!$C$10*VLOOKUP(I3,'Assumptions Tab'!$C$65:$G$125,5,FALSE) ->  | J44: =J40*J27*J12*'Express Lanes'!$C$10*VLOOKUP(J3,'Assumptions Tab'!$C$65:$G$125,5,FALSE) ->  | K44: =K40*K27*K12*'Express Lanes'!$C$10*VLOOKUP(K3,'Assumptions Tab'!$C$65:$G$125,5,FALSE) ->  | L44: =L40*L27*L12*'Express Lanes'!$C$10*VLOOKUP(L3,'Assumptions Tab'!$C$65:$G$125,5,FALSE) ->  | M44: =M40*M27*M12*'Express Lanes'!$C$10*VLOOKUP(M3,'Assumptions Tab'!$C$65:$G$125,5,FALSE) ->  | N44: =N40*N27*N12*'Express Lanes'!$C$10*VLOOKUP(N3,'Assumptions Tab'!$C$65:$G$125,5,FALSE) ->  | O44: =O40*O27*O12*'Express Lanes'!$C$10*VLOOKUP(O3,'Assumptions Tab'!$C$65:$G$125,5,FALSE) ->  | P44: =P40*P27*P12*'Express Lanes'!$C$10*VLOOKUP(P3,'Assumptions Tab'!$C$65:$G$125,5,FALSE) ->  | Q44: =Q40*Q27*Q12*'Express Lanes'!$C$10*VLOOKUP(Q3,'Assumptions Tab'!$C$65:$G$125,5,FALSE) ->  | R44: =R40*R27*R12*'Express Lanes'!$C$10*VLOOKUP(R3,'Assumptions Tab'!$C$65:$G$125,5,FALSE) ->  | S44: =S40*S27*S12*'Express Lanes'!$C$10*VLOOKUP(S3,'Assumptions Tab'!$C$65:$G$125,5,FALSE) ->  | T44: =T40*T27*T12*'Express Lanes'!$C$10*VLOOKUP(T3,'Assumptions Tab'!$C$65:$G$125,5,FALSE) ->  | U44: =U40*U27*U12*'Express Lanes'!$C$10*VLOOKUP(U3,'Assumptions Tab'!$C$65:$G$125,5,FALSE) ->  | V44: =V40*V27*V12*'Express Lanes'!$C$10*VLOOKUP(V3,'Assumptions Tab'!$C$65:$G$125,5,FALSE) ->  | W44: =W40*W27*W12*'Express Lanes'!$C$10*VLOOKUP(W3,'Assumptions Tab'!$C$65:$G$125,5,FALSE) ->  | X44: =X40*X27*X12*'Express Lanes'!$C$10*VLOOKUP(X3,'Assumptions Tab'!$C$65:$G$125,5,FALSE) ->  | Y44: =Y40*Y27*Y12*'Express Lanes'!$C$10*VLOOKUP(Y3,'Assumptions Tab'!$C$65:$G$125,5,FALSE) ->  | Z44: =Z40*Z27*Z12*'Express Lanes'!$C$10*VLOOKUP(Z3,'Assumptions Tab'!$C$65:$G$125,5,FALSE) ->  | AA44: =AA40*AA27*AA12*'Express Lanes'!$C$10*VLOOKUP(AA3,'Assumptions Tab'!$C$65:$G$125,5,FALSE) ->  | AB44: =AB40*AB27*AB12*'Express Lanes'!$C$10*VLOOKUP(AB3,'Assumptions Tab'!$C$65:$G$125,5,FALSE) ->  | AC44: =AC40*AC27*AC12*'Express Lanes'!$C$10*VLOOKUP(AC3,'Assumptions Tab'!$C$65:$G$125,5,FALSE) ->  | AD44: =AD40*AD27*AD12*'Express Lanes'!$C$10*VLOOKUP(AD3,'Assumptions Tab'!$C$65:$G$125,5,FALSE) ->  | AE44: =AE40*AE27*AE12*'Express Lanes'!$C$10*VLOOKUP(AE3,'Assumptions Tab'!$C$65:$G$125,5,FALSE) ->  | AF44: =AF40*AF27*AF12*'Express Lanes'!$C$10*VLOOKUP(AF3,'Assumptions Tab'!$C$65:$G$125,5,FALSE) ->  | AG44: =AG40*AG27*AG12*'Express Lanes'!$C$10*VLOOKUP(AG3,'Assumptions Tab'!$C$65:$G$125,5,FALSE) ->  | AH44: =AH40*AH27*AH12*'Express Lanes'!$C$10*VLOOKUP(AH3,'Assumptions Tab'!$C$65:$G$125,5,FALSE) ->  | AI44: =AI40*AI27*AI12*'Express Lanes'!$C$10*VLOOKUP(AI3,'Assumptions Tab'!$C$65:$G$125,5,FALSE) ->  | AJ44: =AJ40*AJ27*AJ12*'Express Lanes'!$C$10*VLOOKUP(AJ3,'Assumptions Tab'!$C$65:$G$125,5,FALSE) ->  | AK44: =AK40*AK27*AK12*'Express Lanes'!$C$10*VLOOKUP(AK3,'Assumptions Tab'!$C$65:$G$125,5,FALSE) ->  | AL44: =AL40*AL27*AL12*'Express Lanes'!$C$10*VLOOKUP(AL3,'Assumptions Tab'!$C$65:$G$125,5,FALSE) ->  | AM44: =AM40*AM27*AM12*'Express Lanes'!$C$10*VLOOKUP(AM3,'Assumptions Tab'!$C$65:$G$125,5,FALSE) ->  | AN44: =AN40*AN27*AN12*'Express Lanes'!$C$10*VLOOKUP(AN3,'Assumptions Tab'!$C$65:$G$125,5,FALSE) ->  | AO44: =AO40*AO27*AO12*'Express Lanes'!$C$10*VLOOKUP(AO3,'Assumptions Tab'!$C$65:$G$125,5,FALSE) ->  | AP44: =AP40*AP27*AP12*'Express Lanes'!$C$10*VLOOKUP(AP3,'Assumptions Tab'!$C$65:$G$125,5,FALSE) -> 
B45: % of Daily Revenue in Peak Hour | C45: =IF(C43=0,"n/a",MIN(C44/C43,1)) ->  | D45: =IF(D43=0,"n/a",MIN(D44/D43,1)) -> 

Sheet EL_CostCalcs_WKST#4 (hidden)
B2: Cost Analysis
C4: ='EL_Calcs #2'!C7 -> 0 | D4: ='EL_Calcs #2'!D7 -> 1 | E4: ='EL_Calcs #2'!E7 -> 2 | F4: ='EL_Calcs #2'!F7 -> 3 | G4: ='EL_Calcs #2'!G7 -> 4 | H4: ='EL_Calcs #2'!H7 -> 5 | I4: ='EL_Calcs #2'!I7 -> 6 | J4: ='EL_Calcs #2'!J7 -> 7 | K4: ='EL_Calcs #2'!K7 -> 8 | L4: ='EL_Calcs #2'!L7 -> 9 | M4: ='EL_Calcs #2'!M7 -> 10 | N4: ='EL_Calcs #2'!N7 -> 11 | O4: ='EL_Calcs #2'!O7 -> 12 | P4: ='EL_Calcs #2'!P7 -> 13 | Q4: ='EL_Calcs #2'!Q7 -> 14 | R4: ='EL_Calcs #2'!R7 -> 15 | S4: ='EL_Calcs #2'!S7 -> 16 | T4: ='EL_Calcs #2'!T7 -> 17 | U4: ='EL_Calcs #2'!U7 -> 18 | V4: ='EL_Calcs #2'!V7 -> 19 | W4: ='EL_Calcs #2'!W7 -> 20 | X4: ='EL_Calcs #2'!X7 -> 21 | Y4: ='EL_Calcs #2'!Y7 -> 22 | Z4: ='EL_Calcs #2'!Z7 -> 23 | AA4: ='EL_Calcs #2'!AA7 -> 24 | AB4: ='EL_Calcs #2'!AB7 -> 25 | AC4: ='EL_Calcs #2'!AC7 -> 26 | AD4: ='EL_Calcs #2'!AD7 -> 27 | AE4: ='EL_Calcs #2'!AE7 -> 28 | AF4: ='EL_Calcs #2'!AF7 -> 29 | AG4: ='EL_Calcs #2'!AG7 -> 30 | AH4: ='EL_Calcs #2'!AH7 -> 31 | AI4: ='EL_Calcs #2'!AI7 -> 32 | AJ4: ='EL_Calcs #2'!AJ7 -> 33 | AK4: ='EL_Calcs #2'!AK7 -> 34 | AL4: ='EL_Calcs #2'!AL7 -> 35 | AM4: ='EL_Calcs #2'!AM7 -> 36 | AN4: ='EL_Calcs #2'!AN7 -> 37 | AO4: ='EL_Calcs #2'!AO7 -> 38 | AP4: ='EL_Calcs #2'!AP7 -> 39
B5: Total EL VMT | C5: ='EL_Calcs #2'!C31 ->  | D5: ='EL_Calcs #2'!D31 ->  | E5: ='EL_Calcs #2'!E31 ->  | F5: ='EL_Calcs #2'!F31 ->  | G5: ='EL_Calcs #2'!G31 ->  | H5: ='EL_Calcs #2'!H31 ->  | I5: ='EL_Calcs #2'!I31 ->  | J5: ='EL_Calcs #2'!J31 ->  | K5: ='EL_Calcs #2'!K31 ->  | L5: ='EL_Calcs #2'!L31 ->  | M5: ='EL_Calcs #2'!M31 ->  | N5: ='EL_Calcs #2'!N31 ->  | O5: ='EL_Calcs #2'!O31 ->  | P5: ='EL_Calcs #2'!P31 ->  | Q5: ='EL_Calcs #2'!Q31 ->  | R5: ='EL_Calcs #2'!R31 ->  | S5: ='EL_Calcs #2'!S31 ->  | T5: ='EL_Calcs #2'!T31 ->  | U5: ='EL_Calcs #2'!U31 ->  | V5: ='EL_Calcs #2'!V31 ->  | W5: ='EL_Calcs #2'!W31 ->  | X5: ='EL_Calcs #2'!X31 ->  | Y5: ='EL_Calcs #2'!Y31 ->  | Z5: ='EL_Calcs #2'!Z31 ->  | AA5: ='EL_Calcs #2'!AA31 ->  | AB5: ='EL_Calcs #2'!AB31 ->  | AC5: ='EL_Calcs #2'!AC31 ->  | AD5: ='EL_Calcs #2'!AD31 ->  | AE5: ='EL_Calcs #2'!AE31 ->  | AF5: ='EL_Calcs #2'!AF31 ->  | AG5: ='EL_Calcs #2'!AG31 ->  | AH5: ='EL_Calcs #2'!AH31 ->  | AI5: ='EL_Calcs #2'!AI31 ->  | AJ5: ='EL_Calcs #2'!AJ31 ->  | AK5: ='EL_Calcs #2'!AK31 ->  | AL5: ='EL_Calcs #2'!AL31 ->  | AM5: ='EL_Calcs #2'!AM31 ->  | AN5: ='EL_Calcs #2'!AN31 ->  | AO5: ='EL_Calcs #2'!AO31 ->  | AP5: ='EL_Calcs #2'!AP31 ->  | AR5: Corr Length: | AS5: 7.72
B6: VMT per Trip | C6: ='Assumptions Tab'!$D$138 -> 0 | D6: ='Assumptions Tab'!$D$138 -> 0 | E6: ='Assumptions Tab'!$D$138 -> 0 | F6: ='Assumptions Tab'!$D$138 -> 0 | G6: ='Assumptions Tab'!$D$138 -> 0 | H6: ='Assumptions Tab'!$D$138 -> 0 | I6: ='Assumptions Tab'!$D$138 -> 0 | J6: ='Assumptions Tab'!$D$138 -> 0 | K6: ='Assumptions Tab'!$D$138 -> 0 | L6: ='Assumptions Tab'!$D$138 -> 0 | M6: ='Assumptions Tab'!$D$138 -> 0 | N6: ='Assumptions Tab'!$D$138 -> 0 | O6: ='Assumptions Tab'!$D$138 -> 0 | P6: ='Assumptions Tab'!$D$138 -> 0 | Q6: ='Assumptions Tab'!$D$138 -> 0 | R6: ='Assumptions Tab'!$D$138 -> 0 | S6: ='Assumptions Tab'!$D$138 -> 0 | T6: ='Assumptions Tab'!$D$138 -> 0 | U6: ='Assumptions Tab'!$D$138 -> 0 | V6: ='Assumptions Tab'!$D$138 -> 0 | W6: ='Assumptions Tab'!$D$138 -> 0 | X6: ='Assumptions Tab'!$D$138 -> 0 | Y6: ='Assumptions Tab'!$D$138 -> 0 | Z6: ='Assumptions Tab'!$D$138 -> 0 | AA6: ='Assumptions Tab'!$D$138 -> 0 | AB6: ='Assumptions Tab'!$D$138 -> 0 | AC6: ='Assumptions Tab'!$D$138 -> 0 | AD6: ='Assumptions Tab'!$D$138 -> 0 | AE6: ='Assumptions Tab'!$D$138 -> 0 | AF6: ='Assumptions Tab'!$D$138 -> 0 | AG6: ='Assumptions Tab'!$D$138 -> 0 | AH6: ='Assumptions Tab'!$D$138 -> 0 | AI6: ='Assumptions Tab'!$D$138 -> 0 | AJ6: ='Assumptions Tab'!$D$138 -> 0 | AK6: ='Assumptions Tab'!$D$138 -> 0 | AL6: ='Assumptions Tab'!$D$138 -> 0 | AM6: ='Assumptions Tab'!$D$138 -> 0 | AN6: ='Assumptions Tab'!$D$138 -> 0 | AO6: ='Assumptions Tab'!$D$138 -> 0 | AP6: ='Assumptions Tab'!$D$138 -> 0 | AR6: Length/Trip: | AS6: 5.79
B7: Non-Tolled VMT | C7: ='EL_Calcs #2'!C32-'EL_Calcs #2'!C34 ->  | D7: ='EL_Calcs #2'!D32-'EL_Calcs #2'!D34 ->  | E7: ='EL_Calcs #2'!E32-'EL_Calcs #2'!E34 ->  | F7: ='EL_Calcs #2'!F32-'EL_Calcs #2'!F34 ->  | G7: ='EL_Calcs #2'!G32-'EL_Calcs #2'!G34 ->  | H7: ='EL_Calcs #2'!H32-'EL_Calcs #2'!H34 ->  | I7: ='EL_Calcs #2'!I32-'EL_Calcs #2'!I34 ->  | J7: ='EL_Calcs #2'!J32-'EL_Calcs #2'!J34 ->  | K7: ='EL_Calcs #2'!K32-'EL_Calcs #2'!K34 ->  | L7: ='EL_Calcs #2'!L32-'EL_Calcs #2'!L34 ->  | M7: ='EL_Calcs #2'!M32-'EL_Calcs #2'!M34 ->  | N7: ='EL_Calcs #2'!N32-'EL_Calcs #2'!N34 ->  | O7: ='EL_Calcs #2'!O32-'EL_Calcs #2'!O34 ->  | P7: ='EL_Calcs #2'!P32-'EL_Calcs #2'!P34 ->  | Q7: ='EL_Calcs #2'!Q32-'EL_Calcs #2'!Q34 ->  | R7: ='EL_Calcs #2'!R32-'EL_Calcs #2'!R34 ->  | S7: ='EL_Calcs #2'!S32-'EL_Calcs #2'!S34 ->  | T7: ='EL_Calcs #2'!T32-'EL_Calcs #2'!T34 ->  | U7: ='EL_Calcs #2'!U32-'EL_Calcs #2'!U34 ->  | V7: ='EL_Calcs #2'!V32-'EL_Calcs #2'!V34 ->  | W7: ='EL_Calcs #2'!W32-'EL_Calcs #2'!W34 ->  | X7: ='EL_Calcs #2'!X32-'EL_Calcs #2'!X34 ->  | Y7: ='EL_Calcs #2'!Y32-'EL_Calcs #2'!Y34 ->  | Z7: ='EL_Calcs #2'!Z32-'EL_Calcs #2'!Z34 ->  | AA7: ='EL_Calcs #2'!AA32-'EL_Calcs #2'!AA34 ->  | AB7: ='EL_Calcs #2'!AB32-'EL_Calcs #2'!AB34 ->  | AC7: ='EL_Calcs #2'!AC32-'EL_Calcs #2'!AC34 ->  | AD7: ='EL_Calcs #2'!AD32-'EL_Calcs #2'!AD34 ->  | AE7: ='EL_Calcs #2'!AE32-'EL_Calcs #2'!AE34 ->  | AF7: ='EL_Calcs #2'!AF32-'EL_Calcs #2'!AF34 ->  | AG7: ='EL_Calcs #2'!AG32-'EL_Calcs #2'!AG34 ->  | AH7: ='EL_Calcs #2'!AH32-'EL_Calcs #2'!AH34 ->  | AI7: ='EL_Calcs #2'!AI32-'EL_Calcs #2'!AI34 ->  | AJ7: ='EL_Calcs #2'!AJ32-'EL_Calcs #2'!AJ34 ->  | AK7: ='EL_Calcs #2'!AK32-'EL_Calcs #2'!AK34 ->  | AL7: ='EL_Calcs #2'!AL32-'EL_Calcs #2'!AL34 ->  | AM7: ='EL_Calcs #2'!AM32-'EL_Calcs #2'!AM34 ->  | AN7: ='EL_Calcs #2'!AN32-'EL_Calcs #2'!AN34 ->  | AO7: ='EL_Calcs #2'!AO32-'EL_Calcs #2'!AO34 ->  | AP7: ='EL_Calcs #2'!AP32-'EL_Calcs #2'!AP34 ->  | AR7: Zones/Corr: | AS7: =[3]Dashboard!E11 -> 3
B8: Non-Tolled Trips | C8: =C7/C6 ->  | D8: =D7/D6 ->  | K8: =K7/K6 ->  | L8: =L7/L6 ->  | M8: =M7/M6 ->  | N8: =N7/N6 ->  | AR8: Tx per Trip: | AS8: =(AS6/AS5)*AS7 -> 2.25
B9: Non-Tolled Tx | C9: =C8*'Assumptions Tab'!$D$140 ->  | D9: =D8*'Assumptions Tab'!$D$140 ->  | E9: =E8*'Assumptions Tab'!$D$140 ->  | F9: =F8*'Assumptions Tab'!$D$140 ->  | G9: =G8*'Assumptions Tab'!$D$140 ->  | H9: =H8*'Assumptions Tab'!$D$140 ->  | I9: =I8*'Assumptions Tab'!$D$140 ->  | J9: =J8*'Assumptions Tab'!$D$140 ->  | K9: =K8*'Assumptions Tab'!$D$140 ->  | L9: =L8*'Assumptions Tab'!$D$140 ->  | M9: =M8*'Assumptions Tab'!$D$140 ->  | N9: =N8*'Assumptions Tab'!$D$140 ->  | O9: =O8*'Assumptions Tab'!$D$140 ->  | P9: =P8*'Assumptions Tab'!$D$140 ->  | Q9: =Q8*'Assumptions Tab'!$D$140 ->  | R9: =R8*'Assumptions Tab'!$D$140 ->  | S9: =S8*'Assumptions Tab'!$D$140 ->  | T9: =T8*'Assumptions Tab'!$D$140 ->  | U9: =U8*'Assumptions Tab'!$D$140 ->  | V9: =V8*'Assumptions Tab'!$D$140 ->  | W9: =W8*'Assumptions Tab'!$D$140 ->  | X9: =X8*'Assumptions Tab'!$D$140 ->  | Y9: =Y8*'Assumptions Tab'!$D$140 ->  | Z9: =Z8*'Assumptions Tab'!$D$140 ->  | AA9: =AA8*'Assumptions Tab'!$D$140 ->  | AB9: =AB8*'Assumptions Tab'!$D$140 ->  | AC9: =AC8*'Assumptions Tab'!$D$140 ->  | AD9: =AD8*'Assumptions Tab'!$D$140 ->  | AE9: =AE8*'Assumptions Tab'!$D$140 ->  | AF9: =AF8*'Assumptions Tab'!$D$140 ->  | AG9: =AG8*'Assumptions Tab'!$D$140 ->  | AH9: =AH8*'Assumptions Tab'!$D$140 ->  | AI9: =AI8*'Assumptions Tab'!$D$140 ->  | AJ9: =AJ8*'Assumptions Tab'!$D$140 ->  | AK9: =AK8*'Assumptions Tab'!$D$140 ->  | AL9: =AL8*'Assumptions Tab'!$D$140 ->  | AM9: =AM8*'Assumptions Tab'!$D$140 ->  | AN9: =AN8*'Assumptions Tab'!$D$140 ->  | AO9: =AO8*'Assumptions Tab'!$D$140 ->  | AP9: =AP8*'Assumptions Tab'!$D$140 -> 
B10: Non-Tolled Cost per Tx | C10: ='Assumptions Tab'!$E$24*(1+'Assumptions Tab'!$E$26)^(C$4-'Assumptions Tab'!$E$25) -> 0.01 | D10: ='Assumptions Tab'!$E$24*(1+'Assumptions Tab'!$E$26)^(D$4-'Assumptions Tab'!$E$25) -> 0.01 | E10: ='Assumptions Tab'!$E$24*(1+'Assumptions Tab'!$E$26)^(E$4-'Assumptions Tab'!$E$25) -> 0.01 | F10: ='Assumptions Tab'!$E$24*(1+'Assumptions Tab'!$E$26)^(F$4-'Assumptions Tab'!$E$25) -> 0.01 | G10: ='Assumptions Tab'!$E$24*(1+'Assumptions Tab'!$E$26)^(G$4-'Assumptions Tab'!$E$25) -> 0.01 | H10: ='Assumptions Tab'!$E$24*(1+'Assumptions Tab'!$E$26)^(H$4-'Assumptions Tab'!$E$25) -> 0.01 | I10: ='Assumptions Tab'!$E$24*(1+'Assumptions Tab'!$E$26)^(I$4-'Assumptions Tab'!$E$25) -> 0.01 | J10: ='Assumptions Tab'!$E$24*(1+'Assumptions Tab'!$E$26)^(J$4-'Assumptions Tab'!$E$25) -> 0.01 | K10: ='Assumptions Tab'!$E$24*(1+'Assumptions Tab'!$E$26)^(K$4-'Assumptions Tab'!$E$25) -> 0.01 | L10: ='Assumptions Tab'!$E$24*(1+'Assumptions Tab'!$E$26)^(L$4-'Assumptions Tab'!$E$25) -> 0.01 | M10: ='Assumptions Tab'!$E$24*(1+'Assumptions Tab'!$E$26)^(M$4-'Assumptions Tab'!$E$25) -> 0.01 | N10: ='Assumptions Tab'!$E$24*(1+'Assumptions Tab'!$E$26)^(N$4-'Assumptions Tab'!$E$25) -> 0.01 | O10: ='Assumptions Tab'!$E$24*(1+'Assumptions Tab'!$E$26)^(O$4-'Assumptions Tab'!$E$25) -> 0.01 | P10: ='Assumptions Tab'!$E$24*(1+'Assumptions Tab'!$E$26)^(P$4-'Assumptions Tab'!$E$25) -> 0.01 | Q10: ='Assumptions Tab'!$E$24*(1+'Assumptions Tab'!$E$26)^(Q$4-'Assumptions Tab'!$E$25) -> 0.01 | R10: ='Assumptions Tab'!$E$24*(1+'Assumptions Tab'!$E$26)^(R$4-'Assumptions Tab'!$E$25) -> 0.01 | S10: ='Assumptions Tab'!$E$24*(1+'Assumptions Tab'!$E$26)^(S$4-'Assumptions Tab'!$E$25) -> 0.01 | T10: ='Assumptions Tab'!$E$24*(1+'Assumptions Tab'!$E$26)^(T$4-'Assumptions Tab'!$E$25) -> 0.01 | U10: ='Assumptions Tab'!$E$24*(1+'Assumptions Tab'!$E$26)^(U$4-'Assumptions Tab'!$E$25) -> 0.01 | V10: ='Assumptions Tab'!$E$24*(1+'Assumptions Tab'!$E$26)^(V$4-'Assumptions Tab'!$E$25) -> 0.01 | W10: ='Assumptions Tab'!$E$24*(1+'Assumptions Tab'!$E$26)^(W$4-'Assumptions Tab'!$E$25) -> 0.01 | X10: ='Assumptions Tab'!$E$24*(1+'Assumptions Tab'!$E$26)^(X$4-'Assumptions Tab'!$E$25) -> 0.01 | Y10: ='Assumptions Tab'!$E$24*(1+'Assumptions Tab'!$E$26)^(Y$4-'Assumptions Tab'!$E$25) -> 0.01 | Z10: ='Assumptions Tab'!$E$24*(1+'Assumptions Tab'!$E$26)^(Z$4-'Assumptions Tab'!$E$25) -> 0.01 | AA10: ='Assumptions Tab'!$E$24*(1+'Assumptions Tab'!$E$26)^(AA$4-'Assumptions Tab'!$E$25) -> 0.01 | AB10: ='Assumptions Tab'!$E$24*(1+'Assumptions Tab'!$E$26)^(AB$4-'Assumptions Tab'!$E$25) -> 0.01 | AC10: ='Assumptions Tab'!$E$24*(1+'Assumptions Tab'!$E$26)^(AC$4-'Assumptions Tab'!$E$25) -> 0.01 | AD10: ='Assumptions Tab'!$E$24*(1+'Assumptions Tab'!$E$26)^(AD$4-'Assumptions Tab'!$E$25) -> 0.01 | AE10: ='Assumptions Tab'!$E$24*(1+'Assumptions Tab'!$E$26)^(AE$4-'Assumptions Tab'!$E$25) -> 0.01 | AF10: ='Assumptions Tab'!$E$24*(1+'Assumptions Tab'!$E$26)^(AF$4-'Assumptions Tab'!$E$25) -> 0.01 | AG10: ='Assumptions Tab'!$E$24*(1+'Assumptions Tab'!$E$26)^(AG$4-'Assumptions Tab'!$E$25) -> 0.01 | AH10: ='Assumptions Tab'!$E$24*(1+'Assumptions Tab'!$E$26)^(AH$4-'Assumptions Tab'!$E$25) -> 0.01 | AI10: ='Assumptions Tab'!$E$24*(1+'Assumptions Tab'!$E$26)^(AI$4-'Assumptions Tab'!$E$25) -> 0.01 | AJ10: ='Assumptions Tab'!$E$24*(1+'Assumptions Tab'!$E$26)^(AJ$4-'Assumptions Tab'!$E$25) -> 0.01 | AK10: ='Assumptions Tab'!$E$24*(1+'Assumptions Tab'!$E$26)^(AK$4-'Assumptions Tab'!$E$25) -> 0.01 | AL10: ='Assumptions Tab'!$E$24*(1+'Assumptions Tab'!$E$26)^(AL$4-'Assumptions Tab'!$E$25) -> 0.01 | AM10: ='Assumptions Tab'!$E$24*(1+'Assumptions Tab'!$E$26)^(AM$4-'Assumptions Tab'!$E$25) -> 0.01 | AN10: ='Assumptions Tab'!$E$24*(1+'Assumptions Tab'!$E$26)^(AN$4-'Assumptions Tab'!$E$25) -> 0.01 | AO10: ='Assumptions Tab'!$E$24*(1+'Assumptions Tab'!$E$26)^(AO$4-'Assumptions Tab'!$E$25) -> 0.01 | AP10: ='Assumptions Tab'!$E$24*(1+'Assumptions Tab'!$E$26)^(AP$4-'Assumptions Tab'!$E$25) -> 0.01
B11: Non-Tolled Cost | C11: =C9*C10 ->  | D11: =D9*D10 -> 
B12: Tolled EL VMT | C12: =C5-C7 ->  | D12: =D5-D7 -> 
B13: Tolled EL Trips | C13: =C12/C6 ->  | D13: =D12/D6 -> 
B14: Tolled ETC Trips | C14: =C$13*VLOOKUP(C4,'Assumptions Tab'!$C$65:$F$125,2,TRUE) ->  | D14: =D$13*VLOOKUP(D4,'Assumptions Tab'!$C$65:$F$125,2,TRUE) ->  | E14: =E$13*VLOOKUP(E4,'Assumptions Tab'!$C$65:$F$125,2,TRUE) ->  | F14: =F$13*VLOOKUP(F4,'Assumptions Tab'!$C$65:$F$125,2,TRUE) ->  | G14: =G$13*VLOOKUP(G4,'Assumptions Tab'!$C$65:$F$125,2,TRUE) ->  | H14: =H$13*VLOOKUP(H4,'Assumptions Tab'!$C$65:$F$125,2,TRUE) ->  | I14: =I$13*VLOOKUP(I4,'Assumptions Tab'!$C$65:$F$125,2,TRUE) ->  | J14: =J$13*VLOOKUP(J4,'Assumptions Tab'!$C$65:$F$125,2,TRUE) ->  | K14: =K$13*VLOOKUP(K4,'Assumptions Tab'!$C$65:$F$125,2,TRUE) ->  | L14: =L$13*VLOOKUP(L4,'Assumptions Tab'!$C$65:$F$125,2,TRUE) ->  | M14: =M$13*VLOOKUP(M4,'Assumptions Tab'!$C$65:$F$125,2,TRUE) ->  | N14: =N$13*VLOOKUP(N4,'Assumptions Tab'!$C$65:$F$125,2,TRUE) ->  | O14: =O$13*VLOOKUP(O4,'Assumptions Tab'!$C$65:$F$125,2,TRUE) ->  | P14: =P$13*VLOOKUP(P4,'Assumptions Tab'!$C$65:$F$125,2,TRUE) ->  | Q14: =Q$13*VLOOKUP(Q4,'Assumptions Tab'!$C$65:$F$125,2,TRUE) ->  | R14: =R$13*VLOOKUP(R4,'Assumptions Tab'!$C$65:$F$125,2,TRUE) ->  | S14: =S$13*VLOOKUP(S4,'Assumptions Tab'!$C$65:$F$125,2,TRUE) ->  | T14: =T$13*VLOOKUP(T4,'Assumptions Tab'!$C$65:$F$125,2,TRUE) ->  | U14: =U$13*VLOOKUP(U4,'Assumptions Tab'!$C$65:$F$125,2,TRUE) ->  | V14: =V$13*VLOOKUP(V4,'Assumptions Tab'!$C$65:$F$125,2,TRUE) ->  | W14: =W$13*VLOOKUP(W4,'Assumptions Tab'!$C$65:$F$125,2,TRUE) ->  | X14: =X$13*VLOOKUP(X4,'Assumptions Tab'!$C$65:$F$125,2,TRUE) ->  | Y14: =Y$13*VLOOKUP(Y4,'Assumptions Tab'!$C$65:$F$125,2,TRUE) ->  | Z14: =Z$13*VLOOKUP(Z4,'Assumptions Tab'!$C$65:$F$125,2,TRUE) ->  | AA14: =AA$13*VLOOKUP(AA4,'Assumptions Tab'!$C$65:$F$125,2,TRUE) ->  | AB14: =AB$13*VLOOKUP(AB4,'Assumptions Tab'!$C$65:$F$125,2,TRUE) ->  | AC14: =AC$13*VLOOKUP(AC4,'Assumptions Tab'!$C$65:$F$125,2,TRUE) ->  | AD14: =AD$13*VLOOKUP(AD4,'Assumptions Tab'!$C$65:$F$125,2,TRUE) ->  | AE14: =AE$13*VLOOKUP(AE4,'Assumptions Tab'!$C$65:$F$125,2,TRUE) ->  | AF14: =AF$13*VLOOKUP(AF4,'Assumptions Tab'!$C$65:$F$125,2,TRUE) ->  | AG14: =AG$13*VLOOKUP(AG4,'Assumptions Tab'!$C$65:$F$125,2,TRUE) ->  | AH14: =AH$13*VLOOKUP(AH4,'Assumptions Tab'!$C$65:$F$125,2,TRUE) ->  | AI14: =AI$13*VLOOKUP(AI4,'Assumptions Tab'!$C$65:$F$125,2,TRUE) ->  | AJ14: =AJ$13*VLOOKUP(AJ4,'Assumptions Tab'!$C$65:$F$125,2,TRUE) ->  | AK14: =AK$13*VLOOKUP(AK4,'Assumptions Tab'!$C$65:$F$125,2,TRUE) ->  | AL14: =AL$13*VLOOKUP(AL4,'Assumptions Tab'!$C$65:$F$125,2,TRUE) ->  | AM14: =AM$13*VLOOKUP(AM4,'Assumptions Tab'!$C$65:$F$125,2,TRUE) ->  | AN14: =AN$13*VLOOKUP(AN4,'Assumptions Tab'!$C$65:$F$125,2,TRUE) ->  | AO14: =AO$13*VLOOKUP(AO4,'Assumptions Tab'!$C$65:$F$125,2,TRUE) ->  | AP14: =AP$13*VLOOKUP(AP4,'Assumptions Tab'!$C$65:$F$125,2,TRUE) -> 
B15: Tolled ETC Tx | C15: =C14*'Assumptions Tab'!$D$140 ->  | D15: =D14*'Assumptions Tab'!$D$140 ->  | E15: =E14*'Assumptions Tab'!$D$140 ->  | F15: =F14*'Assumptions Tab'!$D$140 ->  | G15: =G14*'Assumptions Tab'!$D$140 ->  | H15: =H14*'Assumptions Tab'!$D$140 ->  | I15: =I14*'Assumptions Tab'!$D$140 ->  | J15: =J14*'Assumptions Tab'!$D$140 ->  | K15: =K14*'Assumptions Tab'!$D$140 ->  | L15: =L14*'Assumptions Tab'!$D$140 ->  | M15: =M14*'Assumptions Tab'!$D$140 ->  | N15: =N14*'Assumptions Tab'!$D$140 ->  | O15: =O14*'Assumptions Tab'!$D$140 ->  | P15: =P14*'Assumptions Tab'!$D$140 ->  | Q15: =Q14*'Assumptions Tab'!$D$140 ->  | R15: =R14*'Assumptions Tab'!$D$140 ->  | S15: =S14*'Assumptions Tab'!$D$140 ->  | T15: =T14*'Assumptions Tab'!$D$140 ->  | U15: =U14*'Assumptions Tab'!$D$140 ->  | V15: =V14*'Assumptions Tab'!$D$140 ->  | W15: =W14*'Assumptions Tab'!$D$140 ->  | X15: =X14*'Assumptions Tab'!$D$140 ->  | Y15: =Y14*'Assumptions Tab'!$D$140 ->  | Z15: =Z14*'Assumptions Tab'!$D$140 ->  | AA15: =AA14*'Assumptions Tab'!$D$140 ->  | AB15: =AB14*'Assumptions Tab'!$D$140 ->  | AC15: =AC14*'Assumptions Tab'!$D$140 ->  | AD15: =AD14*'Assumptions Tab'!$D$140 ->  | AE15: =AE14*'Assumptions Tab'!$D$140 ->  | AF15: =AF14*'Assumptions Tab'!$D$140 ->  | AG15: =AG14*'Assumptions Tab'!$D$140 ->  | AH15: =AH14*'Assumptions Tab'!$D$140 ->  | AI15: =AI14*'Assumptions Tab'!$D$140 ->  | AJ15: =AJ14*'Assumptions Tab'!$D$140 ->  | AK15: =AK14*'Assumptions Tab'!$D$140 ->  | AL15: =AL14*'Assumptions Tab'!$D$140 ->  | AM15: =AM14*'Assumptions Tab'!$D$140 ->  | AN15: =AN14*'Assumptions Tab'!$D$140 ->  | AO15: =AO14*'Assumptions Tab'!$D$140 ->  | AP15: =AP14*'Assumptions Tab'!$D$140 -> 
B16: ETC cost/tx | C16: ='Assumptions Tab'!$E$21*(1+'Assumptions Tab'!$E$26)^(C$4-'Assumptions Tab'!$E$25) -> 0.15 | D16: ='Assumptions Tab'!$E$21*(1+'Assumptions Tab'!$E$26)^(D$4-'Assumptions Tab'!$E$25) -> 0.15 | E16: ='Assumptions Tab'!$E$21*(1+'Assumptions Tab'!$E$26)^(E$4-'Assumptions Tab'!$E$25) -> 0.15 | F16: ='Assumptions Tab'!$E$21*(1+'Assumptions Tab'!$E$26)^(F$4-'Assumptions Tab'!$E$25) -> 0.15 | G16: ='Assumptions Tab'!$E$21*(1+'Assumptions Tab'!$E$26)^(G$4-'Assumptions Tab'!$E$25) -> 0.15 | H16: ='Assumptions Tab'!$E$21*(1+'Assumptions Tab'!$E$26)^(H$4-'Assumptions Tab'!$E$25) -> 0.15 | I16: ='Assumptions Tab'!$E$21*(1+'Assumptions Tab'!$E$26)^(I$4-'Assumptions Tab'!$E$25) -> 0.15 | J16: ='Assumptions Tab'!$E$21*(1+'Assumptions Tab'!$E$26)^(J$4-'Assumptions Tab'!$E$25) -> 0.15 | K16: ='Assumptions Tab'!$E$21*(1+'Assumptions Tab'!$E$26)^(K$4-'Assumptions Tab'!$E$25) -> 0.15 | L16: ='Assumptions Tab'!$E$21*(1+'Assumptions Tab'!$E$26)^(L$4-'Assumptions Tab'!$E$25) -> 0.15 | M16: ='Assumptions Tab'!$E$21*(1+'Assumptions Tab'!$E$26)^(M$4-'Assumptions Tab'!$E$25) -> 0.15 | N16: ='Assumptions Tab'!$E$21*(1+'Assumptions Tab'!$E$26)^(N$4-'Assumptions Tab'!$E$25) -> 0.15 | O16: ='Assumptions Tab'!$E$21*(1+'Assumptions Tab'!$E$26)^(O$4-'Assumptions Tab'!$E$25) -> 0.15 | P16: ='Assumptions Tab'!$E$21*(1+'Assumptions Tab'!$E$26)^(P$4-'Assumptions Tab'!$E$25) -> 0.15 | Q16: ='Assumptions Tab'!$E$21*(1+'Assumptions Tab'!$E$26)^(Q$4-'Assumptions Tab'!$E$25) -> 0.15 | R16: ='Assumptions Tab'!$E$21*(1+'Assumptions Tab'!$E$26)^(R$4-'Assumptions Tab'!$E$25) -> 0.15 | S16: ='Assumptions Tab'!$E$21*(1+'Assumptions Tab'!$E$26)^(S$4-'Assumptions Tab'!$E$25) -> 0.15 | T16: ='Assumptions Tab'!$E$21*(1+'Assumptions Tab'!$E$26)^(T$4-'Assumptions Tab'!$E$25) -> 0.15 | U16: ='Assumptions Tab'!$E$21*(1+'Assumptions Tab'!$E$26)^(U$4-'Assumptions Tab'!$E$25) -> 0.15 | V16: ='Assumptions Tab'!$E$21*(1+'Assumptions Tab'!$E$26)^(V$4-'Assumptions Tab'!$E$25) -> 0.15 | W16: ='Assumptions Tab'!$E$21*(1+'Assumptions Tab'!$E$26)^(W$4-'Assumptions Tab'!$E$25) -> 0.15 | X16: ='Assumptions Tab'!$E$21*(1+'Assumptions Tab'!$E$26)^(X$4-'Assumptions Tab'!$E$25) -> 0.15 | Y16: ='Assumptions Tab'!$E$21*(1+'Assumptions Tab'!$E$26)^(Y$4-'Assumptions Tab'!$E$25) -> 0.15 | Z16: ='Assumptions Tab'!$E$21*(1+'Assumptions Tab'!$E$26)^(Z$4-'Assumptions Tab'!$E$25) -> 0.15 | AA16: ='Assumptions Tab'!$E$21*(1+'Assumptions Tab'!$E$26)^(AA$4-'Assumptions Tab'!$E$25) -> 0.15 | AB16: ='Assumptions Tab'!$E$21*(1+'Assumptions Tab'!$E$26)^(AB$4-'Assumptions Tab'!$E$25) -> 0.15 | AC16: ='Assumptions Tab'!$E$21*(1+'Assumptions Tab'!$E$26)^(AC$4-'Assumptions Tab'!$E$25) -> 0.15 | AD16: ='Assumptions Tab'!$E$21*(1+'Assumptions Tab'!$E$26)^(AD$4-'Assumptions Tab'!$E$25) -> 0.15 | AE16: ='Assumptions Tab'!$E$21*(1+'Assumptions Tab'!$E$26)^(AE$4-'Assumptions Tab'!$E$25) -> 0.15 | AF16: ='Assumptions Tab'!$E$21*(1+'Assumptions Tab'!$E$26)^(AF$4-'Assumptions Tab'!$E$25) -> 0.15 | AG16: ='Assumptions Tab'!$E$21*(1+'Assumptions Tab'!$E$26)^(AG$4-'Assumptions Tab'!$E$25) -> 0.15 | AH16: ='Assumptions Tab'!$E$21*(1+'Assumptions Tab'!$E$26)^(AH$4-'Assumptions Tab'!$E$25) -> 0.15 | AI16: ='Assumptions Tab'!$E$21*(1+'Assumptions Tab'!$E$26)^(AI$4-'Assumptions Tab'!$E$25) -> 0.15 | AJ16: ='Assumptions Tab'!$E$21*(1+'Assumptions Tab'!$E$26)^(AJ$4-'Assumptions Tab'!$E$25) -> 0.15 | AK16: ='Assumptions Tab'!$E$21*(1+'Assumptions Tab'!$E$26)^(AK$4-'Assumptions Tab'!$E$25) -> 0.15 | AL16: ='Assumptions Tab'!$E$21*(1+'Assumptions Tab'!$E$26)^(AL$4-'Assumptions Tab'!$E$25) -> 0.15 | AM16: ='Assumptions Tab'!$E$21*(1+'Assumptions Tab'!$E$26)^(AM$4-'Assumptions Tab'!$E$25) -> 0.15 | AN16: ='Assumptions Tab'!$E$21*(1+'Assumptions Tab'!$E$26)^(AN$4-'Assumptions Tab'!$E$25) -> 0.15 | AO16: ='Assumptions Tab'!$E$21*(1+'Assumptions Tab'!$E$26)^(AO$4-'Assumptions Tab'!$E$25) -> 0.15 | AP16: ='Assumptions Tab'!$E$21*(1+'Assumptions Tab'!$E$26)^(AP$4-'Assumptions Tab'!$E$25) -> 0.15
B17: ETC Processing Cost | C17: =C15*C16 ->  | D17: =D15*D16 -> 
B18: Tolled i-toll Trips | C18: =C$13*VLOOKUP(C4,'Assumptions Tab'!$C$65:$F$125,3,TRUE) ->  | D18: =D$13*VLOOKUP(D4,'Assumptions Tab'!$C$65:$F$125,3,TRUE) ->  | E18: =E$13*VLOOKUP(E4,'Assumptions Tab'!$C$65:$F$125,3,TRUE) ->  | F18: =F$13*VLOOKUP(F4,'Assumptions Tab'!$C$65:$F$125,3,TRUE) ->  | G18: =G$13*VLOOKUP(G4,'Assumptions Tab'!$C$65:$F$125,3,TRUE) ->  | H18: =H$13*VLOOKUP(H4,'Assumptions Tab'!$C$65:$F$125,3,TRUE) ->  | I18: =I$13*VLOOKUP(I4,'Assumptions Tab'!$C$65:$F$125,3,TRUE) ->  | J18: =J$13*VLOOKUP(J4,'Assumptions Tab'!$C$65:$F$125,3,TRUE) ->  | K18: =K$13*VLOOKUP(K4,'Assumptions Tab'!$C$65:$F$125,3,TRUE) ->  | L18: =L$13*VLOOKUP(L4,'Assumptions Tab'!$C$65:$F$125,3,TRUE) ->  | M18: =M$13*VLOOKUP(M4,'Assumptions Tab'!$C$65:$F$125,3,TRUE) ->  | N18: =N$13*VLOOKUP(N4,'Assumptions Tab'!$C$65:$F$125,3,TRUE) ->  | O18: =O$13*VLOOKUP(O4,'Assumptions Tab'!$C$65:$F$125,3,TRUE) ->  | P18: =P$13*VLOOKUP(P4,'Assumptions Tab'!$C$65:$F$125,3,TRUE) ->  | Q18: =Q$13*VLOOKUP(Q4,'Assumptions Tab'!$C$65:$F$125,3,TRUE) ->  | R18: =R$13*VLOOKUP(R4,'Assumptions Tab'!$C$65:$F$125,3,TRUE) ->  | S18: =S$13*VLOOKUP(S4,'Assumptions Tab'!$C$65:$F$125,3,TRUE) ->  | T18: =T$13*VLOOKUP(T4,'Assumptions Tab'!$C$65:$F$125,3,TRUE) ->  | U18: =U$13*VLOOKUP(U4,'Assumptions Tab'!$C$65:$F$125,3,TRUE) ->  | V18: =V$13*VLOOKUP(V4,'Assumptions Tab'!$C$65:$F$125,3,TRUE) ->  | W18: =W$13*VLOOKUP(W4,'Assumptions Tab'!$C$65:$F$125,3,TRUE) ->  | X18: =X$13*VLOOKUP(X4,'Assumptions Tab'!$C$65:$F$125,3,TRUE) ->  | Y18: =Y$13*VLOOKUP(Y4,'Assumptions Tab'!$C$65:$F$125,3,TRUE) ->  | Z18: =Z$13*VLOOKUP(Z4,'Assumptions Tab'!$C$65:$F$125,3,TRUE) ->  | AA18: =AA$13*VLOOKUP(AA4,'Assumptions Tab'!$C$65:$F$125,3,TRUE) ->  | AB18: =AB$13*VLOOKUP(AB4,'Assumptions Tab'!$C$65:$F$125,3,TRUE) ->  | AC18: =AC$13*VLOOKUP(AC4,'Assumptions Tab'!$C$65:$F$125,3,TRUE) ->  | AD18: =AD$13*VLOOKUP(AD4,'Assumptions Tab'!$C$65:$F$125,3,TRUE) ->  | AE18: =AE$13*VLOOKUP(AE4,'Assumptions Tab'!$C$65:$F$125,3,TRUE) ->  | AF18: =AF$13*VLOOKUP(AF4,'Assumptions Tab'!$C$65:$F$125,3,TRUE) ->  | AG18: =AG$13*VLOOKUP(AG4,'Assumptions Tab'!$C$65:$F$125,3,TRUE) ->  | AH18: =AH$13*VLOOKUP(AH4,'Assumptions Tab'!$C$65:$F$125,3,TRUE) ->  | AI18: =AI$13*VLOOKUP(AI4,'Assumptions Tab'!$C$65:$F$125,3,TRUE) ->  | AJ18: =AJ$13*VLOOKUP(AJ4,'Assumptions Tab'!$C$65:$F$125,3,TRUE) ->  | AK18: =AK$13*VLOOKUP(AK4,'Assumptions Tab'!$C$65:$F$125,3,TRUE) ->  | AL18: =AL$13*VLOOKUP(AL4,'Assumptions Tab'!$C$65:$F$125,3,TRUE) ->  | AM18: =AM$13*VLOOKUP(AM4,'Assumptions Tab'!$C$65:$F$125,3,TRUE) ->  | AN18: =AN$13*VLOOKUP(AN4,'Assumptions Tab'!$C$65:$F$125,3,TRUE) ->  | AO18: =AO$13*VLOOKUP(AO4,'Assumptions Tab'!$C$65:$F$125,3,TRUE) ->  | AP18: =AP$13*VLOOKUP(AP4,'Assumptions Tab'!$C$65:$F$125,3,TRUE) -> 
B19: Tolled i-toll Tx | C19: =C18*'Assumptions Tab'!$D$140 ->  | D19: =D18*'Assumptions Tab'!$D$140 ->  | E19: =E18*'Assumptions Tab'!$D$140 ->  | F19: =F18*'Assumptions Tab'!$D$140 ->  | G19: =G18*'Assumptions Tab'!$D$140 ->  | H19: =H18*'Assumptions Tab'!$D$140 ->  | I19: =I18*'Assumptions Tab'!$D$140 ->  | J19: =J18*'Assumptions Tab'!$D$140 ->  | K19: =K18*'Assumptions Tab'!$D$140 ->  | L19: =L18*'Assumptions Tab'!$D$140 ->  | M19: =M18*'Assumptions Tab'!$D$140 ->  | N19: =N18*'Assumptions Tab'!$D$140 ->  | O19: =O18*'Assumptions Tab'!$D$140 ->  | P19: =P18*'Assumptions Tab'!$D$140 ->  | Q19: =Q18*'Assumptions Tab'!$D$140 ->  | R19: =R18*'Assumptions Tab'!$D$140 ->  | S19: =S18*'Assumptions Tab'!$D$140 ->  | T19: =T18*'Assumptions Tab'!$D$140 ->  | U19: =U18*'Assumptions Tab'!$D$140 ->  | V19: =V18*'Assumptions Tab'!$D$140 ->  | W19: =W18*'Assumptions Tab'!$D$140 ->  | X19: =X18*'Assumptions Tab'!$D$140 ->  | Y19: =Y18*'Assumptions Tab'!$D$140 ->  | Z19: =Z18*'Assumptions Tab'!$D$140 ->  | AA19: =AA18*'Assumptions Tab'!$D$140 ->  | AB19: =AB18*'Assumptions Tab'!$D$140 ->  | AC19: =AC18*'Assumptions Tab'!$D$140 ->  | AD19: =AD18*'Assumptions Tab'!$D$140 ->  | AE19: =AE18*'Assumptions Tab'!$D$140 ->  | AF19: =AF18*'Assumptions Tab'!$D$140 ->  | AG19: =AG18*'Assumptions Tab'!$D$140 ->  | AH19: =AH18*'Assumptions Tab'!$D$140 ->  | AI19: =AI18*'Assumptions Tab'!$D$140 ->  | AJ19: =AJ18*'Assumptions Tab'!$D$140 ->  | AK19: =AK18*'Assumptions Tab'!$D$140 ->  | AL19: =AL18*'Assumptions Tab'!$D$140 ->  | AM19: =AM18*'Assumptions Tab'!$D$140 ->  | AN19: =AN18*'Assumptions Tab'!$D$140 ->  | AO19: =AO18*'Assumptions Tab'!$D$140 ->  | AP19: =AP18*'Assumptions Tab'!$D$140 -> 
B20: i-toll cost/trip | C20: ='Assumptions Tab'!$E$22*(1+'Assumptions Tab'!$E$26)^(C$4-'Assumptions Tab'!$E$25) -> 0.25 | D20: ='Assumptions Tab'!$E$22*(1+'Assumptions Tab'!$E$26)^(D$4-'Assumptions Tab'!$E$25) -> 0.25 | E20: ='Assumptions Tab'!$E$22*(1+'Assumptions Tab'!$E$26)^(E$4-'Assumptions Tab'!$E$25) -> 0.25 | F20: ='Assumptions Tab'!$E$22*(1+'Assumptions Tab'!$E$26)^(F$4-'Assumptions Tab'!$E$25) -> 0.25 | G20: ='Assumptions Tab'!$E$22*(1+'Assumptions Tab'!$E$26)^(G$4-'Assumptions Tab'!$E$25) -> 0.25 | H20: ='Assumptions Tab'!$E$22*(1+'Assumptions Tab'!$E$26)^(H$4-'Assumptions Tab'!$E$25) -> 0.25 | I20: ='Assumptions Tab'!$E$22*(1+'Assumptions Tab'!$E$26)^(I$4-'Assumptions Tab'!$E$25) -> 0.25 | J20: ='Assumptions Tab'!$E$22*(1+'Assumptions Tab'!$E$26)^(J$4-'Assumptions Tab'!$E$25) -> 0.25 | K20: ='Assumptions Tab'!$E$22*(1+'Assumptions Tab'!$E$26)^(K$4-'Assumptions Tab'!$E$25) -> 0.25 | L20: ='Assumptions Tab'!$E$22*(1+'Assumptions Tab'!$E$26)^(L$4-'Assumptions Tab'!$E$25) -> 0.25 | M20: ='Assumptions Tab'!$E$22*(1+'Assumptions Tab'!$E$26)^(M$4-'Assumptions Tab'!$E$25) -> 0.25 | N20: ='Assumptions Tab'!$E$22*(1+'Assumptions Tab'!$E$26)^(N$4-'Assumptions Tab'!$E$25) -> 0.25 | O20: ='Assumptions Tab'!$E$22*(1+'Assumptions Tab'!$E$26)^(O$4-'Assumptions Tab'!$E$25) -> 0.25 | P20: ='Assumptions Tab'!$E$22*(1+'Assumptions Tab'!$E$26)^(P$4-'Assumptions Tab'!$E$25) -> 0.25 | Q20: ='Assumptions Tab'!$E$22*(1+'Assumptions Tab'!$E$26)^(Q$4-'Assumptions Tab'!$E$25) -> 0.25 | R20: ='Assumptions Tab'!$E$22*(1+'Assumptions Tab'!$E$26)^(R$4-'Assumptions Tab'!$E$25) -> 0.25 | S20: ='Assumptions Tab'!$E$22*(1+'Assumptions Tab'!$E$26)^(S$4-'Assumptions Tab'!$E$25) -> 0.25 | T20: ='Assumptions Tab'!$E$22*(1+'Assumptions Tab'!$E$26)^(T$4-'Assumptions Tab'!$E$25) -> 0.25 | U20: ='Assumptions Tab'!$E$22*(1+'Assumptions Tab'!$E$26)^(U$4-'Assumptions Tab'!$E$25) -> 0.25 | V20: ='Assumptions Tab'!$E$22*(1+'Assumptions Tab'!$E$26)^(V$4-'Assumptions Tab'!$E$25) -> 0.25 | W20: ='Assumptions Tab'!$E$22*(1+'Assumptions Tab'!$E$26)^(W$4-'Assumptions Tab'!$E$25) -> 0.25 | X20: ='Assumptions Tab'!$E$22*(1+'Assumptions Tab'!$E$26)^(X$4-'Assumptions Tab'!$E$25) -> 0.25 | Y20: ='Assumptions Tab'!$E$22*(1+'Assumptions Tab'!$E$26)^(Y$4-'Assumptions Tab'!$E$25) -> 0.25 | Z20: ='Assumptions Tab'!$E$22*(1+'Assumptions Tab'!$E$26)^(Z$4-'Assumptions Tab'!$E$25) -> 0.25 | AA20: ='Assumptions Tab'!$E$22*(1+'Assumptions Tab'!$E$26)^(AA$4-'Assumptions Tab'!$E$25) -> 0.25 | AB20: ='Assumptions Tab'!$E$22*(1+'Assumptions Tab'!$E$26)^(AB$4-'Assumptions Tab'!$E$25) -> 0.25 | AC20: ='Assumptions Tab'!$E$22*(1+'Assumptions Tab'!$E$26)^(AC$4-'Assumptions Tab'!$E$25) -> 0.25 | AD20: ='Assumptions Tab'!$E$22*(1+'Assumptions Tab'!$E$26)^(AD$4-'Assumptions Tab'!$E$25) -> 0.25 | AE20: ='Assumptions Tab'!$E$22*(1+'Assumptions Tab'!$E$26)^(AE$4-'Assumptions Tab'!$E$25) -> 0.25 | AF20: ='Assumptions Tab'!$E$22*(1+'Assumptions Tab'!$E$26)^(AF$4-'Assumptions Tab'!$E$25) -> 0.25 | AG20: ='Assumptions Tab'!$E$22*(1+'Assumptions Tab'!$E$26)^(AG$4-'Assumptions Tab'!$E$25) -> 0.25 | AH20: ='Assumptions Tab'!$E$22*(1+'Assumptions Tab'!$E$26)^(AH$4-'Assumptions Tab'!$E$25) -> 0.25 | AI20: ='Assumptions Tab'!$E$22*(1+'Assumptions Tab'!$E$26)^(AI$4-'Assumptions Tab'!$E$25) -> 0.25 | AJ20: ='Assumptions Tab'!$E$22*(1+'Assumptions Tab'!$E$26)^(AJ$4-'Assumptions Tab'!$E$25) -> 0.25 | AK20: ='Assumptions Tab'!$E$22*(1+'Assumptions Tab'!$E$26)^(AK$4-'Assumptions Tab'!$E$25) -> 0.25 | AL20: ='Assumptions Tab'!$E$22*(1+'Assumptions Tab'!$E$26)^(AL$4-'Assumptions Tab'!$E$25) -> 0.25 | AM20: ='Assumptions Tab'!$E$22*(1+'Assumptions Tab'!$E$26)^(AM$4-'Assumptions Tab'!$E$25) -> 0.25 | AN20: ='Assumptions Tab'!$E$22*(1+'Assumptions Tab'!$E$26)^(AN$4-'Assumptions Tab'!$E$25) -> 0.25 | AO20: ='Assumptions Tab'!$E$22*(1+'Assumptions Tab'!$E$26)^(AO$4-'Assumptions Tab'!$E$25) -> 0.25 | AP20: ='Assumptions Tab'!$E$22*(1+'Assumptions Tab'!$E$26)^(AP$4-'Assumptions Tab'!$E$25) -> 0.25
B21: i-toll Processing Cost | C21: =C19*C20 ->  | D21: =D19*D20 -> 
B22: Video Trips | C22: =C$13*VLOOKUP(C4,'Assumptions Tab'!$C$65:$F$125,4,TRUE) ->  | D22: =D$13*VLOOKUP(D4,'Assumptions Tab'!$C$65:$F$125,4,TRUE) ->  | E22: =E$13*VLOOKUP(E4,'Assumptions Tab'!$C$65:$F$125,4,TRUE) ->  | F22: =F$13*VLOOKUP(F4,'Assumptions Tab'!$C$65:$F$125,4,TRUE) ->  | G22: =G$13*VLOOKUP(G4,'Assumptions Tab'!$C$65:$F$125,4,TRUE) ->  | H22: =H$13*VLOOKUP(H4,'Assumptions Tab'!$C$65:$F$125,4,TRUE) ->  | I22: =I$13*VLOOKUP(I4,'Assumptions Tab'!$C$65:$F$125,4,TRUE) ->  | J22: =J$13*VLOOKUP(J4,'Assumptions Tab'!$C$65:$F$125,4,TRUE) ->  | K22: =K$13*VLOOKUP(K4,'Assumptions Tab'!$C$65:$F$125,4,TRUE) ->  | L22: =L$13*VLOOKUP(L4,'Assumptions Tab'!$C$65:$F$125,4,TRUE) ->  | M22: =M$13*VLOOKUP(M4,'Assumptions Tab'!$C$65:$F$125,4,TRUE) ->  | N22: =N$13*VLOOKUP(N4,'Assumptions Tab'!$C$65:$F$125,4,TRUE) ->  | O22: =O$13*VLOOKUP(O4,'Assumptions Tab'!$C$65:$F$125,4,TRUE) ->  | P22: =P$13*VLOOKUP(P4,'Assumptions Tab'!$C$65:$F$125,4,TRUE) ->  | Q22: =Q$13*VLOOKUP(Q4,'Assumptions Tab'!$C$65:$F$125,4,TRUE) ->  | R22: =R$13*VLOOKUP(R4,'Assumptions Tab'!$C$65:$F$125,4,TRUE) ->  | S22: =S$13*VLOOKUP(S4,'Assumptions Tab'!$C$65:$F$125,4,TRUE) ->  | T22: =T$13*VLOOKUP(T4,'Assumptions Tab'!$C$65:$F$125,4,TRUE) ->  | U22: =U$13*VLOOKUP(U4,'Assumptions Tab'!$C$65:$F$125,4,TRUE) ->  | V22: =V$13*VLOOKUP(V4,'Assumptions Tab'!$C$65:$F$125,4,TRUE) ->  | W22: =W$13*VLOOKUP(W4,'Assumptions Tab'!$C$65:$F$125,4,TRUE) ->  | X22: =X$13*VLOOKUP(X4,'Assumptions Tab'!$C$65:$F$125,4,TRUE) ->  | Y22: =Y$13*VLOOKUP(Y4,'Assumptions Tab'!$C$65:$F$125,4,TRUE) ->  | Z22: =Z$13*VLOOKUP(Z4,'Assumptions Tab'!$C$65:$F$125,4,TRUE) ->  | AA22: =AA$13*VLOOKUP(AA4,'Assumptions Tab'!$C$65:$F$125,4,TRUE) ->  | AB22: =AB$13*VLOOKUP(AB4,'Assumptions Tab'!$C$65:$F$125,4,TRUE) ->  | AC22: =AC$13*VLOOKUP(AC4,'Assumptions Tab'!$C$65:$F$125,4,TRUE) ->  | AD22: =AD$13*VLOOKUP(AD4,'Assumptions Tab'!$C$65:$F$125,4,TRUE) ->  | AE22: =AE$13*VLOOKUP(AE4,'Assumptions Tab'!$C$65:$F$125,4,TRUE) ->  | AF22: =AF$13*VLOOKUP(AF4,'Assumptions Tab'!$C$65:$F$125,4,TRUE) ->  | AG22: =AG$13*VLOOKUP(AG4,'Assumptions Tab'!$C$65:$F$125,4,TRUE) ->  | AH22: =AH$13*VLOOKUP(AH4,'Assumptions Tab'!$C$65:$F$125,4,TRUE) ->  | AI22: =AI$13*VLOOKUP(AI4,'Assumptions Tab'!$C$65:$F$125,4,TRUE) ->  | AJ22: =AJ$13*VLOOKUP(AJ4,'Assumptions Tab'!$C$65:$F$125,4,TRUE) ->  | AK22: =AK$13*VLOOKUP(AK4,'Assumptions Tab'!$C$65:$F$125,4,TRUE) ->  | AL22: =AL$13*VLOOKUP(AL4,'Assumptions Tab'!$C$65:$F$125,4,TRUE) ->  | AM22: =AM$13*VLOOKUP(AM4,'Assumptions Tab'!$C$65:$F$125,4,TRUE) ->  | AN22: =AN$13*VLOOKUP(AN4,'Assumptions Tab'!$C$65:$F$125,4,TRUE) ->  | AO22: =AO$13*VLOOKUP(AO4,'Assumptions Tab'!$C$65:$F$125,4,TRUE) ->  | AP22: =AP$13*VLOOKUP(AP4,'Assumptions Tab'!$C$65:$F$125,4,TRUE) -> 
B23: Video Tx | C23: =C22*'Assumptions Tab'!$D$140 ->  | D23: =D22*'Assumptions Tab'!$D$140 ->  | E23: =E22*'Assumptions Tab'!$D$140 ->  | F23: =F22*'Assumptions Tab'!$D$140 ->  | G23: =G22*'Assumptions Tab'!$D$140 ->  | H23: =H22*'Assumptions Tab'!$D$140 ->  | I23: =I22*'Assumptions Tab'!$D$140 ->  | J23: =J22*'Assumptions Tab'!$D$140 ->  | K23: =K22*'Assumptions Tab'!$D$140 ->  | L23: =L22*'Assumptions Tab'!$D$140 ->  | M23: =M22*'Assumptions Tab'!$D$140 ->  | N23: =N22*'Assumptions Tab'!$D$140 ->  | O23: =O22*'Assumptions Tab'!$D$140 ->  | P23: =P22*'Assumptions Tab'!$D$140 ->  | Q23: =Q22*'Assumptions Tab'!$D$140 ->  | R23: =R22*'Assumptions Tab'!$D$140 ->  | S23: =S22*'Assumptions Tab'!$D$140 ->  | T23: =T22*'Assumptions Tab'!$D$140 ->  | U23: =U22*'Assumptions Tab'!$D$140 ->  | V23: =V22*'Assumptions Tab'!$D$140 ->  | W23: =W22*'Assumptions Tab'!$D$140 ->  | X23: =X22*'Assumptions Tab'!$D$140 ->  | Y23: =Y22*'Assumptions Tab'!$D$140 ->  | Z23: =Z22*'Assumptions Tab'!$D$140 ->  | AA23: =AA22*'Assumptions Tab'!$D$140 ->  | AB23: =AB22*'Assumptions Tab'!$D$140 ->  | AC23: =AC22*'Assumptions Tab'!$D$140 ->  | AD23: =AD22*'Assumptions Tab'!$D$140 ->  | AE23: =AE22*'Assumptions Tab'!$D$140 ->  | AF23: =AF22*'Assumptions Tab'!$D$140 ->  | AG23: =AG22*'Assumptions Tab'!$D$140 ->  | AH23: =AH22*'Assumptions Tab'!$D$140 ->  | AI23: =AI22*'Assumptions Tab'!$D$140 ->  | AJ23: =AJ22*'Assumptions Tab'!$D$140 ->  | AK23: =AK22*'Assumptions Tab'!$D$140 ->  | AL23: =AL22*'Assumptions Tab'!$D$140 ->  | AM23: =AM22*'Assumptions Tab'!$D$140 ->  | AN23: =AN22*'Assumptions Tab'!$D$140 ->  | AO23: =AO22*'Assumptions Tab'!$D$140 ->  | AP23: =AP22*'Assumptions Tab'!$D$140 -> 
B24: Video processing cost/trip | C24: ='Assumptions Tab'!$E$23*(1+'Assumptions Tab'!$E$26)^(C$4-'Assumptions Tab'!$E$25) -> 0.53 | D24: ='Assumptions Tab'!$E$23*(1+'Assumptions Tab'!$E$26)^(D$4-'Assumptions Tab'!$E$25) -> 0.53 | E24: ='Assumptions Tab'!$E$23*(1+'Assumptions Tab'!$E$26)^(E$4-'Assumptions Tab'!$E$25) -> 0.53 | F24: ='Assumptions Tab'!$E$23*(1+'Assumptions Tab'!$E$26)^(F$4-'Assumptions Tab'!$E$25) -> 0.53 | G24: ='Assumptions Tab'!$E$23*(1+'Assumptions Tab'!$E$26)^(G$4-'Assumptions Tab'!$E$25) -> 0.53 | H24: ='Assumptions Tab'!$E$23*(1+'Assumptions Tab'!$E$26)^(H$4-'Assumptions Tab'!$E$25) -> 0.53 | I24: ='Assumptions Tab'!$E$23*(1+'Assumptions Tab'!$E$26)^(I$4-'Assumptions Tab'!$E$25) -> 0.53 | J24: ='Assumptions Tab'!$E$23*(1+'Assumptions Tab'!$E$26)^(J$4-'Assumptions Tab'!$E$25) -> 0.53 | K24: ='Assumptions Tab'!$E$23*(1+'Assumptions Tab'!$E$26)^(K$4-'Assumptions Tab'!$E$25) -> 0.53 | L24: ='Assumptions Tab'!$E$23*(1+'Assumptions Tab'!$E$26)^(L$4-'Assumptions Tab'!$E$25) -> 0.53 | M24: ='Assumptions Tab'!$E$23*(1+'Assumptions Tab'!$E$26)^(M$4-'Assumptions Tab'!$E$25) -> 0.53 | N24: ='Assumptions Tab'!$E$23*(1+'Assumptions Tab'!$E$26)^(N$4-'Assumptions Tab'!$E$25) -> 0.53 | O24: ='Assumptions Tab'!$E$23*(1+'Assumptions Tab'!$E$26)^(O$4-'Assumptions Tab'!$E$25) -> 0.53 | P24: ='Assumptions Tab'!$E$23*(1+'Assumptions Tab'!$E$26)^(P$4-'Assumptions Tab'!$E$25) -> 0.53 | Q24: ='Assumptions Tab'!$E$23*(1+'Assumptions Tab'!$E$26)^(Q$4-'Assumptions Tab'!$E$25) -> 0.53 | R24: ='Assumptions Tab'!$E$23*(1+'Assumptions Tab'!$E$26)^(R$4-'Assumptions Tab'!$E$25) -> 0.53 | S24: ='Assumptions Tab'!$E$23*(1+'Assumptions Tab'!$E$26)^(S$4-'Assumptions Tab'!$E$25) -> 0.53 | T24: ='Assumptions Tab'!$E$23*(1+'Assumptions Tab'!$E$26)^(T$4-'Assumptions Tab'!$E$25) -> 0.53 | U24: ='Assumptions Tab'!$E$23*(1+'Assumptions Tab'!$E$26)^(U$4-'Assumptions Tab'!$E$25) -> 0.53 | V24: ='Assumptions Tab'!$E$23*(1+'Assumptions Tab'!$E$26)^(V$4-'Assumptions Tab'!$E$25) -> 0.53 | W24: ='Assumptions Tab'!$E$23*(1+'Assumptions Tab'!$E$26)^(W$4-'Assumptions Tab'!$E$25) -> 0.53 | X24: ='Assumptions Tab'!$E$23*(1+'Assumptions Tab'!$E$26)^(X$4-'Assumptions Tab'!$E$25) -> 0.53 | Y24: ='Assumptions Tab'!$E$23*(1+'Assumptions Tab'!$E$26)^(Y$4-'Assumptions Tab'!$E$25) -> 0.53 | Z24: ='Assumptions Tab'!$E$23*(1+'Assumptions Tab'!$E$26)^(Z$4-'Assumptions Tab'!$E$25) -> 0.53 | AA24: ='Assumptions Tab'!$E$23*(1+'Assumptions Tab'!$E$26)^(AA$4-'Assumptions Tab'!$E$25) -> 0.53 | AB24: ='Assumptions Tab'!$E$23*(1+'Assumptions Tab'!$E$26)^(AB$4-'Assumptions Tab'!$E$25) -> 0.53 | AC24: ='Assumptions Tab'!$E$23*(1+'Assumptions Tab'!$E$26)^(AC$4-'Assumptions Tab'!$E$25) -> 0.53 | AD24: ='Assumptions Tab'!$E$23*(1+'Assumptions Tab'!$E$26)^(AD$4-'Assumptions Tab'!$E$25) -> 0.53 | AE24: ='Assumptions Tab'!$E$23*(1+'Assumptions Tab'!$E$26)^(AE$4-'Assumptions Tab'!$E$25) -> 0.53 | AF24: ='Assumptions Tab'!$E$23*(1+'Assumptions Tab'!$E$26)^(AF$4-'Assumptions Tab'!$E$25) -> 0.53 | AG24: ='Assumptions Tab'!$E$23*(1+'Assumptions Tab'!$E$26)^(AG$4-'Assumptions Tab'!$E$25) -> 0.53 | AH24: ='Assumptions Tab'!$E$23*(1+'Assumptions Tab'!$E$26)^(AH$4-'Assumptions Tab'!$E$25) -> 0.53 | AI24: ='Assumptions Tab'!$E$23*(1+'Assumptions Tab'!$E$26)^(AI$4-'Assumptions Tab'!$E$25) -> 0.53 | AJ24: ='Assumptions Tab'!$E$23*(1+'Assumptions Tab'!$E$26)^(AJ$4-'Assumptions Tab'!$E$25) -> 0.53 | AK24: ='Assumptions Tab'!$E$23*(1+'Assumptions Tab'!$E$26)^(AK$4-'Assumptions Tab'!$E$25) -> 0.53 | AL24: ='Assumptions Tab'!$E$23*(1+'Assumptions Tab'!$E$26)^(AL$4-'Assumptions Tab'!$E$25) -> 0.53 | AM24: ='Assumptions Tab'!$E$23*(1+'Assumptions Tab'!$E$26)^(AM$4-'Assumptions Tab'!$E$25) -> 0.53 | AN24: ='Assumptions Tab'!$E$23*(1+'Assumptions Tab'!$E$26)^(AN$4-'Assumptions Tab'!$E$25) -> 0.53 | AO24: ='Assumptions Tab'!$E$23*(1+'Assumptions Tab'!$E$26)^(AO$4-'Assumptions Tab'!$E$25) -> 0.53 | AP24: ='Assumptions Tab'!$E$23*(1+'Assumptions Tab'!$E$26)^(AP$4-'Assumptions Tab'!$E$25) -> 0.53
B25: Video Processing Cost | C25: =C22*C24 -> 
B26: Fare Collection Costs ($M) | C26: =(C11+C17+C21+C25) ->  | D26: =(D11+D17+D21+D25) -> 
B27: Enforcement ($M) | C27: ='Assumptions Tab'!$E$30*(1+'Express Lanes'!$I$36)^(C4-'Assumptions Tab'!$E$31) -> 8.575726208e-17 | D27: ='Assumptions Tab'!$E$30*(1+'Express Lanes'!$I$36)^(D4-'Assumptions Tab'!$E$31) -> 8.790119364e-17 | E27: ='Assumptions Tab'!$E$30*(1+'Express Lanes'!$I$36)^(E4-'Assumptions Tab'!$E$31) -> 9.009872348e-17 | F27: ='Assumptions Tab'!$E$30*(1+'Express Lanes'!$I$36)^(F4-'Assumptions Tab'!$E$31) -> 9.235119156e-17 | G27: ='Assumptions Tab'!$E$30*(1+'Express Lanes'!$I$36)^(G4-'Assumptions Tab'!$E$31) -> 9.465997135e-17 | H27: ='Assumptions Tab'!$E$30*(1+'Express Lanes'!$I$36)^(H4-'Assumptions Tab'!$E$31) -> 9.702647064e-17 | I27: ='Assumptions Tab'!$E$30*(1+'Express Lanes'!$I$36)^(I4-'Assumptions Tab'!$E$31) -> 9.94521324e-17 | J27: ='Assumptions Tab'!$E$30*(1+'Express Lanes'!$I$36)^(J4-'Assumptions Tab'!$E$31) -> 1.019384357e-16 | K27: ='Assumptions Tab'!$E$30*(1+'Express Lanes'!$I$36)^(K4-'Assumptions Tab'!$E$31) -> 1.044868966e-16 | L27: ='Assumptions Tab'!$E$30*(1+'Express Lanes'!$I$36)^(L4-'Assumptions Tab'!$E$31) -> 1.07099069e-16 | M27: ='Assumptions Tab'!$E$30*(1+'Express Lanes'!$I$36)^(M4-'Assumptions Tab'!$E$31) -> 1.097765457e-16 | N27: ='Assumptions Tab'!$E$30*(1+'Express Lanes'!$I$36)^(N4-'Assumptions Tab'!$E$31) -> 1.125209594e-16 | O27: ='Assumptions Tab'!$E$30*(1+'Express Lanes'!$I$36)^(O4-'Assumptions Tab'!$E$31) -> 1.153339834e-16 | P27: ='Assumptions Tab'!$E$30*(1+'Express Lanes'!$I$36)^(P4-'Assumptions Tab'!$E$31) -> 1.18217333e-16 | Q27: ='Assumptions Tab'!$E$30*(1+'Express Lanes'!$I$36)^(Q4-'Assumptions Tab'!$E$31) -> 1.211727663e-16 | R27: ='Assumptions Tab'!$E$30*(1+'Express Lanes'!$I$36)^(R4-'Assumptions Tab'!$E$31) -> 1.242020854e-16 | S27: ='Assumptions Tab'!$E$30*(1+'Express Lanes'!$I$36)^(S4-'Assumptions Tab'!$E$31) -> 1.273071376e-16 | T27: ='Assumptions Tab'!$E$30*(1+'Express Lanes'!$I$36)^(T4-'Assumptions Tab'!$E$31) -> 1.30489816e-16 | U27: ='Assumptions Tab'!$E$30*(1+'Express Lanes'!$I$36)^(U4-'Assumptions Tab'!$E$31) -> 1.337520614e-16 | V27: ='Assumptions Tab'!$E$30*(1+'Express Lanes'!$I$36)^(V4-'Assumptions Tab'!$E$31) -> 1.370958629e-16 | W27: ='Assumptions Tab'!$E$30*(1+'Express Lanes'!$I$36)^(W4-'Assumptions Tab'!$E$31) -> 1.405232595e-16 | X27: ='Assumptions Tab'!$E$30*(1+'Express Lanes'!$I$36)^(X4-'Assumptions Tab'!$E$31) -> 1.44036341e-16 | Y27: ='Assumptions Tab'!$E$30*(1+'Express Lanes'!$I$36)^(Y4-'Assumptions Tab'!$E$31) -> 1.476372495e-16 | Z27: ='Assumptions Tab'!$E$30*(1+'Express Lanes'!$I$36)^(Z4-'Assumptions Tab'!$E$31) -> 1.513281808e-16 | AA27: ='Assumptions Tab'!$E$30*(1+'Express Lanes'!$I$36)^(AA4-'Assumptions Tab'!$E$31) -> 1.551113853e-16 | AB27: ='Assumptions Tab'!$E$30*(1+'Express Lanes'!$I$36)^(AB4-'Assumptions Tab'!$E$31) -> 1.589891699e-16 | AC27: ='Assumptions Tab'!$E$30*(1+'Express Lanes'!$I$36)^(AC4-'Assumptions Tab'!$E$31) -> 1.629638992e-16 | AD27: ='Assumptions Tab'!$E$30*(1+'Express Lanes'!$I$36)^(AD4-'Assumptions Tab'!$E$31) -> 1.670379967e-16 | AE27: ='Assumptions Tab'!$E$30*(1+'Express Lanes'!$I$36)^(AE4-'Assumptions Tab'!$E$31) -> 1.712139466e-16 | AF27: ='Assumptions Tab'!$E$30*(1+'Express Lanes'!$I$36)^(AF4-'Assumptions Tab'!$E$31) -> 1.754942952e-16 | AG27: ='Assumptions Tab'!$E$30*(1+'Express Lanes'!$I$36)^(AG4-'Assumptions Tab'!$E$31) -> 1.798816526e-16 | AH27: ='Assumptions Tab'!$E$30*(1+'Express Lanes'!$I$36)^(AH4-'Assumptions Tab'!$E$31) -> 1.843786939e-16 | AI27: ='Assumptions Tab'!$E$30*(1+'Express Lanes'!$I$36)^(AI4-'Assumptions Tab'!$E$31) -> 1.889881613e-16 | AJ27: ='Assumptions Tab'!$E$30*(1+'Express Lanes'!$I$36)^(AJ4-'Assumptions Tab'!$E$31) -> 1.937128653e-16 | AK27: ='Assumptions Tab'!$E$30*(1+'Express Lanes'!$I$36)^(AK4-'Assumptions Tab'!$E$31) -> 1.985556869e-16 | AL27: ='Assumptions Tab'!$E$30*(1+'Express Lanes'!$I$36)^(AL4-'Assumptions Tab'!$E$31) -> 2.035195791e-16 | AM27: ='Assumptions Tab'!$E$30*(1+'Express Lanes'!$I$36)^(AM4-'Assumptions Tab'!$E$31) -> 2.086075686e-16 | AN27: ='Assumptions Tab'!$E$30*(1+'Express Lanes'!$I$36)^(AN4-'Assumptions Tab'!$E$31) -> 2.138227578e-16 | AO27: ='Assumptions Tab'!$E$30*(1+'Express Lanes'!$I$36)^(AO4-'Assumptions Tab'!$E$31) -> 2.191683268e-16 | AP27: ='Assumptions Tab'!$E$30*(1+'Express Lanes'!$I$36)^(AP4-'Assumptions Tab'!$E$31) -> 2.246475349e-16
B28: Roadway per-mile maintenance costs | C28: =ROUND('Express Lanes'!$I$34*(1+'Express Lanes'!$I$36)^(C4-2018),-2) -> 0 | D28: =ROUND('Express Lanes'!$I$34*(1+'Express Lanes'!$I$36)^(D4-2018),-2) -> 0 | E28: =ROUND('Express Lanes'!$I$34*(1+'Express Lanes'!$I$36)^(E4-2018),-2) -> 0 | F28: =ROUND('Express Lanes'!$I$34*(1+'Express Lanes'!$I$36)^(F4-2018),-2) -> 0 | G28: =ROUND('Express Lanes'!$I$34*(1+'Express Lanes'!$I$36)^(G4-2018),-2) -> 0 | H28: =ROUND('Express Lanes'!$I$34*(1+'Express Lanes'!$I$36)^(H4-2018),-2) -> 0 | I28: =ROUND('Express Lanes'!$I$34*(1+'Express Lanes'!$I$36)^(I4-2018),-2) -> 0 | J28: =ROUND('Express Lanes'!$I$34*(1+'Express Lanes'!$I$36)^(J4-2018),-2) -> 0 | K28: =ROUND('Express Lanes'!$I$34*(1+'Express Lanes'!$I$36)^(K4-2018),-2) -> 0 | L28: =ROUND('Express Lanes'!$I$34*(1+'Express Lanes'!$I$36)^(L4-2018),-2) -> 0 | M28: =ROUND('Express Lanes'!$I$34*(1+'Express Lanes'!$I$36)^(M4-2018),-2) -> 0 | N28: =ROUND('Express Lanes'!$I$34*(1+'Express Lanes'!$I$36)^(N4-2018),-2) -> 0 | O28: =ROUND('Express Lanes'!$I$34*(1+'Express Lanes'!$I$36)^(O4-2018),-2) -> 0 | P28: =ROUND('Express Lanes'!$I$34*(1+'Express Lanes'!$I$36)^(P4-2018),-2) -> 0 | Q28: =ROUND('Express Lanes'!$I$34*(1+'Express Lanes'!$I$36)^(Q4-2018),-2) -> 0 | R28: =ROUND('Express Lanes'!$I$34*(1+'Express Lanes'!$I$36)^(R4-2018),-2) -> 0 | S28: =ROUND('Express Lanes'!$I$34*(1+'Express Lanes'!$I$36)^(S4-2018),-2) -> 0 | T28: =ROUND('Express Lanes'!$I$34*(1+'Express Lanes'!$I$36)^(T4-2018),-2) -> 0 | U28: =ROUND('Express Lanes'!$I$34*(1+'Express Lanes'!$I$36)^(U4-2018),-2) -> 0 | V28: =ROUND('Express Lanes'!$I$34*(1+'Express Lanes'!$I$36)^(V4-2018),-2) -> 0 | W28: =ROUND('Express Lanes'!$I$34*(1+'Express Lanes'!$I$36)^(W4-2018),-2) -> 0 | X28: =ROUND('Express Lanes'!$I$34*(1+'Express Lanes'!$I$36)^(X4-2018),-2) -> 0 | Y28: =ROUND('Express Lanes'!$I$34*(1+'Express Lanes'!$I$36)^(Y4-2018),-2) -> 0 | Z28: =ROUND('Express Lanes'!$I$34*(1+'Express Lanes'!$I$36)^(Z4-2018),-2) -> 0 | AA28: =ROUND('Express Lanes'!$I$34*(1+'Express Lanes'!$I$36)^(AA4-2018),-2) -> 0 | AB28: =ROUND('Express Lanes'!$I$34*(1+'Express Lanes'!$I$36)^(AB4-2018),-2) -> 0 | AC28: =ROUND('Express Lanes'!$I$34*(1+'Express Lanes'!$I$36)^(AC4-2018),-2) -> 0 | AD28: =ROUND('Express Lanes'!$I$34*(1+'Express Lanes'!$I$36)^(AD4-2018),-2) -> 0 | AE28: =ROUND('Express Lanes'!$I$34*(1+'Express Lanes'!$I$36)^(AE4-2018),-2) -> 0 | AF28: =ROUND('Express Lanes'!$I$34*(1+'Express Lanes'!$I$36)^(AF4-2018),-2) -> 0 | AG28: =ROUND('Express Lanes'!$I$34*(1+'Express Lanes'!$I$36)^(AG4-2018),-2) -> 0 | AH28: =ROUND('Express Lanes'!$I$34*(1+'Express Lanes'!$I$36)^(AH4-2018),-2) -> 0 | AI28: =ROUND('Express Lanes'!$I$34*(1+'Express Lanes'!$I$36)^(AI4-2018),-2) -> 0 | AJ28: =ROUND('Express Lanes'!$I$34*(1+'Express Lanes'!$I$36)^(AJ4-2018),-2) -> 0 | AK28: =ROUND('Express Lanes'!$I$34*(1+'Express Lanes'!$I$36)^(AK4-2018),-2) -> 0 | AL28: =ROUND('Express Lanes'!$I$34*(1+'Express Lanes'!$I$36)^(AL4-2018),-2) -> 0 | AM28: =ROUND('Express Lanes'!$I$34*(1+'Express Lanes'!$I$36)^(AM4-2018),-2) -> 0 | AN28: =ROUND('Express Lanes'!$I$34*(1+'Express Lanes'!$I$36)^(AN4-2018),-2) -> 0 | AO28: =ROUND('Express Lanes'!$I$34*(1+'Express Lanes'!$I$36)^(AO4-2018),-2) -> 0 | AP28: =ROUND('Express Lanes'!$I$34*(1+'Express Lanes'!$I$36)^(AP4-2018),-2) -> 0
B29: EL Annual Maintenance Costs ($M) | C29: =C28*'Express Lanes'!$C$10*'EL_Calcs #2'!C11 -> 0 | D29: =D28*'Express Lanes'!$C$10*'EL_Calcs #2'!D11 -> 0 | E29: =E28*'Express Lanes'!$C$10*'EL_Calcs #2'!E11 -> 0 | F29: =F28*'Express Lanes'!$C$10*'EL_Calcs #2'!F11 -> 0 | G29: =G28*'Express Lanes'!$C$10*'EL_Calcs #2'!G11 -> 0 | H29: =H28*'Express Lanes'!$C$10*'EL_Calcs #2'!H11 -> 0 | I29: =I28*'Express Lanes'!$C$10*'EL_Calcs #2'!I11 -> 0 | J29: =J28*'Express Lanes'!$C$10*'EL_Calcs #2'!J11 -> 0 | K29: =K28*'Express Lanes'!$C$10*'EL_Calcs #2'!K11 -> 0 | L29: =L28*'Express Lanes'!$C$10*'EL_Calcs #2'!L11 -> 0 | M29: =M28*'Express Lanes'!$C$10*'EL_Calcs #2'!M11 -> 0 | N29: =N28*'Express Lanes'!$C$10*'EL_Calcs #2'!N11 -> 0 | O29: =O28*'Express Lanes'!$C$10*'EL_Calcs #2'!O11 -> 0 | P29: =P28*'Express Lanes'!$C$10*'EL_Calcs #2'!P11 -> 0 | Q29: =Q28*'Express Lanes'!$C$10*'EL_Calcs #2'!Q11 -> 0 | R29: =R28*'Express Lanes'!$C$10*'EL_Calcs #2'!R11 -> 0 | S29: =S28*'Express Lanes'!$C$10*'EL_Calcs #2'!S11 -> 0 | T29: =T28*'Express Lanes'!$C$10*'EL_Calcs #2'!T11 -> 0 | U29: =U28*'Express Lanes'!$C$10*'EL_Calcs #2'!U11 -> 0 | V29: =V28*'Express Lanes'!$C$10*'EL_Calcs #2'!V11 -> 0 | W29: =W28*'Express Lanes'!$C$10*'EL_Calcs #2'!W11 -> 0 | X29: =X28*'Express Lanes'!$C$10*'EL_Calcs #2'!X11 -> 0 | Y29: =Y28*'Express Lanes'!$C$10*'EL_Calcs #2'!Y11 -> 0 | Z29: =Z28*'Express Lanes'!$C$10*'EL_Calcs #2'!Z11 -> 0 | AA29: =AA28*'Express Lanes'!$C$10*'EL_Calcs #2'!AA11 -> 0 | AB29: =AB28*'Express Lanes'!$C$10*'EL_Calcs #2'!AB11 -> 0 | AC29: =AC28*'Express Lanes'!$C$10*'EL_Calcs #2'!AC11 -> 0 | AD29: =AD28*'Express Lanes'!$C$10*'EL_Calcs #2'!AD11 -> 0 | AE29: =AE28*'Express Lanes'!$C$10*'EL_Calcs #2'!AE11 -> 0 | AF29: =AF28*'Express Lanes'!$C$10*'EL_Calcs #2'!AF11 -> 0 | AG29: =AG28*'Express Lanes'!$C$10*'EL_Calcs #2'!AG11 -> 0 | AH29: =AH28*'Express Lanes'!$C$10*'EL_Calcs #2'!AH11 -> 0 | AI29: =AI28*'Express Lanes'!$C$10*'EL_Calcs #2'!AI11 -> 0 | AJ29: =AJ28*'Express Lanes'!$C$10*'EL_Calcs #2'!AJ11 -> 0 | AK29: =AK28*'Express Lanes'!$C$10*'EL_Calcs #2'!AK11 -> 0 | AL29: =AL28*'Express Lanes'!$C$10*'EL_Calcs #2'!AL11 -> 0 | AM29: =AM28*'Express Lanes'!$C$10*'EL_Calcs #2'!AM11 -> 0 | AN29: =AN28*'Express Lanes'!$C$10*'EL_Calcs #2'!AN11 -> 0 | AO29: =AO28*'Express Lanes'!$C$10*'EL_Calcs #2'!AO11 -> 0 | AP29: =AP28*'Express Lanes'!$C$10*'EL_Calcs #2'!AP11 -> 0
B30: Toll System Maint. Costs ($M) | C30: =('Express Lanes'!$C$10*'Express Lanes'!$C$12*'Assumptions Tab'!$E$50)*(1+'Express Lanes'!$I$36)^(C4-'Assumptions Tab'!$E$51) -> 0 | D30: =('Express Lanes'!$C$10*'Express Lanes'!$C$12*'Assumptions Tab'!$E$50)*(1+'Express Lanes'!$I$36)^(D4-'Assumptions Tab'!$E$51) -> 0 | E30: =('Express Lanes'!$C$10*'Express Lanes'!$C$12*'Assumptions Tab'!$E$50)*(1+'Express Lanes'!$I$36)^(E4-'Assumptions Tab'!$E$51) -> 0 | F30: =('Express Lanes'!$C$10*'Express Lanes'!$C$12*'Assumptions Tab'!$E$50)*(1+'Express Lanes'!$I$36)^(F4-'Assumptions Tab'!$E$51) -> 0 | G30: =('Express Lanes'!$C$10*'Express Lanes'!$C$12*'Assumptions Tab'!$E$50)*(1+'Express Lanes'!$I$36)^(G4-'Assumptions Tab'!$E$51) -> 0 | H30: =('Express Lanes'!$C$10*'Express Lanes'!$C$12*'Assumptions Tab'!$E$50)*(1+'Express Lanes'!$I$36)^(H4-'Assumptions Tab'!$E$51) -> 0 | I30: =('Express Lanes'!$C$10*'Express Lanes'!$C$12*'Assumptions Tab'!$E$50)*(1+'Express Lanes'!$I$36)^(I4-'Assumptions Tab'!$E$51) -> 0 | J30: =('Express Lanes'!$C$10*'Express Lanes'!$C$12*'Assumptions Tab'!$E$50)*(1+'Express Lanes'!$I$36)^(J4-'Assumptions Tab'!$E$51) -> 0 | K30: =('Express Lanes'!$C$10*'Express Lanes'!$C$12*'Assumptions Tab'!$E$50)*(1+'Express Lanes'!$I$36)^(K4-'Assumptions Tab'!$E$51) -> 0 | L30: =('Express Lanes'!$C$10*'Express Lanes'!$C$12*'Assumptions Tab'!$E$50)*(1+'Express Lanes'!$I$36)^(L4-'Assumptions Tab'!$E$51) -> 0 | M30: =('Express Lanes'!$C$10*'Express Lanes'!$C$12*'Assumptions Tab'!$E$50)*(1+'Express Lanes'!$I$36)^(M4-'Assumptions Tab'!$E$51) -> 0 | N30: =('Express Lanes'!$C$10*'Express Lanes'!$C$12*'Assumptions Tab'!$E$50)*(1+'Express Lanes'!$I$36)^(N4-'Assumptions Tab'!$E$51) -> 0 | O30: =('Express Lanes'!$C$10*'Express Lanes'!$C$12*'Assumptions Tab'!$E$50)*(1+'Express Lanes'!$I$36)^(O4-'Assumptions Tab'!$E$51) -> 0 | P30: =('Express Lanes'!$C$10*'Express Lanes'!$C$12*'Assumptions Tab'!$E$50)*(1+'Express Lanes'!$I$36)^(P4-'Assumptions Tab'!$E$51) -> 0 | Q30: =('Express Lanes'!$C$10*'Express Lanes'!$C$12*'Assumptions Tab'!$E$50)*(1+'Express Lanes'!$I$36)^(Q4-'Assumptions Tab'!$E$51) -> 0 | R30: =('Express Lanes'!$C$10*'Express Lanes'!$C$12*'Assumptions Tab'!$E$50)*(1+'Express Lanes'!$I$36)^(R4-'Assumptions Tab'!$E$51) -> 0 | S30: =('Express Lanes'!$C$10*'Express Lanes'!$C$12*'Assumptions Tab'!$E$50)*(1+'Express Lanes'!$I$36)^(S4-'Assumptions Tab'!$E$51) -> 0 | T30: =('Express Lanes'!$C$10*'Express Lanes'!$C$12*'Assumptions Tab'!$E$50)*(1+'Express Lanes'!$I$36)^(T4-'Assumptions Tab'!$E$51) -> 0 | U30: =('Express Lanes'!$C$10*'Express Lanes'!$C$12*'Assumptions Tab'!$E$50)*(1+'Express Lanes'!$I$36)^(U4-'Assumptions Tab'!$E$51) -> 0 | V30: =('Express Lanes'!$C$10*'Express Lanes'!$C$12*'Assumptions Tab'!$E$50)*(1+'Express Lanes'!$I$36)^(V4-'Assumptions Tab'!$E$51) -> 0 | W30: =('Express Lanes'!$C$10*'Express Lanes'!$C$12*'Assumptions Tab'!$E$50)*(1+'Express Lanes'!$I$36)^(W4-'Assumptions Tab'!$E$51) -> 0 | X30: =('Express Lanes'!$C$10*'Express Lanes'!$C$12*'Assumptions Tab'!$E$50)*(1+'Express Lanes'!$I$36)^(X4-'Assumptions Tab'!$E$51) -> 0 | Y30: =('Express Lanes'!$C$10*'Express Lanes'!$C$12*'Assumptions Tab'!$E$50)*(1+'Express Lanes'!$I$36)^(Y4-'Assumptions Tab'!$E$51) -> 0 | Z30: =('Express Lanes'!$C$10*'Express Lanes'!$C$12*'Assumptions Tab'!$E$50)*(1+'Express Lanes'!$I$36)^(Z4-'Assumptions Tab'!$E$51) -> 0 | AA30: =('Express Lanes'!$C$10*'Express Lanes'!$C$12*'Assumptions Tab'!$E$50)*(1+'Express Lanes'!$I$36)^(AA4-'Assumptions Tab'!$E$51) -> 0 | AB30: =('Express Lanes'!$C$10*'Express Lanes'!$C$12*'Assumptions Tab'!$E$50)*(1+'Express Lanes'!$I$36)^(AB4-'Assumptions Tab'!$E$51) -> 0 | AC30: =('Express Lanes'!$C$10*'Express Lanes'!$C$12*'Assumptions Tab'!$E$50)*(1+'Express Lanes'!$I$36)^(AC4-'Assumptions Tab'!$E$51) -> 0 | AD30: =('Express Lanes'!$C$10*'Express Lanes'!$C$12*'Assumptions Tab'!$E$50)*(1+'Express Lanes'!$I$36)^(AD4-'Assumptions Tab'!$E$51) -> 0 | AE30: =('Express Lanes'!$C$10*'Express Lanes'!$C$12*'Assumptions Tab'!$E$50)*(1+'Express Lanes'!$I$36)^(AE4-'Assumptions Tab'!$E$51) -> 0 | AF30: =('Express Lanes'!$C$10*'Express Lanes'!$C$12*'Assumptions Tab'!$E$50)*(1+'Express Lanes'!$I$36)^(AF4-'Assumptions Tab'!$E$51) -> 0 | AG30: =('Express Lanes'!$C$10*'Express Lanes'!$C$12*'Assumptions Tab'!$E$50)*(1+'Express Lanes'!$I$36)^(AG4-'Assumptions Tab'!$E$51) -> 0 | AH30: =('Express Lanes'!$C$10*'Express Lanes'!$C$12*'Assumptions Tab'!$E$50)*(1+'Express Lanes'!$I$36)^(AH4-'Assumptions Tab'!$E$51) -> 0 | AI30: =('Express Lanes'!$C$10*'Express Lanes'!$C$12*'Assumptions Tab'!$E$50)*(1+'Express Lanes'!$I$36)^(AI4-'Assumptions Tab'!$E$51) -> 0 | AJ30: =('Express Lanes'!$C$10*'Express Lanes'!$C$12*'Assumptions Tab'!$E$50)*(1+'Express Lanes'!$I$36)^(AJ4-'Assumptions Tab'!$E$51) -> 0 | AK30: =('Express Lanes'!$C$10*'Express Lanes'!$C$12*'Assumptions Tab'!$E$50)*(1+'Express Lanes'!$I$36)^(AK4-'Assumptions Tab'!$E$51) -> 0 | AL30: =('Express Lanes'!$C$10*'Express Lanes'!$C$12*'Assumptions Tab'!$E$50)*(1+'Express Lanes'!$I$36)^(AL4-'Assumptions Tab'!$E$51) -> 0 | AM30: =('Express Lanes'!$C$10*'Express Lanes'!$C$12*'Assumptions Tab'!$E$50)*(1+'Express Lanes'!$I$36)^(AM4-'Assumptions Tab'!$E$51) -> 0 | AN30: =('Express Lanes'!$C$10*'Express Lanes'!$C$12*'Assumptions Tab'!$E$50)*(1+'Express Lanes'!$I$36)^(AN4-'Assumptions Tab'!$E$51) -> 0 | AO30: =('Express Lanes'!$C$10*'Express Lanes'!$C$12*'Assumptions Tab'!$E$50)*(1+'Express Lanes'!$I$36)^(AO4-'Assumptions Tab'!$E$51) -> 0 | AP30: =('Express Lanes'!$C$10*'Express Lanes'!$C$12*'Assumptions Tab'!$E$50)*(1+'Express Lanes'!$I$36)^(AP4-'Assumptions Tab'!$E$51) -> 0
B31: Toll R&R | C31: =('Assumptions Tab'!$E$45*'Express Lanes'!$C$10*'Express Lanes'!$C$12)*(1+'Express Lanes'!$I$36)^('EL_CostCalcs_WKST#4'!C4-'Assumptions Tab'!$E$47) -> 0 | D31: =('Assumptions Tab'!$E$45*'Express Lanes'!$C$10*'Express Lanes'!$C$12)*(1+'Express Lanes'!$I$36)^('EL_CostCalcs_WKST#4'!D4-'Assumptions Tab'!$E$47) -> 0 | E31: =('Assumptions Tab'!$E$45*'Express Lanes'!$C$10*'Express Lanes'!$C$12)*(1+'Express Lanes'!$I$36)^('EL_CostCalcs_WKST#4'!E4-'Assumptions Tab'!$E$47) -> 0 | F31: =('Assumptions Tab'!$E$45*'Express Lanes'!$C$10*'Express Lanes'!$C$12)*(1+'Express Lanes'!$I$36)^('EL_CostCalcs_WKST#4'!F4-'Assumptions Tab'!$E$47) -> 0 | G31: =('Assumptions Tab'!$E$45*'Express Lanes'!$C$10*'Express Lanes'!$C$12)*(1+'Express Lanes'!$I$36)^('EL_CostCalcs_WKST#4'!G4-'Assumptions Tab'!$E$47) -> 0 | H31: =('Assumptions Tab'!$E$45*'Express Lanes'!$C$10*'Express Lanes'!$C$12)*(1+'Express Lanes'!$I$36)^('EL_CostCalcs_WKST#4'!H4-'Assumptions Tab'!$E$47) -> 0 | I31: =('Assumptions Tab'!$E$45*'Express Lanes'!$C$10*'Express Lanes'!$C$12)*(1+'Express Lanes'!$I$36)^('EL_CostCalcs_WKST#4'!I4-'Assumptions Tab'!$E$47) -> 0 | J31: =('Assumptions Tab'!$E$45*'Express Lanes'!$C$10*'Express Lanes'!$C$12)*(1+'Express Lanes'!$I$36)^('EL_CostCalcs_WKST#4'!J4-'Assumptions Tab'!$E$47) -> 0 | K31: =('Assumptions Tab'!$E$45*'Express Lanes'!$C$10*'Express Lanes'!$C$12)*(1+'Express Lanes'!$I$36)^('EL_CostCalcs_WKST#4'!K4-'Assumptions Tab'!$E$47) -> 0 | L31: =('Assumptions Tab'!$E$45*'Express Lanes'!$C$10*'Express Lanes'!$C$12)*(1+'Express Lanes'!$I$36)^('EL_CostCalcs_WKST#4'!L4-'Assumptions Tab'!$E$47) -> 0 | M31: =('Assumptions Tab'!$E$45*'Express Lanes'!$C$10*'Express Lanes'!$C$12)*(1+'Express Lanes'!$I$36)^('EL_CostCalcs_WKST#4'!M4-'Assumptions Tab'!$E$47) -> 0 | N31: =('Assumptions Tab'!$E$45*'Express Lanes'!$C$10*'Express Lanes'!$C$12)*(1+'Express Lanes'!$I$36)^('EL_CostCalcs_WKST#4'!N4-'Assumptions Tab'!$E$47) -> 0 | O31: =('Assumptions Tab'!$E$45*'Express Lanes'!$C$10*'Express Lanes'!$C$12)*(1+'Express Lanes'!$I$36)^('EL_CostCalcs_WKST#4'!O4-'Assumptions Tab'!$E$47) -> 0 | P31: =('Assumptions Tab'!$E$45*'Express Lanes'!$C$10*'Express Lanes'!$C$12)*(1+'Express Lanes'!$I$36)^('EL_CostCalcs_WKST#4'!P4-'Assumptions Tab'!$E$47) -> 0 | Q31: =('Assumptions Tab'!$E$45*'Express Lanes'!$C$10*'Express Lanes'!$C$12)*(1+'Express Lanes'!$I$36)^('EL_CostCalcs_WKST#4'!Q4-'Assumptions Tab'!$E$47) -> 0 | R31: =('Assumptions Tab'!$E$45*'Express Lanes'!$C$10*'Express Lanes'!$C$12)*(1+'Express Lanes'!$I$36)^('EL_CostCalcs_WKST#4'!R4-'Assumptions Tab'!$E$47) -> 0 | S31: =('Assumptions Tab'!$E$45*'Express Lanes'!$C$10*'Express Lanes'!$C$12)*(1+'Express Lanes'!$I$36)^('EL_CostCalcs_WKST#4'!S4-'Assumptions Tab'!$E$47) -> 0 | T31: =('Assumptions Tab'!$E$45*'Express Lanes'!$C$10*'Express Lanes'!$C$12)*(1+'Express Lanes'!$I$36)^('EL_CostCalcs_WKST#4'!T4-'Assumptions Tab'!$E$47) -> 0 | U31: =('Assumptions Tab'!$E$45*'Express Lanes'!$C$10*'Express Lanes'!$C$12)*(1+'Express Lanes'!$I$36)^('EL_CostCalcs_WKST#4'!U4-'Assumptions Tab'!$E$47) -> 0 | V31: =('Assumptions Tab'!$E$45*'Express Lanes'!$C$10*'Express Lanes'!$C$12)*(1+'Express Lanes'!$I$36)^('EL_CostCalcs_WKST#4'!V4-'Assumptions Tab'!$E$47) -> 0 | W31: =('Assumptions Tab'!$E$45*'Express Lanes'!$C$10*'Express Lanes'!$C$12)*(1+'Express Lanes'!$I$36)^('EL_CostCalcs_WKST#4'!W4-'Assumptions Tab'!$E$47) -> 0 | X31: =('Assumptions Tab'!$E$45*'Express Lanes'!$C$10*'Express Lanes'!$C$12)*(1+'Express Lanes'!$I$36)^('EL_CostCalcs_WKST#4'!X4-'Assumptions Tab'!$E$47) -> 0 | Y31: =('Assumptions Tab'!$E$45*'Express Lanes'!$C$10*'Express Lanes'!$C$12)*(1+'Express Lanes'!$I$36)^('EL_CostCalcs_WKST#4'!Y4-'Assumptions Tab'!$E$47) -> 0 | Z31: =('Assumptions Tab'!$E$45*'Express Lanes'!$C$10*'Express Lanes'!$C$12)*(1+'Express Lanes'!$I$36)^('EL_CostCalcs_WKST#4'!Z4-'Assumptions Tab'!$E$47) -> 0 | AA31: =('Assumptions Tab'!$E$45*'Express Lanes'!$C$10*'Express Lanes'!$C$12)*(1+'Express Lanes'!$I$36)^('EL_CostCalcs_WKST#4'!AA4-'Assumptions Tab'!$E$47) -> 0 | AB31: =('Assumptions Tab'!$E$45*'Express Lanes'!$C$10*'Express Lanes'!$C$12)*(1+'Express Lanes'!$I$36)^('EL_CostCalcs_WKST#4'!AB4-'Assumptions Tab'!$E$47) -> 0 | AC31: =('Assumptions Tab'!$E$45*'Express Lanes'!$C$10*'Express Lanes'!$C$12)*(1+'Express Lanes'!$I$36)^('EL_CostCalcs_WKST#4'!AC4-'Assumptions Tab'!$E$47) -> 0 | AD31: =('Assumptions Tab'!$E$45*'Express Lanes'!$C$10*'Express Lanes'!$C$12)*(1+'Express Lanes'!$I$36)^('EL_CostCalcs_WKST#4'!AD4-'Assumptions Tab'!$E$47) -> 0 | AE31: =('Assumptions Tab'!$E$45*'Express Lanes'!$C$10*'Express Lanes'!$C$12)*(1+'Express Lanes'!$I$36)^('EL_CostCalcs_WKST#4'!AE4-'Assumptions Tab'!$E$47) -> 0 | AF31: =('Assumptions Tab'!$E$45*'Express Lanes'!$C$10*'Express Lanes'!$C$12)*(1+'Express Lanes'!$I$36)^('EL_CostCalcs_WKST#4'!AF4-'Assumptions Tab'!$E$47) -> 0 | AG31: =('Assumptions Tab'!$E$45*'Express Lanes'!$C$10*'Express Lanes'!$C$12)*(1+'Express Lanes'!$I$36)^('EL_CostCalcs_WKST#4'!AG4-'Assumptions Tab'!$E$47) -> 0 | AH31: =('Assumptions Tab'!$E$45*'Express Lanes'!$C$10*'Express Lanes'!$C$12)*(1+'Express Lanes'!$I$36)^('EL_CostCalcs_WKST#4'!AH4-'Assumptions Tab'!$E$47) -> 0 | AI31: =('Assumptions Tab'!$E$45*'Express Lanes'!$C$10*'Express Lanes'!$C$12)*(1+'Express Lanes'!$I$36)^('EL_CostCalcs_WKST#4'!AI4-'Assumptions Tab'!$E$47) -> 0 | AJ31: =('Assumptions Tab'!$E$45*'Express Lanes'!$C$10*'Express Lanes'!$C$12)*(1+'Express Lanes'!$I$36)^('EL_CostCalcs_WKST#4'!AJ4-'Assumptions Tab'!$E$47) -> 0 | AK31: =('Assumptions Tab'!$E$45*'Express Lanes'!$C$10*'Express Lanes'!$C$12)*(1+'Express Lanes'!$I$36)^('EL_CostCalcs_WKST#4'!AK4-'Assumptions Tab'!$E$47) -> 0 | AL31: =('Assumptions Tab'!$E$45*'Express Lanes'!$C$10*'Express Lanes'!$C$12)*(1+'Express Lanes'!$I$36)^('EL_CostCalcs_WKST#4'!AL4-'Assumptions Tab'!$E$47) -> 0 | AM31: =('Assumptions Tab'!$E$45*'Express Lanes'!$C$10*'Express Lanes'!$C$12)*(1+'Express Lanes'!$I$36)^('EL_CostCalcs_WKST#4'!AM4-'Assumptions Tab'!$E$47) -> 0 | AN31: =('Assumptions Tab'!$E$45*'Express Lanes'!$C$10*'Express Lanes'!$C$12)*(1+'Express Lanes'!$I$36)^('EL_CostCalcs_WKST#4'!AN4-'Assumptions Tab'!$E$47) -> 0 | AO31: =('Assumptions Tab'!$E$45*'Express Lanes'!$C$10*'Express Lanes'!$C$12)*(1+'Express Lanes'!$I$36)^('EL_CostCalcs_WKST#4'!AO4-'Assumptions Tab'!$E$47) -> 0 | AP31: =('Assumptions Tab'!$E$45*'Express Lanes'!$C$10*'Express Lanes'!$C$12)*(1+'Express Lanes'!$I$36)^('EL_CostCalcs_WKST#4'!AP4-'Assumptions Tab'!$E$47) -> 0
B32: Est. Gross Revenue ($M) | C32: ='EL_Calcs #2'!C47 ->  | D32: ='EL_Calcs #2'!D47 ->  | E32: ='EL_Calcs #2'!E47 ->  | F32: ='EL_Calcs #2'!F47 ->  | G32: ='EL_Calcs #2'!G47 ->  | H32: ='EL_Calcs #2'!H47 ->  | I32: ='EL_Calcs #2'!I47 ->  | J32: ='EL_Calcs #2'!J47 ->  | K32: ='EL_Calcs #2'!K47 ->  | L32: ='EL_Calcs #2'!L47 ->  | M32: ='EL_Calcs #2'!M47 ->  | N32: ='EL_Calcs #2'!N47 ->  | O32: ='EL_Calcs #2'!O47 ->  | P32: ='EL_Calcs #2'!P47 ->  | Q32: ='EL_Calcs #2'!Q47 ->  | R32: ='EL_Calcs #2'!R47 ->  | S32: ='EL_Calcs #2'!S47 ->  | T32: ='EL_Calcs #2'!T47 ->  | U32: ='EL_Calcs #2'!U47 ->  | V32: ='EL_Calcs #2'!V47 ->  | W32: ='EL_Calcs #2'!W47 ->  | X32: ='EL_Calcs #2'!X47 ->  | Y32: ='EL_Calcs #2'!Y47 ->  | Z32: ='EL_Calcs #2'!Z47 ->  | AA32: ='EL_Calcs #2'!AA47 ->  | AB32: ='EL_Calcs #2'!AB47 ->  | AC32: ='EL_Calcs #2'!AC47 ->  | AD32: ='EL_Calcs #2'!AD47 ->  | AE32: ='EL_Calcs #2'!AE47 ->  | AF32: ='EL_Calcs #2'!AF47 ->  | AG32: ='EL_Calcs #2'!AG47 ->  | AH32: ='EL_Calcs #2'!AH47 ->  | AI32: ='EL_Calcs #2'!AI47 ->  | AJ32: ='EL_Calcs #2'!AJ47 ->  | AK32: ='EL_Calcs #2'!AK47 ->  | AL32: ='EL_Calcs #2'!AL47 ->  | AM32: ='EL_Calcs #2'!AM47 ->  | AN32: ='EL_Calcs #2'!AN47 ->  | AO32: ='EL_Calcs #2'!AO47 ->  | AP32: ='EL_Calcs #2'!AP47 -> 
B33: Credit Card Fees ($M) | C33: =C32*'Assumptions Tab'!$E$54*'Assumptions Tab'!$E$55 ->  | D33: =D32*'Assumptions Tab'!$E$54*'Assumptions Tab'!$E$55 ->  | E33: =E32*'Assumptions Tab'!$E$54*'Assumptions Tab'!$E$55 ->  | F33: =F32*'Assumptions Tab'!$E$54*'Assumptions Tab'!$E$55 ->  | G33: =G32*'Assumptions Tab'!$E$54*'Assumptions Tab'!$E$55 ->  | H33: =H32*'Assumptions Tab'!$E$54*'Assumptions Tab'!$E$55 ->  | I33: =I32*'Assumptions Tab'!$E$54*'Assumptions Tab'!$E$55 ->  | J33: =J32*'Assumptions Tab'!$E$54*'Assumptions Tab'!$E$55 ->  | K33: =K32*'Assumptions Tab'!$E$54*'Assumptions Tab'!$E$55 ->  | L33: =L32*'Assumptions Tab'!$E$54*'Assumptions Tab'!$E$55 ->  | M33: =M32*'Assumptions Tab'!$E$54*'Assumptions Tab'!$E$55 ->  | N33: =N32*'Assumptions Tab'!$E$54*'Assumptions Tab'!$E$55 ->  | O33: =O32*'Assumptions Tab'!$E$54*'Assumptions Tab'!$E$55 ->  | P33: =P32*'Assumptions Tab'!$E$54*'Assumptions Tab'!$E$55 ->  | Q33: =Q32*'Assumptions Tab'!$E$54*'Assumptions Tab'!$E$55 ->  | R33: =R32*'Assumptions Tab'!$E$54*'Assumptions Tab'!$E$55 ->  | S33: =S32*'Assumptions Tab'!$E$54*'Assumptions Tab'!$E$55 ->  | T33: =T32*'Assumptions Tab'!$E$54*'Assumptions Tab'!$E$55 ->  | U33: =U32*'Assumptions Tab'!$E$54*'Assumptions Tab'!$E$55 ->  | V33: =V32*'Assumptions Tab'!$E$54*'Assumptions Tab'!$E$55 ->  | W33: =W32*'Assumptions Tab'!$E$54*'Assumptions Tab'!$E$55 ->  | X33: =X32*'Assumptions Tab'!$E$54*'Assumptions Tab'!$E$55 ->  | Y33: =Y32*'Assumptions Tab'!$E$54*'Assumptions Tab'!$E$55 ->  | Z33: =Z32*'Assumptions Tab'!$E$54*'Assumptions Tab'!$E$55 ->  | AA33: =AA32*'Assumptions Tab'!$E$54*'Assumptions Tab'!$E$55 ->  | AB33: =AB32*'Assumptions Tab'!$E$54*'Assumptions Tab'!$E$55 ->  | AC33: =AC32*'Assumptions Tab'!$E$54*'Assumptions Tab'!$E$55 ->  | AD33: =AD32*'Assumptions Tab'!$E$54*'Assumptions Tab'!$E$55 ->  | AE33: =AE32*'Assumptions Tab'!$E$54*'Assumptions Tab'!$E$55 ->  | AF33: =AF32*'Assumptions Tab'!$E$54*'Assumptions Tab'!$E$55 ->  | AG33: =AG32*'Assumptions Tab'!$E$54*'Assumptions Tab'!$E$55 ->  | AH33: =AH32*'Assumptions Tab'!$E$54*'Assumptions Tab'!$E$55 ->  | AI33: =AI32*'Assumptions Tab'!$E$54*'Assumptions Tab'!$E$55 ->  | AJ33: =AJ32*'Assumptions Tab'!$E$54*'Assumptions Tab'!$E$55 ->  | AK33: =AK32*'Assumptions Tab'!$E$54*'Assumptions Tab'!$E$55 ->  | AL33: =AL32*'Assumptions Tab'!$E$54*'Assumptions Tab'!$E$55 ->  | AM33: =AM32*'Assumptions Tab'!$E$54*'Assumptions Tab'!$E$55 ->  | AN33: =AN32*'Assumptions Tab'!$E$54*'Assumptions Tab'!$E$55 ->  | AO33: =AO32*'Assumptions Tab'!$E$54*'Assumptions Tab'!$E$55 ->  | AP33: =AP32*'Assumptions Tab'!$E$54*'Assumptions Tab'!$E$55 -> 
B34: Total O&M Costs ($M) | C34: =C26+C27+C29+C30+C33+C31 ->  | D34: =D26+D27+D29+D30+D33+D31 -> 
B38: Cost per transaction | C38: =C34/SUM(C9,C15,C19,C23) ->  | D38: =D34/SUM(D9,D15,D19,D23) -> 

Sheet Bridge_Calcs #1 (hidden)
B2: Revenue Analysis
B3: Annual Growth Rate - Opening to Design Year | C3: =GrowthPct_TB -> 
B4: Annual Growth Rate after Design Year | C4: =IF(C3/3>0.0075,0.0075,C3/3) -> 
B6: Traffic growth rate | C6: =(1+GrowthPct_TB)^(C8-$C$8) ->  | D6: =IF(D8<=DesignYear_TB,(1+GrowthPct_TB)^(D8-$C$8),(1+$C$4)^(D8-DesignYear_TB)) -> 
A8: 1 | C8: ='Toll Bridges'!$I$8 -> 0 | D8: =C8+1 -> 1 | E8: 2 | F8: 3 | G8: 4 | H8: 5 | I8: 6 | J8: 7 | K8: 8 | L8: 9 | M8: 10 | N8: 11 | O8: 12 | P8: 13 | Q8: 14 | R8: 15 | S8: 16 | T8: 17 | U8: 18 | V8: 19 | W8: 20 | X8: 21 | Y8: 22 | Z8: 23 | AA8: 24 | AB8: 25 | AC8: 26 | AD8: 27 | AE8: 28 | AF8: 29 | AG8: 30 | AH8: 31 | AI8: 32 | AJ8: 33 | AK8: 34 | AL8: 35 | AM8: 36 | AN8: 37 | AO8: 38 | AP8: 39
A9: =A8+1 -> 2 | B9: Baseline AADT | C9: ='Toll Bridges'!I9 -> 0 | D9: =IF(D8<=DesignYear_TB,$C$9*D6,HLOOKUP(DesignYear_TB,$C$8:$AP$9,2,FALSE)*D6) -> 
A10: =A9+1 -> 3 | B10: AADT Cars | C10: =C9-C11 -> 0 | D10: =D9-D11 -> 
A11: 4 | B11: AADT Trucks | C11: =C9*'Toll Bridges'!$I$13 -> 0 | D11: =D9*'Toll Bridges'!$I$13 ->  | E11: =E9*'Toll Bridges'!$I$13 ->  | F11: =F9*'Toll Bridges'!$I$13 ->  | G11: =G9*'Toll Bridges'!$I$13 ->  | H11: =H9*'Toll Bridges'!$I$13 ->  | I11: =I9*'Toll Bridges'!$I$13 ->  | J11: =J9*'Toll Bridges'!$I$13 ->  | K11: =K9*'Toll Bridges'!$I$13 ->  | L11: =L9*'Toll Bridges'!$I$13 ->  | M11: =M9*'Toll Bridges'!$I$13 ->  | N11: =N9*'Toll Bridges'!$I$13 ->  | O11: =O9*'Toll Bridges'!$I$13 ->  | P11: =P9*'Toll Bridges'!$I$13 ->  | Q11: =Q9*'Toll Bridges'!$I$13 ->  | R11: =R9*'Toll Bridges'!$I$13 ->  | S11: =S9*'Toll Bridges'!$I$13 ->  | T11: =T9*'Toll Bridges'!$I$13 ->  | U11: =U9*'Toll Bridges'!$I$13 ->  | V11: =V9*'Toll Bridges'!$I$13 ->  | W11: =W9*'Toll Bridges'!$I$13 ->  | X11: =X9*'Toll Bridges'!$I$13 ->  | Y11: =Y9*'Toll Bridges'!$I$13 ->  | Z11: =Z9*'Toll Bridges'!$I$13 ->  | AA11: =AA9*'Toll Bridges'!$I$13 ->  | AB11: =AB9*'Toll Bridges'!$I$13 ->  | AC11: =AC9*'Toll Bridges'!$I$13 ->  | AD11: =AD9*'Toll Bridges'!$I$13 ->  | AE11: =AE9*'Toll Bridges'!$I$13 ->  | AF11: =AF9*'Toll Bridges'!$I$13 ->  | AG11: =AG9*'Toll Bridges'!$I$13 ->  | AH11: =AH9*'Toll Bridges'!$I$13 ->  | AI11: =AI9*'Toll Bridges'!$I$13 ->  | AJ11: =AJ9*'Toll Bridges'!$I$13 ->  | AK11: =AK9*'Toll Bridges'!$I$13 ->  | AL11: =AL9*'Toll Bridges'!$I$13 ->  | AM11: =AM9*'Toll Bridges'!$I$13 ->  | AN11: =AN9*'Toll Bridges'!$I$13 ->  | AO11: =AO9*'Toll Bridges'!$I$13 ->  | AP11: =AP9*'Toll Bridges'!$I$13 -> 
A12: 5 | B12: Toll Share - Autos | C12: =1/(1+EXP($C$45*$C$49+$C$46*$C$48+$C$47)) -> 1 | D12: 1 | E12: 1 | F12: 1 | G12: 1 | H12: 1 | I12: 1 | J12: 1 | K12: 1 | L12: 1 | M12: 1 | N12: 1 | O12: 1 | P12: 1 | Q12: 1 | R12: 1 | S12: 1 | T12: 1 | U12: 1 | V12: 1 | W12: 1 | X12: 1 | Y12: 1 | Z12: 1 | AA12: 1 | AB12: 1 | AC12: 1 | AD12: 1 | AE12: 1 | AF12: 1 | AG12: 1 | AH12: 1 | AI12: 1 | AJ12: 1 | AK12: 1 | AL12: 1 | AM12: 1 | AN12: 1 | AO12: 1 | AP12: 1
A13: 6 | B13: Toll Share - Trucks | C13: =1/(1+EXP($D$45*$D$49+$D$46*$D$48+$D$47)) -> 1 | D13: 1 | E13: 1 | F13: 1 | G13: 1 | H13: 1 | I13: 1 | J13: 1 | K13: 1 | L13: 1 | M13: 1 | N13: 1 | O13: 1 | P13: 1 | Q13: 1 | R13: 1 | S13: 1 | T13: 1 | U13: 1 | V13: 1 | W13: 1 | X13: 1 | Y13: 1 | Z13: 1 | AA13: 1 | AB13: 1 | AC13: 1 | AD13: 1 | AE13: 1 | AF13: 1 | AG13: 1 | AH13: 1 | AI13: 1 | AJ13: 1 | AK13: 1 | AL13: 1 | AM13: 1 | AN13: 1 | AO13: 1 | AP13: 1
A14: 7 | B14: AADT Autos (pre ramp-up) | C14: =C10*C12 -> 0
A15: 8 | B15: AADT Trucks (pre ramp-up) | C15: =C11*C13 -> 0
A16: 9 | B16: Tolled - Autos (post ramp-up) - Include violators | C16: =C14*VLOOKUP(C$8,'Assumptions Tab'!$L$156:$P$216,5,FALSE) -> 0 | D16: =D14*VLOOKUP(D$8,'Assumptions Tab'!$L$156:$P$216,5,FALSE) ->  | E16: =E14*VLOOKUP(E$8,'Assumptions Tab'!$L$156:$P$216,5,FALSE) ->  | F16: =F14*VLOOKUP(F$8,'Assumptions Tab'!$L$156:$P$216,5,FALSE) ->  | G16: =G14*VLOOKUP(G$8,'Assumptions Tab'!$L$156:$P$216,5,FALSE) ->  | H16: =H14*VLOOKUP(H$8,'Assumptions Tab'!$L$156:$P$216,5,FALSE) ->  | I16: =I14*VLOOKUP(I$8,'Assumptions Tab'!$L$156:$P$216,5,FALSE) ->  | J16: =J14*VLOOKUP(J$8,'Assumptions Tab'!$L$156:$P$216,5,FALSE) ->  | K16: =K14*VLOOKUP(K$8,'Assumptions Tab'!$L$156:$P$216,5,FALSE) ->  | L16: =L14*VLOOKUP(L$8,'Assumptions Tab'!$L$156:$P$216,5,FALSE) ->  | M16: =M14*VLOOKUP(M$8,'Assumptions Tab'!$L$156:$P$216,5,FALSE) ->  | N16: =N14*VLOOKUP(N$8,'Assumptions Tab'!$L$156:$P$216,5,FALSE) ->  | O16: =O14*VLOOKUP(O$8,'Assumptions Tab'!$L$156:$P$216,5,FALSE) ->  | P16: =P14*VLOOKUP(P$8,'Assumptions Tab'!$L$156:$P$216,5,FALSE) ->  | Q16: =Q14*VLOOKUP(Q$8,'Assumptions Tab'!$L$156:$P$216,5,FALSE) ->  | R16: =R14*VLOOKUP(R$8,'Assumptions Tab'!$L$156:$P$216,5,FALSE) ->  | S16: =S14*VLOOKUP(S$8,'Assumptions Tab'!$L$156:$P$216,5,FALSE) ->  | T16: =T14*VLOOKUP(T$8,'Assumptions Tab'!$L$156:$P$216,5,FALSE) ->  | U16: =U14*VLOOKUP(U$8,'Assumptions Tab'!$L$156:$P$216,5,FALSE) ->  | V16: =V14*VLOOKUP(V$8,'Assumptions Tab'!$L$156:$P$216,5,FALSE) ->  | W16: =W14*VLOOKUP(W$8,'Assumptions Tab'!$L$156:$P$216,5,FALSE) ->  | X16: =X14*VLOOKUP(X$8,'Assumptions Tab'!$L$156:$P$216,5,FALSE) ->  | Y16: =Y14*VLOOKUP(Y$8,'Assumptions Tab'!$L$156:$P$216,5,FALSE) ->  | Z16: =Z14*VLOOKUP(Z$8,'Assumptions Tab'!$L$156:$P$216,5,FALSE) ->  | AA16: =AA14*VLOOKUP(AA$8,'Assumptions Tab'!$L$156:$P$216,5,FALSE) ->  | AB16: =AB14*VLOOKUP(AB$8,'Assumptions Tab'!$L$156:$P$216,5,FALSE) ->  | AC16: =AC14*VLOOKUP(AC$8,'Assumptions Tab'!$L$156:$P$216,5,FALSE) ->  | AD16: =AD14*VLOOKUP(AD$8,'Assumptions Tab'!$L$156:$P$216,5,FALSE) ->  | AE16: =AE14*VLOOKUP(AE$8,'Assumptions Tab'!$L$156:$P$216,5,FALSE) ->  | AF16: =AF14*VLOOKUP(AF$8,'Assumptions Tab'!$L$156:$P$216,5,FALSE) ->  | AG16: =AG14*VLOOKUP(AG$8,'Assumptions Tab'!$L$156:$P$216,5,FALSE) ->  | AH16: =AH14*VLOOKUP(AH$8,'Assumptions Tab'!$L$156:$P$216,5,FALSE) ->  | AI16: =AI14*VLOOKUP(AI$8,'Assumptions Tab'!$L$156:$P$216,5,FALSE) ->  | AJ16: =AJ14*VLOOKUP(AJ$8,'Assumptions Tab'!$L$156:$P$216,5,FALSE) ->  | AK16: =AK14*VLOOKUP(AK$8,'Assumptions Tab'!$L$156:$P$216,5,FALSE) ->  | AL16: =AL14*VLOOKUP(AL$8,'Assumptions Tab'!$L$156:$P$216,5,FALSE) ->  | AM16: =AM14*VLOOKUP(AM$8,'Assumptions Tab'!$L$156:$P$216,5,FALSE) ->  | AN16: =AN14*VLOOKUP(AN$8,'Assumptions Tab'!$L$156:$P$216,5,FALSE) ->  | AO16: =AO14*VLOOKUP(AO$8,'Assumptions Tab'!$L$156:$P$216,5,FALSE) ->  | AP16: =AP14*VLOOKUP(AP$8,'Assumptions Tab'!$L$156:$P$216,5,FALSE) -> 
A17: 10 | B17: Tolled - Trucks (post ramp-up) - Include violators | C17: =C15*VLOOKUP(C$8,'Assumptions Tab'!$L$156:$P$216,5,FALSE) -> 0 | D17: =D15*VLOOKUP(D$8,'Assumptions Tab'!$L$156:$P$216,5,FALSE) ->  | E17: =E15*VLOOKUP(E$8,'Assumptions Tab'!$L$156:$P$216,5,FALSE) ->  | F17: =F15*VLOOKUP(F$8,'Assumptions Tab'!$L$156:$P$216,5,FALSE) ->  | G17: =G15*VLOOKUP(G$8,'Assumptions Tab'!$L$156:$P$216,5,FALSE) ->  | H17: =H15*VLOOKUP(H$8,'Assumptions Tab'!$L$156:$P$216,5,FALSE) ->  | I17: =I15*VLOOKUP(I$8,'Assumptions Tab'!$L$156:$P$216,5,FALSE) ->  | J17: =J15*VLOOKUP(J$8,'Assumptions Tab'!$L$156:$P$216,5,FALSE) ->  | K17: =K15*VLOOKUP(K$8,'Assumptions Tab'!$L$156:$P$216,5,FALSE) ->  | L17: =L15*VLOOKUP(L$8,'Assumptions Tab'!$L$156:$P$216,5,FALSE) ->  | M17: =M15*VLOOKUP(M$8,'Assumptions Tab'!$L$156:$P$216,5,FALSE) ->  | N17: =N15*VLOOKUP(N$8,'Assumptions Tab'!$L$156:$P$216,5,FALSE) ->  | O17: =O15*VLOOKUP(O$8,'Assumptions Tab'!$L$156:$P$216,5,FALSE) ->  | P17: =P15*VLOOKUP(P$8,'Assumptions Tab'!$L$156:$P$216,5,FALSE) ->  | Q17: =Q15*VLOOKUP(Q$8,'Assumptions Tab'!$L$156:$P$216,5,FALSE) ->  | R17: =R15*VLOOKUP(R$8,'Assumptions Tab'!$L$156:$P$216,5,FALSE) ->  | S17: =S15*VLOOKUP(S$8,'Assumptions Tab'!$L$156:$P$216,5,FALSE) ->  | T17: =T15*VLOOKUP(T$8,'Assumptions Tab'!$L$156:$P$216,5,FALSE) ->  | U17: =U15*VLOOKUP(U$8,'Assumptions Tab'!$L$156:$P$216,5,FALSE) ->  | V17: =V15*VLOOKUP(V$8,'Assumptions Tab'!$L$156:$P$216,5,FALSE) ->  | W17: =W15*VLOOKUP(W$8,'Assumptions Tab'!$L$156:$P$216,5,FALSE) ->  | X17: =X15*VLOOKUP(X$8,'Assumptions Tab'!$L$156:$P$216,5,FALSE) ->  | Y17: =Y15*VLOOKUP(Y$8,'Assumptions Tab'!$L$156:$P$216,5,FALSE) ->  | Z17: =Z15*VLOOKUP(Z$8,'Assumptions Tab'!$L$156:$P$216,5,FALSE) ->  | AA17: =AA15*VLOOKUP(AA$8,'Assumptions Tab'!$L$156:$P$216,5,FALSE) ->  | AB17: =AB15*VLOOKUP(AB$8,'Assumptions Tab'!$L$156:$P$216,5,FALSE) ->  | AC17: =AC15*VLOOKUP(AC$8,'Assumptions Tab'!$L$156:$P$216,5,FALSE) ->  | AD17: =AD15*VLOOKUP(AD$8,'Assumptions Tab'!$L$156:$P$216,5,FALSE) ->  | AE17: =AE15*VLOOKUP(AE$8,'Assumptions Tab'!$L$156:$P$216,5,FALSE) ->  | AF17: =AF15*VLOOKUP(AF$8,'Assumptions Tab'!$L$156:$P$216,5,FALSE) ->  | AG17: =AG15*VLOOKUP(AG$8,'Assumptions Tab'!$L$156:$P$216,5,FALSE) ->  | AH17: =AH15*VLOOKUP(AH$8,'Assumptions Tab'!$L$156:$P$216,5,FALSE) ->  | AI17: =AI15*VLOOKUP(AI$8,'Assumptions Tab'!$L$156:$P$216,5,FALSE) ->  | AJ17: =AJ15*VLOOKUP(AJ$8,'Assumptions Tab'!$L$156:$P$216,5,FALSE) ->  | AK17: =AK15*VLOOKUP(AK$8,'Assumptions Tab'!$L$156:$P$216,5,FALSE) ->  | AL17: =AL15*VLOOKUP(AL$8,'Assumptions Tab'!$L$156:$P$216,5,FALSE) ->  | AM17: =AM15*VLOOKUP(AM$8,'Assumptions Tab'!$L$156:$P$216,5,FALSE) ->  | AN17: =AN15*VLOOKUP(AN$8,'Assumptions Tab'!$L$156:$P$216,5,FALSE) ->  | AO17: =AO15*VLOOKUP(AO$8,'Assumptions Tab'!$L$156:$P$216,5,FALSE) ->  | AP17: =AP15*VLOOKUP(AP$8,'Assumptions Tab'!$L$156:$P$216,5,FALSE) -> 
A18: 11 | B18: Paid Percent | C18: =1-VLOOKUP(C8,'Assumptions Tab'!$L$156:$P$216,4,FALSE)*(1-'Assumptions Tab'!$E$58) -> 0.92 | D18: =1-VLOOKUP(D8,'Assumptions Tab'!$L$156:$P$216,4,FALSE)*(1-'Assumptions Tab'!$E$58) -> 0.924 | E18: =1-VLOOKUP(E8,'Assumptions Tab'!$L$156:$P$216,4,FALSE)*(1-'Assumptions Tab'!$E$58) -> 0.928 | F18: =1-VLOOKUP(F8,'Assumptions Tab'!$L$156:$P$216,4,FALSE)*(1-'Assumptions Tab'!$E$58) -> 0.932 | G18: =1-VLOOKUP(G8,'Assumptions Tab'!$L$156:$P$216,4,FALSE)*(1-'Assumptions Tab'!$E$58) -> 0.936 | H18: =1-VLOOKUP(H8,'Assumptions Tab'!$L$156:$P$216,4,FALSE)*(1-'Assumptions Tab'!$E$58) -> 0.94 | I18: =1-VLOOKUP(I8,'Assumptions Tab'!$L$156:$P$216,4,FALSE)*(1-'Assumptions Tab'!$E$58) -> 0.944 | J18: =1-VLOOKUP(J8,'Assumptions Tab'!$L$156:$P$216,4,FALSE)*(1-'Assumptions Tab'!$E$58) -> 0.948 | K18: =1-VLOOKUP(K8,'Assumptions Tab'!$L$156:$P$216,4,FALSE)*(1-'Assumptions Tab'!$E$58) -> 0.952 | L18: =1-VLOOKUP(L8,'Assumptions Tab'!$L$156:$P$216,4,FALSE)*(1-'Assumptions Tab'!$E$58) -> 0.956 | M18: =1-VLOOKUP(M8,'Assumptions Tab'!$L$156:$P$216,4,FALSE)*(1-'Assumptions Tab'!$E$58) -> 0.96 | N18: =1-VLOOKUP(N8,'Assumptions Tab'!$L$156:$P$216,4,FALSE)*(1-'Assumptions Tab'!$E$58) -> 0.96 | O18: =1-VLOOKUP(O8,'Assumptions Tab'!$L$156:$P$216,4,FALSE)*(1-'Assumptions Tab'!$E$58) -> 0.96 | P18: =1-VLOOKUP(P8,'Assumptions Tab'!$L$156:$P$216,4,FALSE)*(1-'Assumptions Tab'!$E$58) -> 0.96 | Q18: =1-VLOOKUP(Q8,'Assumptions Tab'!$L$156:$P$216,4,FALSE)*(1-'Assumptions Tab'!$E$58) -> 0.96 | R18: =1-VLOOKUP(R8,'Assumptions Tab'!$L$156:$P$216,4,FALSE)*(1-'Assumptions Tab'!$E$58) -> 0.96 | S18: =1-VLOOKUP(S8,'Assumptions Tab'!$L$156:$P$216,4,FALSE)*(1-'Assumptions Tab'!$E$58) -> 0.96 | T18: =1-VLOOKUP(T8,'Assumptions Tab'!$L$156:$P$216,4,FALSE)*(1-'Assumptions Tab'!$E$58) -> 0.96 | U18: =1-VLOOKUP(U8,'Assumptions Tab'!$L$156:$P$216,4,FALSE)*(1-'Assumptions Tab'!$E$58) -> 0.96 | V18: =1-VLOOKUP(V8,'Assumptions Tab'!$L$156:$P$216,4,FALSE)*(1-'Assumptions Tab'!$E$58) -> 0.96 | W18: =1-VLOOKUP(W8,'Assumptions Tab'!$L$156:$P$216,4,FALSE)*(1-'Assumptions Tab'!$E$58) -> 0.96 | X18: =1-VLOOKUP(X8,'Assumptions Tab'!$L$156:$P$216,4,FALSE)*(1-'Assumptions Tab'!$E$58) -> 0.96 | Y18: =1-VLOOKUP(Y8,'Assumptions Tab'!$L$156:$P$216,4,FALSE)*(1-'Assumptions Tab'!$E$58) -> 0.96 | Z18: =1-VLOOKUP(Z8,'Assumptions Tab'!$L$156:$P$216,4,FALSE)*(1-'Assumptions Tab'!$E$58) -> 0.96 | AA18: =1-VLOOKUP(AA8,'Assumptions Tab'!$L$156:$P$216,4,FALSE)*(1-'Assumptions Tab'!$E$58) -> 0.96 | AB18: =1-VLOOKUP(AB8,'Assumptions Tab'!$L$156:$P$216,4,FALSE)*(1-'Assumptions Tab'!$E$58) -> 0.96 | AC18: =1-VLOOKUP(AC8,'Assumptions Tab'!$L$156:$P$216,4,FALSE)*(1-'Assumptions Tab'!$E$58) -> 0.96 | AD18: =1-VLOOKUP(AD8,'Assumptions Tab'!$L$156:$P$216,4,FALSE)*(1-'Assumptions Tab'!$E$58) -> 0.96 | AE18: =1-VLOOKUP(AE8,'Assumptions Tab'!$L$156:$P$216,4,FALSE)*(1-'Assumptions Tab'!$E$58) -> 0.96 | AF18: =1-VLOOKUP(AF8,'Assumptions Tab'!$L$156:$P$216,4,FALSE)*(1-'Assumptions Tab'!$E$58) -> 0.96 | AG18: =1-VLOOKUP(AG8,'Assumptions Tab'!$L$156:$P$216,4,FALSE)*(1-'Assumptions Tab'!$E$58) -> 0.96 | AH18: =1-VLOOKUP(AH8,'Assumptions Tab'!$L$156:$P$216,4,FALSE)*(1-'Assumptions Tab'!$E$58) -> 0.96 | AI18: =1-VLOOKUP(AI8,'Assumptions Tab'!$L$156:$P$216,4,FALSE)*(1-'Assumptions Tab'!$E$58) -> 0.96 | AJ18: =1-VLOOKUP(AJ8,'Assumptions Tab'!$L$156:$P$216,4,FALSE)*(1-'Assumptions Tab'!$E$58) -> 0.96 | AK18: =1-VLOOKUP(AK8,'Assumptions Tab'!$L$156:$P$216,4,FALSE)*(1-'Assumptions Tab'!$E$58) -> 0.96 | AL18: =1-VLOOKUP(AL8,'Assumptions Tab'!$L$156:$P$216,4,FALSE)*(1-'Assumptions Tab'!$E$58) -> 0.96 | AM18: =1-VLOOKUP(AM8,'Assumptions Tab'!$L$156:$P$216,4,FALSE)*(1-'Assumptions Tab'!$E$58) -> 0.96 | AN18: =1-VLOOKUP(AN8,'Assumptions Tab'!$L$156:$P$216,4,FALSE)*(1-'Assumptions Tab'!$E$58) -> 0.96 | AO18: =1-VLOOKUP(AO8,'Assumptions Tab'!$L$156:$P$216,4,FALSE)*(1-'Assumptions Tab'!$E$58) -> 0.96 | AP18: =1-VLOOKUP(AP8,'Assumptions Tab'!$L$156:$P$216,4,FALSE)*(1-'Assumptions Tab'!$E$58) -> 0.96
A19: 12 | B19: Paid AADT Autos | C19: =C16*C18 -> 0 | D19: =D16*D18 -> 
A20: 13 | B20: Paid AADT Trucks | C20: =C17*C18 -> 0 | D20: =D17*D18 -> 
A21: 14
A22: 15 | B22: Annual VMT for ETC Toll Rate | C22: =('Bridge Calcs #2'!C9+'Bridge Calcs #2'!C12)*'Assumptions Tab'!$M$147 -> 0 | D22: =('Bridge Calcs #2'!D9+'Bridge Calcs #2'!D12)*'Assumptions Tab'!$M$147 ->  | E22: =('Bridge Calcs #2'!E9+'Bridge Calcs #2'!E12)*'Assumptions Tab'!$M$147 ->  | F22: =('Bridge Calcs #2'!F9+'Bridge Calcs #2'!F12)*'Assumptions Tab'!$M$147 ->  | G22: =('Bridge Calcs #2'!G9+'Bridge Calcs #2'!G12)*'Assumptions Tab'!$M$147 ->  | H22: =('Bridge Calcs #2'!H9+'Bridge Calcs #2'!H12)*'Assumptions Tab'!$M$147 ->  | I22: =('Bridge Calcs #2'!I9+'Bridge Calcs #2'!I12)*'Assumptions Tab'!$M$147 ->  | J22: =('Bridge Calcs #2'!J9+'Bridge Calcs #2'!J12)*'Assumptions Tab'!$M$147 ->  | K22: =('Bridge Calcs #2'!K9+'Bridge Calcs #2'!K12)*'Assumptions Tab'!$M$147 ->  | L22: =('Bridge Calcs #2'!L9+'Bridge Calcs #2'!L12)*'Assumptions Tab'!$M$147 ->  | M22: =('Bridge Calcs #2'!M9+'Bridge Calcs #2'!M12)*'Assumptions Tab'!$M$147 ->  | N22: =('Bridge Calcs #2'!N9+'Bridge Calcs #2'!N12)*'Assumptions Tab'!$M$147 ->  | O22: =('Bridge Calcs #2'!O9+'Bridge Calcs #2'!O12)*'Assumptions Tab'!$M$147 ->  | P22: =('Bridge Calcs #2'!P9+'Bridge Calcs #2'!P12)*'Assumptions Tab'!$M$147 ->  | Q22: =('Bridge Calcs #2'!Q9+'Bridge Calcs #2'!Q12)*'Assumptions Tab'!$M$147 ->  | R22: =('Bridge Calcs #2'!R9+'Bridge Calcs #2'!R12)*'Assumptions Tab'!$M$147 ->  | S22: =('Bridge Calcs #2'!S9+'Bridge Calcs #2'!S12)*'Assumptions Tab'!$M$147 ->  | T22: =('Bridge Calcs #2'!T9+'Bridge Calcs #2'!T12)*'Assumptions Tab'!$M$147 ->  | U22: =('Bridge Calcs #2'!U9+'Bridge Calcs #2'!U12)*'Assumptions Tab'!$M$147 ->  | V22: =('Bridge Calcs #2'!V9+'Bridge Calcs #2'!V12)*'Assumptions Tab'!$M$147 ->  | W22: =('Bridge Calcs #2'!W9+'Bridge Calcs #2'!W12)*'Assumptions Tab'!$M$147 ->  | X22: =('Bridge Calcs #2'!X9+'Bridge Calcs #2'!X12)*'Assumptions Tab'!$M$147 ->  | Y22: =('Bridge Calcs #2'!Y9+'Bridge Calcs #2'!Y12)*'Assumptions Tab'!$M$147 ->  | Z22: =('Bridge Calcs #2'!Z9+'Bridge Calcs #2'!Z12)*'Assumptions Tab'!$M$147 ->  | AA22: =('Bridge Calcs #2'!AA9+'Bridge Calcs #2'!AA12)*'Assumptions Tab'!$M$147 ->  | AB22: =('Bridge Calcs #2'!AB9+'Bridge Calcs #2'!AB12)*'Assumptions Tab'!$M$147 ->  | AC22: =('Bridge Calcs #2'!AC9+'Bridge Calcs #2'!AC12)*'Assumptions Tab'!$M$147 ->  | AD22: =('Bridge Calcs #2'!AD9+'Bridge Calcs #2'!AD12)*'Assumptions Tab'!$M$147 ->  | AE22: =('Bridge Calcs #2'!AE9+'Bridge Calcs #2'!AE12)*'Assumptions Tab'!$M$147 ->  | AF22: =('Bridge Calcs #2'!AF9+'Bridge Calcs #2'!AF12)*'Assumptions Tab'!$M$147 ->  | AG22: =('Bridge Calcs #2'!AG9+'Bridge Calcs #2'!AG12)*'Assumptions Tab'!$M$147 ->  | AH22: =('Bridge Calcs #2'!AH9+'Bridge Calcs #2'!AH12)*'Assumptions Tab'!$M$147 ->  | AI22: =('Bridge Calcs #2'!AI9+'Bridge Calcs #2'!AI12)*'Assumptions Tab'!$M$147 ->  | AJ22: =('Bridge Calcs #2'!AJ9+'Bridge Calcs #2'!AJ12)*'Assumptions Tab'!$M$147 ->  | AK22: =('Bridge Calcs #2'!AK9+'Bridge Calcs #2'!AK12)*'Assumptions Tab'!$M$147 ->  | AL22: =('Bridge Calcs #2'!AL9+'Bridge Calcs #2'!AL12)*'Assumptions Tab'!$M$147 ->  | AM22: =('Bridge Calcs #2'!AM9+'Bridge Calcs #2'!AM12)*'Assumptions Tab'!$M$147 ->  | AN22: =('Bridge Calcs #2'!AN9+'Bridge Calcs #2'!AN12)*'Assumptions Tab'!$M$147 ->  | AO22: =('Bridge Calcs #2'!AO9+'Bridge Calcs #2'!AO12)*'Assumptions Tab'!$M$147 ->  | AP22: =('Bridge Calcs #2'!AP9+'Bridge Calcs #2'!AP12)*'Assumptions Tab'!$M$147 -> 
A23: 16 | B23: Annual VMT for BBM Toll Rate | C23: ='Bridge Calcs #2'!C15*'Assumptions Tab'!$M$147 -> 0 | D23: ='Bridge Calcs #2'!D15*'Assumptions Tab'!$M$147 ->  | E23: ='Bridge Calcs #2'!E15*'Assumptions Tab'!$M$147 ->  | F23: ='Bridge Calcs #2'!F15*'Assumptions Tab'!$M$147 ->  | G23: ='Bridge Calcs #2'!G15*'Assumptions Tab'!$M$147 ->  | H23: ='Bridge Calcs #2'!H15*'Assumptions Tab'!$M$147 ->  | I23: ='Bridge Calcs #2'!I15*'Assumptions Tab'!$M$147 ->  | J23: ='Bridge Calcs #2'!J15*'Assumptions Tab'!$M$147 ->  | K23: ='Bridge Calcs #2'!K15*'Assumptions Tab'!$M$147 ->  | L23: ='Bridge Calcs #2'!L15*'Assumptions Tab'!$M$147 ->  | M23: ='Bridge Calcs #2'!M15*'Assumptions Tab'!$M$147 ->  | N23: ='Bridge Calcs #2'!N15*'Assumptions Tab'!$M$147 ->  | O23: ='Bridge Calcs #2'!O15*'Assumptions Tab'!$M$147 ->  | P23: ='Bridge Calcs #2'!P15*'Assumptions Tab'!$M$147 ->  | Q23: ='Bridge Calcs #2'!Q15*'Assumptions Tab'!$M$147 ->  | R23: ='Bridge Calcs #2'!R15*'Assumptions Tab'!$M$147 ->  | S23: ='Bridge Calcs #2'!S15*'Assumptions Tab'!$M$147 ->  | T23: ='Bridge Calcs #2'!T15*'Assumptions Tab'!$M$147 ->  | U23: ='Bridge Calcs #2'!U15*'Assumptions Tab'!$M$147 ->  | V23: ='Bridge Calcs #2'!V15*'Assumptions Tab'!$M$147 ->  | W23: ='Bridge Calcs #2'!W15*'Assumptions Tab'!$M$147 ->  | X23: ='Bridge Calcs #2'!X15*'Assumptions Tab'!$M$147 ->  | Y23: ='Bridge Calcs #2'!Y15*'Assumptions Tab'!$M$147 ->  | Z23: ='Bridge Calcs #2'!Z15*'Assumptions Tab'!$M$147 ->  | AA23: ='Bridge Calcs #2'!AA15*'Assumptions Tab'!$M$147 ->  | AB23: ='Bridge Calcs #2'!AB15*'Assumptions Tab'!$M$147 ->  | AC23: ='Bridge Calcs #2'!AC15*'Assumptions Tab'!$M$147 ->  | AD23: ='Bridge Calcs #2'!AD15*'Assumptions Tab'!$M$147 ->  | AE23: ='Bridge Calcs #2'!AE15*'Assumptions Tab'!$M$147 ->  | AF23: ='Bridge Calcs #2'!AF15*'Assumptions Tab'!$M$147 ->  | AG23: ='Bridge Calcs #2'!AG15*'Assumptions Tab'!$M$147 ->  | AH23: ='Bridge Calcs #2'!AH15*'Assumptions Tab'!$M$147 ->  | AI23: ='Bridge Calcs #2'!AI15*'Assumptions Tab'!$M$147 ->  | AJ23: ='Bridge Calcs #2'!AJ15*'Assumptions Tab'!$M$147 ->  | AK23: ='Bridge Calcs #2'!AK15*'Assumptions Tab'!$M$147 ->  | AL23: ='Bridge Calcs #2'!AL15*'Assumptions Tab'!$M$147 ->  | AM23: ='Bridge Calcs #2'!AM15*'Assumptions Tab'!$M$147 ->  | AN23: ='Bridge Calcs #2'!AN15*'Assumptions Tab'!$M$147 ->  | AO23: ='Bridge Calcs #2'!AO15*'Assumptions Tab'!$M$147 ->  | AP23: ='Bridge Calcs #2'!AP15*'Assumptions Tab'!$M$147 -> 
A24: 17
A25: 18 | B25: Autos VMT, ETC | C25: =C22*(1-'Toll Bridges'!$I$13) -> 0 | D25: =D22*(1-'Toll Bridges'!$I$13) ->  | E25: =E22*(1-'Toll Bridges'!$I$13) ->  | F25: =F22*(1-'Toll Bridges'!$I$13) ->  | G25: =G22*(1-'Toll Bridges'!$I$13) ->  | H25: =H22*(1-'Toll Bridges'!$I$13) ->  | I25: =I22*(1-'Toll Bridges'!$I$13) ->  | J25: =J22*(1-'Toll Bridges'!$I$13) ->  | K25: =K22*(1-'Toll Bridges'!$I$13) ->  | L25: =L22*(1-'Toll Bridges'!$I$13) ->  | M25: =M22*(1-'Toll Bridges'!$I$13) ->  | N25: =N22*(1-'Toll Bridges'!$I$13) ->  | O25: =O22*(1-'Toll Bridges'!$I$13) ->  | P25: =P22*(1-'Toll Bridges'!$I$13) ->  | Q25: =Q22*(1-'Toll Bridges'!$I$13) ->  | R25: =R22*(1-'Toll Bridges'!$I$13) ->  | S25: =S22*(1-'Toll Bridges'!$I$13) ->  | T25: =T22*(1-'Toll Bridges'!$I$13) ->  | U25: =U22*(1-'Toll Bridges'!$I$13) ->  | V25: =V22*(1-'Toll Bridges'!$I$13) ->  | W25: =W22*(1-'Toll Bridges'!$I$13) ->  | X25: =X22*(1-'Toll Bridges'!$I$13) ->  | Y25: =Y22*(1-'Toll Bridges'!$I$13) ->  | Z25: =Z22*(1-'Toll Bridges'!$I$13) ->  | AA25: =AA22*(1-'Toll Bridges'!$I$13) ->  | AB25: =AB22*(1-'Toll Bridges'!$I$13) ->  | AC25: =AC22*(1-'Toll Bridges'!$I$13) ->  | AD25: =AD22*(1-'Toll Bridges'!$I$13) ->  | AE25: =AE22*(1-'Toll Bridges'!$I$13) ->  | AF25: =AF22*(1-'Toll Bridges'!$I$13) ->  | AG25: =AG22*(1-'Toll Bridges'!$I$13) ->  | AH25: =AH22*(1-'Toll Bridges'!$I$13) ->  | AI25: =AI22*(1-'Toll Bridges'!$I$13) ->  | AJ25: =AJ22*(1-'Toll Bridges'!$I$13) ->  | AK25: =AK22*(1-'Toll Bridges'!$I$13) ->  | AL25: =AL22*(1-'Toll Bridges'!$I$13) ->  | AM25: =AM22*(1-'Toll Bridges'!$I$13) ->  | AN25: =AN22*(1-'Toll Bridges'!$I$13) ->  | AO25: =AO22*(1-'Toll Bridges'!$I$13) ->  | AP25: =AP22*(1-'Toll Bridges'!$I$13) -> 
A26: 19 | B26: Trucks VMT, ETC | C26: =C22*'Toll Bridges'!$I$13 -> 0 | D26: =D22*'Toll Bridges'!$I$13 ->  | E26: =E22*'Toll Bridges'!$I$13 ->  | F26: =F22*'Toll Bridges'!$I$13 ->  | G26: =G22*'Toll Bridges'!$I$13 ->  | H26: =H22*'Toll Bridges'!$I$13 ->  | I26: =I22*'Toll Bridges'!$I$13 ->  | J26: =J22*'Toll Bridges'!$I$13 ->  | K26: =K22*'Toll Bridges'!$I$13 ->  | L26: =L22*'Toll Bridges'!$I$13 ->  | M26: =M22*'Toll Bridges'!$I$13 ->  | N26: =N22*'Toll Bridges'!$I$13 ->  | O26: =O22*'Toll Bridges'!$I$13 ->  | P26: =P22*'Toll Bridges'!$I$13 ->  | Q26: =Q22*'Toll Bridges'!$I$13 ->  | R26: =R22*'Toll Bridges'!$I$13 ->  | S26: =S22*'Toll Bridges'!$I$13 ->  | T26: =T22*'Toll Bridges'!$I$13 ->  | U26: =U22*'Toll Bridges'!$I$13 ->  | V26: =V22*'Toll Bridges'!$I$13 ->  | W26: =W22*'Toll Bridges'!$I$13 ->  | X26: =X22*'Toll Bridges'!$I$13 ->  | Y26: =Y22*'Toll Bridges'!$I$13 ->  | Z26: =Z22*'Toll Bridges'!$I$13 ->  | AA26: =AA22*'Toll Bridges'!$I$13 ->  | AB26: =AB22*'Toll Bridges'!$I$13 ->  | AC26: =AC22*'Toll Bridges'!$I$13 ->  | AD26: =AD22*'Toll Bridges'!$I$13 ->  | AE26: =AE22*'Toll Bridges'!$I$13 ->  | AF26: =AF22*'Toll Bridges'!$I$13 ->  | AG26: =AG22*'Toll Bridges'!$I$13 ->  | AH26: =AH22*'Toll Bridges'!$I$13 ->  | AI26: =AI22*'Toll Bridges'!$I$13 ->  | AJ26: =AJ22*'Toll Bridges'!$I$13 ->  | AK26: =AK22*'Toll Bridges'!$I$13 ->  | AL26: =AL22*'Toll Bridges'!$I$13 ->  | AM26: =AM22*'Toll Bridges'!$I$13 ->  | AN26: =AN22*'Toll Bridges'!$I$13 ->  | AO26: =AO22*'Toll Bridges'!$I$13 ->  | AP26: =AP22*'Toll Bridges'!$I$13 -> 
A27: 20 | B27: Autos VMT, BBM | C27: =C23*(1-'Toll Bridges'!$I$13) -> 0 | D27: =D23*(1-'Toll Bridges'!$I$13) ->  | E27: =E23*(1-'Toll Bridges'!$I$13) ->  | F27: =F23*(1-'Toll Bridges'!$I$13) ->  | G27: =G23*(1-'Toll Bridges'!$I$13) ->  | H27: =H23*(1-'Toll Bridges'!$I$13) ->  | I27: =I23*(1-'Toll Bridges'!$I$13) ->  | J27: =J23*(1-'Toll Bridges'!$I$13) ->  | K27: =K23*(1-'Toll Bridges'!$I$13) ->  | L27: =L23*(1-'Toll Bridges'!$I$13) ->  | M27: =M23*(1-'Toll Bridges'!$I$13) ->  | N27: =N23*(1-'Toll Bridges'!$I$13) ->  | O27: =O23*(1-'Toll Bridges'!$I$13) ->  | P27: =P23*(1-'Toll Bridges'!$I$13) ->  | Q27: =Q23*(1-'Toll Bridges'!$I$13) ->  | R27: =R23*(1-'Toll Bridges'!$I$13) ->  | S27: =S23*(1-'Toll Bridges'!$I$13) ->  | T27: =T23*(1-'Toll Bridges'!$I$13) ->  | U27: =U23*(1-'Toll Bridges'!$I$13) ->  | V27: =V23*(1-'Toll Bridges'!$I$13) ->  | W27: =W23*(1-'Toll Bridges'!$I$13) ->  | X27: =X23*(1-'Toll Bridges'!$I$13) ->  | Y27: =Y23*(1-'Toll Bridges'!$I$13) ->  | Z27: =Z23*(1-'Toll Bridges'!$I$13) ->  | AA27: =AA23*(1-'Toll Bridges'!$I$13) ->  | AB27: =AB23*(1-'Toll Bridges'!$I$13) ->  | AC27: =AC23*(1-'Toll Bridges'!$I$13) ->  | AD27: =AD23*(1-'Toll Bridges'!$I$13) ->  | AE27: =AE23*(1-'Toll Bridges'!$I$13) ->  | AF27: =AF23*(1-'Toll Bridges'!$I$13) ->  | AG27: =AG23*(1-'Toll Bridges'!$I$13) ->  | AH27: =AH23*(1-'Toll Bridges'!$I$13) ->  | AI27: =AI23*(1-'Toll Bridges'!$I$13) ->  | AJ27: =AJ23*(1-'Toll Bridges'!$I$13) ->  | AK27: =AK23*(1-'Toll Bridges'!$I$13) ->  | AL27: =AL23*(1-'Toll Bridges'!$I$13) ->  | AM27: =AM23*(1-'Toll Bridges'!$I$13) ->  | AN27: =AN23*(1-'Toll Bridges'!$I$13) ->  | AO27: =AO23*(1-'Toll Bridges'!$I$13) ->  | AP27: =AP23*(1-'Toll Bridges'!$I$13) -> 
A28: 21 | B28: Trucks VMT, BBM | C28: =C23*'Toll Bridges'!$I$13 -> 0 | D28: =D23*'Toll Bridges'!$I$13 ->  | E28: =E23*'Toll Bridges'!$I$13 ->  | F28: =F23*'Toll Bridges'!$I$13 ->  | G28: =G23*'Toll Bridges'!$I$13 ->  | H28: =H23*'Toll Bridges'!$I$13 ->  | I28: =I23*'Toll Bridges'!$I$13 ->  | J28: =J23*'Toll Bridges'!$I$13 ->  | K28: =K23*'Toll Bridges'!$I$13 ->  | L28: =L23*'Toll Bridges'!$I$13 ->  | M28: =M23*'Toll Bridges'!$I$13 ->  | N28: =N23*'Toll Bridges'!$I$13 ->  | O28: =O23*'Toll Bridges'!$I$13 ->  | P28: =P23*'Toll Bridges'!$I$13 ->  | Q28: =Q23*'Toll Bridges'!$I$13 ->  | R28: =R23*'Toll Bridges'!$I$13 ->  | S28: =S23*'Toll Bridges'!$I$13 ->  | T28: =T23*'Toll Bridges'!$I$13 ->  | U28: =U23*'Toll Bridges'!$I$13 ->  | V28: =V23*'Toll Bridges'!$I$13 ->  | W28: =W23*'Toll Bridges'!$I$13 ->  | X28: =X23*'Toll Bridges'!$I$13 ->  | Y28: =Y23*'Toll Bridges'!$I$13 ->  | Z28: =Z23*'Toll Bridges'!$I$13 ->  | AA28: =AA23*'Toll Bridges'!$I$13 ->  | AB28: =AB23*'Toll Bridges'!$I$13 ->  | AC28: =AC23*'Toll Bridges'!$I$13 ->  | AD28: =AD23*'Toll Bridges'!$I$13 ->  | AE28: =AE23*'Toll Bridges'!$I$13 ->  | AF28: =AF23*'Toll Bridges'!$I$13 ->  | AG28: =AG23*'Toll Bridges'!$I$13 ->  | AH28: =AH23*'Toll Bridges'!$I$13 ->  | AI28: =AI23*'Toll Bridges'!$I$13 ->  | AJ28: =AJ23*'Toll Bridges'!$I$13 ->  | AK28: =AK23*'Toll Bridges'!$I$13 ->  | AL28: =AL23*'Toll Bridges'!$I$13 ->  | AM28: =AM23*'Toll Bridges'!$I$13 ->  | AN28: =AN23*'Toll Bridges'!$I$13 ->  | AO28: =AO23*'Toll Bridges'!$I$13 ->  | AP28: =AP23*'Toll Bridges'!$I$13 -> 
A29: 22
A30: 23 | B30: ETC, Per-mile Fare - Autos | C30: ='Toll Bridges'!$C$22/'Toll Bridges'!$C$10*(1+'Toll Bridges'!$C$28)^(C$8-'Toll Bridges'!$C$29) ->  | D30: ='Toll Bridges'!$C$22/'Toll Bridges'!$C$10*(1+'Toll Bridges'!$C$28)^(D$8-'Toll Bridges'!$C$29) ->  | E30: ='Toll Bridges'!$C$22/'Toll Bridges'!$C$10*(1+'Toll Bridges'!$C$28)^(E$8-'Toll Bridges'!$C$29) ->  | F30: ='Toll Bridges'!$C$22/'Toll Bridges'!$C$10*(1+'Toll Bridges'!$C$28)^(F$8-'Toll Bridges'!$C$29) ->  | G30: ='Toll Bridges'!$C$22/'Toll Bridges'!$C$10*(1+'Toll Bridges'!$C$28)^(G$8-'Toll Bridges'!$C$29) ->  | H30: ='Toll Bridges'!$C$22/'Toll Bridges'!$C$10*(1+'Toll Bridges'!$C$28)^(H$8-'Toll Bridges'!$C$29) ->  | I30: ='Toll Bridges'!$C$22/'Toll Bridges'!$C$10*(1+'Toll Bridges'!$C$28)^(I$8-'Toll Bridges'!$C$29) ->  | J30: ='Toll Bridges'!$C$22/'Toll Bridges'!$C$10*(1+'Toll Bridges'!$C$28)^(J$8-'Toll Bridges'!$C$29) ->  | K30: ='Toll Bridges'!$C$22/'Toll Bridges'!$C$10*(1+'Toll Bridges'!$C$28)^(K$8-'Toll Bridges'!$C$29) ->  | L30: ='Toll Bridges'!$C$22/'Toll Bridges'!$C$10*(1+'Toll Bridges'!$C$28)^(L$8-'Toll Bridges'!$C$29) ->  | M30: ='Toll Bridges'!$C$22/'Toll Bridges'!$C$10*(1+'Toll Bridges'!$C$28)^(M$8-'Toll Bridges'!$C$29) ->  | N30: ='Toll Bridges'!$C$22/'Toll Bridges'!$C$10*(1+'Toll Bridges'!$C$28)^(N$8-'Toll Bridges'!$C$29) ->  | O30: ='Toll Bridges'!$C$22/'Toll Bridges'!$C$10*(1+'Toll Bridges'!$C$28)^(O$8-'Toll Bridges'!$C$29) ->  | P30: ='Toll Bridges'!$C$22/'Toll Bridges'!$C$10*(1+'Toll Bridges'!$C$28)^(P$8-'Toll Bridges'!$C$29) ->  | Q30: ='Toll Bridges'!$C$22/'Toll Bridges'!$C$10*(1+'Toll Bridges'!$C$28)^(Q$8-'Toll Bridges'!$C$29) ->  | R30: ='Toll Bridges'!$C$22/'Toll Bridges'!$C$10*(1+'Toll Bridges'!$C$28)^(R$8-'Toll Bridges'!$C$29) ->  | S30: ='Toll Bridges'!$C$22/'Toll Bridges'!$C$10*(1+'Toll Bridges'!$C$28)^(S$8-'Toll Bridges'!$C$29) ->  | T30: ='Toll Bridges'!$C$22/'Toll Bridges'!$C$10*(1+'Toll Bridges'!$C$28)^(T$8-'Toll Bridges'!$C$29) ->  | U30: ='Toll Bridges'!$C$22/'Toll Bridges'!$C$10*(1+'Toll Bridges'!$C$28)^(U$8-'Toll Bridges'!$C$29) ->  | V30: ='Toll Bridges'!$C$22/'Toll Bridges'!$C$10*(1+'Toll Bridges'!$C$28)^(V$8-'Toll Bridges'!$C$29) ->  | W30: ='Toll Bridges'!$C$22/'Toll Bridges'!$C$10*(1+'Toll Bridges'!$C$28)^(W$8-'Toll Bridges'!$C$29) ->  | X30: ='Toll Bridges'!$C$22/'Toll Bridges'!$C$10*(1+'Toll Bridges'!$C$28)^(X$8-'Toll Bridges'!$C$29) ->  | Y30: ='Toll Bridges'!$C$22/'Toll Bridges'!$C$10*(1+'Toll Bridges'!$C$28)^(Y$8-'Toll Bridges'!$C$29) ->  | Z30: ='Toll Bridges'!$C$22/'Toll Bridges'!$C$10*(1+'Toll Bridges'!$C$28)^(Z$8-'Toll Bridges'!$C$29) ->  | AA30: ='Toll Bridges'!$C$22/'Toll Bridges'!$C$10*(1+'Toll Bridges'!$C$28)^(AA$8-'Toll Bridges'!$C$29) ->  | AB30: ='Toll Bridges'!$C$22/'Toll Bridges'!$C$10*(1+'Toll Bridges'!$C$28)^(AB$8-'Toll Bridges'!$C$29) ->  | AC30: ='Toll Bridges'!$C$22/'Toll Bridges'!$C$10*(1+'Toll Bridges'!$C$28)^(AC$8-'Toll Bridges'!$C$29) ->  | AD30: ='Toll Bridges'!$C$22/'Toll Bridges'!$C$10*(1+'Toll Bridges'!$C$28)^(AD$8-'Toll Bridges'!$C$29) ->  | AE30: ='Toll Bridges'!$C$22/'Toll Bridges'!$C$10*(1+'Toll Bridges'!$C$28)^(AE$8-'Toll Bridges'!$C$29) ->  | AF30: ='Toll Bridges'!$C$22/'Toll Bridges'!$C$10*(1+'Toll Bridges'!$C$28)^(AF$8-'Toll Bridges'!$C$29) ->  | AG30: ='Toll Bridges'!$C$22/'Toll Bridges'!$C$10*(1+'Toll Bridges'!$C$28)^(AG$8-'Toll Bridges'!$C$29) ->  | AH30: ='Toll Bridges'!$C$22/'Toll Bridges'!$C$10*(1+'Toll Bridges'!$C$28)^(AH$8-'Toll Bridges'!$C$29) ->  | AI30: ='Toll Bridges'!$C$22/'Toll Bridges'!$C$10*(1+'Toll Bridges'!$C$28)^(AI$8-'Toll Bridges'!$C$29) ->  | AJ30: ='Toll Bridges'!$C$22/'Toll Bridges'!$C$10*(1+'Toll Bridges'!$C$28)^(AJ$8-'Toll Bridges'!$C$29) ->  | AK30: ='Toll Bridges'!$C$22/'Toll Bridges'!$C$10*(1+'Toll Bridges'!$C$28)^(AK$8-'Toll Bridges'!$C$29) ->  | AL30: ='Toll Bridges'!$C$22/'Toll Bridges'!$C$10*(1+'Toll Bridges'!$C$28)^(AL$8-'Toll Bridges'!$C$29) ->  | AM30: ='Toll Bridges'!$C$22/'Toll Bridges'!$C$10*(1+'Toll Bridges'!$C$28)^(AM$8-'Toll Bridges'!$C$29) ->  | AN30: ='Toll Bridges'!$C$22/'Toll Bridges'!$C$10*(1+'Toll Bridges'!$C$28)^(AN$8-'Toll Bridges'!$C$29) ->  | AO30: ='Toll Bridges'!$C$22/'Toll Bridges'!$C$10*(1+'Toll Bridges'!$C$28)^(AO$8-'Toll Bridges'!$C$29) ->  | AP30: ='Toll Bridges'!$C$22/'Toll Bridges'!$C$10*(1+'Toll Bridges'!$C$28)^(AP$8-'Toll Bridges'!$C$29) -> 
A31: 24 | B31: ETC, Per-mile Fare - Trucks | C31: ='Toll Bridges'!$C$23/'Toll Bridges'!$C$10*(1+'Toll Bridges'!$C$28)^(C$8-'Toll Bridges'!$C$29) ->  | D31: ='Toll Bridges'!$C$23/'Toll Bridges'!$C$10*(1+'Toll Bridges'!$C$28)^(D$8-'Toll Bridges'!$C$29) ->  | E31: ='Toll Bridges'!$C$23/'Toll Bridges'!$C$10*(1+'Toll Bridges'!$C$28)^(E$8-'Toll Bridges'!$C$29) ->  | F31: ='Toll Bridges'!$C$23/'Toll Bridges'!$C$10*(1+'Toll Bridges'!$C$28)^(F$8-'Toll Bridges'!$C$29) ->  | G31: ='Toll Bridges'!$C$23/'Toll Bridges'!$C$10*(1+'Toll Bridges'!$C$28)^(G$8-'Toll Bridges'!$C$29) ->  | H31: ='Toll Bridges'!$C$23/'Toll Bridges'!$C$10*(1+'Toll Bridges'!$C$28)^(H$8-'Toll Bridges'!$C$29) ->  | I31: ='Toll Bridges'!$C$23/'Toll Bridges'!$C$10*(1+'Toll Bridges'!$C$28)^(I$8-'Toll Bridges'!$C$29) ->  | J31: ='Toll Bridges'!$C$23/'Toll Bridges'!$C$10*(1+'Toll Bridges'!$C$28)^(J$8-'Toll Bridges'!$C$29) ->  | K31: ='Toll Bridges'!$C$23/'Toll Bridges'!$C$10*(1+'Toll Bridges'!$C$28)^(K$8-'Toll Bridges'!$C$29) ->  | L31: ='Toll Bridges'!$C$23/'Toll Bridges'!$C$10*(1+'Toll Bridges'!$C$28)^(L$8-'Toll Bridges'!$C$29) ->  | M31: ='Toll Bridges'!$C$23/'Toll Bridges'!$C$10*(1+'Toll Bridges'!$C$28)^(M$8-'Toll Bridges'!$C$29) ->  | N31: ='Toll Bridges'!$C$23/'Toll Bridges'!$C$10*(1+'Toll Bridges'!$C$28)^(N$8-'Toll Bridges'!$C$29) ->  | O31: ='Toll Bridges'!$C$23/'Toll Bridges'!$C$10*(1+'Toll Bridges'!$C$28)^(O$8-'Toll Bridges'!$C$29) ->  | P31: ='Toll Bridges'!$C$23/'Toll Bridges'!$C$10*(1+'Toll Bridges'!$C$28)^(P$8-'Toll Bridges'!$C$29) ->  | Q31: ='Toll Bridges'!$C$23/'Toll Bridges'!$C$10*(1+'Toll Bridges'!$C$28)^(Q$8-'Toll Bridges'!$C$29) ->  | R31: ='Toll Bridges'!$C$23/'Toll Bridges'!$C$10*(1+'Toll Bridges'!$C$28)^(R$8-'Toll Bridges'!$C$29) ->  | S31: ='Toll Bridges'!$C$23/'Toll Bridges'!$C$10*(1+'Toll Bridges'!$C$28)^(S$8-'Toll Bridges'!$C$29) ->  | T31: ='Toll Bridges'!$C$23/'Toll Bridges'!$C$10*(1+'Toll Bridges'!$C$28)^(T$8-'Toll Bridges'!$C$29) ->  | U31: ='Toll Bridges'!$C$23/'Toll Bridges'!$C$10*(1+'Toll Bridges'!$C$28)^(U$8-'Toll Bridges'!$C$29) ->  | V31: ='Toll Bridges'!$C$23/'Toll Bridges'!$C$10*(1+'Toll Bridges'!$C$28)^(V$8-'Toll Bridges'!$C$29) ->  | W31: ='Toll Bridges'!$C$23/'Toll Bridges'!$C$10*(1+'Toll Bridges'!$C$28)^(W$8-'Toll Bridges'!$C$29) ->  | X31: ='Toll Bridges'!$C$23/'Toll Bridges'!$C$10*(1+'Toll Bridges'!$C$28)^(X$8-'Toll Bridges'!$C$29) ->  | Y31: ='Toll Bridges'!$C$23/'Toll Bridges'!$C$10*(1+'Toll Bridges'!$C$28)^(Y$8-'Toll Bridges'!$C$29) ->  | Z31: ='Toll Bridges'!$C$23/'Toll Bridges'!$C$10*(1+'Toll Bridges'!$C$28)^(Z$8-'Toll Bridges'!$C$29) ->  | AA31: ='Toll Bridges'!$C$23/'Toll Bridges'!$C$10*(1+'Toll Bridges'!$C$28)^(AA$8-'Toll Bridges'!$C$29) ->  | AB31: ='Toll Bridges'!$C$23/'Toll Bridges'!$C$10*(1+'Toll Bridges'!$C$28)^(AB$8-'Toll Bridges'!$C$29) ->  | AC31: ='Toll Bridges'!$C$23/'Toll Bridges'!$C$10*(1+'Toll Bridges'!$C$28)^(AC$8-'Toll Bridges'!$C$29) ->  | AD31: ='Toll Bridges'!$C$23/'Toll Bridges'!$C$10*(1+'Toll Bridges'!$C$28)^(AD$8-'Toll Bridges'!$C$29) ->  | AE31: ='Toll Bridges'!$C$23/'Toll Bridges'!$C$10*(1+'Toll Bridges'!$C$28)^(AE$8-'Toll Bridges'!$C$29) ->  | AF31: ='Toll Bridges'!$C$23/'Toll Bridges'!$C$10*(1+'Toll Bridges'!$C$28)^(AF$8-'Toll Bridges'!$C$29) ->  | AG31: ='Toll Bridges'!$C$23/'Toll Bridges'!$C$10*(1+'Toll Bridges'!$C$28)^(AG$8-'Toll Bridges'!$C$29) ->  | AH31: ='Toll Bridges'!$C$23/'Toll Bridges'!$C$10*(1+'Toll Bridges'!$C$28)^(AH$8-'Toll Bridges'!$C$29) ->  | AI31: ='Toll Bridges'!$C$23/'Toll Bridges'!$C$10*(1+'Toll Bridges'!$C$28)^(AI$8-'Toll Bridges'!$C$29) ->  | AJ31: ='Toll Bridges'!$C$23/'Toll Bridges'!$C$10*(1+'Toll Bridges'!$C$28)^(AJ$8-'Toll Bridges'!$C$29) ->  | AK31: ='Toll Bridges'!$C$23/'Toll Bridges'!$C$10*(1+'Toll Bridges'!$C$28)^(AK$8-'Toll Bridges'!$C$29) ->  | AL31: ='Toll Bridges'!$C$23/'Toll Bridges'!$C$10*(1+'Toll Bridges'!$C$28)^(AL$8-'Toll Bridges'!$C$29) ->  | AM31: ='Toll Bridges'!$C$23/'Toll Bridges'!$C$10*(1+'Toll Bridges'!$C$28)^(AM$8-'Toll Bridges'!$C$29) ->  | AN31: ='Toll Bridges'!$C$23/'Toll Bridges'!$C$10*(1+'Toll Bridges'!$C$28)^(AN$8-'Toll Bridges'!$C$29) ->  | AO31: ='Toll Bridges'!$C$23/'Toll Bridges'!$C$10*(1+'Toll Bridges'!$C$28)^(AO$8-'Toll Bridges'!$C$29) ->  | AP31: ='Toll Bridges'!$C$23/'Toll Bridges'!$C$10*(1+'Toll Bridges'!$C$28)^(AP$8-'Toll Bridges'!$C$29) -> 
A32: 25 | B32: BBM, Per-mile Fare - Autos | C32: ='Toll Bridges'!$C$26/'Toll Bridges'!$C$10*(1+'Toll Bridges'!$C$28)^(C$8-'Toll Bridges'!$C$29) ->  | D32: ='Toll Bridges'!$C$26/'Toll Bridges'!$C$10*(1+'Toll Bridges'!$C$28)^(D$8-'Toll Bridges'!$C$29) ->  | E32: ='Toll Bridges'!$C$26/'Toll Bridges'!$C$10*(1+'Toll Bridges'!$C$28)^(E$8-'Toll Bridges'!$C$29) ->  | F32: ='Toll Bridges'!$C$26/'Toll Bridges'!$C$10*(1+'Toll Bridges'!$C$28)^(F$8-'Toll Bridges'!$C$29) ->  | G32: ='Toll Bridges'!$C$26/'Toll Bridges'!$C$10*(1+'Toll Bridges'!$C$28)^(G$8-'Toll Bridges'!$C$29) ->  | H32: ='Toll Bridges'!$C$26/'Toll Bridges'!$C$10*(1+'Toll Bridges'!$C$28)^(H$8-'Toll Bridges'!$C$29) ->  | I32: ='Toll Bridges'!$C$26/'Toll Bridges'!$C$10*(1+'Toll Bridges'!$C$28)^(I$8-'Toll Bridges'!$C$29) ->  | J32: ='Toll Bridges'!$C$26/'Toll Bridges'!$C$10*(1+'Toll Bridges'!$C$28)^(J$8-'Toll Bridges'!$C$29) ->  | K32: ='Toll Bridges'!$C$26/'Toll Bridges'!$C$10*(1+'Toll Bridges'!$C$28)^(K$8-'Toll Bridges'!$C$29) ->  | L32: ='Toll Bridges'!$C$26/'Toll Bridges'!$C$10*(1+'Toll Bridges'!$C$28)^(L$8-'Toll Bridges'!$C$29) ->  | M32: ='Toll Bridges'!$C$26/'Toll Bridges'!$C$10*(1+'Toll Bridges'!$C$28)^(M$8-'Toll Bridges'!$C$29) ->  | N32: ='Toll Bridges'!$C$26/'Toll Bridges'!$C$10*(1+'Toll Bridges'!$C$28)^(N$8-'Toll Bridges'!$C$29) ->  | O32: ='Toll Bridges'!$C$26/'Toll Bridges'!$C$10*(1+'Toll Bridges'!$C$28)^(O$8-'Toll Bridges'!$C$29) ->  | P32: ='Toll Bridges'!$C$26/'Toll Bridges'!$C$10*(1+'Toll Bridges'!$C$28)^(P$8-'Toll Bridges'!$C$29) ->  | Q32: ='Toll Bridges'!$C$26/'Toll Bridges'!$C$10*(1+'Toll Bridges'!$C$28)^(Q$8-'Toll Bridges'!$C$29) ->  | R32: ='Toll Bridges'!$C$26/'Toll Bridges'!$C$10*(1+'Toll Bridges'!$C$28)^(R$8-'Toll Bridges'!$C$29) ->  | S32: ='Toll Bridges'!$C$26/'Toll Bridges'!$C$10*(1+'Toll Bridges'!$C$28)^(S$8-'Toll Bridges'!$C$29) ->  | T32: ='Toll Bridges'!$C$26/'Toll Bridges'!$C$10*(1+'Toll Bridges'!$C$28)^(T$8-'Toll Bridges'!$C$29) ->  | U32: ='Toll Bridges'!$C$26/'Toll Bridges'!$C$10*(1+'Toll Bridges'!$C$28)^(U$8-'Toll Bridges'!$C$29) ->  | V32: ='Toll Bridges'!$C$26/'Toll Bridges'!$C$10*(1+'Toll Bridges'!$C$28)^(V$8-'Toll Bridges'!$C$29) ->  | W32: ='Toll Bridges'!$C$26/'Toll Bridges'!$C$10*(1+'Toll Bridges'!$C$28)^(W$8-'Toll Bridges'!$C$29) ->  | X32: ='Toll Bridges'!$C$26/'Toll Bridges'!$C$10*(1+'Toll Bridges'!$C$28)^(X$8-'Toll Bridges'!$C$29) ->  | Y32: ='Toll Bridges'!$C$26/'Toll Bridges'!$C$10*(1+'Toll Bridges'!$C$28)^(Y$8-'Toll Bridges'!$C$29) ->  | Z32: ='Toll Bridges'!$C$26/'Toll Bridges'!$C$10*(1+'Toll Bridges'!$C$28)^(Z$8-'Toll Bridges'!$C$29) ->  | AA32: ='Toll Bridges'!$C$26/'Toll Bridges'!$C$10*(1+'Toll Bridges'!$C$28)^(AA$8-'Toll Bridges'!$C$29) ->  | AB32: ='Toll Bridges'!$C$26/'Toll Bridges'!$C$10*(1+'Toll Bridges'!$C$28)^(AB$8-'Toll Bridges'!$C$29) ->  | AC32: ='Toll Bridges'!$C$26/'Toll Bridges'!$C$10*(1+'Toll Bridges'!$C$28)^(AC$8-'Toll Bridges'!$C$29) ->  | AD32: ='Toll Bridges'!$C$26/'Toll Bridges'!$C$10*(1+'Toll Bridges'!$C$28)^(AD$8-'Toll Bridges'!$C$29) ->  | AE32: ='Toll Bridges'!$C$26/'Toll Bridges'!$C$10*(1+'Toll Bridges'!$C$28)^(AE$8-'Toll Bridges'!$C$29) ->  | AF32: ='Toll Bridges'!$C$26/'Toll Bridges'!$C$10*(1+'Toll Bridges'!$C$28)^(AF$8-'Toll Bridges'!$C$29) ->  | AG32: ='Toll Bridges'!$C$26/'Toll Bridges'!$C$10*(1+'Toll Bridges'!$C$28)^(AG$8-'Toll Bridges'!$C$29) ->  | AH32: ='Toll Bridges'!$C$26/'Toll Bridges'!$C$10*(1+'Toll Bridges'!$C$28)^(AH$8-'Toll Bridges'!$C$29) ->  | AI32: ='Toll Bridges'!$C$26/'Toll Bridges'!$C$10*(1+'Toll Bridges'!$C$28)^(AI$8-'Toll Bridges'!$C$29) ->  | AJ32: ='Toll Bridges'!$C$26/'Toll Bridges'!$C$10*(1+'Toll Bridges'!$C$28)^(AJ$8-'Toll Bridges'!$C$29) ->  | AK32: ='Toll Bridges'!$C$26/'Toll Bridges'!$C$10*(1+'Toll Bridges'!$C$28)^(AK$8-'Toll Bridges'!$C$29) ->  | AL32: ='Toll Bridges'!$C$26/'Toll Bridges'!$C$10*(1+'Toll Bridges'!$C$28)^(AL$8-'Toll Bridges'!$C$29) ->  | AM32: ='Toll Bridges'!$C$26/'Toll Bridges'!$C$10*(1+'Toll Bridges'!$C$28)^(AM$8-'Toll Bridges'!$C$29) ->  | AN32: ='Toll Bridges'!$C$26/'Toll Bridges'!$C$10*(1+'Toll Bridges'!$C$28)^(AN$8-'Toll Bridges'!$C$29) ->  | AO32: ='Toll Bridges'!$C$26/'Toll Bridges'!$C$10*(1+'Toll Bridges'!$C$28)^(AO$8-'Toll Bridges'!$C$29) ->  | AP32: ='Toll Bridges'!$C$26/'Toll Bridges'!$C$10*(1+'Toll Bridges'!$C$28)^(AP$8-'Toll Bridges'!$C$29) -> 
A33: 26 | B33: BBM, Per-mile Fare - Trucks | C33: ='Toll Bridges'!$C$27/'Toll Bridges'!$C$10*(1+'Toll Bridges'!$C$28)^(C$8-'Toll Bridges'!$C$29) ->  | D33: ='Toll Bridges'!$C$27/'Toll Bridges'!$C$10*(1+'Toll Bridges'!$C$28)^(D$8-'Toll Bridges'!$C$29) ->  | E33: ='Toll Bridges'!$C$27/'Toll Bridges'!$C$10*(1+'Toll Bridges'!$C$28)^(E$8-'Toll Bridges'!$C$29) ->  | F33: ='Toll Bridges'!$C$27/'Toll Bridges'!$C$10*(1+'Toll Bridges'!$C$28)^(F$8-'Toll Bridges'!$C$29) ->  | G33: ='Toll Bridges'!$C$27/'Toll Bridges'!$C$10*(1+'Toll Bridges'!$C$28)^(G$8-'Toll Bridges'!$C$29) ->  | H33: ='Toll Bridges'!$C$27/'Toll Bridges'!$C$10*(1+'Toll Bridges'!$C$28)^(H$8-'Toll Bridges'!$C$29) ->  | I33: ='Toll Bridges'!$C$27/'Toll Bridges'!$C$10*(1+'Toll Bridges'!$C$28)^(I$8-'Toll Bridges'!$C$29) ->  | J33: ='Toll Bridges'!$C$27/'Toll Bridges'!$C$10*(1+'Toll Bridges'!$C$28)^(J$8-'Toll Bridges'!$C$29) ->  | K33: ='Toll Bridges'!$C$27/'Toll Bridges'!$C$10*(1+'Toll Bridges'!$C$28)^(K$8-'Toll Bridges'!$C$29) ->  | L33: ='Toll Bridges'!$C$27/'Toll Bridges'!$C$10*(1+'Toll Bridges'!$C$28)^(L$8-'Toll Bridges'!$C$29) ->  | M33: ='Toll Bridges'!$C$27/'Toll Bridges'!$C$10*(1+'Toll Bridges'!$C$28)^(M$8-'Toll Bridges'!$C$29) ->  | N33: ='Toll Bridges'!$C$27/'Toll Bridges'!$C$10*(1+'Toll Bridges'!$C$28)^(N$8-'Toll Bridges'!$C$29) ->  | O33: ='Toll Bridges'!$C$27/'Toll Bridges'!$C$10*(1+'Toll Bridges'!$C$28)^(O$8-'Toll Bridges'!$C$29) ->  | P33: ='Toll Bridges'!$C$27/'Toll Bridges'!$C$10*(1+'Toll Bridges'!$C$28)^(P$8-'Toll Bridges'!$C$29) ->  | Q33: ='Toll Bridges'!$C$27/'Toll Bridges'!$C$10*(1+'Toll Bridges'!$C$28)^(Q$8-'Toll Bridges'!$C$29) ->  | R33: ='Toll Bridges'!$C$27/'Toll Bridges'!$C$10*(1+'Toll Bridges'!$C$28)^(R$8-'Toll Bridges'!$C$29) ->  | S33: ='Toll Bridges'!$C$27/'Toll Bridges'!$C$10*(1+'Toll Bridges'!$C$28)^(S$8-'Toll Bridges'!$C$29) ->  | T33: ='Toll Bridges'!$C$27/'Toll Bridges'!$C$10*(1+'Toll Bridges'!$C$28)^(T$8-'Toll Bridges'!$C$29) ->  | U33: ='Toll Bridges'!$C$27/'Toll Bridges'!$C$10*(1+'Toll Bridges'!$C$28)^(U$8-'Toll Bridges'!$C$29) ->  | V33: ='Toll Bridges'!$C$27/'Toll Bridges'!$C$10*(1+'Toll Bridges'!$C$28)^(V$8-'Toll Bridges'!$C$29) ->  | W33: ='Toll Bridges'!$C$27/'Toll Bridges'!$C$10*(1+'Toll Bridges'!$C$28)^(W$8-'Toll Bridges'!$C$29) ->  | X33: ='Toll Bridges'!$C$27/'Toll Bridges'!$C$10*(1+'Toll Bridges'!$C$28)^(X$8-'Toll Bridges'!$C$29) ->  | Y33: ='Toll Bridges'!$C$27/'Toll Bridges'!$C$10*(1+'Toll Bridges'!$C$28)^(Y$8-'Toll Bridges'!$C$29) ->  | Z33: ='Toll Bridges'!$C$27/'Toll Bridges'!$C$10*(1+'Toll Bridges'!$C$28)^(Z$8-'Toll Bridges'!$C$29) ->  | AA33: ='Toll Bridges'!$C$27/'Toll Bridges'!$C$10*(1+'Toll Bridges'!$C$28)^(AA$8-'Toll Bridges'!$C$29) ->  | AB33: ='Toll Bridges'!$C$27/'Toll Bridges'!$C$10*(1+'Toll Bridges'!$C$28)^(AB$8-'Toll Bridges'!$C$29) ->  | AC33: ='Toll Bridges'!$C$27/'Toll Bridges'!$C$10*(1+'Toll Bridges'!$C$28)^(AC$8-'Toll Bridges'!$C$29) ->  | AD33: ='Toll Bridges'!$C$27/'Toll Bridges'!$C$10*(1+'Toll Bridges'!$C$28)^(AD$8-'Toll Bridges'!$C$29) ->  | AE33: ='Toll Bridges'!$C$27/'Toll Bridges'!$C$10*(1+'Toll Bridges'!$C$28)^(AE$8-'Toll Bridges'!$C$29) ->  | AF33: ='Toll Bridges'!$C$27/'Toll Bridges'!$C$10*(1+'Toll Bridges'!$C$28)^(AF$8-'Toll Bridges'!$C$29) ->  | AG33: ='Toll Bridges'!$C$27/'Toll Bridges'!$C$10*(1+'Toll Bridges'!$C$28)^(AG$8-'Toll Bridges'!$C$29) ->  | AH33: ='Toll Bridges'!$C$27/'Toll Bridges'!$C$10*(1+'Toll Bridges'!$C$28)^(AH$8-'Toll Bridges'!$C$29) ->  | AI33: ='Toll Bridges'!$C$27/'Toll Bridges'!$C$10*(1+'Toll Bridges'!$C$28)^(AI$8-'Toll Bridges'!$C$29) ->  | AJ33: ='Toll Bridges'!$C$27/'Toll Bridges'!$C$10*(1+'Toll Bridges'!$C$28)^(AJ$8-'Toll Bridges'!$C$29) ->  | AK33: ='Toll Bridges'!$C$27/'Toll Bridges'!$C$10*(1+'Toll Bridges'!$C$28)^(AK$8-'Toll Bridges'!$C$29) ->  | AL33: ='Toll Bridges'!$C$27/'Toll Bridges'!$C$10*(1+'Toll Bridges'!$C$28)^(AL$8-'Toll Bridges'!$C$29) ->  | AM33: ='Toll Bridges'!$C$27/'Toll Bridges'!$C$10*(1+'Toll Bridges'!$C$28)^(AM$8-'Toll Bridges'!$C$29) ->  | AN33: ='Toll Bridges'!$C$27/'Toll Bridges'!$C$10*(1+'Toll Bridges'!$C$28)^(AN$8-'Toll Bridges'!$C$29) ->  | AO33: ='Toll Bridges'!$C$27/'Toll Bridges'!$C$10*(1+'Toll Bridges'!$C$28)^(AO$8-'Toll Bridges'!$C$29) ->  | AP33: ='Toll Bridges'!$C$27/'Toll Bridges'!$C$10*(1+'Toll Bridges'!$C$28)^(AP$8-'Toll Bridges'!$C$29) -> 
A34: 27
A35: 28 | B35: Est. Annual Rev. ($) | C35: =ROUND(SUMPRODUCT(C25:C28,C30:C33),-3) ->  | D35: =ROUND(SUMPRODUCT(D25:D28,D30:D33),-3) -> 
A36: 29 | B36: Est. Annual Costs ($) | C36: =-'Bridge Calcs #2'!C28 ->  | D36: =-'Bridge Calcs #2'!D28 ->  | E36: =-'Bridge Calcs #2'!E28 ->  | F36: =-'Bridge Calcs #2'!F28 ->  | G36: =-'Bridge Calcs #2'!G28 ->  | H36: =-'Bridge Calcs #2'!H28 ->  | I36: =-'Bridge Calcs #2'!I28 ->  | J36: =-'Bridge Calcs #2'!J28 ->  | K36: =-'Bridge Calcs #2'!K28 ->  | L36: =-'Bridge Calcs #2'!L28 ->  | M36: =-'Bridge Calcs #2'!M28 ->  | N36: =-'Bridge Calcs #2'!N28 ->  | O36: =-'Bridge Calcs #2'!O28 ->  | P36: =-'Bridge Calcs #2'!P28 ->  | Q36: =-'Bridge Calcs #2'!Q28 ->  | R36: =-'Bridge Calcs #2'!R28 ->  | S36: =-'Bridge Calcs #2'!S28 ->  | T36: =-'Bridge Calcs #2'!T28 ->  | U36: =-'Bridge Calcs #2'!U28 ->  | V36: =-'Bridge Calcs #2'!V28 ->  | W36: =-'Bridge Calcs #2'!W28 ->  | X36: =-'Bridge Calcs #2'!X28 ->  | Y36: =-'Bridge Calcs #2'!Y28 ->  | Z36: =-'Bridge Calcs #2'!Z28 ->  | AA36: =-'Bridge Calcs #2'!AA28 ->  | AB36: =-'Bridge Calcs #2'!AB28 ->  | AC36: =-'Bridge Calcs #2'!AC28 ->  | AD36: =-'Bridge Calcs #2'!AD28 ->  | AE36: =-'Bridge Calcs #2'!AE28 ->  | AF36: =-'Bridge Calcs #2'!AF28 ->  | AG36: =-'Bridge Calcs #2'!AG28 ->  | AH36: =-'Bridge Calcs #2'!AH28 ->  | AI36: =-'Bridge Calcs #2'!AI28 ->  | AJ36: =-'Bridge Calcs #2'!AJ28 ->  | AK36: =-'Bridge Calcs #2'!AK28 ->  | AL36: =-'Bridge Calcs #2'!AL28 ->  | AM36: =-'Bridge Calcs #2'!AM28 ->  | AN36: =-'Bridge Calcs #2'!AN28 ->  | AO36: =-'Bridge Calcs #2'!AO28 ->  | AP36: =-'Bridge Calcs #2'!AP28 -> 
A37: 30 | B37: Est. Net Operating Revenue | C37: =SUM(C35:C36) ->  | D37: =SUM(D35:D36) -> 
A38: 31
A39: 32 | B39: Operating Margins | C39: =C37/C35 ->  | D39: =D37/D35 -> 
A40: 33
A41: 34
A42: 35 | B42: Diversion Model
A43: 36
A44: 37 | B44: Trip Purpose> | C44: Passenger Cars | D44: Trucks
A45: 38 | B45: Time Coefficient (alpha) | C45: ='Assumptions Tab'!M137 -> 0.122 | D45: ='Assumptions Tab'!N137 -> 0.091
A46: 39 | B46: Cost coefficient (beta) | C46: ='Assumptions Tab'!M138 -> 0.5856 | D46: ='Assumptions Tab'!N138 -> 0.1092
A47: 40 | B47: Net Constant (toll & ETC bias constant) | C47: ='Assumptions Tab'!M139 -> -0.014 | D47: ='Assumptions Tab'!N139 -> 0.38
A48: 41 | B48: Toll $ - 2018$ | C48: ='Toll Bridges'!C22 -> 6 | D48: ='Toll Bridges'!$C$23 -> 10
A49: 42 | B49: Time Saved (TTR-TFR) | C49: =IF('Toll Bridges'!$O$8=1,-100000,-'Toll Bridges'!$I$14) -> -100000 | D49: =IF('Toll Bridges'!$O$8=1,-100000,-'Toll Bridges'!$I$14) -> -100000
A50: 43
A51: 44
A52: 45
A53: 46
A54: 47
A55: 48
A56: 49
A57: 50
A58: 51
A59: 52
A60: 53
A61: 54
A62: 55
A63: 56
A64: 57
A65: 58
A66: 59
A67: 60
A68: 61
A69: 62
A70: 63
A71: 64
A72: 65
A73: 66
A74: =A73+1 -> 67
A75: 68
B95: 2028-2034 | C95: =LOGEST(C47:C52,$B47:$B52,,)-1 ->  | E95: =LOGEST(E47:E52,$B47:$B52,,)-1 -> 
B96: 2035-2044 | C96: =LOGEST(C53:C62,$B53:$B62,,)-1 ->  | E96: =LOGEST(E53:E62,$B53:$B62,,)-1 -> 
B97: 2045-2054 | C97: =LOGEST(C63:C72,$B63:$B72,,)-1 ->  | E97: =LOGEST(E63:E72,$B63:$B72,,)-1 -> 
B98: 2055-2064 | C98: =LOGEST(C73:C82,$B73:$B82,,)-1 ->  | E98: =LOGEST(E73:E82,$B73:$B82,,)-1 -> 
B99: 2065-2074 | C99: =LOGEST(C83:C92,$B83:$B92,,)-1 ->  | E99: =LOGEST(E83:E92,$B83:$B92,,)-1 -> 

Sheet Bridge Calcs #2 (hidden)
B1: Cost Analysis
C3: ='Toll Bridges'!$I$8 -> 0 | D3: =C3+1 -> 1 | E3: =D3+1 -> 2 | F3: 3 | G3: 4 | H3: 5 | I3: 6 | J3: 7 | K3: 8 | L3: 9 | M3: 10 | N3: 11 | O3: 12 | P3: 13 | Q3: 14 | R3: 15 | S3: 16 | T3: 17 | U3: 18 | V3: 19 | W3: 20 | X3: 21 | Y3: 22 | Z3: 23 | AA3: 24 | AB3: 25 | AC3: 26 | AD3: 27 | AE3: 28 | AF3: 29 | AG3: 30 | AH3: 31 | AI3: 32 | AJ3: 33 | AK3: 34 | AL3: 35 | AM3: 36 | AN3: 37 | AO3: 38 | AP3: 39
B4: Annual Trips | C4: =SUM('Bridge_Calcs #1'!C16:C17)*Annualization_Factor -> 0 | D4: =SUM('Bridge_Calcs #1'!D16:D17)*Annualization_Factor ->  | E4: =SUM('Bridge_Calcs #1'!E16:E17)*Annualization_Factor ->  | F4: =SUM('Bridge_Calcs #1'!F16:F17)*Annualization_Factor ->  | G4: =SUM('Bridge_Calcs #1'!G16:G17)*Annualization_Factor ->  | H4: =SUM('Bridge_Calcs #1'!H16:H17)*Annualization_Factor ->  | I4: =SUM('Bridge_Calcs #1'!I16:I17)*Annualization_Factor ->  | J4: =SUM('Bridge_Calcs #1'!J16:J17)*Annualization_Factor ->  | K4: =SUM('Bridge_Calcs #1'!K16:K17)*Annualization_Factor ->  | L4: =SUM('Bridge_Calcs #1'!L16:L17)*Annualization_Factor ->  | M4: =SUM('Bridge_Calcs #1'!M16:M17)*Annualization_Factor ->  | N4: =SUM('Bridge_Calcs #1'!N16:N17)*Annualization_Factor ->  | O4: =SUM('Bridge_Calcs #1'!O16:O17)*Annualization_Factor ->  | P4: =SUM('Bridge_Calcs #1'!P16:P17)*Annualization_Factor ->  | Q4: =SUM('Bridge_Calcs #1'!Q16:Q17)*Annualization_Factor ->  | R4: =SUM('Bridge_Calcs #1'!R16:R17)*Annualization_Factor ->  | S4: =SUM('Bridge_Calcs #1'!S16:S17)*Annualization_Factor ->  | T4: =SUM('Bridge_Calcs #1'!T16:T17)*Annualization_Factor ->  | U4: =SUM('Bridge_Calcs #1'!U16:U17)*Annualization_Factor ->  | V4: =SUM('Bridge_Calcs #1'!V16:V17)*Annualization_Factor ->  | W4: =SUM('Bridge_Calcs #1'!W16:W17)*Annualization_Factor ->  | X4: =SUM('Bridge_Calcs #1'!X16:X17)*Annualization_Factor ->  | Y4: =SUM('Bridge_Calcs #1'!Y16:Y17)*Annualization_Factor ->  | Z4: =SUM('Bridge_Calcs #1'!Z16:Z17)*Annualization_Factor ->  | AA4: =SUM('Bridge_Calcs #1'!AA16:AA17)*Annualization_Factor ->  | AB4: =SUM('Bridge_Calcs #1'!AB16:AB17)*Annualization_Factor ->  | AC4: =SUM('Bridge_Calcs #1'!AC16:AC17)*Annualization_Factor ->  | AD4: =SUM('Bridge_Calcs #1'!AD16:AD17)*Annualization_Factor ->  | AE4: =SUM('Bridge_Calcs #1'!AE16:AE17)*Annualization_Factor ->  | AF4: =SUM('Bridge_Calcs #1'!AF16:AF17)*Annualization_Factor ->  | AG4: =SUM('Bridge_Calcs #1'!AG16:AG17)*Annualization_Factor ->  | AH4: =SUM('Bridge_Calcs #1'!AH16:AH17)*Annualization_Factor ->  | AI4: =SUM('Bridge_Calcs #1'!AI16:AI17)*Annualization_Factor ->  | AJ4: =SUM('Bridge_Calcs #1'!AJ16:AJ17)*Annualization_Factor ->  | AK4: =SUM('Bridge_Calcs #1'!AK16:AK17)*Annualization_Factor ->  | AL4: =SUM('Bridge_Calcs #1'!AL16:AL17)*Annualization_Factor ->  | AM4: =SUM('Bridge_Calcs #1'!AM16:AM17)*Annualization_Factor ->  | AN4: =SUM('Bridge_Calcs #1'!AN16:AN17)*Annualization_Factor ->  | AO4: =SUM('Bridge_Calcs #1'!AO16:AO17)*Annualization_Factor ->  | AP4: =SUM('Bridge_Calcs #1'!AP16:AP17)*Annualization_Factor -> 
B5: Non-Tolled Annual Trips | C5: =C4-SUM('Bridge_Calcs #1'!C19:C20)*Annualization_Factor -> 0 | D5: =D4-SUM('Bridge_Calcs #1'!D19:D20)*Annualization_Factor ->  | E5: =E4-SUM('Bridge_Calcs #1'!E19:E20)*Annualization_Factor ->  | F5: =F4-SUM('Bridge_Calcs #1'!F19:F20)*Annualization_Factor ->  | G5: =G4-SUM('Bridge_Calcs #1'!G19:G20)*Annualization_Factor ->  | H5: =H4-SUM('Bridge_Calcs #1'!H19:H20)*Annualization_Factor ->  | I5: =I4-SUM('Bridge_Calcs #1'!I19:I20)*Annualization_Factor ->  | J5: =J4-SUM('Bridge_Calcs #1'!J19:J20)*Annualization_Factor ->  | K5: =K4-SUM('Bridge_Calcs #1'!K19:K20)*Annualization_Factor ->  | L5: =L4-SUM('Bridge_Calcs #1'!L19:L20)*Annualization_Factor ->  | M5: =M4-SUM('Bridge_Calcs #1'!M19:M20)*Annualization_Factor ->  | N5: =N4-SUM('Bridge_Calcs #1'!N19:N20)*Annualization_Factor ->  | O5: =O4-SUM('Bridge_Calcs #1'!O19:O20)*Annualization_Factor ->  | P5: =P4-SUM('Bridge_Calcs #1'!P19:P20)*Annualization_Factor ->  | Q5: =Q4-SUM('Bridge_Calcs #1'!Q19:Q20)*Annualization_Factor ->  | R5: =R4-SUM('Bridge_Calcs #1'!R19:R20)*Annualization_Factor ->  | S5: =S4-SUM('Bridge_Calcs #1'!S19:S20)*Annualization_Factor ->  | T5: =T4-SUM('Bridge_Calcs #1'!T19:T20)*Annualization_Factor ->  | U5: =U4-SUM('Bridge_Calcs #1'!U19:U20)*Annualization_Factor ->  | V5: =V4-SUM('Bridge_Calcs #1'!V19:V20)*Annualization_Factor ->  | W5: =W4-SUM('Bridge_Calcs #1'!W19:W20)*Annualization_Factor ->  | X5: =X4-SUM('Bridge_Calcs #1'!X19:X20)*Annualization_Factor ->  | Y5: =Y4-SUM('Bridge_Calcs #1'!Y19:Y20)*Annualization_Factor ->  | Z5: =Z4-SUM('Bridge_Calcs #1'!Z19:Z20)*Annualization_Factor ->  | AA5: =AA4-SUM('Bridge_Calcs #1'!AA19:AA20)*Annualization_Factor ->  | AB5: =AB4-SUM('Bridge_Calcs #1'!AB19:AB20)*Annualization_Factor ->  | AC5: =AC4-SUM('Bridge_Calcs #1'!AC19:AC20)*Annualization_Factor ->  | AD5: =AD4-SUM('Bridge_Calcs #1'!AD19:AD20)*Annualization_Factor ->  | AE5: =AE4-SUM('Bridge_Calcs #1'!AE19:AE20)*Annualization_Factor ->  | AF5: =AF4-SUM('Bridge_Calcs #1'!AF19:AF20)*Annualization_Factor ->  | AG5: =AG4-SUM('Bridge_Calcs #1'!AG19:AG20)*Annualization_Factor ->  | AH5: =AH4-SUM('Bridge_Calcs #1'!AH19:AH20)*Annualization_Factor ->  | AI5: =AI4-SUM('Bridge_Calcs #1'!AI19:AI20)*Annualization_Factor ->  | AJ5: =AJ4-SUM('Bridge_Calcs #1'!AJ19:AJ20)*Annualization_Factor ->  | AK5: =AK4-SUM('Bridge_Calcs #1'!AK19:AK20)*Annualization_Factor ->  | AL5: =AL4-SUM('Bridge_Calcs #1'!AL19:AL20)*Annualization_Factor ->  | AM5: =AM4-SUM('Bridge_Calcs #1'!AM19:AM20)*Annualization_Factor ->  | AN5: =AN4-SUM('Bridge_Calcs #1'!AN19:AN20)*Annualization_Factor ->  | AO5: =AO4-SUM('Bridge_Calcs #1'!AO19:AO20)*Annualization_Factor ->  | AP5: =AP4-SUM('Bridge_Calcs #1'!AP19:AP20)*Annualization_Factor -> 
B6: Non-Tolled Cost per Tx | C6: ='Assumptions Tab'!$E$24*(1+'Assumptions Tab'!$E$26)^(C$3-'Assumptions Tab'!$E$25) -> 0.01 | D6: ='Assumptions Tab'!$E$24*(1+'Assumptions Tab'!$E$26)^(D$3-'Assumptions Tab'!$E$25) -> 0.01 | E6: ='Assumptions Tab'!$E$24*(1+'Assumptions Tab'!$E$26)^(E$3-'Assumptions Tab'!$E$25) -> 0.01 | F6: ='Assumptions Tab'!$E$24*(1+'Assumptions Tab'!$E$26)^(F$3-'Assumptions Tab'!$E$25) -> 0.01 | G6: ='Assumptions Tab'!$E$24*(1+'Assumptions Tab'!$E$26)^(G$3-'Assumptions Tab'!$E$25) -> 0.01 | H6: ='Assumptions Tab'!$E$24*(1+'Assumptions Tab'!$E$26)^(H$3-'Assumptions Tab'!$E$25) -> 0.01 | I6: ='Assumptions Tab'!$E$24*(1+'Assumptions Tab'!$E$26)^(I$3-'Assumptions Tab'!$E$25) -> 0.01 | J6: ='Assumptions Tab'!$E$24*(1+'Assumptions Tab'!$E$26)^(J$3-'Assumptions Tab'!$E$25) -> 0.01 | K6: ='Assumptions Tab'!$E$24*(1+'Assumptions Tab'!$E$26)^(K$3-'Assumptions Tab'!$E$25) -> 0.01 | L6: ='Assumptions Tab'!$E$24*(1+'Assumptions Tab'!$E$26)^(L$3-'Assumptions Tab'!$E$25) -> 0.01 | M6: ='Assumptions Tab'!$E$24*(1+'Assumptions Tab'!$E$26)^(M$3-'Assumptions Tab'!$E$25) -> 0.01 | N6: ='Assumptions Tab'!$E$24*(1+'Assumptions Tab'!$E$26)^(N$3-'Assumptions Tab'!$E$25) -> 0.01 | O6: ='Assumptions Tab'!$E$24*(1+'Assumptions Tab'!$E$26)^(O$3-'Assumptions Tab'!$E$25) -> 0.01 | P6: ='Assumptions Tab'!$E$24*(1+'Assumptions Tab'!$E$26)^(P$3-'Assumptions Tab'!$E$25) -> 0.01 | Q6: ='Assumptions Tab'!$E$24*(1+'Assumptions Tab'!$E$26)^(Q$3-'Assumptions Tab'!$E$25) -> 0.01 | R6: ='Assumptions Tab'!$E$24*(1+'Assumptions Tab'!$E$26)^(R$3-'Assumptions Tab'!$E$25) -> 0.01 | S6: ='Assumptions Tab'!$E$24*(1+'Assumptions Tab'!$E$26)^(S$3-'Assumptions Tab'!$E$25) -> 0.01 | T6: ='Assumptions Tab'!$E$24*(1+'Assumptions Tab'!$E$26)^(T$3-'Assumptions Tab'!$E$25) -> 0.01 | U6: ='Assumptions Tab'!$E$24*(1+'Assumptions Tab'!$E$26)^(U$3-'Assumptions Tab'!$E$25) -> 0.01 | V6: ='Assumptions Tab'!$E$24*(1+'Assumptions Tab'!$E$26)^(V$3-'Assumptions Tab'!$E$25) -> 0.01 | W6: ='Assumptions Tab'!$E$24*(1+'Assumptions Tab'!$E$26)^(W$3-'Assumptions Tab'!$E$25) -> 0.01 | X6: ='Assumptions Tab'!$E$24*(1+'Assumptions Tab'!$E$26)^(X$3-'Assumptions Tab'!$E$25) -> 0.01 | Y6: ='Assumptions Tab'!$E$24*(1+'Assumptions Tab'!$E$26)^(Y$3-'Assumptions Tab'!$E$25) -> 0.01 | Z6: ='Assumptions Tab'!$E$24*(1+'Assumptions Tab'!$E$26)^(Z$3-'Assumptions Tab'!$E$25) -> 0.01 | AA6: ='Assumptions Tab'!$E$24*(1+'Assumptions Tab'!$E$26)^(AA$3-'Assumptions Tab'!$E$25) -> 0.01 | AB6: ='Assumptions Tab'!$E$24*(1+'Assumptions Tab'!$E$26)^(AB$3-'Assumptions Tab'!$E$25) -> 0.01 | AC6: ='Assumptions Tab'!$E$24*(1+'Assumptions Tab'!$E$26)^(AC$3-'Assumptions Tab'!$E$25) -> 0.01 | AD6: ='Assumptions Tab'!$E$24*(1+'Assumptions Tab'!$E$26)^(AD$3-'Assumptions Tab'!$E$25) -> 0.01 | AE6: ='Assumptions Tab'!$E$24*(1+'Assumptions Tab'!$E$26)^(AE$3-'Assumptions Tab'!$E$25) -> 0.01 | AF6: ='Assumptions Tab'!$E$24*(1+'Assumptions Tab'!$E$26)^(AF$3-'Assumptions Tab'!$E$25) -> 0.01 | AG6: ='Assumptions Tab'!$E$24*(1+'Assumptions Tab'!$E$26)^(AG$3-'Assumptions Tab'!$E$25) -> 0.01 | AH6: ='Assumptions Tab'!$E$24*(1+'Assumptions Tab'!$E$26)^(AH$3-'Assumptions Tab'!$E$25) -> 0.01 | AI6: ='Assumptions Tab'!$E$24*(1+'Assumptions Tab'!$E$26)^(AI$3-'Assumptions Tab'!$E$25) -> 0.01 | AJ6: ='Assumptions Tab'!$E$24*(1+'Assumptions Tab'!$E$26)^(AJ$3-'Assumptions Tab'!$E$25) -> 0.01 | AK6: ='Assumptions Tab'!$E$24*(1+'Assumptions Tab'!$E$26)^(AK$3-'Assumptions Tab'!$E$25) -> 0.01 | AL6: ='Assumptions Tab'!$E$24*(1+'Assumptions Tab'!$E$26)^(AL$3-'Assumptions Tab'!$E$25) -> 0.01 | AM6: ='Assumptions Tab'!$E$24*(1+'Assumptions Tab'!$E$26)^(AM$3-'Assumptions Tab'!$E$25) -> 0.01 | AN6: ='Assumptions Tab'!$E$24*(1+'Assumptions Tab'!$E$26)^(AN$3-'Assumptions Tab'!$E$25) -> 0.01 | AO6: ='Assumptions Tab'!$E$24*(1+'Assumptions Tab'!$E$26)^(AO$3-'Assumptions Tab'!$E$25) -> 0.01 | AP6: ='Assumptions Tab'!$E$24*(1+'Assumptions Tab'!$E$26)^(AP$3-'Assumptions Tab'!$E$25) -> 0.01
B7: Non-Tolled Cost | C7: =C5*C6 -> 0 | D7: =D5*D6 -> 
B8: Tolled Annual Trips | C8: =C4-C5 -> 0 | D8: =D4-D5 -> 
B9: Tolled ETC Trips | C9: =C8*VLOOKUP(C3,'Assumptions Tab'!$L$156:$P$216,2,FALSE) -> 0 | D9: =D8*VLOOKUP(D3,'Assumptions Tab'!$L$156:$P$216,2,FALSE) ->  | E9: =E8*VLOOKUP(E3,'Assumptions Tab'!$L$156:$P$216,2,FALSE) ->  | F9: =F8*VLOOKUP(F3,'Assumptions Tab'!$L$156:$P$216,2,FALSE) ->  | G9: =G8*VLOOKUP(G3,'Assumptions Tab'!$L$156:$P$216,2,FALSE) ->  | H9: =H8*VLOOKUP(H3,'Assumptions Tab'!$L$156:$P$216,2,FALSE) ->  | I9: =I8*VLOOKUP(I3,'Assumptions Tab'!$L$156:$P$216,2,FALSE) ->  | J9: =J8*VLOOKUP(J3,'Assumptions Tab'!$L$156:$P$216,2,FALSE) ->  | K9: =K8*VLOOKUP(K3,'Assumptions Tab'!$L$156:$P$216,2,FALSE) ->  | L9: =L8*VLOOKUP(L3,'Assumptions Tab'!$L$156:$P$216,2,FALSE) ->  | M9: =M8*VLOOKUP(M3,'Assumptions Tab'!$L$156:$P$216,2,FALSE) ->  | N9: =N8*VLOOKUP(N3,'Assumptions Tab'!$L$156:$P$216,2,FALSE) ->  | O9: =O8*VLOOKUP(O3,'Assumptions Tab'!$L$156:$P$216,2,FALSE) ->  | P9: =P8*VLOOKUP(P3,'Assumptions Tab'!$L$156:$P$216,2,FALSE) ->  | Q9: =Q8*VLOOKUP(Q3,'Assumptions Tab'!$L$156:$P$216,2,FALSE) ->  | R9: =R8*VLOOKUP(R3,'Assumptions Tab'!$L$156:$P$216,2,FALSE) ->  | S9: =S8*VLOOKUP(S3,'Assumptions Tab'!$L$156:$P$216,2,FALSE) ->  | T9: =T8*VLOOKUP(T3,'Assumptions Tab'!$L$156:$P$216,2,FALSE) ->  | U9: =U8*VLOOKUP(U3,'Assumptions Tab'!$L$156:$P$216,2,FALSE) ->  | V9: =V8*VLOOKUP(V3,'Assumptions Tab'!$L$156:$P$216,2,FALSE) ->  | W9: =W8*VLOOKUP(W3,'Assumptions Tab'!$L$156:$P$216,2,FALSE) ->  | X9: =X8*VLOOKUP(X3,'Assumptions Tab'!$L$156:$P$216,2,FALSE) ->  | Y9: =Y8*VLOOKUP(Y3,'Assumptions Tab'!$L$156:$P$216,2,FALSE) ->  | Z9: =Z8*VLOOKUP(Z3,'Assumptions Tab'!$L$156:$P$216,2,FALSE) ->  | AA9: =AA8*VLOOKUP(AA3,'Assumptions Tab'!$L$156:$P$216,2,FALSE) ->  | AB9: =AB8*VLOOKUP(AB3,'Assumptions Tab'!$L$156:$P$216,2,FALSE) ->  | AC9: =AC8*VLOOKUP(AC3,'Assumptions Tab'!$L$156:$P$216,2,FALSE) ->  | AD9: =AD8*VLOOKUP(AD3,'Assumptions Tab'!$L$156:$P$216,2,FALSE) ->  | AE9: =AE8*VLOOKUP(AE3,'Assumptions Tab'!$L$156:$P$216,2,FALSE) ->  | AF9: =AF8*VLOOKUP(AF3,'Assumptions Tab'!$L$156:$P$216,2,FALSE) ->  | AG9: =AG8*VLOOKUP(AG3,'Assumptions Tab'!$L$156:$P$216,2,FALSE) ->  | AH9: =AH8*VLOOKUP(AH3,'Assumptions Tab'!$L$156:$P$216,2,FALSE) ->  | AI9: =AI8*VLOOKUP(AI3,'Assumptions Tab'!$L$156:$P$216,2,FALSE) ->  | AJ9: =AJ8*VLOOKUP(AJ3,'Assumptions Tab'!$L$156:$P$216,2,FALSE) ->  | AK9: =AK8*VLOOKUP(AK3,'Assumptions Tab'!$L$156:$P$216,2,FALSE) ->  | AL9: =AL8*VLOOKUP(AL3,'Assumptions Tab'!$L$156:$P$216,2,FALSE) ->  | AM9: =AM8*VLOOKUP(AM3,'Assumptions Tab'!$L$156:$P$216,2,FALSE) ->  | AN9: =AN8*VLOOKUP(AN3,'Assumptions Tab'!$L$156:$P$216,2,FALSE) ->  | AO9: =AO8*VLOOKUP(AO3,'Assumptions Tab'!$L$156:$P$216,2,FALSE) ->  | AP9: =AP8*VLOOKUP(AP3,'Assumptions Tab'!$L$156:$P$216,2,FALSE) -> 
B10: ETC cost/tx | C10: ='Assumptions Tab'!$E$21*(1+'Assumptions Tab'!$E$26)^(C$3-'Assumptions Tab'!$E$25) -> 0.15 | D10: ='Assumptions Tab'!$E$21*(1+'Assumptions Tab'!$E$26)^(D$3-'Assumptions Tab'!$E$25) -> 0.15 | E10: ='Assumptions Tab'!$E$21*(1+'Assumptions Tab'!$E$26)^(E$3-'Assumptions Tab'!$E$25) -> 0.15 | F10: ='Assumptions Tab'!$E$21*(1+'Assumptions Tab'!$E$26)^(F$3-'Assumptions Tab'!$E$25) -> 0.15 | G10: ='Assumptions Tab'!$E$21*(1+'Assumptions Tab'!$E$26)^(G$3-'Assumptions Tab'!$E$25) -> 0.15 | H10: ='Assumptions Tab'!$E$21*(1+'Assumptions Tab'!$E$26)^(H$3-'Assumptions Tab'!$E$25) -> 0.15 | I10: ='Assumptions Tab'!$E$21*(1+'Assumptions Tab'!$E$26)^(I$3-'Assumptions Tab'!$E$25) -> 0.15 | J10: ='Assumptions Tab'!$E$21*(1+'Assumptions Tab'!$E$26)^(J$3-'Assumptions Tab'!$E$25) -> 0.15 | K10: ='Assumptions Tab'!$E$21*(1+'Assumptions Tab'!$E$26)^(K$3-'Assumptions Tab'!$E$25) -> 0.15 | L10: ='Assumptions Tab'!$E$21*(1+'Assumptions Tab'!$E$26)^(L$3-'Assumptions Tab'!$E$25) -> 0.15 | M10: ='Assumptions Tab'!$E$21*(1+'Assumptions Tab'!$E$26)^(M$3-'Assumptions Tab'!$E$25) -> 0.15 | N10: ='Assumptions Tab'!$E$21*(1+'Assumptions Tab'!$E$26)^(N$3-'Assumptions Tab'!$E$25) -> 0.15 | O10: ='Assumptions Tab'!$E$21*(1+'Assumptions Tab'!$E$26)^(O$3-'Assumptions Tab'!$E$25) -> 0.15 | P10: ='Assumptions Tab'!$E$21*(1+'Assumptions Tab'!$E$26)^(P$3-'Assumptions Tab'!$E$25) -> 0.15 | Q10: ='Assumptions Tab'!$E$21*(1+'Assumptions Tab'!$E$26)^(Q$3-'Assumptions Tab'!$E$25) -> 0.15 | R10: ='Assumptions Tab'!$E$21*(1+'Assumptions Tab'!$E$26)^(R$3-'Assumptions Tab'!$E$25) -> 0.15 | S10: ='Assumptions Tab'!$E$21*(1+'Assumptions Tab'!$E$26)^(S$3-'Assumptions Tab'!$E$25) -> 0.15 | T10: ='Assumptions Tab'!$E$21*(1+'Assumptions Tab'!$E$26)^(T$3-'Assumptions Tab'!$E$25) -> 0.15 | U10: ='Assumptions Tab'!$E$21*(1+'Assumptions Tab'!$E$26)^(U$3-'Assumptions Tab'!$E$25) -> 0.15 | V10: ='Assumptions Tab'!$E$21*(1+'Assumptions Tab'!$E$26)^(V$3-'Assumptions Tab'!$E$25) -> 0.15 | W10: ='Assumptions Tab'!$E$21*(1+'Assumptions Tab'!$E$26)^(W$3-'Assumptions Tab'!$E$25) -> 0.15 | X10: ='Assumptions Tab'!$E$21*(1+'Assumptions Tab'!$E$26)^(X$3-'Assumptions Tab'!$E$25) -> 0.15 | Y10: ='Assumptions Tab'!$E$21*(1+'Assumptions Tab'!$E$26)^(Y$3-'Assumptions Tab'!$E$25) -> 0.15 | Z10: ='Assumptions Tab'!$E$21*(1+'Assumptions Tab'!$E$26)^(Z$3-'Assumptions Tab'!$E$25) -> 0.15 | AA10: ='Assumptions Tab'!$E$21*(1+'Assumptions Tab'!$E$26)^(AA$3-'Assumptions Tab'!$E$25) -> 0.15 | AB10: ='Assumptions Tab'!$E$21*(1+'Assumptions Tab'!$E$26)^(AB$3-'Assumptions Tab'!$E$25) -> 0.15 | AC10: ='Assumptions Tab'!$E$21*(1+'Assumptions Tab'!$E$26)^(AC$3-'Assumptions Tab'!$E$25) -> 0.15 | AD10: ='Assumptions Tab'!$E$21*(1+'Assumptions Tab'!$E$26)^(AD$3-'Assumptions Tab'!$E$25) -> 0.15 | AE10: ='Assumptions Tab'!$E$21*(1+'Assumptions Tab'!$E$26)^(AE$3-'Assumptions Tab'!$E$25) -> 0.15 | AF10: ='Assumptions Tab'!$E$21*(1+'Assumptions Tab'!$E$26)^(AF$3-'Assumptions Tab'!$E$25) -> 0.15 | AG10: ='Assumptions Tab'!$E$21*(1+'Assumptions Tab'!$E$26)^(AG$3-'Assumptions Tab'!$E$25) -> 0.15 | AH10: ='Assumptions Tab'!$E$21*(1+'Assumptions Tab'!$E$26)^(AH$3-'Assumptions Tab'!$E$25) -> 0.15 | AI10: ='Assumptions Tab'!$E$21*(1+'Assumptions Tab'!$E$26)^(AI$3-'Assumptions Tab'!$E$25) -> 0.15 | AJ10: ='Assumptions Tab'!$E$21*(1+'Assumptions Tab'!$E$26)^(AJ$3-'Assumptions Tab'!$E$25) -> 0.15 | AK10: ='Assumptions Tab'!$E$21*(1+'Assumptions Tab'!$E$26)^(AK$3-'Assumptions Tab'!$E$25) -> 0.15 | AL10: ='Assumptions Tab'!$E$21*(1+'Assumptions Tab'!$E$26)^(AL$3-'Assumptions Tab'!$E$25) -> 0.15 | AM10: ='Assumptions Tab'!$E$21*(1+'Assumptions Tab'!$E$26)^(AM$3-'Assumptions Tab'!$E$25) -> 0.15 | AN10: ='Assumptions Tab'!$E$21*(1+'Assumptions Tab'!$E$26)^(AN$3-'Assumptions Tab'!$E$25) -> 0.15 | AO10: ='Assumptions Tab'!$E$21*(1+'Assumptions Tab'!$E$26)^(AO$3-'Assumptions Tab'!$E$25) -> 0.15 | AP10: ='Assumptions Tab'!$E$21*(1+'Assumptions Tab'!$E$26)^(AP$3-'Assumptions Tab'!$E$25) -> 0.15
B11: ETC Processing Cost | C11: =C9*C10 -> 0 | D11: =D9*D10 -> 
B12: Tolled i-toll Trips | C12: =C8*VLOOKUP(C3,'Assumptions Tab'!$L$156:$P$216,3,FALSE) -> 0 | D12: =D8*VLOOKUP(D3,'Assumptions Tab'!$L$156:$P$216,3,FALSE) ->  | E12: =E8*VLOOKUP(E3,'Assumptions Tab'!$L$156:$P$216,3,FALSE) ->  | F12: =F8*VLOOKUP(F3,'Assumptions Tab'!$L$156:$P$216,3,FALSE) ->  | G12: =G8*VLOOKUP(G3,'Assumptions Tab'!$L$156:$P$216,3,FALSE) ->  | H12: =H8*VLOOKUP(H3,'Assumptions Tab'!$L$156:$P$216,3,FALSE) ->  | I12: =I8*VLOOKUP(I3,'Assumptions Tab'!$L$156:$P$216,3,FALSE) ->  | J12: =J8*VLOOKUP(J3,'Assumptions Tab'!$L$156:$P$216,3,FALSE) ->  | K12: =K8*VLOOKUP(K3,'Assumptions Tab'!$L$156:$P$216,3,FALSE) ->  | L12: =L8*VLOOKUP(L3,'Assumptions Tab'!$L$156:$P$216,3,FALSE) ->  | M12: =M8*VLOOKUP(M3,'Assumptions Tab'!$L$156:$P$216,3,FALSE) ->  | N12: =N8*VLOOKUP(N3,'Assumptions Tab'!$L$156:$P$216,3,FALSE) ->  | O12: =O8*VLOOKUP(O3,'Assumptions Tab'!$L$156:$P$216,3,FALSE) ->  | P12: =P8*VLOOKUP(P3,'Assumptions Tab'!$L$156:$P$216,3,FALSE) ->  | Q12: =Q8*VLOOKUP(Q3,'Assumptions Tab'!$L$156:$P$216,3,FALSE) ->  | R12: =R8*VLOOKUP(R3,'Assumptions Tab'!$L$156:$P$216,3,FALSE) ->  | S12: =S8*VLOOKUP(S3,'Assumptions Tab'!$L$156:$P$216,3,FALSE) ->  | T12: =T8*VLOOKUP(T3,'Assumptions Tab'!$L$156:$P$216,3,FALSE) ->  | U12: =U8*VLOOKUP(U3,'Assumptions Tab'!$L$156:$P$216,3,FALSE) ->  | V12: =V8*VLOOKUP(V3,'Assumptions Tab'!$L$156:$P$216,3,FALSE) ->  | W12: =W8*VLOOKUP(W3,'Assumptions Tab'!$L$156:$P$216,3,FALSE) ->  | X12: =X8*VLOOKUP(X3,'Assumptions Tab'!$L$156:$P$216,3,FALSE) ->  | Y12: =Y8*VLOOKUP(Y3,'Assumptions Tab'!$L$156:$P$216,3,FALSE) ->  | Z12: =Z8*VLOOKUP(Z3,'Assumptions Tab'!$L$156:$P$216,3,FALSE) ->  | AA12: =AA8*VLOOKUP(AA3,'Assumptions Tab'!$L$156:$P$216,3,FALSE) ->  | AB12: =AB8*VLOOKUP(AB3,'Assumptions Tab'!$L$156:$P$216,3,FALSE) ->  | AC12: =AC8*VLOOKUP(AC3,'Assumptions Tab'!$L$156:$P$216,3,FALSE) ->  | AD12: =AD8*VLOOKUP(AD3,'Assumptions Tab'!$L$156:$P$216,3,FALSE) ->  | AE12: =AE8*VLOOKUP(AE3,'Assumptions Tab'!$L$156:$P$216,3,FALSE) ->  | AF12: =AF8*VLOOKUP(AF3,'Assumptions Tab'!$L$156:$P$216,3,FALSE) ->  | AG12: =AG8*VLOOKUP(AG3,'Assumptions Tab'!$L$156:$P$216,3,FALSE) ->  | AH12: =AH8*VLOOKUP(AH3,'Assumptions Tab'!$L$156:$P$216,3,FALSE) ->  | AI12: =AI8*VLOOKUP(AI3,'Assumptions Tab'!$L$156:$P$216,3,FALSE) ->  | AJ12: =AJ8*VLOOKUP(AJ3,'Assumptions Tab'!$L$156:$P$216,3,FALSE) ->  | AK12: =AK8*VLOOKUP(AK3,'Assumptions Tab'!$L$156:$P$216,3,FALSE) ->  | AL12: =AL8*VLOOKUP(AL3,'Assumptions Tab'!$L$156:$P$216,3,FALSE) ->  | AM12: =AM8*VLOOKUP(AM3,'Assumptions Tab'!$L$156:$P$216,3,FALSE) ->  | AN12: =AN8*VLOOKUP(AN3,'Assumptions Tab'!$L$156:$P$216,3,FALSE) ->  | AO12: =AO8*VLOOKUP(AO3,'Assumptions Tab'!$L$156:$P$216,3,FALSE) ->  | AP12: =AP8*VLOOKUP(AP3,'Assumptions Tab'!$L$156:$P$216,3,FALSE) -> 
